Workbook

Sheet Navigation Pane
C2: Mackay Regional Council
C3: Refer to the accompanying User Manual for detailed instructions on how to use the Spreadsheet
B6: Version No | D6: A.1 | F6: Date | G6: 17th September 2017 | J6: Author | K6: C Adam
B8: Comments | D8: Initial Draft SOW Updated SOW to reflect current projections Amended based on input from Appointed Reviewer
D10: Inputs | I10: Calculation | N10: Outputs
C12: General Input Sheet | H12: Calculation Function | M12: Summary Cost Schedule
C13: l Financial Inputs l Other "generic" inputs | H13: l Catchment based summary of demand, infrastructure (existing and new) and cost allocation l Infrastructure Cost calculation for each catchment ("Average Cost" approach) l Optional Discounted Cashflow | M13: l Summary of demand and cost allocation by catchment l Final costs by catchment
M15: Summary Cash flow Projections
C16: l Unit Cost of Passive Assets l Unit Cost of Land | M16: l Summary of forecast Cap X and anticipated IC revenues
C19: l Estimates of current and future demand (per cost catchment)
C21: Asset Inputs

Sheet General Input Sheet
B2: ='Navigation Pane'!C2 -> Mackay Regional Council
A3: Return to Navigation Pane
B4: General Input Sheet
B6: General Inputs | E6: Reference | G6: Value | I6: Comments
C8: Base Year | E8: YEAR | G8: 2016
G9: =YEAR -> 2016
C10: Term (between 15 and 30 years) | E10: TERM | G10: 20
B12: Application of Discounted Cash flow
C14: Calculate charges using Discounted Cash flow? (Y/N) | E14: DCFTRIGGER | G14: Yes
B16: General Financial Inputs
B18: Discount Rate (WACC):
C19: Average 10 Year Bond Rate | E19: TenYr | G19: 0.0389 | I19: Average of monthly 90 day bill rate July 2007-July 2017
B21: Option 1 | C21: Basic Margin on 10 Yr. Bond Rate | E21: Margin | G21: 0.035 | I21: 3.5% is the baseline figure quoted in LG Bulletin 06/01
C23: WACC: | E23: WACC1 | G23: =G19+G21 -> 0.0739
B25: Option 2 | C25: Capital Structure (% Debt) | E25: Capstr | G25: 0.2
C26: Market Risk Premium | E26: Risk | G26: 0.06
C27: Asset Beta | E27: AssetBeta | G27: 1
C28: Cost of Debt | E28: Debt | G28: 0.0555
C30: WACC: | E30: WACC2 | G30: =(G25*G28)+(G19+(G27*G26)*(1-G25)) -> 0.098
C32: WACC Option to be applied in the calculation? | E32: WACC1 | G32: =IF(G14="No",0,IF(E32="WACC1",WACC1,IF(E32="WACC2",WACC2,"Error"))) -> 0.0739
B34: Escalation Rates
C35: Capital Escalation - Future Cap X | E35: PPI | G35: 0.02711 | I35: ten (10) yr. average Roads and Bridges Index (ABS 6427, Table 15, Index 3101) t March 2017
C37: Capital Indexation Rates - Historical (June Qtr.)
E38: =YEAR -> 2016 | G38: 107.2 | I38: Roads and Bridges Index (ABS 6427, Table 15, Index 3101)
E39: =E38-1 -> 2015 | G39: 105.3
E40: =E39-1 -> 2014 | G40: 106.7
E41: 2013 | G41: 104.1
E42: 2012 | G42: 100.4
E43: 2011 | G43: 97.8
E44: 2010 | G44: 96.4
C46: Land Escalation | E46: LandInd | G46: 0.06
C48: Charges Escalation Rate | E48: Chargeind | G48: 0.025 | I48: Midrange of Reserve Bank Target fo CPI
G49: =Chargeind -> 0.025
G51: =Chargeind -> 0.025

Sheet Unit Rates (hidden)
B2: ='Navigation Pane'!C2 -> Mackay Regional Council
B4: Unit Rates
B6: Land Cost | D6: Transportation
B8: Water Supply | D8: Sewerage
B10: Stormwater | D10: Parks & Community Facilities

Sheet Catchment Demand (hidden)
B2: ='Navigation Pane'!C2 -> Mackay Regional Council
B4: Demand Forecast
B6: Anticpated Growth Residential | D6: Anticpated Growth - NON Residential
B8: Water Supply | D8: Transportation
B10: Sewerage | D10: Parks & Community Facilities
B12: Stormwater

Sheet Existing Trunk Assets
B2: ='Navigation Pane'!C2 -> Mackay Regional Council
B4: Existing Trunk Assets
B6: Water Supply | D6: Transportation
B8: Sewerage | D8: Parks & Community Facilities
B10: Stormwater

Sheet Existing Trunk Assets - Water
B2: ='Navigation Pane'!C2 -> Mackay Regional Council
B3: Water Supply
A4: Return to "Existing Trunk Assets"
B5: EXISTING TRUNK ASSETS
B8: Land Valuation Type | E8: Location
I10: Asset Data | W10: Catchment Asset Allocation | AP10: Asset Usage | BV10: Cost Allocation
B11: Basic Asset Data | H11: Asset Attributes | K11: Baseline Asset Valuation | P11: Land Attributes | T11: Refined Asset Value | W11: ='Catchment Demand - Water Supply'!$C8 -> Mackay | X11: ='Catchment Demand - Water Supply'!$C9 -> Sarina | Y11: ='Catchment Demand - Water Supply'!$C10 -> Mirani | AB11: ='Catchment Demand - Water Supply'!$C8 -> Mackay | AC11: ='Catchment Demand - Water Supply'!$C9 -> Sarina | AD11: ='Catchment Demand - Water Supply'!$C10 -> Mirani | BH11: ='Catchment Demand - Water Supply'!$C8 -> Mackay | BI11: ='Catchment Demand - Water Supply'!$C9 -> Sarina | BJ11: ='Catchment Demand - Water Supply'!$C10 -> Mirani | CL11: Checksum 2
B12: Asset ID | C12: LGIP ID | D12: Asset Type (*) | E12: Asset Class | F12: Asset Name | G12: Description | H12: Unit Rate Type (*) | I12: Length/unit (*) | J12: Diameter (*) | K12: Unit Rate | L12: Baseline Valuation | M12: Site/Condition | N12: Multiplier | O12: Gross Value | P12: Land Location/Type | Q12: Size of land (ha) (*) | R12: Unit Cost | S12: Land Value | T12: Valuation Year | U12: Escalation | V12: Current Replacement Cost
B14: Councils ID (from GIS, FAR, AMA etc.) | C14: ID from the LGIP drawings | E14: Reservoir, Trunk Main, etc. | L14: May be calculated from unit rates OR unique values can be direct entered | V14: CRC | W14: =IFERROR(VLOOKUP(W11,watercatch,6,FALSE),"") -> 160533 | X14: 12774 | Y14: 7209 | AB14: =VLOOKUP(AB11,'Catchment Demand - Water Supply'!$C$8:$H$11,6,FALSE) -> 160533 | AC14: =VLOOKUP(AC11,'Catchment Demand - Water Supply'!$C$8:$H$11,6,FALSE) -> 12774 | AD14: =VLOOKUP(AD11,'Catchment Demand - Water Supply'!$C$8:$H$11,6,FALSE) -> 7209 | BH14: =SUM(BH15:BH1946) -> 335290837.4 | BI14: =SUM(BI15:BI1946) -> 48736491.24 | BJ14: =SUM(BJ15:BJ1947) -> 21637464.89
B15: WTP | AB15: =IF(W15="y",AB$14,IF(AND(W15>0,W15<=1),W15*AB$14,"")) ->  | AC15: =IF(X15="y",AC$14,IF(AND(X15>0,X15<=1),X15*AC$14,"")) ->  | AD15: =IF(Y15="y",AD$14,IF(AND(Y15>0,Y15<=1),Y15*AD$14,"")) ->  | BH15: =IF(AB15="","",(AB15/$BF15)*$V15) ->  | BI15: =IF(AC15="","",(AC15/$BF15)*$V15) ->  | BJ15: =IF(AD15="","",(AD15/$BF15)*$V15) ->  | BK15: =IF(AE15="","",(AE15/$BF15)*$V15) ->  | BL15: =IF(AF15="","",(AF15/$BF15)*$V15) ->  | BM15: =IF(AG15="","",(AG15/$BF15)*$V15) ->  | BN15: =IF(AH15="","",(AH15/$BF15)*$V15) ->  | BO15: =IF(AI15="","",(AI15/$BF15)*$V15) ->  | BP15: =IF(AJ15="","",(AJ15/$BF15)*$V15) ->  | BQ15: =IF(AK15="","",(AK15/$BF15)*$V15) ->  | BR15: =IF(AL15="","",(AL15/$BF15)*$V15) ->  | BS15: =IF(AM15="","",(AM15/$BF15)*$V15) ->  | BT15: =IF(AN15="","",(AN15/$BF15)*$V15) ->  | BU15: =IF(AO15="","",(AO15/$BF15)*$V15) ->  | BV15: =IF(AP15="","",(AP15/$BF15)*$V15) ->  | BW15: =IF(AQ15="","",(AQ15/$BF15)*$V15) ->  | BX15: =IF(AR15="","",(AR15/$BF15)*$V15) ->  | BY15: =IF(AS15="","",(AS15/$BF15)*$V15) ->  | BZ15: =IF(AT15="","",(AT15/$BF15)*$V15) ->  | CA15: =IF(AU15="","",(AU15/$BF15)*$V15) ->  | CB15: =IF(AV15="","",(AV15/$BF15)*$V15) ->  | CC15: =IF(AW15="","",(AW15/$BF15)*$V15) ->  | CD15: =IF(AX15="","",(AX15/$BF15)*$V15) ->  | CE15: =IF(AY15="","",(AY15/$BF15)*$V15) ->  | CF15: =IF(AZ15="","",(AZ15/$BF15)*$V15) ->  | CG15: =IF(BA15="","",(BA15/$BF15)*$V15) ->  | CH15: =IF(BB15="","",(BB15/$BF15)*$V15) ->  | CI15: =IF(BC15="","",(BC15/$BF15)*$V15) ->  | CJ15: =IF(BD15="","",(BD15/$BF15)*$V15) ->  | CK15: =IF(BE15="","",(BE15/$BF15)*$V15) ->  | CL15: =IF(SUM(BH15:CK15)=V15,"","ERROR") -> 
B16: Nebo Rd WTP | D16: Active | K16: =IF(H16=TYPE1,VLOOKUP(J16,WaterUnitrates1,2,FALSE),IF(H16=TYPE2,VLOOKUP(J16,Unitrates2,2,FALSE),0)) -> 0 | L16: 65653269.12 | N16: =IF(M16="",1,VLOOKUP(M16,'Unit Rates - Water'!$H$12:$I$23,2,FALSE)) -> 1 | O16: =L16*N16 -> 65653269.12 | R16: =IF(P16="",'Unit Rates - Land'!landcst,IF($E$8="Landuse",VLOOKUP(P16,LAndcost3,2,FALSE),IF($E$8="Location",VLOOKUP(P16,Landcost2,2,FALSE),"Error"))) -> 0 | S16: =IF(R16="",0,R16*10000*Q16) -> 0 | T16: 2016 | U16: =IFERROR(('General Input Sheet'!$G$38/(VLOOKUP('Existing Trunk Assets - Water'!T16,'General Input Sheet'!$E$38:$G$44,3,FALSE))),1) -> 1 | V16: =IFERROR((O16+S16)*U16,0) -> 65653269.12 | W16: y | AB16: 160533 | BF16: =SUM(AB16:BE16) -> 160533 | BH16: 65653269.12
B17: Marian WTP | D17: Active | K17: 0 | L17: 10855868.21 | N17: =IF(M17="",1,VLOOKUP(M17,'Unit Rates - Water'!$H$12:$I$23,2,FALSE)) -> 1 | O17: 10855868.21 | R17: =IF(P17="",'Unit Rates - Land'!landcst,IF($E$8="Landuse",VLOOKUP(P17,LAndcost3,2,FALSE),IF($E$8="Location",VLOOKUP(P17,Landcost2,2,FALSE),"Error"))) -> 0 | S17: 0 | T17: 2016 | U17: =IFERROR(('General Input Sheet'!$G$38/(VLOOKUP('Existing Trunk Assets - Water'!T17,'General Input Sheet'!$E$38:$G$44,3,FALSE))),1) -> 1 | V17: 10855868.21 | Y17: y | AD17: 7209 | BF17: =SUM(AB17:BE17) -> 7209 | BJ17: 10855868.21
B18: Sarina WTP | D18: Active | K18: 0 | L18: 4216762.873 | N18: =IF(M18="",1,VLOOKUP(M18,'Unit Rates - Water'!$H$12:$I$23,2,FALSE)) -> 1 | O18: 4216762.873 | R18: =IF(P18="",'Unit Rates - Land'!landcst,IF($E$8="Landuse",VLOOKUP(P18,LAndcost3,2,FALSE),IF($E$8="Location",VLOOKUP(P18,Landcost2,2,FALSE),"Error"))) -> 0 | S18: =IF(R18="",0,R18*10000*Q18) -> 0 | T18: 2016 | U18: =IFERROR(('General Input Sheet'!$G$38/(VLOOKUP('Existing Trunk Assets - Water'!T18,'General Input Sheet'!$E$38:$G$44,3,FALSE))),1) -> 1 | V18: 4216762.873 | X18: y | AC18: 12774 | BF18: 12774 | BI18: 4216762.873
K19: 0 | N19: =IF(M19="",1,VLOOKUP(M19,'Unit Rates - Water'!$H$12:$I$23,2,FALSE)) -> 1 | O19: 0 | R19: =IF(P19="",'Unit Rates - Land'!landcst,IF($E$8="Landuse",VLOOKUP(P19,LAndcost3,2,FALSE),IF($E$8="Location",VLOOKUP(P19,Landcost2,2,FALSE),"Error"))) -> 0 | S19: 0 | U19: =IFERROR(('General Input Sheet'!$G$38/(VLOOKUP('Existing Trunk Assets - Water'!T19,'General Input Sheet'!$E$38:$G$44,3,FALSE))),1) -> 1 | V19: 0 | BF19: 0
B20: WPS | K20: 0 | N20: =IF(M20="",1,VLOOKUP(M20,'Unit Rates - Water'!$H$12:$I$23,2,FALSE)) -> 1 | O20: 0 | R20: =IF(P20="",'Unit Rates - Land'!landcst,IF($E$8="Landuse",VLOOKUP(P20,LAndcost3,2,FALSE),IF($E$8="Location",VLOOKUP(P20,Landcost2,2,FALSE),"Error"))) -> 0 | S20: 0 | U20: =IFERROR(('General Input Sheet'!$G$38/(VLOOKUP('Existing Trunk Assets - Water'!T20,'General Input Sheet'!$E$38:$G$44,3,FALSE))),1) -> 1 | V20: 0 | BF20: 0
B21: WPSAC | D21: Active | F21: WPSAC | G21: Alligator Creek WPS | K21: 0 | L21: 1482091.359 | N21: =IF(M21="",1,VLOOKUP(M21,'Unit Rates - Water'!$H$12:$I$23,2,FALSE)) -> 1 | O21: 1482091.359 | R21: =IF(P21="",'Unit Rates - Land'!landcst,IF($E$8="Landuse",VLOOKUP(P21,LAndcost3,2,FALSE),IF($E$8="Location",VLOOKUP(P21,Landcost2,2,FALSE),"Error"))) -> 0 | S21: 0 | T21: 2016 | U21: =IFERROR(('General Input Sheet'!$G$38/(VLOOKUP('Existing Trunk Assets - Water'!T21,'General Input Sheet'!$E$38:$G$44,3,FALSE))),1) -> 1 | V21: 1482091.359 | Y21: y | AD21: 7209 | BF21: 7209 | BJ21: 1482091.359
B22: WPSAL | D22: Active | F22: WPSAL | G22: Alexandra WPS | K22: 0 | L22: 16077.191 | N22: =IF(M22="",1,VLOOKUP(M22,'Unit Rates - Water'!$H$12:$I$23,2,FALSE)) -> 1 | O22: 16077.191 | R22: =IF(P22="",'Unit Rates - Land'!landcst,IF($E$8="Landuse",VLOOKUP(P22,LAndcost3,2,FALSE),IF($E$8="Location",VLOOKUP(P22,Landcost2,2,FALSE),"Error"))) -> 0 | S22: 0 | T22: 2016 | U22: =IFERROR(('General Input Sheet'!$G$38/(VLOOKUP('Existing Trunk Assets - Water'!T22,'General Input Sheet'!$E$38:$G$44,3,FALSE))),1) -> 1 | V22: 16077.191 | W22: y | AB22: 160533 | BF22: 160533 | BH22: 16077.191
B23: WPSAND | D23: Active | F23: WPSAND | G23: NBC Andergrove WPS | K23: 0 | L23: 555117.3512 | N23: =IF(M23="",1,VLOOKUP(M23,'Unit Rates - Water'!$H$12:$I$23,2,FALSE)) -> 1 | O23: 555117.3512 | R23: =IF(P23="",'Unit Rates - Land'!landcst,IF($E$8="Landuse",VLOOKUP(P23,LAndcost3,2,FALSE),IF($E$8="Location",VLOOKUP(P23,Landcost2,2,FALSE),"Error"))) -> 0 | S23: 0 | T23: 2016 | U23: =IFERROR(('General Input Sheet'!$G$38/(VLOOKUP('Existing Trunk Assets - Water'!T23,'General Input Sheet'!$E$38:$G$44,3,FALSE))),1) -> 1 | V23: 555117.3512 | W23: y | AB23: 160533 | BF23: 160533 | BH23: 555117.3512
B24: WPSASB | D24: Active | F24: WPSASB | G24: Armstrong Beach WPS | K24: 0 | L24: 26666.6223 | N24: =IF(M24="",1,VLOOKUP(M24,'Unit Rates - Water'!$H$12:$I$23,2,FALSE)) -> 1 | O24: 26666.6223 | R24: =IF(P24="",'Unit Rates - Land'!landcst,IF($E$8="Landuse",VLOOKUP(P24,LAndcost3,2,FALSE),IF($E$8="Location",VLOOKUP(P24,Landcost2,2,FALSE),"Error"))) -> 0 | S24: 0 | T24: 2016 | U24: =IFERROR(('General Input Sheet'!$G$38/(VLOOKUP('Existing Trunk Assets - Water'!T24,'General Input Sheet'!$E$38:$G$44,3,FALSE))),1) -> 1 | V24: 26666.6223 | X24: y | AC24: 12774 | BF24: 12774 | BI24: 26666.6223
B25: WPSASH | D25: Active | F25: WPSASH | G25: Ashburtons Road WPS | K25: 0 | L25: 739895.6413 | N25: =IF(M25="",1,VLOOKUP(M25,'Unit Rates - Water'!$H$12:$I$23,2,FALSE)) -> 1 | O25: 739895.6413 | R25: =IF(P25="",'Unit Rates - Land'!landcst,IF($E$8="Landuse",VLOOKUP(P25,LAndcost3,2,FALSE),IF($E$8="Location",VLOOKUP(P25,Landcost2,2,FALSE),"Error"))) -> 0 | S25: =IF(R25="",0,R25*10000*Q25) -> 0 | T25: 2016 | U25: =IFERROR(('General Input Sheet'!$G$38/(VLOOKUP('Existing Trunk Assets - Water'!T25,'General Input Sheet'!$E$38:$G$44,3,FALSE))),1) -> 1 | V25: 739895.6413 | W25: y | AB25: 160533 | BF25: 160533 | BH25: 739895.6413
B26: WPSBJE | D26: Active | F26: WPSBJE | G26: Rural View No 1 Reservoir Booster Pump Station | K26: 0 | L26: 418571.3144 | N26: =IF(M26="",1,VLOOKUP(M26,'Unit Rates - Water'!$H$12:$I$23,2,FALSE)) -> 1 | O26: 418571.3144 | R26: =IF(P26="",'Unit Rates - Land'!landcst,IF($E$8="Landuse",VLOOKUP(P26,LAndcost3,2,FALSE),IF($E$8="Location",VLOOKUP(P26,Landcost2,2,FALSE),"Error"))) -> 0 | S26: 0 | T26: 2016 | U26: =IFERROR(('General Input Sheet'!$G$38/(VLOOKUP('Existing Trunk Assets - Water'!T26,'General Input Sheet'!$E$38:$G$44,3,FALSE))),1) -> 1 | V26: 418571.3144 | X26: y | AC26: 12774 | BF26: 12774 | BI26: 418571.3144
B27: WPSBLK | D27: Active | F27: WPSBLK | G27: Blacks Beach Reservoir Booster PS | K27: 0 | L27: 640641.4392 | N27: =IF(M27="",1,VLOOKUP(M27,'Unit Rates - Water'!$H$12:$I$23,2,FALSE)) -> 1 | O27: 640641.4392 | R27: =IF(P27="",'Unit Rates - Land'!landcst,IF($E$8="Landuse",VLOOKUP(P27,LAndcost3,2,FALSE),IF($E$8="Location",VLOOKUP(P27,Landcost2,2,FALSE),"Error"))) -> 0 | S27: 0 | T27: 2016 | U27: =IFERROR(('General Input Sheet'!$G$38/(VLOOKUP('Existing Trunk Assets - Water'!T27,'General Input Sheet'!$E$38:$G$44,3,FALSE))),1) -> 1 | V27: 640641.4392 | W27: y | AB27: 160533 | BF27: 160533 | BH27: 640641.4392
B28: WPSBM2 | D28: Active | F28: WPSBM2 | G28: Bloomsbury WPS | K28: 0 | L28: 21470.0461 | N28: =IF(M28="",1,VLOOKUP(M28,'Unit Rates - Water'!$H$12:$I$23,2,FALSE)) -> 1 | O28: 21470.0461 | R28: =IF(P28="",'Unit Rates - Land'!landcst,IF($E$8="Landuse",VLOOKUP(P28,LAndcost3,2,FALSE),IF($E$8="Location",VLOOKUP(P28,Landcost2,2,FALSE),"Error"))) -> 0 | S28: 0 | T28: 2016 | U28: =IFERROR(('General Input Sheet'!$G$38/(VLOOKUP('Existing Trunk Assets - Water'!T28,'General Input Sheet'!$E$38:$G$44,3,FALSE))),1) -> 1 | V28: 21470.0461 | W28: y | AB28: 160533 | BF28: 160533 | BH28: 21470.0461
B29: WPSBOL | D29: Active | F29: WPSBOL | G29: Bold Street WPS | K29: 0 | L29: 339545.6007 | N29: =IF(M29="",1,VLOOKUP(M29,'Unit Rates - Water'!$H$12:$I$23,2,FALSE)) -> 1 | O29: 339545.6007 | R29: =IF(P29="",'Unit Rates - Land'!landcst,IF($E$8="Landuse",VLOOKUP(P29,LAndcost3,2,FALSE),IF($E$8="Location",VLOOKUP(P29,Landcost2,2,FALSE),"Error"))) -> 0 | S29: 0 | T29: 2016 | U29: =IFERROR(('General Input Sheet'!$G$38/(VLOOKUP('Existing Trunk Assets - Water'!T29,'General Input Sheet'!$E$38:$G$44,3,FALSE))),1) -> 1 | V29: 339545.6007 | X29: y | AC29: 12774 | BF29: 12774 | BI29: 339545.6007
B30: WPSBON | D30: Active | F30: WPSBON | G30: Bonsons Scrub WPS | K30: 0 | L30: 343369.4281 | N30: =IF(M30="",1,VLOOKUP(M30,'Unit Rates - Water'!$H$12:$I$23,2,FALSE)) -> 1 | O30: 343369.4281 | R30: =IF(P30="",'Unit Rates - Land'!landcst,IF($E$8="Landuse",VLOOKUP(P30,LAndcost3,2,FALSE),IF($E$8="Location",VLOOKUP(P30,Landcost2,2,FALSE),"Error"))) -> 0 | S30: 0 | T30: 2016 | U30: =IFERROR(('General Input Sheet'!$G$38/(VLOOKUP('Existing Trunk Assets - Water'!T30,'General Input Sheet'!$E$38:$G$44,3,FALSE))),1) -> 1 | V30: 343369.4281 | W30: y | AB30: 160533 | BF30: 160533 | BH30: 343369.4281
B31: WPSCCR | D31: Active | F31: WPSCCR | G31: Cattle Creek River Pumps | K31: 0 | L31: 122989.4962 | N31: =IF(M31="",1,VLOOKUP(M31,'Unit Rates - Water'!$H$12:$I$23,2,FALSE)) -> 1 | O31: 122989.4962 | R31: =IF(P31="",'Unit Rates - Land'!landcst,IF($E$8="Landuse",VLOOKUP(P31,LAndcost3,2,FALSE),IF($E$8="Location",VLOOKUP(P31,Landcost2,2,FALSE),"Error"))) -> 0 | S31: 0 | T31: 2016 | U31: =IFERROR(('General Input Sheet'!$G$38/(VLOOKUP('Existing Trunk Assets - Water'!T31,'General Input Sheet'!$E$38:$G$44,3,FALSE))),1) -> 1 | V31: 122989.4962 | W31: y | AB31: 160533 | BF31: 160533 | BH31: 122989.4962
B32: WPSCH | D32: Active | F32: WPSCH | G32: Cape Hillsborough WPS | K32: 0 | L32: 82935.5467 | N32: =IF(M32="",1,VLOOKUP(M32,'Unit Rates - Water'!$H$12:$I$23,2,FALSE)) -> 1 | O32: 82935.5467 | R32: =IF(P32="",'Unit Rates - Land'!landcst,IF($E$8="Landuse",VLOOKUP(P32,LAndcost3,2,FALSE),IF($E$8="Location",VLOOKUP(P32,Landcost2,2,FALSE),"Error"))) -> 0 | S32: 0 | T32: 2016 | U32: =IFERROR(('General Input Sheet'!$G$38/(VLOOKUP('Existing Trunk Assets - Water'!T32,'General Input Sheet'!$E$38:$G$44,3,FALSE))),1) -> 1 | V32: 82935.5467 | W32: y | AB32: 160533 | BF32: 160533 | BH32: 82935.5467
B33: WPSCRE | F33: WPSCRE | G33: Creese Street WPS | L33: 198689.3022 | N33: 1 | O33: 198689.3022 | R33: 0 | S33: 0 | T33: 2016 | U33: 1 | V33: 198689.3022 | W33: y
B34: WPSDH | D34: Active | F34: WPSDH | G34: Dolphin Heads WPS | K34: 0 | L34: 474412.7654 | N34: =IF(M34="",1,VLOOKUP(M34,'Unit Rates - Water'!$H$12:$I$23,2,FALSE)) -> 1 | O34: 474412.7654 | R34: =IF(P34="",'Unit Rates - Land'!landcst,IF($E$8="Landuse",VLOOKUP(P34,LAndcost3,2,FALSE),IF($E$8="Location",VLOOKUP(P34,Landcost2,2,FALSE),"Error"))) -> 0 | S34: 0 | T34: 2016 | U34: =IFERROR(('General Input Sheet'!$G$38/(VLOOKUP('Existing Trunk Assets - Water'!T34,'General Input Sheet'!$E$38:$G$44,3,FALSE))),1) -> 1 | V34: 474412.7654 | Y34: y | AB34: =IF(W34="y",AB$14,IF(AND(W34>0,W34<=1),W34*AB$14,"")) ->  | AD34: 7209 | BE34: =IF(Z34="y",BE$14,IF(AND(Z34>0,Z34<=1),Z34*BE$14,"")) ->  | BF34: 7209 | BH34: =IF(AB34="","",(AB34/$BF34)*$V34) ->  | BJ34: 474412.7654 | BR34: =IF(AL34="","",(AL34/$BF34)*$V34) ->  | CB34: =IF(AV34="","",(AV34/$BF34)*$V34) ->  | CL34: =IF(SUM(BH34:CK34)=V34,"","ERROR") -> 
B35: WPSDUM | D35: Active | F35: WPSDUM | G35: Dumbleton Raw WPS | K35: 0 | L35: 5993493.357 | N35: =IF(M35="",1,VLOOKUP(M35,'Unit Rates - Water'!$H$12:$I$23,2,FALSE)) -> 1 | O35: 5993493.357 | R35: =IF(P35="",'Unit Rates - Land'!landcst,IF($E$8="Landuse",VLOOKUP(P35,LAndcost3,2,FALSE),IF($E$8="Location",VLOOKUP(P35,Landcost2,2,FALSE),"Error"))) -> 0 | S35: 0 | T35: 2016 | U35: =IFERROR(('General Input Sheet'!$G$38/(VLOOKUP('Existing Trunk Assets - Water'!T35,'General Input Sheet'!$E$38:$G$44,3,FALSE))),1) -> 1 | V35: 5993493.357 | W35: y | AB35: 160533 | BF35: 160533 | BH35: 5993493.357
B36: WPSEABPS | D36: Active | F36: WPSEABPS | G36: Eulbertie Ave Booster PS | K36: 0 | L36: 492876.8238 | N36: =IF(M36="",1,VLOOKUP(M36,'Unit Rates - Water'!$H$12:$I$23,2,FALSE)) -> 1 | O36: 492876.8238 | R36: =IF(P36="",'Unit Rates - Land'!landcst,IF($E$8="Landuse",VLOOKUP(P36,LAndcost3,2,FALSE),IF($E$8="Location",VLOOKUP(P36,Landcost2,2,FALSE),"Error"))) -> 0 | S36: 0 | T36: 2016 | U36: =IFERROR(('General Input Sheet'!$G$38/(VLOOKUP('Existing Trunk Assets - Water'!T36,'General Input Sheet'!$E$38:$G$44,3,FALSE))),1) -> 1 | V36: 492876.8238 | W36: y | AB36: 160533 | BF36: 160533 | BH36: 492876.8238
B37: WPSEE | D37: Active | F37: WPSEE | G37: Eversleigh Estate WPS | K37: 0 | L37: 53580.539 | N37: =IF(M37="",1,VLOOKUP(M37,'Unit Rates - Water'!$H$12:$I$23,2,FALSE)) -> 1 | O37: 53580.539 | R37: =IF(P37="",'Unit Rates - Land'!landcst,IF($E$8="Landuse",VLOOKUP(P37,LAndcost3,2,FALSE),IF($E$8="Location",VLOOKUP(P37,Landcost2,2,FALSE),"Error"))) -> 0 | S37: 0 | T37: 2016 | U37: =IFERROR(('General Input Sheet'!$G$38/(VLOOKUP('Existing Trunk Assets - Water'!T37,'General Input Sheet'!$E$38:$G$44,3,FALSE))),1) -> 1 | V37: 53580.539 | W37: y | AB37: 160533 | BF37: 160533 | BH37: 53580.539
B38: WPSFSB | D38: Active | F38: WPSFSB | G38: Florence St WPS | K38: 0 | L38: 202611.1257 | N38: =IF(M38="",1,VLOOKUP(M38,'Unit Rates - Water'!$H$12:$I$23,2,FALSE)) -> 1 | O38: 202611.1257 | R38: =IF(P38="",'Unit Rates - Land'!landcst,IF($E$8="Landuse",VLOOKUP(P38,LAndcost3,2,FALSE),IF($E$8="Location",VLOOKUP(P38,Landcost2,2,FALSE),"Error"))) -> 0 | S38: 0 | T38: 2016 | U38: =IFERROR(('General Input Sheet'!$G$38/(VLOOKUP('Existing Trunk Assets - Water'!T38,'General Input Sheet'!$E$38:$G$44,3,FALSE))),1) -> 1 | V38: 202611.1257 | W38: y | AB38: 160533 | BF38: 160533 | BH38: 202611.1257
B39: WPSGOL | D39: Active | F39: WPSGOL | G39: Golf Links WPS | K39: 0 | L39: 1245712.652 | N39: =IF(M39="",1,VLOOKUP(M39,'Unit Rates - Water'!$H$12:$I$23,2,FALSE)) -> 1 | O39: 1245712.652 | R39: =IF(P39="",'Unit Rates - Land'!landcst,IF($E$8="Landuse",VLOOKUP(P39,LAndcost3,2,FALSE),IF($E$8="Location",VLOOKUP(P39,Landcost2,2,FALSE),"Error"))) -> 0 | S39: 0 | T39: 2016 | U39: =IFERROR(('General Input Sheet'!$G$38/(VLOOKUP('Existing Trunk Assets - Water'!T39,'General Input Sheet'!$E$38:$G$44,3,FALSE))),1) -> 1 | V39: 1245712.652 | W39: y | AB39: 160533 | BF39: 160533 | BH39: 1245712.652
B40: WPSGRE | F40: WPSGRE | G40: Green St (High Level) WPS | L40: 280546.9064 | N40: 1 | O40: 280546.9064 | R40: 0 | S40: 0 | T40: 2016 | U40: 1 | V40: 280546.9064 | W40: y
B41: WPSHIL | F41: WPSHIL | G41: Hill Street WPS | L41: 255147.799 | N41: 1 | O41: 255147.799 | R41: 0 | S41: 0 | T41: 2016 | U41: 1 | V41: 255147.799 | W41: y
B42: WPSHIL | D42: Active | F42: WPSHIL | G42: Hill Street WPS | K42: 0 | L42: 255147.799 | N42: =IF(M42="",1,VLOOKUP(M42,'Unit Rates - Water'!$H$12:$I$23,2,FALSE)) -> 1 | O42: 255147.799 | R42: =IF(P42="",'Unit Rates - Land'!landcst,IF($E$8="Landuse",VLOOKUP(P42,LAndcost3,2,FALSE),IF($E$8="Location",VLOOKUP(P42,Landcost2,2,FALSE),"Error"))) -> 0 | S42: 0 | T42: 2016 | U42: =IFERROR(('General Input Sheet'!$G$38/(VLOOKUP('Existing Trunk Assets - Water'!T42,'General Input Sheet'!$E$38:$G$44,3,FALSE))),1) -> 1 | V42: 255147.799 | W42: y | AB42: =IF(W42="y",AB$14,IF(AND(W42>0,W42<=1),W42*AB$14,"")) -> 160533 | AC42: =IF(X42="y",AC$14,IF(AND(X42>0,X42<=1),X42*AC$14,"")) ->  | AD42: =IF(Y42="y",AD$14,IF(AND(Y42>0,Y42<=1),Y42*AD$14,"")) ->  | BE42: =IF(Z42="y",BE$14,IF(AND(Z42>0,Z42<=1),Z42*BE$14,"")) ->  | BF42: 160533 | BH42: =IF(AB42="","",(AB42/$BF42)*$V42) -> 255147.799 | BI42: =IF(AC42="","",(AC42/$BF42)*$V42) ->  | BJ42: =IF(AD42="","",(AD42/$BF42)*$V42) ->  | BK42: =IF(AE42="","",(AE42/$BF42)*$V42) ->  | BL42: =IF(AF42="","",(AF42/$BF42)*$V42) ->  | BM42: =IF(AG42="","",(AG42/$BF42)*$V42) ->  | BN42: =IF(AH42="","",(AH42/$BF42)*$V42) ->  | BO42: =IF(AI42="","",(AI42/$BF42)*$V42) ->  | BP42: =IF(AJ42="","",(AJ42/$BF42)*$V42) ->  | BQ42: =IF(AK42="","",(AK42/$BF42)*$V42) ->  | BR42: =IF(AL42="","",(AL42/$BF42)*$V42) ->  | BS42: =IF(AM42="","",(AM42/$BF42)*$V42) ->  | BT42: =IF(AN42="","",(AN42/$BF42)*$V42) ->  | BU42: =IF(AO42="","",(AO42/$BF42)*$V42) ->  | BV42: =IF(AP42="","",(AP42/$BF42)*$V42) ->  | BW42: =IF(AQ42="","",(AQ42/$BF42)*$V42) ->  | BX42: =IF(AR42="","",(AR42/$BF42)*$V42) ->  | BY42: =IF(AS42="","",(AS42/$BF42)*$V42) ->  | BZ42: =IF(AT42="","",(AT42/$BF42)*$V42) ->  | CA42: =IF(AU42="","",(AU42/$BF42)*$V42) ->  | CB42: =IF(AV42="","",(AV42/$BF42)*$V42) ->  | CC42: =IF(AW42="","",(AW42/$BF42)*$V42) ->  | CD42: =IF(AX42="","",(AX42/$BF42)*$V42) ->  | CE42: =IF(AY42="","",(AY42/$BF42)*$V42) ->  | CF42: =IF(AZ42="","",(AZ42/$BF42)*$V42) ->  | CG42: =IF(BA42="","",(BA42/$BF42)*$V42) ->  | CH42: =IF(BB42="","",(BB42/$BF42)*$V42) ->  | CI42: =IF(BC42="","",(BC42/$BF42)*$V42) ->  | CJ42: =IF(BD42="","",(BD42/$BF42)*$V42) ->  | CK42: =IF(BE42="","",(BE42/$BF42)*$V42) ->  | CL42: =IF(SUM(BH42:CK42)=V42,"","ERROR") -> 
B43: WPSHLPS | D43: Active | F43: WPSHLPS | G43: Nebo Rd Wtp High Lift PS | K43: 0 | L43: 1788413.885 | N43: =IF(M43="",1,VLOOKUP(M43,'Unit Rates - Water'!$H$12:$I$23,2,FALSE)) -> 1 | O43: 1788413.885 | R43: =IF(P43="",'Unit Rates - Land'!landcst,IF($E$8="Landuse",VLOOKUP(P43,LAndcost3,2,FALSE),IF($E$8="Location",VLOOKUP(P43,Landcost2,2,FALSE),"Error"))) -> 0 | S43: 0 | T43: 2016 | U43: =IFERROR(('General Input Sheet'!$G$38/(VLOOKUP('Existing Trunk Assets - Water'!T43,'General Input Sheet'!$E$38:$G$44,3,FALSE))),1) -> 1 | V43: 1788413.885 | W43: y | AB43: 160533 | BF43: 160533 | BH43: 1788413.885
B44: WPSHV | D44: Active | F44: WPSHV | G44: Harbour Village WPS | K44: 0 | L44: 454268.9502 | N44: =IF(M44="",1,VLOOKUP(M44,'Unit Rates - Water'!$H$12:$I$23,2,FALSE)) -> 1 | O44: 454268.9502 | R44: =IF(P44="",'Unit Rates - Land'!landcst,IF($E$8="Landuse",VLOOKUP(P44,LAndcost3,2,FALSE),IF($E$8="Location",VLOOKUP(P44,Landcost2,2,FALSE),"Error"))) -> 0 | S44: 0 | T44: 2016 | U44: =IFERROR(('General Input Sheet'!$G$38/(VLOOKUP('Existing Trunk Assets - Water'!T44,'General Input Sheet'!$E$38:$G$44,3,FALSE))),1) -> 1 | V44: 454268.9502 | X44: y | AC44: 12774 | BF44: 12774 | BI44: 454268.9502
B45: WPSILL | D45: Active | F45: WPSILL | G45: Illalangi WPS | K45: 0 | L45: 135527.4203 | N45: =IF(M45="",1,VLOOKUP(M45,'Unit Rates - Water'!$H$12:$I$23,2,FALSE)) -> 1 | O45: 135527.4203 | R45: =IF(P45="",'Unit Rates - Land'!landcst,IF($E$8="Landuse",VLOOKUP(P45,LAndcost3,2,FALSE),IF($E$8="Location",VLOOKUP(P45,Landcost2,2,FALSE),"Error"))) -> 0 | S45: 0 | T45: 2016 | U45: =IFERROR(('General Input Sheet'!$G$38/(VLOOKUP('Existing Trunk Assets - Water'!T45,'General Input Sheet'!$E$38:$G$44,3,FALSE))),1) -> 1 | V45: 135527.4203 | X45: y | AC45: 12774 | BF45: 12774 | BI45: 135527.4203
B46: WPSJC | D46: Active | F46: WPSJC | G46: Janes Creek WPS | K46: 0 | L46: 1169866.699 | N46: =IF(M46="",1,VLOOKUP(M46,'Unit Rates - Water'!$H$12:$I$23,2,FALSE)) -> 1 | O46: 1169866.699 | R46: =IF(P46="",'Unit Rates - Land'!landcst,IF($E$8="Landuse",VLOOKUP(P46,LAndcost3,2,FALSE),IF($E$8="Location",VLOOKUP(P46,Landcost2,2,FALSE),"Error"))) -> 0 | S46: 0 | T46: 2016 | U46: =IFERROR(('General Input Sheet'!$G$38/(VLOOKUP('Existing Trunk Assets - Water'!T46,'General Input Sheet'!$E$38:$G$44,3,FALSE))),1) -> 1 | V46: 1169866.699 | W46: y | AB46: 160533 | BF46: 160533 | BH46: 1169866.699
B47: WPSKOU | D47: Active | F47: WPSKOU | G47: Koumala WPS | K47: 0 | L47: 12444.4237 | N47: =IF(M47="",1,VLOOKUP(M47,'Unit Rates - Water'!$H$12:$I$23,2,FALSE)) -> 1 | O47: 12444.4237 | R47: =IF(P47="",'Unit Rates - Land'!landcst,IF($E$8="Landuse",VLOOKUP(P47,LAndcost3,2,FALSE),IF($E$8="Location",VLOOKUP(P47,Landcost2,2,FALSE),"Error"))) -> 0 | S47: 0 | T47: 2016 | U47: =IFERROR(('General Input Sheet'!$G$38/(VLOOKUP('Existing Trunk Assets - Water'!T47,'General Input Sheet'!$E$38:$G$44,3,FALSE))),1) -> 1 | V47: 12444.4237 | W47: y | AB47: 160533 | BF47: 160533 | BH47: 12444.4237
B48: WPSLLP | D48: Active | F48: WPSLLP | G48: Nebo Road Low Lift PS | K48: 0 | L48: 275775.45 | N48: =IF(M48="",1,VLOOKUP(M48,'Unit Rates - Water'!$H$12:$I$23,2,FALSE)) -> 1 | O48: 275775.45 | R48: =IF(P48="",'Unit Rates - Land'!landcst,IF($E$8="Landuse",VLOOKUP(P48,LAndcost3,2,FALSE),IF($E$8="Location",VLOOKUP(P48,Landcost2,2,FALSE),"Error"))) -> 0 | S48: 0 | T48: 2016 | U48: =IFERROR(('General Input Sheet'!$G$38/(VLOOKUP('Existing Trunk Assets - Water'!T48,'General Input Sheet'!$E$38:$G$44,3,FALSE))),1) -> 1 | V48: 275775.45 | W48: y | AB48: 160533 | BF48: 160533 | BH48: 275775.45
B49: WPSLSB | D49: Active | F49: WPSLSB | G49: Leslie St Booster PS | K49: 0 | L49: 86395.6785 | N49: =IF(M49="",1,VLOOKUP(M49,'Unit Rates - Water'!$H$12:$I$23,2,FALSE)) -> 1 | O49: 86395.6785 | R49: =IF(P49="",'Unit Rates - Land'!landcst,IF($E$8="Landuse",VLOOKUP(P49,LAndcost3,2,FALSE),IF($E$8="Location",VLOOKUP(P49,Landcost2,2,FALSE),"Error"))) -> 0 | S49: 0 | T49: 2016 | U49: =IFERROR(('General Input Sheet'!$G$38/(VLOOKUP('Existing Trunk Assets - Water'!T49,'General Input Sheet'!$E$38:$G$44,3,FALSE))),1) -> 1 | V49: 86395.6785 | W49: y | AB49: 160533 | BF49: 160533 | BH49: 86395.6785
B50: WPSLV | D50: Active | F50: WPSLV | G50: Leap Views WPS | K50: 0 | L50: 81648.5837 | N50: =IF(M50="",1,VLOOKUP(M50,'Unit Rates - Water'!$H$12:$I$23,2,FALSE)) -> 1 | O50: 81648.5837 | R50: =IF(P50="",'Unit Rates - Land'!landcst,IF($E$8="Landuse",VLOOKUP(P50,LAndcost3,2,FALSE),IF($E$8="Location",VLOOKUP(P50,Landcost2,2,FALSE),"Error"))) -> 0 | S50: 0 | T50: 2016 | U50: =IFERROR(('General Input Sheet'!$G$38/(VLOOKUP('Existing Trunk Assets - Water'!T50,'General Input Sheet'!$E$38:$G$44,3,FALSE))),1) -> 1 | V50: 81648.5837 | W50: y | AB50: 160533 | BF50: 160533 | BH50: 81648.5837
B51: WPSMARB | D51: Active | F51: WPSMARB | G51: Marian Reservoir Booster PS | K51: 0 | L51: 674502.0403 | N51: =IF(M51="",1,VLOOKUP(M51,'Unit Rates - Water'!$H$12:$I$23,2,FALSE)) -> 1 | O51: 674502.0403 | R51: =IF(P51="",'Unit Rates - Land'!landcst,IF($E$8="Landuse",VLOOKUP(P51,LAndcost3,2,FALSE),IF($E$8="Location",VLOOKUP(P51,Landcost2,2,FALSE),"Error"))) -> 0 | S51: 0 | T51: 2016 | U51: =IFERROR(('General Input Sheet'!$G$38/(VLOOKUP('Existing Trunk Assets - Water'!T51,'General Input Sheet'!$E$38:$G$44,3,FALSE))),1) -> 1 | V51: 674502.0403 | Y51: y | AD51: 7209 | BF51: 7209 | BJ51: 674502.0403
B52: WPSMB | D52: Active | F52: WPSMB | G52: Mcewens Beach WPS | K52: 0 | L52: 244896.454 | N52: =IF(M52="",1,VLOOKUP(M52,'Unit Rates - Water'!$H$12:$I$23,2,FALSE)) -> 1 | O52: 244896.454 | R52: =IF(P52="",'Unit Rates - Land'!landcst,IF($E$8="Landuse",VLOOKUP(P52,LAndcost3,2,FALSE),IF($E$8="Location",VLOOKUP(P52,Landcost2,2,FALSE),"Error"))) -> 0 | S52: 0 | T52: 2016 | U52: =IFERROR(('General Input Sheet'!$G$38/(VLOOKUP('Existing Trunk Assets - Water'!T52,'General Input Sheet'!$E$38:$G$44,3,FALSE))),1) -> 1 | V52: 244896.454 | X52: y | AC52: 12774 | BF52: 12774 | BI52: 244896.454
B53: WPSMIRB | D53: Active | F53: WPSMIRB | G53: Mirani Reservoir Booster PS | K53: 0 | L53: 533056.6103 | N53: =IF(M53="",1,VLOOKUP(M53,'Unit Rates - Water'!$H$12:$I$23,2,FALSE)) -> 1 | O53: 533056.6103 | R53: =IF(P53="",'Unit Rates - Land'!landcst,IF($E$8="Landuse",VLOOKUP(P53,LAndcost3,2,FALSE),IF($E$8="Location",VLOOKUP(P53,Landcost2,2,FALSE),"Error"))) -> 0 | S53: 0 | T53: 2016 | U53: =IFERROR(('General Input Sheet'!$G$38/(VLOOKUP('Existing Trunk Assets - Water'!T53,'General Input Sheet'!$E$38:$G$44,3,FALSE))),1) -> 1 | V53: 533056.6103 | X53: y | AC53: 12774 | BF53: 12774 | BI53: 533056.6103
B54: WPSNM2 | D54: Active | F54: WPSNM2 | G54: Willetts Road WPS | K54: 0 | L54: 1378401.735 | N54: =IF(M54="",1,VLOOKUP(M54,'Unit Rates - Water'!$H$12:$I$23,2,FALSE)) -> 1 | O54: 1378401.735 | R54: =IF(P54="",'Unit Rates - Land'!landcst,IF($E$8="Landuse",VLOOKUP(P54,LAndcost3,2,FALSE),IF($E$8="Location",VLOOKUP(P54,Landcost2,2,FALSE),"Error"))) -> 0 | S54: 0 | T54: 2016 | U54: =IFERROR(('General Input Sheet'!$G$38/(VLOOKUP('Existing Trunk Assets - Water'!T54,'General Input Sheet'!$E$38:$G$44,3,FALSE))),1) -> 1 | V54: 1378401.735 | W54: y | AB54: 160533 | BF54: 160533 | BH54: 1378401.735
B55: WPSPCRW | D55: Active | F55: WPSPCRW | G55: Plane Creek Raw WPS | K55: 0 | L55: 693507.9704 | N55: =IF(M55="",1,VLOOKUP(M55,'Unit Rates - Water'!$H$12:$I$23,2,FALSE)) -> 1 | O55: 693507.9704 | R55: =IF(P55="",'Unit Rates - Land'!landcst,IF($E$8="Landuse",VLOOKUP(P55,LAndcost3,2,FALSE),IF($E$8="Location",VLOOKUP(P55,Landcost2,2,FALSE),"Error"))) -> 0 | S55: 0 | T55: 2016 | U55: =IFERROR(('General Input Sheet'!$G$38/(VLOOKUP('Existing Trunk Assets - Water'!T55,'General Input Sheet'!$E$38:$G$44,3,FALSE))),1) -> 1 | V55: 693507.9704 | X55: y | AC55: 12774 | BF55: 12774 | BI55: 693507.9704
B56: WPSSHU | D56: Active | F56: WPSSHU | G56: Shuttlewoods WPS | L56: 129822.9647 | N56: 1 | O56: 129822.9647 | R56: 0 | S56: 0 | T56: 2016 | U56: 1 | V56: 129822.9647 | W56: y | AB56: =IF(W56="y",AB$14,IF(AND(W56>0,W56<=1),W56*AB$14,"")) -> 160533
B57: WPSSP | D57: Active | F57: WPSSP | G57: Slade Point WPS | K57: 0 | L57: 855272.9256 | N57: =IF(M57="",1,VLOOKUP(M57,'Unit Rates - Water'!$H$12:$I$23,2,FALSE)) -> 1 | O57: 855272.9256 | R57: =IF(P57="",'Unit Rates - Land'!landcst,IF($E$8="Landuse",VLOOKUP(P57,LAndcost3,2,FALSE),IF($E$8="Location",VLOOKUP(P57,Landcost2,2,FALSE),"Error"))) -> 0 | S57: 0 | T57: 2016 | U57: =IFERROR(('General Input Sheet'!$G$38/(VLOOKUP('Existing Trunk Assets - Water'!T57,'General Input Sheet'!$E$38:$G$44,3,FALSE))),1) -> 1 | V57: 855272.9256 | W57: y | AB57: =IF(W57="y",AB$14,IF(AND(W57>0,W57<=1),W57*AB$14,"")) -> 160533 | AC57: =IF(X57="y",AC$14,IF(AND(X57>0,X57<=1),X57*AC$14,"")) ->  | AD57: =IF(Y57="y",AD$14,IF(AND(Y57>0,Y57<=1),Y57*AD$14,"")) ->  | BE57: =IF(Z57="y",BE$14,IF(AND(Z57>0,Z57<=1),Z57*BE$14,"")) ->  | BF57: 160533 | BH57: =IF(AB57="","",(AB57/$BF57)*$V57) -> 855272.9256 | BR57: =IF(AL57="","",(AL57/$BF57)*$V57) ->  | CB57: =IF(AV57="","",(AV57/$BF57)*$V57) ->  | CL57: =IF(SUM(BH57:CK57)=V57,"","ERROR") -> 
B58: WPSSS | D58: Active | F58: WPSSS | G58: South Sarina WPS | K58: 0 | L58: 234565.0746 | N58: =IF(M58="",1,VLOOKUP(M58,'Unit Rates - Water'!$H$12:$I$23,2,FALSE)) -> 1 | O58: 234565.0746 | R58: =IF(P58="",'Unit Rates - Land'!landcst,IF($E$8="Landuse",VLOOKUP(P58,LAndcost3,2,FALSE),IF($E$8="Location",VLOOKUP(P58,Landcost2,2,FALSE),"Error"))) -> 0 | S58: 0 | T58: 2016 | U58: =IFERROR(('General Input Sheet'!$G$38/(VLOOKUP('Existing Trunk Assets - Water'!T58,'General Input Sheet'!$E$38:$G$44,3,FALSE))),1) -> 1 | V58: 234565.0746 | X58: y | AB58: =IF(W58="y",AB$14,IF(AND(W58>0,W58<=1),W58*AB$14,"")) ->  | AC58: =IF(X58="y",AC$14,IF(AND(X58>0,X58<=1),X58*AC$14,"")) -> 12774 | AD58: =IF(Y58="y",AD$14,IF(AND(Y58>0,Y58<=1),Y58*AD$14,"")) ->  | BE58: =IF(Z58="y",BE$14,IF(AND(Z58>0,Z58<=1),Z58*BE$14,"")) ->  | BF58: 12774 | BI58: 234565.0746 | CL58: =IF(SUM(BH58:CK58)=V58,"","ERROR") -> 
B59: WPSSUN | F59: WPSSUN | G59: Sunset Drive WPS | L59: 83033.2957 | N59: 1 | O59: 83033.2957 | R59: 0 | S59: 0 | T59: 2016 | U59: 1 | V59: 83033.2957 | W59: y
B60: WPSVC | D60: Active | F60: WPSVC | G60: Vines Creek WPS | K60: 0 | L60: 757052.1441 | N60: =IF(M60="",1,VLOOKUP(M60,'Unit Rates - Water'!$H$12:$I$23,2,FALSE)) -> 1 | O60: 757052.1441 | R60: =IF(P60="",'Unit Rates - Land'!landcst,IF($E$8="Landuse",VLOOKUP(P60,LAndcost3,2,FALSE),IF($E$8="Location",VLOOKUP(P60,Landcost2,2,FALSE),"Error"))) -> 0 | S60: 0 | T60: 2016 | U60: =IFERROR(('General Input Sheet'!$G$38/(VLOOKUP('Existing Trunk Assets - Water'!T60,'General Input Sheet'!$E$38:$G$44,3,FALSE))),1) -> 1 | V60: 757052.1441 | W60: y | AB60: =IF(W60="y",AB$14,IF(AND(W60>0,W60<=1),W60*AB$14,"")) -> 160533 | AC60: =IF(X60="y",AC$14,IF(AND(X60>0,X60<=1),X60*AC$14,"")) ->  | AD60: =IF(Y60="y",AD$14,IF(AND(Y60>0,Y60<=1),Y60*AD$14,"")) ->  | BE60: =IF(Z60="y",BE$14,IF(AND(Z60>0,Z60<=1),Z60*BE$14,"")) ->  | BF60: 160533 | BH60: =IF(AB60="","",(AB60/$BF60)*$V60) -> 757052.1441 | BI60: =IF(AC60="","",(AC60/$BF60)*$V60) ->  | BJ60: =IF(AD60="","",(AD60/$BF60)*$V60) ->  | BK60: =IF(AE60="","",(AE60/$BF60)*$V60) ->  | BL60: =IF(AF60="","",(AF60/$BF60)*$V60) ->  | BM60: =IF(AG60="","",(AG60/$BF60)*$V60) ->  | BN60: =IF(AH60="","",(AH60/$BF60)*$V60) ->  | BO60: =IF(AI60="","",(AI60/$BF60)*$V60) ->  | BP60: =IF(AJ60="","",(AJ60/$BF60)*$V60) ->  | BQ60: =IF(AK60="","",(AK60/$BF60)*$V60) ->  | BR60: =IF(AL60="","",(AL60/$BF60)*$V60) ->  | BS60: =IF(AM60="","",(AM60/$BF60)*$V60) ->  | BT60: =IF(AN60="","",(AN60/$BF60)*$V60) ->  | BU60: =IF(AO60="","",(AO60/$BF60)*$V60) ->  | BV60: =IF(AP60="","",(AP60/$BF60)*$V60) ->  | BW60: =IF(AQ60="","",(AQ60/$BF60)*$V60) ->  | BX60: =IF(AR60="","",(AR60/$BF60)*$V60) ->  | BY60: =IF(AS60="","",(AS60/$BF60)*$V60) ->  | BZ60: =IF(AT60="","",(AT60/$BF60)*$V60) ->  | CA60: =IF(AU60="","",(AU60/$BF60)*$V60) ->  | CB60: =IF(AV60="","",(AV60/$BF60)*$V60) ->  | CC60: =IF(AW60="","",(AW60/$BF60)*$V60) ->  | CD60: =IF(AX60="","",(AX60/$BF60)*$V60) ->  | CE60: =IF(AY60="","",(AY60/$BF60)*$V60) ->  | CF60: =IF(AZ60="","",(AZ60/$BF60)*$V60) ->  | CG60: =IF(BA60="","",(BA60/$BF60)*$V60) ->  | CH60: =IF(BB60="","",(BB60/$BF60)*$V60) ->  | CI60: =IF(BC60="","",(BC60/$BF60)*$V60) ->  | CJ60: =IF(BD60="","",(BD60/$BF60)*$V60) ->  | CK60: =IF(BE60="","",(BE60/$BF60)*$V60) ->  | CL60: =IF(SUM(BH60:CK60)=V60,"","ERROR") -> 
B61: WPSWAL | D61: Active | F61: WPSWAL | G61: Walkerston WPS | K61: 0 | L61: 574407.9268 | N61: =IF(M61="",1,VLOOKUP(M61,'Unit Rates - Water'!$H$12:$I$23,2,FALSE)) -> 1 | O61: 574407.9268 | R61: =IF(P61="",'Unit Rates - Land'!landcst,IF($E$8="Landuse",VLOOKUP(P61,LAndcost3,2,FALSE),IF($E$8="Location",VLOOKUP(P61,Landcost2,2,FALSE),"Error"))) -> 0 | S61: 0 | T61: 2016 | U61: =IFERROR(('General Input Sheet'!$G$38/(VLOOKUP('Existing Trunk Assets - Water'!T61,'General Input Sheet'!$E$38:$G$44,3,FALSE))),1) -> 1 | V61: 574407.9268 | W61: y | AB61: 160533 | BF61: 160533 | BH61: 574407.9268
B62: WSU0001 | D62: Active | F62: WSU0001 | G62: Mount Bassett Reservoir | K62: 0 | L62: 22621.926 | N62: =IF(M62="",1,VLOOKUP(M62,'Unit Rates - Water'!$H$12:$I$23,2,FALSE)) -> 1 | O62: 22621.926 | R62: =IF(P62="",'Unit Rates - Land'!landcst,IF($E$8="Landuse",VLOOKUP(P62,LAndcost3,2,FALSE),IF($E$8="Location",VLOOKUP(P62,Landcost2,2,FALSE),"Error"))) -> 0 | S62: 0 | T62: 2016 | U62: =IFERROR(('General Input Sheet'!$G$38/(VLOOKUP('Existing Trunk Assets - Water'!T62,'General Input Sheet'!$E$38:$G$44,3,FALSE))),1) -> 1 | V62: 22621.926 | W62: y | AB62: 160533 | BF62: 160533 | BH62: 22621.926
B63: WSU0008 | D63: Active | F63: WSU0008 | G63: Shoal Point Reservoir | K63: 0 | L63: 22621.926 | N63: =IF(M63="",1,VLOOKUP(M63,'Unit Rates - Water'!$H$12:$I$23,2,FALSE)) -> 1 | O63: 22621.926 | R63: =IF(P63="",'Unit Rates - Land'!landcst,IF($E$8="Landuse",VLOOKUP(P63,LAndcost3,2,FALSE),IF($E$8="Location",VLOOKUP(P63,Landcost2,2,FALSE),"Error"))) -> 0 | S63: 0 | T63: 2016 | U63: =IFERROR(('General Input Sheet'!$G$38/(VLOOKUP('Existing Trunk Assets - Water'!T63,'General Input Sheet'!$E$38:$G$44,3,FALSE))),1) -> 1 | V63: 22621.926 | W63: y | AB63: 160533 | BF63: 160533 | BH63: 22621.926
K64: 0 | N64: =IF(M64="",1,VLOOKUP(M64,'Unit Rates - Water'!$H$12:$I$23,2,FALSE)) -> 1 | O64: 0 | R64: =IF(P64="",'Unit Rates - Land'!landcst,IF($E$8="Landuse",VLOOKUP(P64,LAndcost3,2,FALSE),IF($E$8="Location",VLOOKUP(P64,Landcost2,2,FALSE),"Error"))) -> 0 | S64: 0 | U64: =IFERROR(('General Input Sheet'!$G$38/(VLOOKUP('Existing Trunk Assets - Water'!T64,'General Input Sheet'!$E$38:$G$44,3,FALSE))),1) -> 1 | V64: 0 | BF64: 0
B65: Reservoir | K65: 0 | N65: =IF(M65="",1,VLOOKUP(M65,'Unit Rates - Water'!$H$12:$I$23,2,FALSE)) -> 1 | O65: 0 | R65: =IF(P65="",'Unit Rates - Land'!landcst,IF($E$8="Landuse",VLOOKUP(P65,LAndcost3,2,FALSE),IF($E$8="Location",VLOOKUP(P65,Landcost2,2,FALSE),"Error"))) -> 0 | S65: 0 | U65: =IFERROR(('General Input Sheet'!$G$38/(VLOOKUP('Existing Trunk Assets - Water'!T65,'General Input Sheet'!$E$38:$G$44,3,FALSE))),1) -> 1 | V65: 0 | BF65: 0
B66: WSU0001 | D66: Active | F66: WSU0001 | G66: Mount Bassett Reservoir | K66: 0 | L66: 2113758.048 | N66: =IF(M66="",1,VLOOKUP(M66,'Unit Rates - Water'!$H$12:$I$23,2,FALSE)) -> 1 | O66: 2113758.048 | R66: =IF(P66="",'Unit Rates - Land'!landcst,IF($E$8="Landuse",VLOOKUP(P66,LAndcost3,2,FALSE),IF($E$8="Location",VLOOKUP(P66,Landcost2,2,FALSE),"Error"))) -> 0 | S66: 0 | T66: 2016 | U66: =IFERROR(('General Input Sheet'!$G$38/(VLOOKUP('Existing Trunk Assets - Water'!T66,'General Input Sheet'!$E$38:$G$44,3,FALSE))),1) -> 1 | V66: 2113758.048 | W66: y | AB66: 160533 | BF66: 160533 | BH66: 2113758.048
B67: WSU0002 | D67: Active | F67: WSU0002 | G67: Slade Point Reservoir | K67: 0 | L67: 1633532.844 | N67: =IF(M67="",1,VLOOKUP(M67,'Unit Rates - Water'!$H$12:$I$23,2,FALSE)) -> 1 | O67: =L67*N67 -> 1633532.844 | R67: =IF(P67="",'Unit Rates - Land'!landcst,IF($E$8="Landuse",VLOOKUP(P67,LAndcost3,2,FALSE),IF($E$8="Location",VLOOKUP(P67,Landcost2,2,FALSE),"Error"))) -> 0 | S67: 0 | T67: 2016 | U67: =IFERROR(('General Input Sheet'!$G$38/(VLOOKUP('Existing Trunk Assets - Water'!T67,'General Input Sheet'!$E$38:$G$44,3,FALSE))),1) -> 1 | V67: =IFERROR((O67+S67)*U67,0) -> 1633532.844 | W67: y | AB67: 160533 | BF67: 160533 | BH67: 1633532.844
B68: WSU0003 | D68: Active | F68: WSU0003 | G68: Blacks Beach No 1 Reservoir | K68: =IF(H68=TYPE1,VLOOKUP(J68,WaterUnitrates1,2,FALSE),IF(H68=TYPE2,VLOOKUP(J68,Unitrates2,2,FALSE),0)) -> 0 | L68: 1149646.247 | N68: =IF(M68="",1,VLOOKUP(M68,'Unit Rates - Water'!$H$12:$I$23,2,FALSE)) -> 1 | O68: 1149646.247 | R68: =IF(P68="",'Unit Rates - Land'!landcst,IF($E$8="Landuse",VLOOKUP(P68,LAndcost3,2,FALSE),IF($E$8="Location",VLOOKUP(P68,Landcost2,2,FALSE),"Error"))) -> 0 | S68: 0 | T68: 2016 | U68: =IFERROR(('General Input Sheet'!$G$38/(VLOOKUP('Existing Trunk Assets - Water'!T68,'General Input Sheet'!$E$38:$G$44,3,FALSE))),1) -> 1 | V68: 1149646.247 | W68: y | AB68: 160533 | BF68: 160533 | BH68: 1149646.247
B69: WSU0004 | D69: Active | F69: WSU0004 | G69: Blacks Beach No 2 Reservoir | K69: 0 | L69: 1797196.033 | N69: =IF(M69="",1,VLOOKUP(M69,'Unit Rates - Water'!$H$12:$I$23,2,FALSE)) -> 1 | O69: 1797196.033 | R69: =IF(P69="",'Unit Rates - Land'!landcst,IF($E$8="Landuse",VLOOKUP(P69,LAndcost3,2,FALSE),IF($E$8="Location",VLOOKUP(P69,Landcost2,2,FALSE),"Error"))) -> 0 | S69: 0 | T69: 2016 | U69: =IFERROR(('General Input Sheet'!$G$38/(VLOOKUP('Existing Trunk Assets - Water'!T69,'General Input Sheet'!$E$38:$G$44,3,FALSE))),1) -> 1 | V69: 1797196.033 | W69: y | AB69: 160533 | BF69: =SUM(AB69:BE69) -> 160533 | BH69: 1797196.033
B70: WSU0005 | D70: Active | F70: WSU0005 | G70: North Mackay No 2 Reservoir - Green Street | K70: 0 | L70: 707716.4513 | N70: =IF(M70="",1,VLOOKUP(M70,'Unit Rates - Water'!$H$12:$I$23,2,FALSE)) -> 1 | O70: 707716.4513 | R70: =IF(P70="",'Unit Rates - Land'!landcst,IF($E$8="Landuse",VLOOKUP(P70,LAndcost3,2,FALSE),IF($E$8="Location",VLOOKUP(P70,Landcost2,2,FALSE),"Error"))) -> 0 | S70: 0 | T70: 2016 | U70: =IFERROR(('General Input Sheet'!$G$38/(VLOOKUP('Existing Trunk Assets - Water'!T70,'General Input Sheet'!$E$38:$G$44,3,FALSE))),1) -> 1 | V70: 707716.4513 | W70: y | AB70: 160533 | BF70: 160533 | BH70: 707716.4513
B71: WSU0006 | D71: Active | F71: WSU0006 | G71: North Mackay No 1 Reservoir - Berry Street | K71: 0 | L71: 810439.2035 | N71: =IF(M71="",1,VLOOKUP(M71,'Unit Rates - Water'!$H$12:$I$23,2,FALSE)) -> 1 | O71: 810439.2035 | R71: =IF(P71="",'Unit Rates - Land'!landcst,IF($E$8="Landuse",VLOOKUP(P71,LAndcost3,2,FALSE),IF($E$8="Location",VLOOKUP(P71,Landcost2,2,FALSE),"Error"))) -> 0 | S71: 0 | T71: 2016 | U71: =IFERROR(('General Input Sheet'!$G$38/(VLOOKUP('Existing Trunk Assets - Water'!T71,'General Input Sheet'!$E$38:$G$44,3,FALSE))),1) -> 1 | V71: 810439.2035 | W71: y | AB71: 160533 | BF71: 160533 | BH71: 810439.2035
B72: WSU0007 | D72: Active | F72: WSU0007 | G72: North Mackay No 3 Reservoir - Pollock Street | K72: 0 | L72: 341216.0476 | N72: =IF(M72="",1,VLOOKUP(M72,'Unit Rates - Water'!$H$12:$I$23,2,FALSE)) -> 1 | O72: 341216.0476 | R72: =IF(P72="",'Unit Rates - Land'!landcst,IF($E$8="Landuse",VLOOKUP(P72,LAndcost3,2,FALSE),IF($E$8="Location",VLOOKUP(P72,Landcost2,2,FALSE),"Error"))) -> 0 | S72: 0 | T72: 2016 | U72: =IFERROR(('General Input Sheet'!$G$38/(VLOOKUP('Existing Trunk Assets - Water'!T72,'General Input Sheet'!$E$38:$G$44,3,FALSE))),1) -> 1 | V72: 341216.0476 | W72: y | AB72: 160533 | BF72: 160533 | BH72: 341216.0476
B73: WSU0008 | D73: Active | F73: WSU0008 | G73: Shoal Point Reservoir | K73: 0 | L73: 406860.2782 | N73: =IF(M73="",1,VLOOKUP(M73,'Unit Rates - Water'!$H$12:$I$23,2,FALSE)) -> 1 | O73: 406860.2782 | R73: =IF(P73="",'Unit Rates - Land'!landcst,IF($E$8="Landuse",VLOOKUP(P73,LAndcost3,2,FALSE),IF($E$8="Location",VLOOKUP(P73,Landcost2,2,FALSE),"Error"))) -> 0 | S73: 0 | T73: 2016 | U73: =IFERROR(('General Input Sheet'!$G$38/(VLOOKUP('Existing Trunk Assets - Water'!T73,'General Input Sheet'!$E$38:$G$44,3,FALSE))),1) -> 1 | V73: 406860.2782 | W73: y | AB73: 160533 | BF73: 160533 | BH73: 406860.2782
B74: WSU0009 | D74: Active | F74: WSU0009 | G74: Walkerston No 1 Reservoir | K74: 0 | L74: 746760.0066 | N74: =IF(M74="",1,VLOOKUP(M74,'Unit Rates - Water'!$H$12:$I$23,2,FALSE)) -> 1 | O74: 746760.0066 | R74: =IF(P74="",'Unit Rates - Land'!landcst,IF($E$8="Landuse",VLOOKUP(P74,LAndcost3,2,FALSE),IF($E$8="Location",VLOOKUP(P74,Landcost2,2,FALSE),"Error"))) -> 0 | S74: 0 | T74: 2016 | U74: =IFERROR(('General Input Sheet'!$G$38/(VLOOKUP('Existing Trunk Assets - Water'!T74,'General Input Sheet'!$E$38:$G$44,3,FALSE))),1) -> 1 | V74: 746760.0066 | W74: y | AB74: 160533 | BF74: 160533 | BH74: 746760.0066
B75: WSU0010 | D75: Active | F75: WSU0010 | G75: Walkerston No 2 Reservoir - Silingardies Road | K75: 0 | L75: 1191405.498 | N75: =IF(M75="",1,VLOOKUP(M75,'Unit Rates - Water'!$H$12:$I$23,2,FALSE)) -> 1 | O75: 1191405.498 | R75: =IF(P75="",'Unit Rates - Land'!landcst,IF($E$8="Landuse",VLOOKUP(P75,LAndcost3,2,FALSE),IF($E$8="Location",VLOOKUP(P75,Landcost2,2,FALSE),"Error"))) -> 0 | S75: 0 | T75: 2016 | U75: =IFERROR(('General Input Sheet'!$G$38/(VLOOKUP('Existing Trunk Assets - Water'!T75,'General Input Sheet'!$E$38:$G$44,3,FALSE))),1) -> 1 | V75: 1191405.498 | W75: y | AB75: 160533 | BF75: 160533 | BH75: 1191405.498
B76: WSU0017 | D76: Active | F76: WSU0017 | G76: Mount Pleasant No 1 Reservoir | K76: 0 | L76: 4075027.606 | N76: =IF(M76="",1,VLOOKUP(M76,'Unit Rates - Water'!$H$12:$I$23,2,FALSE)) -> 1 | O76: 4075027.606 | R76: =IF(P76="",'Unit Rates - Land'!landcst,IF($E$8="Landuse",VLOOKUP(P76,LAndcost3,2,FALSE),IF($E$8="Location",VLOOKUP(P76,Landcost2,2,FALSE),"Error"))) -> 0 | S76: =IF(R76="",0,R76*10000*Q76) -> 0 | T76: 2016 | U76: =IFERROR(('General Input Sheet'!$G$38/(VLOOKUP('Existing Trunk Assets - Water'!T76,'General Input Sheet'!$E$38:$G$44,3,FALSE))),1) -> 1 | V76: 4075027.606 | W76: y | AB76: 160533 | BF76: 160533 | BH76: 4075027.606
B77: WSU0018 | D77: Active | F77: WSU0018 | G77: Mount Pleasant No 2 Reservoir | K77: 0 | L77: 5513802.696 | N77: =IF(M77="",1,VLOOKUP(M77,'Unit Rates - Water'!$H$12:$I$23,2,FALSE)) -> 1 | O77: 5513802.696 | R77: =IF(P77="",'Unit Rates - Land'!landcst,IF($E$8="Landuse",VLOOKUP(P77,LAndcost3,2,FALSE),IF($E$8="Location",VLOOKUP(P77,Landcost2,2,FALSE),"Error"))) -> 0 | S77: 0 | T77: 2016 | U77: =IFERROR(('General Input Sheet'!$G$38/(VLOOKUP('Existing Trunk Assets - Water'!T77,'General Input Sheet'!$E$38:$G$44,3,FALSE))),1) -> 1 | V77: 5513802.696 | W77: y | AB77: 160533 | BF77: 160533 | BH77: 5513802.696
B78: WSU0019 | D78: Active | F78: WSU0019 | G78: Mount Oscar No 1 Reservoir - Reservoir Road | K78: 0 | L78: 2483784.122 | N78: =IF(M78="",1,VLOOKUP(M78,'Unit Rates - Water'!$H$12:$I$23,2,FALSE)) -> 1 | O78: 2483784.122 | R78: =IF(P78="",'Unit Rates - Land'!landcst,IF($E$8="Landuse",VLOOKUP(P78,LAndcost3,2,FALSE),IF($E$8="Location",VLOOKUP(P78,Landcost2,2,FALSE),"Error"))) -> 0 | S78: 0 | T78: 2016 | U78: =IFERROR(('General Input Sheet'!$G$38/(VLOOKUP('Existing Trunk Assets - Water'!T78,'General Input Sheet'!$E$38:$G$44,3,FALSE))),1) -> 1 | V78: 2483784.122 | W78: y | AB78: 160533 | BF78: 160533 | BH78: 2483784.122
B79: WSU0020 | D79: Active | F79: WSU0020 | G79: Mount Oscar No 2 Reservoir - Reservoir Road | K79: 0 | L79: 2424443.11 | N79: =IF(M79="",1,VLOOKUP(M79,'Unit Rates - Water'!$H$12:$I$23,2,FALSE)) -> 1 | O79: 2424443.11 | R79: =IF(P79="",'Unit Rates - Land'!landcst,IF($E$8="Landuse",VLOOKUP(P79,LAndcost3,2,FALSE),IF($E$8="Location",VLOOKUP(P79,Landcost2,2,FALSE),"Error"))) -> 0 | S79: 0 | T79: 2016 | U79: =IFERROR(('General Input Sheet'!$G$38/(VLOOKUP('Existing Trunk Assets - Water'!T79,'General Input Sheet'!$E$38:$G$44,3,FALSE))),1) -> 1 | V79: 2424443.11 | W79: y | AB79: 160533 | BF79: 160533 | BH79: 2424443.11
B80: WSU0022 | D80: Active | F80: WSU0022 | G80: Mount Pleasant No 3 Reservoir | K80: 0 | L80: 4021543.917 | N80: =IF(M80="",1,VLOOKUP(M80,'Unit Rates - Water'!$H$12:$I$23,2,FALSE)) -> 1 | O80: 4021543.917 | R80: =IF(P80="",'Unit Rates - Land'!landcst,IF($E$8="Landuse",VLOOKUP(P80,LAndcost3,2,FALSE),IF($E$8="Location",VLOOKUP(P80,Landcost2,2,FALSE),"Error"))) -> 0 | S80: 0 | T80: 2016 | U80: =IFERROR(('General Input Sheet'!$G$38/(VLOOKUP('Existing Trunk Assets - Water'!T80,'General Input Sheet'!$E$38:$G$44,3,FALSE))),1) -> 1 | V80: 4021543.917 | W80: y | AB80: 160533 | BF80: 160533 | BH80: 4021543.917
B81: WSU0023 | D81: Active | F81: WSU0023 | G81: Farleigh Reservoir | K81: 0 | L81: 1954569.255 | N81: =IF(M81="",1,VLOOKUP(M81,'Unit Rates - Water'!$H$12:$I$23,2,FALSE)) -> 1 | O81: 1954569.255 | R81: =IF(P81="",'Unit Rates - Land'!landcst,IF($E$8="Landuse",VLOOKUP(P81,LAndcost3,2,FALSE),IF($E$8="Location",VLOOKUP(P81,Landcost2,2,FALSE),"Error"))) -> 0 | S81: 0 | T81: 2016 | U81: =IFERROR(('General Input Sheet'!$G$38/(VLOOKUP('Existing Trunk Assets - Water'!T81,'General Input Sheet'!$E$38:$G$44,3,FALSE))),1) -> 1 | V81: 1954569.255 | W81: y | AB81: 160533 | BF81: 160533 | BH81: 1954569.255
B82: WSU0027 | D82: Active | F82: WSU0027 | G82: Rural View Reservoir | K82: 0 | L82: 3271913.596 | N82: =IF(M82="",1,VLOOKUP(M82,'Unit Rates - Water'!$H$12:$I$23,2,FALSE)) -> 1 | O82: 3271913.596 | R82: =IF(P82="",'Unit Rates - Land'!landcst,IF($E$8="Landuse",VLOOKUP(P82,LAndcost3,2,FALSE),IF($E$8="Location",VLOOKUP(P82,Landcost2,2,FALSE),"Error"))) -> 0 | S82: 0 | T82: 2016 | U82: =IFERROR(('General Input Sheet'!$G$38/(VLOOKUP('Existing Trunk Assets - Water'!T82,'General Input Sheet'!$E$38:$G$44,3,FALSE))),1) -> 1 | V82: 3271913.596 | W82: y | AB82: 160533 | BF82: 160533 | BH82: 3271913.596
B83: WSU0033 | D83: Active | F83: WSU0033 | G83: Armstrong Beach Reservoir | K83: 0 | L83: 248153.1838 | N83: =IF(M83="",1,VLOOKUP(M83,'Unit Rates - Water'!$H$12:$I$23,2,FALSE)) -> 1 | O83: 248153.1838 | R83: =IF(P83="",'Unit Rates - Land'!landcst,IF($E$8="Landuse",VLOOKUP(P83,LAndcost3,2,FALSE),IF($E$8="Location",VLOOKUP(P83,Landcost2,2,FALSE),"Error"))) -> 0 | S83: 0 | T83: 2016 | U83: =IFERROR(('General Input Sheet'!$G$38/(VLOOKUP('Existing Trunk Assets - Water'!T83,'General Input Sheet'!$E$38:$G$44,3,FALSE))),1) -> 1 | V83: 248153.1838 | X83: y | AC83: 12774 | BF83: 12774 | BI83: 248153.1838
B84: WSU0037 | D84: Active | F84: WSU0037 | G84: Marian No 1 Reservoir | K84: 0 | L84: 1193890.476 | N84: =IF(M84="",1,VLOOKUP(M84,'Unit Rates - Water'!$H$12:$I$23,2,FALSE)) -> 1 | O84: 1193890.476 | R84: =IF(P84="",'Unit Rates - Land'!landcst,IF($E$8="Landuse",VLOOKUP(P84,LAndcost3,2,FALSE),IF($E$8="Location",VLOOKUP(P84,Landcost2,2,FALSE),"Error"))) -> 0 | S84: 0 | T84: 2016 | U84: =IFERROR(('General Input Sheet'!$G$38/(VLOOKUP('Existing Trunk Assets - Water'!T84,'General Input Sheet'!$E$38:$G$44,3,FALSE))),1) -> 1 | V84: 1193890.476 | Y84: y | AD84: 7209 | BF84: 7209 | BJ84: 1193890.476
B85: WSU0038 | D85: Active | F85: WSU0038 | G85: Marian No 2 Reservoir | K85: 0 | L85: 901508.4 | N85: =IF(M85="",1,VLOOKUP(M85,'Unit Rates - Water'!$H$12:$I$23,2,FALSE)) -> 1 | O85: 901508.4 | R85: =IF(P85="",'Unit Rates - Land'!landcst,IF($E$8="Landuse",VLOOKUP(P85,LAndcost3,2,FALSE),IF($E$8="Location",VLOOKUP(P85,Landcost2,2,FALSE),"Error"))) -> 0 | S85: 0 | T85: 2016 | U85: =IFERROR(('General Input Sheet'!$G$38/(VLOOKUP('Existing Trunk Assets - Water'!T85,'General Input Sheet'!$E$38:$G$44,3,FALSE))),1) -> 1 | V85: 901508.4 | Y85: y | AD85: 7209 | BF85: 7209 | BJ85: 901508.4
B86: WSU0039 | D86: Active | F86: WSU0039 | G86: Alligator Creek Balance Tank | K86: 0 | L86: 36890.0949 | N86: =IF(M86="",1,VLOOKUP(M86,'Unit Rates - Water'!$H$12:$I$23,2,FALSE)) -> 1 | O86: 36890.0949 | R86: =IF(P86="",'Unit Rates - Land'!landcst,IF($E$8="Landuse",VLOOKUP(P86,LAndcost3,2,FALSE),IF($E$8="Location",VLOOKUP(P86,Landcost2,2,FALSE),"Error"))) -> 0 | S86: 0 | T86: 2016 | U86: =IFERROR(('General Input Sheet'!$G$38/(VLOOKUP('Existing Trunk Assets - Water'!T86,'General Input Sheet'!$E$38:$G$44,3,FALSE))),1) -> 1 | V86: 36890.0949 | X86: y | AC86: 12774 | BF86: 12774 | BI86: 36890.0949
B87: WSU0040 | D87: Active | F87: WSU0040 | G87: Mount Griffith Reservoir | K87: 0 | L87: 964819.9692 | N87: =IF(M87="",1,VLOOKUP(M87,'Unit Rates - Water'!$H$12:$I$23,2,FALSE)) -> 1 | O87: 964819.9692 | R87: =IF(P87="",'Unit Rates - Land'!landcst,IF($E$8="Landuse",VLOOKUP(P87,LAndcost3,2,FALSE),IF($E$8="Location",VLOOKUP(P87,Landcost2,2,FALSE),"Error"))) -> 0 | S87: 0 | T87: 2016 | U87: =IFERROR(('General Input Sheet'!$G$38/(VLOOKUP('Existing Trunk Assets - Water'!T87,'General Input Sheet'!$E$38:$G$44,3,FALSE))),1) -> 1 | V87: 964819.9692 | X87: y | AC87: 12774 | BF87: 12774 | BI87: 964819.9692
B88: WSU0041 | D88: Active | F88: WSU0041 | G88: Mount Haden Reservoir | K88: 0 | L88: 924838.1674 | N88: =IF(M88="",1,VLOOKUP(M88,'Unit Rates - Water'!$H$12:$I$23,2,FALSE)) -> 1 | O88: 924838.1674 | R88: =IF(P88="",'Unit Rates - Land'!landcst,IF($E$8="Landuse",VLOOKUP(P88,LAndcost3,2,FALSE),IF($E$8="Location",VLOOKUP(P88,Landcost2,2,FALSE),"Error"))) -> 0 | S88: 0 | T88: 2016 | U88: =IFERROR(('General Input Sheet'!$G$38/(VLOOKUP('Existing Trunk Assets - Water'!T88,'General Input Sheet'!$E$38:$G$44,3,FALSE))),1) -> 1 | V88: 924838.1674 | X88: y | AC88: 12774 | BF88: 12774 | BI88: 924838.1674
B89: WSU0042 | D89: Active | F89: WSU0042 | G89: Mirani No 1 Reservoir | K89: 0 | L89: 1071902.418 | N89: =IF(M89="",1,VLOOKUP(M89,'Unit Rates - Water'!$H$12:$I$23,2,FALSE)) -> 1 | O89: 1071902.418 | R89: =IF(P89="",'Unit Rates - Land'!landcst,IF($E$8="Landuse",VLOOKUP(P89,LAndcost3,2,FALSE),IF($E$8="Location",VLOOKUP(P89,Landcost2,2,FALSE),"Error"))) -> 0 | S89: 0 | T89: 2016 | U89: =IFERROR(('General Input Sheet'!$G$38/(VLOOKUP('Existing Trunk Assets - Water'!T89,'General Input Sheet'!$E$38:$G$44,3,FALSE))),1) -> 1 | V89: 1071902.418 | Y89: y | AD89: 7209 | BF89: 7209 | BJ89: 1071902.418
B90: WSU0043 | D90: Active | F90: WSU0043 | G90: Mirani No 2 Reservoir | K90: 0 | L90: 901508.404 | N90: =IF(M90="",1,VLOOKUP(M90,'Unit Rates - Water'!$H$12:$I$23,2,FALSE)) -> 1 | O90: 901508.404 | R90: =IF(P90="",'Unit Rates - Land'!landcst,IF($E$8="Landuse",VLOOKUP(P90,LAndcost3,2,FALSE),IF($E$8="Location",VLOOKUP(P90,Landcost2,2,FALSE),"Error"))) -> 0 | S90: 0 | T90: 2016 | U90: =IFERROR(('General Input Sheet'!$G$38/(VLOOKUP('Existing Trunk Assets - Water'!T90,'General Input Sheet'!$E$38:$G$44,3,FALSE))),1) -> 1 | V90: 901508.404 | Y90: y | AD90: 7209 | BF90: 7209 | BJ90: 901508.404
B91: WSU0044 | D91: Active | F91: WSU0044 | G91: Sarina No 1 Reservoir | K91: 0 | L91: 1622995.478 | N91: =IF(M91="",1,VLOOKUP(M91,'Unit Rates - Water'!$H$12:$I$23,2,FALSE)) -> 1 | O91: 1622995.478 | R91: =IF(P91="",'Unit Rates - Land'!landcst,IF($E$8="Landuse",VLOOKUP(P91,LAndcost3,2,FALSE),IF($E$8="Location",VLOOKUP(P91,Landcost2,2,FALSE),"Error"))) -> 0 | S91: 0 | T91: 2016 | U91: =IFERROR(('General Input Sheet'!$G$38/(VLOOKUP('Existing Trunk Assets - Water'!T91,'General Input Sheet'!$E$38:$G$44,3,FALSE))),1) -> 1 | V91: 1622995.478 | X91: y | AC91: 12774 | BF91: 12774 | BI91: 1622995.478
B92: WSU0045 | D92: Active | F92: WSU0045 | G92: Sarina No 2 Reservoir | K92: 0 | L92: 1134008.117 | N92: =IF(M92="",1,VLOOKUP(M92,'Unit Rates - Water'!$H$12:$I$23,2,FALSE)) -> 1 | O92: 1134008.117 | R92: =IF(P92="",'Unit Rates - Land'!landcst,IF($E$8="Landuse",VLOOKUP(P92,LAndcost3,2,FALSE),IF($E$8="Location",VLOOKUP(P92,Landcost2,2,FALSE),"Error"))) -> 0 | S92: 0 | T92: 2016 | U92: =IFERROR(('General Input Sheet'!$G$38/(VLOOKUP('Existing Trunk Assets - Water'!T92,'General Input Sheet'!$E$38:$G$44,3,FALSE))),1) -> 1 | V92: 1134008.117 | X92: y | AC92: 12774 | BF92: 12774 | BI92: 1134008.117
B93: WSU0046 | D93: Active | F93: WSU0046 | G93: Sarina No 3 Reservoir | K93: 0 | L93: 134258.6343 | N93: =IF(M93="",1,VLOOKUP(M93,'Unit Rates - Water'!$H$12:$I$23,2,FALSE)) -> 1 | O93: 134258.6343 | R93: =IF(P93="",'Unit Rates - Land'!landcst,IF($E$8="Landuse",VLOOKUP(P93,LAndcost3,2,FALSE),IF($E$8="Location",VLOOKUP(P93,Landcost2,2,FALSE),"Error"))) -> 0 | S93: 0 | T93: 2016 | U93: =IFERROR(('General Input Sheet'!$G$38/(VLOOKUP('Existing Trunk Assets - Water'!T93,'General Input Sheet'!$E$38:$G$44,3,FALSE))),1) -> 1 | V93: 134258.6343 | X93: y | AC93: 12774 | BF93: 12774 | BI93: 134258.6343
B94: WSU0047 | D94: Active | F94: WSU0047 | G94: Mirani No 3 Reservoir | K94: 0 | L94: 411756.075 | N94: =IF(M94="",1,VLOOKUP(M94,'Unit Rates - Water'!$H$12:$I$23,2,FALSE)) -> 1 | O94: 411756.075 | R94: =IF(P94="",'Unit Rates - Land'!landcst,IF($E$8="Landuse",VLOOKUP(P94,LAndcost3,2,FALSE),IF($E$8="Location",VLOOKUP(P94,Landcost2,2,FALSE),"Error"))) -> 0 | S94: 0 | T94: 2016 | U94: =IFERROR(('General Input Sheet'!$G$38/(VLOOKUP('Existing Trunk Assets - Water'!T94,'General Input Sheet'!$E$38:$G$44,3,FALSE))),1) -> 1 | V94: 411756.075 | Y94: y | AD94: 7209 | BF94: 7209 | BJ94: 411756.075
K95: 0 | N95: =IF(M95="",1,VLOOKUP(M95,'Unit Rates - Water'!$H$12:$I$23,2,FALSE)) -> 1 | O95: 0 | R95: =IF(P95="",'Unit Rates - Land'!landcst,IF($E$8="Landuse",VLOOKUP(P95,LAndcost3,2,FALSE),IF($E$8="Location",VLOOKUP(P95,Landcost2,2,FALSE),"Error"))) -> 0 | S95: 0 | U95: =IFERROR(('General Input Sheet'!$G$38/(VLOOKUP('Existing Trunk Assets - Water'!T95,'General Input Sheet'!$E$38:$G$44,3,FALSE))),1) -> 1 | V95: 0 | BF95: 0
B96: Trunk Main | K96: 0 | N96: =IF(M96="",1,VLOOKUP(M96,'Unit Rates - Water'!$H$12:$I$23,2,FALSE)) -> 1 | O96: 0 | R96: =IF(P96="",'Unit Rates - Land'!landcst,IF($E$8="Landuse",VLOOKUP(P96,LAndcost3,2,FALSE),IF($E$8="Location",VLOOKUP(P96,Landcost2,2,FALSE),"Error"))) -> 0 | S96: 0 | U96: =IFERROR(('General Input Sheet'!$G$38/(VLOOKUP('Existing Trunk Assets - Water'!T96,'General Input Sheet'!$E$38:$G$44,3,FALSE))),1) -> 1 | V96: 0 | BF96: 0
B97: 94231 | D97: Passive | F97: SH046 - SH047 | K97: 0 | L97: 16792.0536 | N97: =IF(M97="",1,VLOOKUP(M97,'Unit Rates - Water'!$H$12:$I$23,2,FALSE)) -> 1 | O97: 16792.0536 | R97: =IF(P97="",'Unit Rates - Land'!landcst,IF($E$8="Landuse",VLOOKUP(P97,LAndcost3,2,FALSE),IF($E$8="Location",VLOOKUP(P97,Landcost2,2,FALSE),"Error"))) -> 0 | S97: 0 | T97: 2016 | U97: =IFERROR(('General Input Sheet'!$G$38/(VLOOKUP('Existing Trunk Assets - Water'!T97,'General Input Sheet'!$E$38:$G$44,3,FALSE))),1) -> 1 | V97: 16792.0536 | W97: y | AB97: 160533 | BF97: 160533 | BH97: 16792.0536
B98: 104447 | D98: Passive | F98: SH047 - SH068 | K98: 0 | L98: 11549.3784 | N98: =IF(M98="",1,VLOOKUP(M98,'Unit Rates - Water'!$H$12:$I$23,2,FALSE)) -> 1 | O98: 11549.3784 | R98: =IF(P98="",'Unit Rates - Land'!landcst,IF($E$8="Landuse",VLOOKUP(P98,LAndcost3,2,FALSE),IF($E$8="Location",VLOOKUP(P98,Landcost2,2,FALSE),"Error"))) -> 0 | S98: 0 | T98: 2016 | U98: =IFERROR(('General Input Sheet'!$G$38/(VLOOKUP('Existing Trunk Assets - Water'!T98,'General Input Sheet'!$E$38:$G$44,3,FALSE))),1) -> 1 | V98: 11549.3784 | W98: y | AB98: 160533 | BF98: 160533 | BH98: 11549.3784
B99: 104448 | D99: Passive | F99: SH068 - SH072 | K99: 0 | L99: 9783.4184 | N99: =IF(M99="",1,VLOOKUP(M99,'Unit Rates - Water'!$H$12:$I$23,2,FALSE)) -> 1 | O99: 9783.4184 | R99: =IF(P99="",'Unit Rates - Land'!landcst,IF($E$8="Landuse",VLOOKUP(P99,LAndcost3,2,FALSE),IF($E$8="Location",VLOOKUP(P99,Landcost2,2,FALSE),"Error"))) -> 0 | S99: 0 | T99: 2016 | U99: =IFERROR(('General Input Sheet'!$G$38/(VLOOKUP('Existing Trunk Assets - Water'!T99,'General Input Sheet'!$E$38:$G$44,3,FALSE))),1) -> 1 | V99: 9783.4184 | W99: y | AB99: 160533 | BF99: 160533 | BH99: 9783.4184
B100: 104949 | D100: Passive | F100: BL162 - BL168 | K100: 0 | L100: 56921.984 | N100: =IF(M100="",1,VLOOKUP(M100,'Unit Rates - Water'!$H$12:$I$23,2,FALSE)) -> 1 | O100: 56921.984 | R100: =IF(P100="",'Unit Rates - Land'!landcst,IF($E$8="Landuse",VLOOKUP(P100,LAndcost3,2,FALSE),IF($E$8="Location",VLOOKUP(P100,Landcost2,2,FALSE),"Error"))) -> 0 | S100: 0 | T100: 2016 | U100: =IFERROR(('General Input Sheet'!$G$38/(VLOOKUP('Existing Trunk Assets - Water'!T100,'General Input Sheet'!$E$38:$G$44,3,FALSE))),1) -> 1 | V100: 56921.984 | W100: y | AB100: 160533 | BF100: 160533 | BH100: 56921.984
B101: 104940 | D101: Passive | F101: BL192 - BL162 | K101: 0 | L101: 110884.7712 | N101: =IF(M101="",1,VLOOKUP(M101,'Unit Rates - Water'!$H$12:$I$23,2,FALSE)) -> 1 | O101: 110884.7712 | R101: =IF(P101="",'Unit Rates - Land'!landcst,IF($E$8="Landuse",VLOOKUP(P101,LAndcost3,2,FALSE),IF($E$8="Location",VLOOKUP(P101,Landcost2,2,FALSE),"Error"))) -> 0 | S101: 0 | T101: 2016 | U101: =IFERROR(('General Input Sheet'!$G$38/(VLOOKUP('Existing Trunk Assets - Water'!T101,'General Input Sheet'!$E$38:$G$44,3,FALSE))),1) -> 1 | V101: 110884.7712 | W101: y | AB101: 160533 | BF101: 160533 | BH101: 110884.7712
B102: 94232 | D102: Passive | F102: SH046 - SH039 | K102: 0 | L102: 72122.4 | N102: =IF(M102="",1,VLOOKUP(M102,'Unit Rates - Water'!$H$12:$I$23,2,FALSE)) -> 1 | O102: 72122.4 | R102: =IF(P102="",'Unit Rates - Land'!landcst,IF($E$8="Landuse",VLOOKUP(P102,LAndcost3,2,FALSE),IF($E$8="Location",VLOOKUP(P102,Landcost2,2,FALSE),"Error"))) -> 0 | S102: 0 | T102: 2016 | U102: =IFERROR(('General Input Sheet'!$G$38/(VLOOKUP('Existing Trunk Assets - Water'!T102,'General Input Sheet'!$E$38:$G$44,3,FALSE))),1) -> 1 | V102: 72122.4 | W102: y | AB102: 160533 | BF102: 160533 | BH102: 72122.4
B103: 41576 | D103: Passive | F103: SH041 - SH038 | K103: 0 | L103: 2968 | N103: =IF(M103="",1,VLOOKUP(M103,'Unit Rates - Water'!$H$12:$I$23,2,FALSE)) -> 1 | O103: 2968 | R103: =IF(P103="",'Unit Rates - Land'!landcst,IF($E$8="Landuse",VLOOKUP(P103,LAndcost3,2,FALSE),IF($E$8="Location",VLOOKUP(P103,Landcost2,2,FALSE),"Error"))) -> 0 | S103: 0 | T103: 2016 | U103: =IFERROR(('General Input Sheet'!$G$38/(VLOOKUP('Existing Trunk Assets - Water'!T103,'General Input Sheet'!$E$38:$G$44,3,FALSE))),1) -> 1 | V103: 2968 | W103: y | AB103: 160533 | BF103: 160533 | BH103: 2968
B104: 22177 | D104: Passive | F104: SH099 - SH006 | K104: 0 | L104: 37957.752 | N104: =IF(M104="",1,VLOOKUP(M104,'Unit Rates - Water'!$H$12:$I$23,2,FALSE)) -> 1 | O104: 37957.752 | R104: =IF(P104="",'Unit Rates - Land'!landcst,IF($E$8="Landuse",VLOOKUP(P104,LAndcost3,2,FALSE),IF($E$8="Location",VLOOKUP(P104,Landcost2,2,FALSE),"Error"))) -> 0 | S104: 0 | T104: 2016 | U104: =IFERROR(('General Input Sheet'!$G$38/(VLOOKUP('Existing Trunk Assets - Water'!T104,'General Input Sheet'!$E$38:$G$44,3,FALSE))),1) -> 1 | V104: 37957.752 | W104: y | AB104: 160533 | BF104: 160533 | BH104: 37957.752
B105: 41573 | D105: Passive | F105: SH030 - SH030A | K105: 0 | L105: 44771.0928 | N105: =IF(M105="",1,VLOOKUP(M105,'Unit Rates - Water'!$H$12:$I$23,2,FALSE)) -> 1 | O105: 44771.0928 | R105: =IF(P105="",'Unit Rates - Land'!landcst,IF($E$8="Landuse",VLOOKUP(P105,LAndcost3,2,FALSE),IF($E$8="Location",VLOOKUP(P105,Landcost2,2,FALSE),"Error"))) -> 0 | S105: 0 | T105: 2016 | U105: =IFERROR(('General Input Sheet'!$G$38/(VLOOKUP('Existing Trunk Assets - Water'!T105,'General Input Sheet'!$E$38:$G$44,3,FALSE))),1) -> 1 | V105: 44771.0928 | W105: y | AB105: 160533 | BF105: 160533 | BH105: 44771.0928
B106: 20955 | D106: Passive | F106: PL003 - PL008 | K106: 0 | L106: 24984.0304 | N106: =IF(M106="",1,VLOOKUP(M106,'Unit Rates - Water'!$H$12:$I$23,2,FALSE)) -> 1 | O106: 24984.0304 | R106: =IF(P106="",'Unit Rates - Land'!landcst,IF($E$8="Landuse",VLOOKUP(P106,LAndcost3,2,FALSE),IF($E$8="Location",VLOOKUP(P106,Landcost2,2,FALSE),"Error"))) -> 0 | S106: 0 | T106: 2016 | U106: =IFERROR(('General Input Sheet'!$G$38/(VLOOKUP('Existing Trunk Assets - Water'!T106,'General Input Sheet'!$E$38:$G$44,3,FALSE))),1) -> 1 | V106: 24984.0304 | W106: y | AB106: 160533 | BF106: 160533 | BH106: 24984.0304
B107: 20470 | D107: Passive | F107: PL009 - PL010 | K107: 0 | L107: 20776 | N107: =IF(M107="",1,VLOOKUP(M107,'Unit Rates - Water'!$H$12:$I$23,2,FALSE)) -> 1 | O107: 20776 | R107: =IF(P107="",'Unit Rates - Land'!landcst,IF($E$8="Landuse",VLOOKUP(P107,LAndcost3,2,FALSE),IF($E$8="Location",VLOOKUP(P107,Landcost2,2,FALSE),"Error"))) -> 0 | S107: 0 | T107: 2016 | U107: =IFERROR(('General Input Sheet'!$G$38/(VLOOKUP('Existing Trunk Assets - Water'!T107,'General Input Sheet'!$E$38:$G$44,3,FALSE))),1) -> 1 | V107: 20776 | W107: y | AB107: 160533 | BF107: 160533 | BH107: 20776
B108: 20956 | D108: Passive | F108: PL008 - PL009 | K108: 0 | L108: 18401.6 | N108: =IF(M108="",1,VLOOKUP(M108,'Unit Rates - Water'!$H$12:$I$23,2,FALSE)) -> 1 | O108: 18401.6 | R108: =IF(P108="",'Unit Rates - Land'!landcst,IF($E$8="Landuse",VLOOKUP(P108,LAndcost3,2,FALSE),IF($E$8="Location",VLOOKUP(P108,Landcost2,2,FALSE),"Error"))) -> 0 | S108: 0 | T108: 2016 | U108: =IFERROR(('General Input Sheet'!$G$38/(VLOOKUP('Existing Trunk Assets - Water'!T108,'General Input Sheet'!$E$38:$G$44,3,FALSE))),1) -> 1 | V108: 18401.6 | W108: y | AB108: 160533 | BF108: 160533 | BH108: 18401.6
B109: 98218 | D109: Passive | F109: NBWS14 - NBWS15 | K109: 0 | L109: 5266.08 | N109: =IF(M109="",1,VLOOKUP(M109,'Unit Rates - Water'!$H$12:$I$23,2,FALSE)) -> 1 | O109: 5266.08 | R109: =IF(P109="",'Unit Rates - Land'!landcst,IF($E$8="Landuse",VLOOKUP(P109,LAndcost3,2,FALSE),IF($E$8="Location",VLOOKUP(P109,Landcost2,2,FALSE),"Error"))) -> 0 | S109: 0 | T109: 2016 | U109: =IFERROR(('General Input Sheet'!$G$38/(VLOOKUP('Existing Trunk Assets - Water'!T109,'General Input Sheet'!$E$38:$G$44,3,FALSE))),1) -> 1 | V109: 5266.08 | W109: y | AB109: 160533 | BF109: 160533 | BH109: 5266.08
B110: 83086 | D110: Passive | F110: EI035 - EI060 | K110: 0 | L110: 34272 | N110: =IF(M110="",1,VLOOKUP(M110,'Unit Rates - Water'!$H$12:$I$23,2,FALSE)) -> 1 | O110: =L110*N110 -> 34272 | R110: =IF(P110="",'Unit Rates - Land'!landcst,IF($E$8="Landuse",VLOOKUP(P110,LAndcost3,2,FALSE),IF($E$8="Location",VLOOKUP(P110,Landcost2,2,FALSE),"Error"))) -> 0 | S110: 0 | T110: 2016 | U110: =IFERROR(('General Input Sheet'!$G$38/(VLOOKUP('Existing Trunk Assets - Water'!T110,'General Input Sheet'!$E$38:$G$44,3,FALSE))),1) -> 1 | V110: =IFERROR((O110+S110)*U110,0) -> 34272 | W110: y | AB110: 160533 | BF110: 160533 | BH110: 34272
B111: 24453 | D111: Passive | F111: PL063 - PL064 | K111: =IF(H111=TYPE1,VLOOKUP(J111,WaterUnitrates1,2,FALSE),IF(H111=TYPE2,VLOOKUP(J111,Unitrates2,2,FALSE),0)) -> 0 | L111: 18995.2 | N111: =IF(M111="",1,VLOOKUP(M111,'Unit Rates - Water'!$H$12:$I$23,2,FALSE)) -> 1 | O111: 18995.2 | R111: =IF(P111="",'Unit Rates - Land'!landcst,IF($E$8="Landuse",VLOOKUP(P111,LAndcost3,2,FALSE),IF($E$8="Location",VLOOKUP(P111,Landcost2,2,FALSE),"Error"))) -> 0 | S111: 0 | T111: 2016 | U111: =IFERROR(('General Input Sheet'!$G$38/(VLOOKUP('Existing Trunk Assets - Water'!T111,'General Input Sheet'!$E$38:$G$44,3,FALSE))),1) -> 1 | V111: 18995.2 | W111: y | AB111: 160533 | BF111: 160533 | BH111: 18995.2
B112: 24458 | D112: Passive | F112: PL064 - PL065 | K112: 0 | L112: 12292.8624 | N112: =IF(M112="",1,VLOOKUP(M112,'Unit Rates - Water'!$H$12:$I$23,2,FALSE)) -> 1 | O112: 12292.8624 | R112: =IF(P112="",'Unit Rates - Land'!landcst,IF($E$8="Landuse",VLOOKUP(P112,LAndcost3,2,FALSE),IF($E$8="Location",VLOOKUP(P112,Landcost2,2,FALSE),"Error"))) -> 0 | S112: 0 | T112: 2016 | U112: =IFERROR(('General Input Sheet'!$G$38/(VLOOKUP('Existing Trunk Assets - Water'!T112,'General Input Sheet'!$E$38:$G$44,3,FALSE))),1) -> 1 | V112: 12292.8624 | W112: y | AB112: 160533 | BF112: =SUM(AB112:BE112) -> 160533 | BH112: 12292.8624
B113: 40740 | D113: Passive | F113: PL065 - PL103 | K113: 0 | L113: 38880.8 | N113: =IF(M113="",1,VLOOKUP(M113,'Unit Rates - Water'!$H$12:$I$23,2,FALSE)) -> 1 | O113: 38880.8 | R113: =IF(P113="",'Unit Rates - Land'!landcst,IF($E$8="Landuse",VLOOKUP(P113,LAndcost3,2,FALSE),IF($E$8="Location",VLOOKUP(P113,Landcost2,2,FALSE),"Error"))) -> 0 | S113: 0 | T113: 2016 | U113: =IFERROR(('General Input Sheet'!$G$38/(VLOOKUP('Existing Trunk Assets - Water'!T113,'General Input Sheet'!$E$38:$G$44,3,FALSE))),1) -> 1 | V113: 38880.8 | W113: y | AB113: 160533 | BF113: 160533 | BH113: 38880.8
B114: 40579 | D114: Passive | F114: PL103 - PL105 | K114: 0 | L114: 28196 | N114: =IF(M114="",1,VLOOKUP(M114,'Unit Rates - Water'!$H$12:$I$23,2,FALSE)) -> 1 | O114: 28196 | R114: =IF(P114="",'Unit Rates - Land'!landcst,IF($E$8="Landuse",VLOOKUP(P114,LAndcost3,2,FALSE),IF($E$8="Location",VLOOKUP(P114,Landcost2,2,FALSE),"Error"))) -> 0 | S114: 0 | T114: 2016 | U114: =IFERROR(('General Input Sheet'!$G$38/(VLOOKUP('Existing Trunk Assets - Water'!T114,'General Input Sheet'!$E$38:$G$44,3,FALSE))),1) -> 1 | V114: 28196 | W114: y | AB114: 160533 | BF114: 160533 | BH114: 28196
B115: 40606 | D115: Passive | F115: PL105 - PL106 | I115: 0 | J115: 0 | K115: 0 | L115: 1780.8 | M115: 0 | N115: =M115 -> 0 | O115: 0 | R115: =IF(P115="",'Unit Rates - Land'!landcst,IF($E$8="Landuse",VLOOKUP(P115,LAndcost3,2,FALSE),IF($E$8="Location",VLOOKUP(P115,Landcost2,2,FALSE),"Error"))) -> 0 | S115: 0 | T115: 2016 | U115: =IFERROR(('General Input Sheet'!$G$38/(VLOOKUP('Existing Trunk Assets - Water'!T115,'General Input Sheet'!$E$38:$G$44,3,FALSE))),1) -> 1 | V115: 0 | W115: y | AB115: 160533 | BF115: 160533 | BH115: 0
B116: 94774 | D116: Passive | F116: BL133 - BL134 | I116: 680 | J116: 100 | K116: 230 | L116: 8310.4 | M116: 1 | N116: 1 | O116: 8310.4 | R116: =IF(P116="",'Unit Rates - Land'!landcst,IF($E$8="Landuse",VLOOKUP(P116,LAndcost3,2,FALSE),IF($E$8="Location",VLOOKUP(P116,Landcost2,2,FALSE),"Error"))) -> 0 | S116: 0 | T116: 2016 | U116: =IFERROR(('General Input Sheet'!$G$38/(VLOOKUP('Existing Trunk Assets - Water'!T116,'General Input Sheet'!$E$38:$G$44,3,FALSE))),1) -> 1 | V116: 8310.4 | W116: y | AB116: 160533 | BF116: 160533 | BH116: 8310.4
B117: 94782 | D117: Passive | F117: BL133 - BL031 | I117: 28 | J117: 100 | K117: 230 | L117: 21942 | M117: 1 | N117: 1 | O117: 21942 | R117: =IF(P117="",'Unit Rates - Land'!landcst,IF($E$8="Landuse",VLOOKUP(P117,LAndcost3,2,FALSE),IF($E$8="Location",VLOOKUP(P117,Landcost2,2,FALSE),"Error"))) -> 0 | S117: =IF(R117="",0,R117*10000*Q117) -> 0 | T117: 2016 | U117: =IFERROR(('General Input Sheet'!$G$38/(VLOOKUP('Existing Trunk Assets - Water'!T117,'General Input Sheet'!$E$38:$G$44,3,FALSE))),1) -> 1 | V117: 21942 | W117: y | AB117: 160533 | BF117: 160533 | BH117: 21942
B118: 127850 | D118: Passive | F118: BL063 - BL200 | I118: 590 | J118: 100 | K118: 230 | L118: 132147.8892 | M118: 1 | N118: 1 | O118: 132147.8892 | R118: =IF(P118="",'Unit Rates - Land'!landcst,IF($E$8="Landuse",VLOOKUP(P118,LAndcost3,2,FALSE),IF($E$8="Location",VLOOKUP(P118,Landcost2,2,FALSE),"Error"))) -> 0 | S118: 0 | T118: 2016 | U118: =IFERROR(('General Input Sheet'!$G$38/(VLOOKUP('Existing Trunk Assets - Water'!T118,'General Input Sheet'!$E$38:$G$44,3,FALSE))),1) -> 1 | V118: 132147.8892 | W118: y | AB118: 160533 | BF118: 160533 | BH118: 132147.8892
B119: 24446 | D119: Passive | F119: PL060 - PL061 | I119: 186 | J119: 100 | K119: 230 | L119: 14246.4 | M119: 1 | N119: 1 | O119: 14246.4 | R119: =IF(P119="",'Unit Rates - Land'!landcst,IF($E$8="Landuse",VLOOKUP(P119,LAndcost3,2,FALSE),IF($E$8="Location",VLOOKUP(P119,Landcost2,2,FALSE),"Error"))) -> 0 | S119: 0 | T119: 2016 | U119: =IFERROR(('General Input Sheet'!$G$38/(VLOOKUP('Existing Trunk Assets - Water'!T119,'General Input Sheet'!$E$38:$G$44,3,FALSE))),1) -> 1 | V119: 14246.4 | W119: y | AB119: 160533 | BF119: 160533 | BH119: 14246.4
B120: 364160 | D120: Passive | F120: PL017 - PL017A | I120: 455 | J120: 100 | K120: 230 | L120: 27881.392 | M120: 1 | N120: 1 | O120: 27881.392 | R120: =IF(P120="",'Unit Rates - Land'!landcst,IF($E$8="Landuse",VLOOKUP(P120,LAndcost3,2,FALSE),IF($E$8="Location",VLOOKUP(P120,Landcost2,2,FALSE),"Error"))) -> 0 | S120: 0 | T120: 2016 | U120: =IFERROR(('General Input Sheet'!$G$38/(VLOOKUP('Existing Trunk Assets - Water'!T120,'General Input Sheet'!$E$38:$G$44,3,FALSE))),1) -> 1 | V120: 27881.392 | W120: y | AB120: 160533 | BF120: 160533 | BH120: 27881.392
B121: 24639 | D121: Passive | F121: PL061 - PL062 | I121: 84 | J121: 150 | K121: 288 | L121: 24734.1248 | M121: 1 | N121: 1 | O121: 24734.1248 | R121: =IF(P121="",'Unit Rates - Land'!landcst,IF($E$8="Landuse",VLOOKUP(P121,LAndcost3,2,FALSE),IF($E$8="Location",VLOOKUP(P121,Landcost2,2,FALSE),"Error"))) -> 0 | S121: 0 | T121: 2016 | U121: =IFERROR(('General Input Sheet'!$G$38/(VLOOKUP('Existing Trunk Assets - Water'!T121,'General Input Sheet'!$E$38:$G$44,3,FALSE))),1) -> 1 | V121: 24734.1248 | W121: y | AB121: 160533 | BF121: 160533 | BH121: 24734.1248
B122: 24450 | D122: Passive | F122: PL062 - PL063 | I122: 163 | J122: 150 | K122: 288 | L122: 11877.6392 | M122: 1 | N122: 1 | O122: 11877.6392 | R122: =IF(P122="",'Unit Rates - Land'!landcst,IF($E$8="Landuse",VLOOKUP(P122,LAndcost3,2,FALSE),IF($E$8="Location",VLOOKUP(P122,Landcost2,2,FALSE),"Error"))) -> 0 | S122: 0 | T122: 2016 | U122: =IFERROR(('General Input Sheet'!$G$38/(VLOOKUP('Existing Trunk Assets - Water'!T122,'General Input Sheet'!$E$38:$G$44,3,FALSE))),1) -> 1 | V122: 11877.6392 | W122: y | AB122: 160533 | BF122: 160533 | BH122: 11877.6392
B123: 40450 | D123: Passive | F123: PL061 - PL072 | I123: 128 | J123: 150 | K123: 288 | L123: 13652.8 | M123: 1 | N123: 1 | O123: 13652.8 | R123: =IF(P123="",'Unit Rates - Land'!landcst,IF($E$8="Landuse",VLOOKUP(P123,LAndcost3,2,FALSE),IF($E$8="Location",VLOOKUP(P123,Landcost2,2,FALSE),"Error"))) -> 0 | S123: 0 | T123: 2016 | U123: =IFERROR(('General Input Sheet'!$G$38/(VLOOKUP('Existing Trunk Assets - Water'!T123,'General Input Sheet'!$E$38:$G$44,3,FALSE))),1) -> 1 | V123: 13652.8 | W123: y | AB123: 160533 | BF123: 160533 | BH123: 13652.8
B124: 82533 | D124: Passive | F124: PLR01A - PLR01 | I124: 104 | J124: 150 | K124: 288 | L124: 28318.4257 | M124: 1 | N124: 1 | O124: 28318.4257 | R124: =IF(P124="",'Unit Rates - Land'!landcst,IF($E$8="Landuse",VLOOKUP(P124,LAndcost3,2,FALSE),IF($E$8="Location",VLOOKUP(P124,Landcost2,2,FALSE),"Error"))) -> 0 | S124: 0 | T124: 2016 | U124: =IFERROR(('General Input Sheet'!$G$38/(VLOOKUP('Existing Trunk Assets - Water'!T124,'General Input Sheet'!$E$38:$G$44,3,FALSE))),1) -> 1 | V124: 28318.4257 | W124: y | AB124: =IF(W124="y",AB$14,IF(AND(W124>0,W124<=1),W124*AB$14,"")) -> 160533 | AC124: =IF(X124="y",AC$14,IF(AND(X124>0,X124<=1),X124*AC$14,"")) ->  | AD124: =IF(Y124="y",AD$14,IF(AND(Y124>0,Y124<=1),Y124*AD$14,"")) ->  | BE124: =IF(Z124="y",BE$14,IF(AND(Z124>0,Z124<=1),Z124*BE$14,"")) ->  | BF124: 160533 | BH124: =IF(AB124="","",(AB124/$BF124)*$V124) -> 28318.4257 | BI124: =IF(AC124="","",(AC124/$BF124)*$V124) ->  | BJ124: =IF(AD124="","",(AD124/$BF124)*$V124) ->  | BK124: =IF(AE124="","",(AE124/$BF124)*$V124) ->  | BL124: =IF(AF124="","",(AF124/$BF124)*$V124) ->  | BM124: =IF(AG124="","",(AG124/$BF124)*$V124) ->  | BN124: =IF(AH124="","",(AH124/$BF124)*$V124) ->  | BO124: =IF(AI124="","",(AI124/$BF124)*$V124) ->  | BP124: =IF(AJ124="","",(AJ124/$BF124)*$V124) ->  | BQ124: =IF(AK124="","",(AK124/$BF124)*$V124) ->  | BR124: =IF(AL124="","",(AL124/$BF124)*$V124) ->  | BS124: =IF(AM124="","",(AM124/$BF124)*$V124) ->  | BT124: =IF(AN124="","",(AN124/$BF124)*$V124) ->  | BU124: =IF(AO124="","",(AO124/$BF124)*$V124) ->  | BV124: =IF(AP124="","",(AP124/$BF124)*$V124) ->  | BW124: =IF(AQ124="","",(AQ124/$BF124)*$V124) ->  | BX124: =IF(AR124="","",(AR124/$BF124)*$V124) ->  | BY124: =IF(AS124="","",(AS124/$BF124)*$V124) ->  | BZ124: =IF(AT124="","",(AT124/$BF124)*$V124) ->  | CA124: =IF(AU124="","",(AU124/$BF124)*$V124) ->  | CB124: =IF(AV124="","",(AV124/$BF124)*$V124) ->  | CC124: =IF(AW124="","",(AW124/$BF124)*$V124) ->  | CD124: =IF(AX124="","",(AX124/$BF124)*$V124) ->  | CE124: =IF(AY124="","",(AY124/$BF124)*$V124) ->  | CF124: =IF(AZ124="","",(AZ124/$BF124)*$V124) ->  | CG124: =IF(BA124="","",(BA124/$BF124)*$V124) ->  | CH124: =IF(BB124="","",(BB124/$BF124)*$V124) ->  | CI124: =IF(BC124="","",(BC124/$BF124)*$V124) ->  | CJ124: =IF(BD124="","",(BD124/$BF124)*$V124) ->  | CK124: =IF(BE124="","",(BE124/$BF124)*$V124) ->  | CL124: =IF(SUM(BH124:CK124)=V124,"","ERROR") -> 
B125: 20952 | D125: Passive | F125: NBWS13 - PL001 | I125: 123 | J125: 200 | K125: 356 | L125: 16027.2 | M125: 1 | N125: 1 | O125: 16027.2 | R125: =IF(P125="",'Unit Rates - Land'!landcst,IF($E$8="Landuse",VLOOKUP(P125,LAndcost3,2,FALSE),IF($E$8="Location",VLOOKUP(P125,Landcost2,2,FALSE),"Error"))) -> 0 | S125: 0 | T125: 2016 | U125: =IFERROR(('General Input Sheet'!$G$38/(VLOOKUP('Existing Trunk Assets - Water'!T125,'General Input Sheet'!$E$38:$G$44,3,FALSE))),1) -> 1 | V125: 16027.2 | W125: y | AB125: 160533 | BF125: 160533 | BH125: 16027.2
B126: 20953 | D126: Passive | F126: PL001 - PL002 | I126: 77 | J126: 200 | K126: 356 | L126: 27780.48 | M126: 1 | N126: 1 | O126: 27780.48 | R126: =IF(P126="",'Unit Rates - Land'!landcst,IF($E$8="Landuse",VLOOKUP(P126,LAndcost3,2,FALSE),IF($E$8="Location",VLOOKUP(P126,Landcost2,2,FALSE),"Error"))) -> 0 | S126: 0 | T126: 2016 | U126: =IFERROR(('General Input Sheet'!$G$38/(VLOOKUP('Existing Trunk Assets - Water'!T126,'General Input Sheet'!$E$38:$G$44,3,FALSE))),1) -> 1 | V126: 27780.48 | W126: y | AB126: 160533 | BF126: 160533 | BH126: 27780.48
B127: 20954 | D127: Passive | F127: PL002 - PL003 | I127: 87 | J127: 200 | K127: 356 | L127: 12198.48 | M127: 1 | N127: 1 | O127: 12198.48 | R127: =IF(P127="",'Unit Rates - Land'!landcst,IF($E$8="Landuse",VLOOKUP(P127,LAndcost3,2,FALSE),IF($E$8="Location",VLOOKUP(P127,Landcost2,2,FALSE),"Error"))) -> 0 | S127: 0 | T127: 2016 | U127: =IFERROR(('General Input Sheet'!$G$38/(VLOOKUP('Existing Trunk Assets - Water'!T127,'General Input Sheet'!$E$38:$G$44,3,FALSE))),1) -> 1 | V127: 12198.48 | W127: y | AB127: 160533 | BF127: 160533 | BH127: 12198.48
B128: 22359 | D128: Passive | F128: NBWS14 - PL015A | I128: 179 | J128: 200 | K128: 356 | L128: 69451.2 | M128: 1 | N128: 1 | O128: 69451.2 | R128: =IF(P128="",'Unit Rates - Land'!landcst,IF($E$8="Landuse",VLOOKUP(P128,LAndcost3,2,FALSE),IF($E$8="Location",VLOOKUP(P128,Landcost2,2,FALSE),"Error"))) -> 0 | S128: 0 | T128: 2016 | U128: =IFERROR(('General Input Sheet'!$G$38/(VLOOKUP('Existing Trunk Assets - Water'!T128,'General Input Sheet'!$E$38:$G$44,3,FALSE))),1) -> 1 | V128: 69451.2 | W128: y | AB128: 160533 | BF128: 160533 | BH128: 69451.2
B129: 40569 | D129: Passive | F129: PL017 - PL016 | I129: 838 | J129: 200 | K129: 356 | L129: 27008.8 | M129: 1 | N129: 1 | O129: 27008.8 | R129: =IF(P129="",'Unit Rates - Land'!landcst,IF($E$8="Landuse",VLOOKUP(P129,LAndcost3,2,FALSE),IF($E$8="Location",VLOOKUP(P129,Landcost2,2,FALSE),"Error"))) -> 0 | S129: 0 | T129: 2016 | U129: =IFERROR(('General Input Sheet'!$G$38/(VLOOKUP('Existing Trunk Assets - Water'!T129,'General Input Sheet'!$E$38:$G$44,3,FALSE))),1) -> 1 | V129: 27008.8 | W129: y | AB129: 160533 | BF129: 160533 | BH129: 27008.8
B130: 40573 | D130: Passive | F130: PL016 - PL070 | I130: 343 | J130: 200 | K130: 356 | L130: 52236.8 | M130: 1 | N130: 1 | O130: 52236.8 | R130: =IF(P130="",'Unit Rates - Land'!landcst,IF($E$8="Landuse",VLOOKUP(P130,LAndcost3,2,FALSE),IF($E$8="Location",VLOOKUP(P130,Landcost2,2,FALSE),"Error"))) -> 0 | S130: 0 | T130: 2016 | U130: =IFERROR(('General Input Sheet'!$G$38/(VLOOKUP('Existing Trunk Assets - Water'!T130,'General Input Sheet'!$E$38:$G$44,3,FALSE))),1) -> 1 | V130: 52236.8 | W130: y | AB130: 160533 | BF130: 160533 | BH130: 52236.8
B131: 397579 | D131: Passive | F131: EIEIMEO01 - EI070 | I131: 70 | J131: 200 | K131: 356 | L131: 54836.715 | M131: 1 | N131: 1 | O131: 54836.715 | R131: =IF(P131="",'Unit Rates - Land'!landcst,IF($E$8="Landuse",VLOOKUP(P131,LAndcost3,2,FALSE),IF($E$8="Location",VLOOKUP(P131,Landcost2,2,FALSE),"Error"))) -> 0 | S131: 0 | T131: 2016 | U131: =IFERROR(('General Input Sheet'!$G$38/(VLOOKUP('Existing Trunk Assets - Water'!T131,'General Input Sheet'!$E$38:$G$44,3,FALSE))),1) -> 1 | V131: 54836.715 | W131: y | AB131: 160533 | BF131: 160533 | BH131: 54836.715
B132: 20741 | D132: Passive | F132: BL001 - BL017 | I132: 916 | J132: 200 | K132: 356 | L132: 185190.48 | M132: 1 | N132: 1 | O132: 185190.48 | R132: =IF(P132="",'Unit Rates - Land'!landcst,IF($E$8="Landuse",VLOOKUP(P132,LAndcost3,2,FALSE),IF($E$8="Location",VLOOKUP(P132,Landcost2,2,FALSE),"Error"))) -> 0 | S132: 0 | T132: 2016 | U132: =IFERROR(('General Input Sheet'!$G$38/(VLOOKUP('Existing Trunk Assets - Water'!T132,'General Input Sheet'!$E$38:$G$44,3,FALSE))),1) -> 1 | V132: 185190.48 | W132: y | AB132: 160533 | BF132: 160533 | BH132: 185190.48
B133: 99764 | D133: Passive | F133: BL017A - BL078A | I133: 67 | J133: 200 | K133: 356 | L133: 42739.2 | M133: 1 | N133: 1 | O133: 42739.2 | R133: =IF(P133="",'Unit Rates - Land'!landcst,IF($E$8="Landuse",VLOOKUP(P133,LAndcost3,2,FALSE),IF($E$8="Location",VLOOKUP(P133,Landcost2,2,FALSE),"Error"))) -> 0 | S133: 0 | T133: 2016 | U133: =IFERROR(('General Input Sheet'!$G$38/(VLOOKUP('Existing Trunk Assets - Water'!T133,'General Input Sheet'!$E$38:$G$44,3,FALSE))),1) -> 1 | V133: 42739.2 | W133: y | AB133: 160533 | BF133: 160533 | BH133: 42739.2
B134: 20220 | D134: Passive | F134: BL020 - BL063 | I134: 158 | J134: 200 | K134: 356 | L134: 585446.4 | M134: 1 | N134: 1 | O134: 585446.4 | R134: =IF(P134="",'Unit Rates - Land'!landcst,IF($E$8="Landuse",VLOOKUP(P134,LAndcost3,2,FALSE),IF($E$8="Location",VLOOKUP(P134,Landcost2,2,FALSE),"Error"))) -> 0 | S134: 0 | T134: 2016 | U134: =IFERROR(('General Input Sheet'!$G$38/(VLOOKUP('Existing Trunk Assets - Water'!T134,'General Input Sheet'!$E$38:$G$44,3,FALSE))),1) -> 1 | V134: 585446.4 | W134: y | AB134: 160533 | BF134: 160533 | BH134: 585446.4
B135: 21940 | D135: Passive | F135: BL045A - BL046 | I135: 386 | J135: 200 | K135: 356 | L135: 59360 | M135: 1 | N135: 1 | O135: 59360 | R135: =IF(P135="",'Unit Rates - Land'!landcst,IF($E$8="Landuse",VLOOKUP(P135,LAndcost3,2,FALSE),IF($E$8="Location",VLOOKUP(P135,Landcost2,2,FALSE),"Error"))) -> 0 | S135: 0 | T135: 2016 | U135: =IFERROR(('General Input Sheet'!$G$38/(VLOOKUP('Existing Trunk Assets - Water'!T135,'General Input Sheet'!$E$38:$G$44,3,FALSE))),1) -> 1 | V135: 59360 | W135: y | AB135: 160533 | BF135: 160533 | BH135: 59360
B136: 33913 | D136: Passive | F136: PL023 - PL084 | I136: 574 | J136: 200 | K136: 356 | L136: 18995.2 | M136: 1 | N136: 1 | O136: 18995.2 | R136: =IF(P136="",'Unit Rates - Land'!landcst,IF($E$8="Landuse",VLOOKUP(P136,LAndcost3,2,FALSE),IF($E$8="Location",VLOOKUP(P136,Landcost2,2,FALSE),"Error"))) -> 0 | S136: 0 | T136: 2016 | U136: =IFERROR(('General Input Sheet'!$G$38/(VLOOKUP('Existing Trunk Assets - Water'!T136,'General Input Sheet'!$E$38:$G$44,3,FALSE))),1) -> 1 | V136: 18995.2 | W136: y | AB136: 160533 | BF136: 160533 | BH136: 18995.2
B137: 37482 | D137: Passive | F137: PL056 - PL084 | I137: 1740 | J137: 200 | K137: 356 | L137: 71528.8 | M137: 1 | N137: 1 | O137: 71528.8 | R137: =IF(P137="",'Unit Rates - Land'!landcst,IF($E$8="Landuse",VLOOKUP(P137,LAndcost3,2,FALSE),IF($E$8="Location",VLOOKUP(P137,Landcost2,2,FALSE),"Error"))) -> 0 | S137: 0 | T137: 2016 | U137: =IFERROR(('General Input Sheet'!$G$38/(VLOOKUP('Existing Trunk Assets - Water'!T137,'General Input Sheet'!$E$38:$G$44,3,FALSE))),1) -> 1 | V137: 71528.8 | W137: y | AB137: 160533 | BF137: 160533 | BH137: 71528.8
B138: 101436 | D138: Passive | F138: BL033 - BL123 | I138: 986 | J138: 200 | K138: 356 | L138: 20182.4 | M138: 1 | N138: 1 | O138: 20182.4 | R138: =IF(P138="",'Unit Rates - Land'!landcst,IF($E$8="Landuse",VLOOKUP(P138,LAndcost3,2,FALSE),IF($E$8="Location",VLOOKUP(P138,Landcost2,2,FALSE),"Error"))) -> 0 | S138: 0 | T138: 2016 | U138: =IFERROR(('General Input Sheet'!$G$38/(VLOOKUP('Existing Trunk Assets - Water'!T138,'General Input Sheet'!$E$38:$G$44,3,FALSE))),1) -> 1 | V138: 20182.4 | W138: y | AB138: 160533 | BF138: 160533 | BH138: 20182.4
B139: 24704 | D139: Passive | F139: EI043 - EI044 | I139: 532 | J139: 200 | K139: 356 | L139: 9590.88 | M139: 1 | N139: 1 | O139: 9590.88 | R139: =IF(P139="",'Unit Rates - Land'!landcst,IF($E$8="Landuse",VLOOKUP(P139,LAndcost3,2,FALSE),IF($E$8="Location",VLOOKUP(P139,Landcost2,2,FALSE),"Error"))) -> 0 | S139: 0 | T139: 2016 | U139: =IFERROR(('General Input Sheet'!$G$38/(VLOOKUP('Existing Trunk Assets - Water'!T139,'General Input Sheet'!$E$38:$G$44,3,FALSE))),1) -> 1 | V139: 9590.88 | W139: y | AB139: 160533 | BF139: 160533 | BH139: 9590.88
B140: 20438 | D140: Passive | F140: EI043 - EI037 | I140: 510 | J140: 200 | K140: 356 | L140: 16917.6 | M140: 1 | N140: 1 | O140: 16917.6 | R140: =IF(P140="",'Unit Rates - Land'!landcst,IF($E$8="Landuse",VLOOKUP(P140,LAndcost3,2,FALSE),IF($E$8="Location",VLOOKUP(P140,Landcost2,2,FALSE),"Error"))) -> 0 | S140: 0 | T140: 2016 | U140: =IFERROR(('General Input Sheet'!$G$38/(VLOOKUP('Existing Trunk Assets - Water'!T140,'General Input Sheet'!$E$38:$G$44,3,FALSE))),1) -> 1 | V140: 16917.6 | W140: y | AB140: 160533 | BF140: 160533 | BH140: 16917.6
B141: 24357 | D141: Passive | F141: EI044 - EI045 | I141: 28 | J141: 200 | K141: 356 | L141: 45249.28 | M141: 1 | N141: 1 | O141: 45249.28 | R141: =IF(P141="",'Unit Rates - Land'!landcst,IF($E$8="Landuse",VLOOKUP(P141,LAndcost3,2,FALSE),IF($E$8="Location",VLOOKUP(P141,Landcost2,2,FALSE),"Error"))) -> 0 | S141: 0 | T141: 2016 | U141: =IFERROR(('General Input Sheet'!$G$38/(VLOOKUP('Existing Trunk Assets - Water'!T141,'General Input Sheet'!$E$38:$G$44,3,FALSE))),1) -> 1 | V141: 45249.28 | W141: y | AB141: 160533 | BF141: 160533 | BH141: 45249.28
B142: 24407 | D142: Passive | F142: EI062 - EI063 | I142: 508 | J142: 200 | K142: 356 | L142: 9836.8 | M142: 1 | N142: 1 | O142: 9836.8 | R142: =IF(P142="",'Unit Rates - Land'!landcst,IF($E$8="Landuse",VLOOKUP(P142,LAndcost3,2,FALSE),IF($E$8="Location",VLOOKUP(P142,Landcost2,2,FALSE),"Error"))) -> 0 | S142: 0 | T142: 2016 | U142: =IFERROR(('General Input Sheet'!$G$38/(VLOOKUP('Existing Trunk Assets - Water'!T142,'General Input Sheet'!$E$38:$G$44,3,FALSE))),1) -> 1 | V142: 9836.8 | W142: y | AB142: 160533 | BF142: 160533 | BH142: 9836.8
B143: 37380 | D143: Passive | F143: BL095 - BL080 | I143: 103 | J143: 200 | K143: 356 | L143: 9497.6 | M143: 1 | N143: 1 | O143: 9497.6 | R143: =IF(P143="",'Unit Rates - Land'!landcst,IF($E$8="Landuse",VLOOKUP(P143,LAndcost3,2,FALSE),IF($E$8="Location",VLOOKUP(P143,Landcost2,2,FALSE),"Error"))) -> 0 | S143: 0 | T143: 2016 | U143: =IFERROR(('General Input Sheet'!$G$38/(VLOOKUP('Existing Trunk Assets - Water'!T143,'General Input Sheet'!$E$38:$G$44,3,FALSE))),1) -> 1 | V143: 9497.6 | W143: y | AB143: 160533 | BF143: 160533 | BH143: 9497.6
B144: 20414 | D144: Passive | F144: BL002 - BL004 | I144: 263 | J144: 200 | K144: 356 | L144: 16620.8 | M144: 1 | N144: 1 | O144: 16620.8 | R144: =IF(P144="",'Unit Rates - Land'!landcst,IF($E$8="Landuse",VLOOKUP(P144,LAndcost3,2,FALSE),IF($E$8="Location",VLOOKUP(P144,Landcost2,2,FALSE),"Error"))) -> 0 | S144: 0 | T144: 2016 | U144: =IFERROR(('General Input Sheet'!$G$38/(VLOOKUP('Existing Trunk Assets - Water'!T144,'General Input Sheet'!$E$38:$G$44,3,FALSE))),1) -> 1 | V144: 16620.8 | W144: y | AB144: 160533 | BF144: 160533 | BH144: 16620.8
B145: 24253 | D145: Passive | F145: BL088 - BL089 | I145: 1274 | J145: 200 | K145: 356 | L145: 45113.6 | M145: 1 | N145: 1 | O145: 45113.6 | R145: =IF(P145="",'Unit Rates - Land'!landcst,IF($E$8="Landuse",VLOOKUP(P145,LAndcost3,2,FALSE),IF($E$8="Location",VLOOKUP(P145,Landcost2,2,FALSE),"Error"))) -> 0 | S145: 0 | T145: 2016 | U145: =IFERROR(('General Input Sheet'!$G$38/(VLOOKUP('Existing Trunk Assets - Water'!T145,'General Input Sheet'!$E$38:$G$44,3,FALSE))),1) -> 1 | V145: 45113.6 | W145: y | AB145: 160533 | BF145: 160533 | BH145: 45113.6
B146: 21520 | D146: Passive | F146: NBWS27 - NBWS28 | I146: 99 | J146: 250 | K146: 440 | L146: 42055.5 | M146: 1 | N146: 1 | O146: 42055.5 | R146: =IF(P146="",'Unit Rates - Land'!landcst,IF($E$8="Landuse",VLOOKUP(P146,LAndcost3,2,FALSE),IF($E$8="Location",VLOOKUP(P146,Landcost2,2,FALSE),"Error"))) -> 0 | S146: 0 | T146: 2016 | U146: =IFERROR(('General Input Sheet'!$G$38/(VLOOKUP('Existing Trunk Assets - Water'!T146,'General Input Sheet'!$E$38:$G$44,3,FALSE))),1) -> 1 | V146: 42055.5 | W146: y | AB146: 160533 | BF146: 160533 | BH146: 42055.5
B147: 86736 | D147: Passive | F147: NBTM/N01 - NBTM/N02 | I147: 82 | J147: 250 | K147: 440 | L147: 739622.4 | M147: 1 | N147: 1 | O147: 739622.4 | R147: =IF(P147="",'Unit Rates - Land'!landcst,IF($E$8="Landuse",VLOOKUP(P147,LAndcost3,2,FALSE),IF($E$8="Location",VLOOKUP(P147,Landcost2,2,FALSE),"Error"))) -> 0 | S147: 0 | T147: 2016 | U147: =IFERROR(('General Input Sheet'!$G$38/(VLOOKUP('Existing Trunk Assets - Water'!T147,'General Input Sheet'!$E$38:$G$44,3,FALSE))),1) -> 1 | V147: 739622.4 | W147: y | AB147: 160533 | BF147: 160533 | BH147: 739622.4
B148: 37545 | D148: Passive | F148: SH028 - SH029 | I148: 407 | J148: 250 | K148: 440 | L148: 35169.6128 | M148: 1 | N148: 1 | O148: 35169.6128 | R148: =IF(P148="",'Unit Rates - Land'!landcst,IF($E$8="Landuse",VLOOKUP(P148,LAndcost3,2,FALSE),IF($E$8="Location",VLOOKUP(P148,Landcost2,2,FALSE),"Error"))) -> 0 | S148: 0 | T148: 2016 | U148: =IFERROR(('General Input Sheet'!$G$38/(VLOOKUP('Existing Trunk Assets - Water'!T148,'General Input Sheet'!$E$38:$G$44,3,FALSE))),1) -> 1 | V148: 35169.6128 | W148: y | AB148: 160533 | BF148: 160533 | BH148: 35169.6128
B149: 37547 | D149: Passive | F149: SH029 - SH030 | I149: 194 | J149: 250 | K149: 440 | L149: 17214.4 | M149: 1 | N149: 1 | O149: 17214.4 | R149: =IF(P149="",'Unit Rates - Land'!landcst,IF($E$8="Landuse",VLOOKUP(P149,LAndcost3,2,FALSE),IF($E$8="Location",VLOOKUP(P149,Landcost2,2,FALSE),"Error"))) -> 0 | S149: 0 | T149: 2016 | U149: =IFERROR(('General Input Sheet'!$G$38/(VLOOKUP('Existing Trunk Assets - Water'!T149,'General Input Sheet'!$E$38:$G$44,3,FALSE))),1) -> 1 | V149: 17214.4 | W149: y | AB149: 160533 | BF149: 160533 | BH149: 17214.4
B150: 22365 | D150: Passive | F150: SP098 - SP097 | I150: 22 | J150: 250 | K150: 440 | L150: 31460.8 | M150: 1 | N150: 1 | O150: 31460.8 | R150: =IF(P150="",'Unit Rates - Land'!landcst,IF($E$8="Landuse",VLOOKUP(P150,LAndcost3,2,FALSE),IF($E$8="Location",VLOOKUP(P150,Landcost2,2,FALSE),"Error"))) -> 0 | S150: 0 | T150: 2016 | U150: =IFERROR(('General Input Sheet'!$G$38/(VLOOKUP('Existing Trunk Assets - Water'!T150,'General Input Sheet'!$E$38:$G$44,3,FALSE))),1) -> 1 | V150: 31460.8 | W150: y | AB150: 160533 | BF150: 160533 | BH150: 31460.8
B151: 37363 | D151: Passive | F151: SP130 - SP131 | I151: 235 | J151: 250 | K151: 440 | L151: 15730.4 | M151: 1 | N151: 1 | O151: 15730.4 | R151: =IF(P151="",'Unit Rates - Land'!landcst,IF($E$8="Landuse",VLOOKUP(P151,LAndcost3,2,FALSE),IF($E$8="Location",VLOOKUP(P151,Landcost2,2,FALSE),"Error"))) -> 0 | S151: 0 | T151: 2016 | U151: =IFERROR(('General Input Sheet'!$G$38/(VLOOKUP('Existing Trunk Assets - Water'!T151,'General Input Sheet'!$E$38:$G$44,3,FALSE))),1) -> 1 | V151: 15730.4 | W151: y | AB151: 160533 | BF151: 160533 | BH151: 15730.4
B152: 21924 | D152: Passive | F152: SP114 - SP108 | I152: 503 | J152: 250 | K152: 440 | L152: 45346.8 | M152: 1 | N152: 1 | O152: 45346.8 | R152: =IF(P152="",'Unit Rates - Land'!landcst,IF($E$8="Landuse",VLOOKUP(P152,LAndcost3,2,FALSE),IF($E$8="Location",VLOOKUP(P152,Landcost2,2,FALSE),"Error"))) -> 0 | S152: 0 | T152: 2016 | U152: =IFERROR(('General Input Sheet'!$G$38/(VLOOKUP('Existing Trunk Assets - Water'!T152,'General Input Sheet'!$E$38:$G$44,3,FALSE))),1) -> 1 | V152: 45346.8 | W152: y | AB152: 160533 | BF152: 160533 | BH152: 45346.8
B153: 20128 | D153: Passive | F153: BL064 - BL065 | I153: 59 | J153: 250 | K153: 440 | L153: 26769.24 | M153: 1 | N153: 1 | O153: 26769.24 | R153: =IF(P153="",'Unit Rates - Land'!landcst,IF($E$8="Landuse",VLOOKUP(P153,LAndcost3,2,FALSE),IF($E$8="Location",VLOOKUP(P153,Landcost2,2,FALSE),"Error"))) -> 0 | S153: 0 | T153: 2016 | U153: =IFERROR(('General Input Sheet'!$G$38/(VLOOKUP('Existing Trunk Assets - Water'!T153,'General Input Sheet'!$E$38:$G$44,3,FALSE))),1) -> 1 | V153: 26769.24 | W153: y | AB153: 160533 | BF153: 160533 | BH153: 26769.24
B154: 20127 | D154: Passive | F154: BL063 - BL064 | I154: 904 | J154: 250 | K154: 440 | L154: 15798.24 | M154: 1 | N154: 1 | O154: 15798.24 | R154: =IF(P154="",'Unit Rates - Land'!landcst,IF($E$8="Landuse",VLOOKUP(P154,LAndcost3,2,FALSE),IF($E$8="Location",VLOOKUP(P154,Landcost2,2,FALSE),"Error"))) -> 0 | S154: 0 | T154: 2016 | U154: =IFERROR(('General Input Sheet'!$G$38/(VLOOKUP('Existing Trunk Assets - Water'!T154,'General Input Sheet'!$E$38:$G$44,3,FALSE))),1) -> 1 | V154: 15798.24 | W154: y | AB154: 160533 | BF154: 160533 | BH154: 15798.24
B155: 37400 | D155: Passive | F155: BL065 - BL095A | I155: 1088 | J155: 250 | K155: 440 | L155: 29753.352 | M155: 1 | N155: 1 | O155: 29753.352 | R155: =IF(P155="",'Unit Rates - Land'!landcst,IF($E$8="Landuse",VLOOKUP(P155,LAndcost3,2,FALSE),IF($E$8="Location",VLOOKUP(P155,Landcost2,2,FALSE),"Error"))) -> 0 | S155: 0 | T155: 2016 | U155: =IFERROR(('General Input Sheet'!$G$38/(VLOOKUP('Existing Trunk Assets - Water'!T155,'General Input Sheet'!$E$38:$G$44,3,FALSE))),1) -> 1 | V155: 29753.352 | W155: y | AB155: 160533 | BF155: 160533 | BH155: 29753.352
B156: 33794 | D156: Passive | F156: EI001 - EI011 | I156: 99 | J156: 250 | K156: 440 | L156: 3858.4 | M156: 1 | N156: 1 | O156: 3858.4 | R156: =IF(P156="",'Unit Rates - Land'!landcst,IF($E$8="Landuse",VLOOKUP(P156,LAndcost3,2,FALSE),IF($E$8="Location",VLOOKUP(P156,Landcost2,2,FALSE),"Error"))) -> 0 | S156: 0 | T156: 2016 | U156: =IFERROR(('General Input Sheet'!$G$38/(VLOOKUP('Existing Trunk Assets - Water'!T156,'General Input Sheet'!$E$38:$G$44,3,FALSE))),1) -> 1 | V156: 3858.4 | W156: y | AB156: 160533 | BF156: 160533 | BH156: 3858.4
B157: 94779 | D157: Passive | F157: EI100 - EI063 | I157: 230 | J157: 250 | K157: 440 | L157: 20581.0448 | M157: 1 | N157: 1 | O157: 20581.0448 | R157: =IF(P157="",'Unit Rates - Land'!landcst,IF($E$8="Landuse",VLOOKUP(P157,LAndcost3,2,FALSE),IF($E$8="Location",VLOOKUP(P157,Landcost2,2,FALSE),"Error"))) -> 0 | S157: 0 | T157: 2016 | U157: =IFERROR(('General Input Sheet'!$G$38/(VLOOKUP('Existing Trunk Assets - Water'!T157,'General Input Sheet'!$E$38:$G$44,3,FALSE))),1) -> 1 | V157: 20581.0448 | W157: y | AB157: 160533 | BF157: 160533 | BH157: 20581.0448
B158: 22340 | D158: Passive | F158: SP027 - SP030 | I158: 887 | J158: 250 | K158: 440 | L158: 40592.7 | M158: 1 | N158: 1 | O158: 40592.7 | R158: =IF(P158="",'Unit Rates - Land'!landcst,IF($E$8="Landuse",VLOOKUP(P158,LAndcost3,2,FALSE),IF($E$8="Location",VLOOKUP(P158,Landcost2,2,FALSE),"Error"))) -> 0 | S158: 0 | T158: 2016 | U158: =IFERROR(('General Input Sheet'!$G$38/(VLOOKUP('Existing Trunk Assets - Water'!T158,'General Input Sheet'!$E$38:$G$44,3,FALSE))),1) -> 1 | V158: 40592.7 | W158: y | AB158: 160533 | BF158: 160533 | BH158: 40592.7
B159: 22342 | D159: Passive | F159: SP032 - SP035 | I159: 88 | J159: 250 | K159: 440 | L159: 33644.4 | M159: 1 | N159: 1 | O159: 33644.4 | R159: =IF(P159="",'Unit Rates - Land'!landcst,IF($E$8="Landuse",VLOOKUP(P159,LAndcost3,2,FALSE),IF($E$8="Location",VLOOKUP(P159,Landcost2,2,FALSE),"Error"))) -> 0 | S159: 0 | T159: 2016 | U159: =IFERROR(('General Input Sheet'!$G$38/(VLOOKUP('Existing Trunk Assets - Water'!T159,'General Input Sheet'!$E$38:$G$44,3,FALSE))),1) -> 1 | V159: 33644.4 | W159: y | AB159: 160533 | BF159: 160533 | BH159: 33644.4
B160: 92623 | D160: Passive | F160: BL109 - BL113 | I160: 682 | J160: 250 | K160: 440 | L160: 5936 | M160: 1 | N160: 1 | O160: 5936 | R160: =IF(P160="",'Unit Rates - Land'!landcst,IF($E$8="Landuse",VLOOKUP(P160,LAndcost3,2,FALSE),IF($E$8="Location",VLOOKUP(P160,Landcost2,2,FALSE),"Error"))) -> 0 | S160: 0 | T160: 2016 | U160: =IFERROR(('General Input Sheet'!$G$38/(VLOOKUP('Existing Trunk Assets - Water'!T160,'General Input Sheet'!$E$38:$G$44,3,FALSE))),1) -> 1 | V160: 5936 | W160: y | AB160: 160533 | BF160: 160533 | BH160: 5936
B161: 24225 | D161: Passive | F161: BL004 - BL088 | I161: 1296 | J161: 250 | K161: 440 | L161: 18104.8 | M161: 1 | N161: 1 | O161: 18104.8 | R161: =IF(P161="",'Unit Rates - Land'!landcst,IF($E$8="Landuse",VLOOKUP(P161,LAndcost3,2,FALSE),IF($E$8="Location",VLOOKUP(P161,Landcost2,2,FALSE),"Error"))) -> 0 | S161: 0 | T161: 2016 | U161: =IFERROR(('General Input Sheet'!$G$38/(VLOOKUP('Existing Trunk Assets - Water'!T161,'General Input Sheet'!$E$38:$G$44,3,FALSE))),1) -> 1 | V161: 18104.8 | W161: y | AB161: 160533 | BF161: 160533 | BH161: 18104.8
B162: 83387 | D162: Passive | F162: BL089 - BL106 | I162: 82 | J162: 250 | K162: 440 | L162: 8904 | M162: 1 | N162: 1 | O162: 8904 | R162: =IF(P162="",'Unit Rates - Land'!landcst,IF($E$8="Landuse",VLOOKUP(P162,LAndcost3,2,FALSE),IF($E$8="Location",VLOOKUP(P162,Landcost2,2,FALSE),"Error"))) -> 0 | S162: 0 | T162: 2016 | U162: =IFERROR(('General Input Sheet'!$G$38/(VLOOKUP('Existing Trunk Assets - Water'!T162,'General Input Sheet'!$E$38:$G$44,3,FALSE))),1) -> 1 | V162: 8904 | W162: y | AB162: 160533 | BF162: 160533 | BH162: 8904
B163: 21695 | D163: Passive | F163: BL001 - BL002 | I163: 513 | J163: 250 | K163: 440 | L163: 37100 | M163: 1 | N163: 1 | O163: 37100 | R163: =IF(P163="",'Unit Rates - Land'!landcst,IF($E$8="Landuse",VLOOKUP(P163,LAndcost3,2,FALSE),IF($E$8="Location",VLOOKUP(P163,Landcost2,2,FALSE),"Error"))) -> 0 | S163: 0 | T163: 2016 | U163: =IFERROR(('General Input Sheet'!$G$38/(VLOOKUP('Existing Trunk Assets - Water'!T163,'General Input Sheet'!$E$38:$G$44,3,FALSE))),1) -> 1 | V163: 37100 | W163: y | AB163: 160533 | BF163: 160533 | BH163: 37100
B164: 37543 | D164: Passive | F164: SH027A - SH028 | I164: 331 | J164: 250 | K164: 440 | L164: 16614.8481 | M164: 1 | N164: 1 | O164: 16614.8481 | R164: =IF(P164="",'Unit Rates - Land'!landcst,IF($E$8="Landuse",VLOOKUP(P164,LAndcost3,2,FALSE),IF($E$8="Location",VLOOKUP(P164,Landcost2,2,FALSE),"Error"))) -> 0 | S164: 0 | T164: 2016 | U164: =IFERROR(('General Input Sheet'!$G$38/(VLOOKUP('Existing Trunk Assets - Water'!T164,'General Input Sheet'!$E$38:$G$44,3,FALSE))),1) -> 1 | V164: 16614.8481 | W164: y | AB164: 160533 | BF164: 160533 | BH164: 16614.8481
B165: 86744 | D165: Passive | F165: SH027A - NBTM/N10 | I165: 1410 | J165: 250 | K165: 440 | L165: 329472 | M165: 1 | N165: 1 | O165: 329472 | R165: =IF(P165="",'Unit Rates - Land'!landcst,IF($E$8="Landuse",VLOOKUP(P165,LAndcost3,2,FALSE),IF($E$8="Location",VLOOKUP(P165,Landcost2,2,FALSE),"Error"))) -> 0 | S165: 0 | T165: 2016 | U165: =IFERROR(('General Input Sheet'!$G$38/(VLOOKUP('Existing Trunk Assets - Water'!T165,'General Input Sheet'!$E$38:$G$44,3,FALSE))),1) -> 1 | V165: 329472 | W165: y | AB165: 160533 | BF165: 160533 | BH165: 329472
B166: 41575 | D166: Passive | F166: SH030A - SH041 | I166: 302 | J166: 250 | K166: 440 | L166: 31942.2096 | M166: 1 | N166: 1 | O166: 31942.2096 | R166: =IF(P166="",'Unit Rates - Land'!landcst,IF($E$8="Landuse",VLOOKUP(P166,LAndcost3,2,FALSE),IF($E$8="Location",VLOOKUP(P166,Landcost2,2,FALSE),"Error"))) -> 0 | S166: 0 | T166: 2016 | U166: =IFERROR(('General Input Sheet'!$G$38/(VLOOKUP('Existing Trunk Assets - Water'!T166,'General Input Sheet'!$E$38:$G$44,3,FALSE))),1) -> 1 | V166: 31942.2096 | W166: y | AB166: 160533 | BF166: 160533 | BH166: 31942.2096
B167: 21939 | D167: Passive | F167: BL035 - BL045 | I167: 604 | J167: 250 | K167: 440 | L167: 70038.864 | M167: 1 | N167: 1 | O167: 70038.864 | R167: =IF(P167="",'Unit Rates - Land'!landcst,IF($E$8="Landuse",VLOOKUP(P167,LAndcost3,2,FALSE),IF($E$8="Location",VLOOKUP(P167,Landcost2,2,FALSE),"Error"))) -> 0 | S167: 0 | T167: 2016 | U167: =IFERROR(('General Input Sheet'!$G$38/(VLOOKUP('Existing Trunk Assets - Water'!T167,'General Input Sheet'!$E$38:$G$44,3,FALSE))),1) -> 1 | V167: 70038.864 | W167: y | AB167: 160533 | BF167: 160533 | BH167: 70038.864
B168: 22341 | D168: Passive | F168: SP030 - SP032 | I168: 592 | J168: 250 | K168: 440 | L168: 36570 | M168: 1 | N168: 1 | O168: 36570 | R168: =IF(P168="",'Unit Rates - Land'!landcst,IF($E$8="Landuse",VLOOKUP(P168,LAndcost3,2,FALSE),IF($E$8="Location",VLOOKUP(P168,Landcost2,2,FALSE),"Error"))) -> 0 | S168: 0 | T168: 2016 | U168: =IFERROR(('General Input Sheet'!$G$38/(VLOOKUP('Existing Trunk Assets - Water'!T168,'General Input Sheet'!$E$38:$G$44,3,FALSE))),1) -> 1 | V168: 36570 | W168: y | AB168: 160533 | BF168: 160533 | BH168: 36570
B169: 37480 | D169: Passive | F169: PL090 - PL057 | I169: 235 | J169: 250 | K169: 440 | L169: 38584 | M169: 1 | N169: 1 | O169: 38584 | R169: =IF(P169="",'Unit Rates - Land'!landcst,IF($E$8="Landuse",VLOOKUP(P169,LAndcost3,2,FALSE),IF($E$8="Location",VLOOKUP(P169,Landcost2,2,FALSE),"Error"))) -> 0 | S169: 0 | T169: 2016 | U169: =IFERROR(('General Input Sheet'!$G$38/(VLOOKUP('Existing Trunk Assets - Water'!T169,'General Input Sheet'!$E$38:$G$44,3,FALSE))),1) -> 1 | V169: 38584 | W169: y | AB169: 160533 | BF169: 160533 | BH169: 38584
B170: 81552 | D170: Passive | F170: PL0107 - BUDEVER001 | I170: 1288 | J170: 250 | K170: 440 | L170: 13508.958 | M170: 1 | N170: 1 | O170: 13508.958 | R170: =IF(P170="",'Unit Rates - Land'!landcst,IF($E$8="Landuse",VLOOKUP(P170,LAndcost3,2,FALSE),IF($E$8="Location",VLOOKUP(P170,Landcost2,2,FALSE),"Error"))) -> 0 | S170: 0 | T170: 2016 | U170: =IFERROR(('General Input Sheet'!$G$38/(VLOOKUP('Existing Trunk Assets - Water'!T170,'General Input Sheet'!$E$38:$G$44,3,FALSE))),1) -> 1 | V170: 13508.958 | W170: y | AB170: 160533 | BF170: 160533 | BH170: 13508.958
B171: 98654 | D171: Passive | F171: NBWS20 - PL047 | I171: 392 | J171: 250 | K171: 440 | L171: 227757.96 | M171: 1 | N171: 1 | O171: =L171*N171 -> 227757.96 | R171: =IF(P171="",'Unit Rates - Land'!landcst,IF($E$8="Landuse",VLOOKUP(P171,LAndcost3,2,FALSE),IF($E$8="Location",VLOOKUP(P171,Landcost2,2,FALSE),"Error"))) -> 0 | S171: 0 | T171: 2016 | U171: =IFERROR(('General Input Sheet'!$G$38/(VLOOKUP('Existing Trunk Assets - Water'!T171,'General Input Sheet'!$E$38:$G$44,3,FALSE))),1) -> 1 | V171: =IFERROR((O171+S171)*U171,0) -> 227757.96 | W171: y | AB171: 160533 | BF171: 160533 | BH171: 227757.96
B172: 37460 | D172: Passive | F172: PL099 - PL097 | I172: 5 | J172: 250 | K172: 440 | L172: 35319.2 | M172: 1 | N172: 1 | O172: 35319.2 | R172: =IF(P172="",'Unit Rates - Land'!landcst,IF($E$8="Landuse",VLOOKUP(P172,LAndcost3,2,FALSE),IF($E$8="Location",VLOOKUP(P172,Landcost2,2,FALSE),"Error"))) -> 0 | S172: 0 | T172: 2016 | U172: =IFERROR(('General Input Sheet'!$G$38/(VLOOKUP('Existing Trunk Assets - Water'!T172,'General Input Sheet'!$E$38:$G$44,3,FALSE))),1) -> 1 | V172: 35319.2 | W172: y | AB172: 160533 | BF172: 160533 | BH172: 35319.2
B173: 37462 | D173: Passive | F173: PL097 - PL098 | I173: 752 | J173: 250 | K173: 440 | L173: 5342.4 | M173: 1 | N173: 1 | O173: 5342.4 | R173: =IF(P173="",'Unit Rates - Land'!landcst,IF($E$8="Landuse",VLOOKUP(P173,LAndcost3,2,FALSE),IF($E$8="Location",VLOOKUP(P173,Landcost2,2,FALSE),"Error"))) -> 0 | S173: 0 | T173: 2016 | U173: =IFERROR(('General Input Sheet'!$G$38/(VLOOKUP('Existing Trunk Assets - Water'!T173,'General Input Sheet'!$E$38:$G$44,3,FALSE))),1) -> 1 | V173: 5342.4 | W173: y | AB173: 160533 | BF173: =SUM(AB173:BE173) -> 160533 | BH173: 5342.4
B174: 37466 | D174: Passive | F174: PL097 - PL095 | I174: 58 | J174: 100 | K174: 230 | L174: 25228 | M174: 1 | N174: 1 | O174: 25228 | R174: =IF(P174="",'Unit Rates - Land'!landcst,IF($E$8="Landuse",VLOOKUP(P174,LAndcost3,2,FALSE),IF($E$8="Location",VLOOKUP(P174,Landcost2,2,FALSE),"Error"))) -> 0 | S174: 0 | T174: 2016 | U174: =IFERROR(('General Input Sheet'!$G$38/(VLOOKUP('Existing Trunk Assets - Water'!T174,'General Input Sheet'!$E$38:$G$44,3,FALSE))),1) -> 1 | V174: 25228 | W174: y | AB174: 160533 | BF174: 160533 | BH174: 25228
B175: 37470 | D175: Passive | F175: PL095 - PL093 | I175: 227 | J175: 100 | K175: 230 | L175: 20776 | M175: 1 | N175: 1 | O175: 20776 | R175: =IF(P175="",'Unit Rates - Land'!landcst,IF($E$8="Landuse",VLOOKUP(P175,LAndcost3,2,FALSE),IF($E$8="Location",VLOOKUP(P175,Landcost2,2,FALSE),"Error"))) -> 0 | S175: 0 | T175: 2016 | U175: =IFERROR(('General Input Sheet'!$G$38/(VLOOKUP('Existing Trunk Assets - Water'!T175,'General Input Sheet'!$E$38:$G$44,3,FALSE))),1) -> 1 | V175: 20776 | W175: y | AB175: 160533 | BF175: 160533 | BH175: 20776
B176: 81547 | D176: Passive | F176: PL0105 - PL0107 | I176: 36 | J176: 100 | K176: 230 | L176: 24634.4 | M176: 1 | N176: 1 | O176: 24634.4 | R176: =IF(P176="",'Unit Rates - Land'!landcst,IF($E$8="Landuse",VLOOKUP(P176,LAndcost3,2,FALSE),IF($E$8="Location",VLOOKUP(P176,Landcost2,2,FALSE),"Error"))) -> 0 | S176: 0 | T176: 2016 | U176: =IFERROR(('General Input Sheet'!$G$38/(VLOOKUP('Existing Trunk Assets - Water'!T176,'General Input Sheet'!$E$38:$G$44,3,FALSE))),1) -> 1 | V176: 24634.4 | W176: y | AB176: 160533 | BF176: 160533 | BH176: 24634.4
B177: 81523 | D177: Passive | F177: PL094 - PL0105 | I177: 28 | J177: 100 | K177: 230 | L177: 10684.8 | M177: 1 | N177: =M177 -> 1 | O177: 10684.8 | R177: =IF(P177="",'Unit Rates - Land'!landcst,IF($E$8="Landuse",VLOOKUP(P177,LAndcost3,2,FALSE),IF($E$8="Location",VLOOKUP(P177,Landcost2,2,FALSE),"Error"))) -> 0 | S177: 0 | T177: 2016 | U177: =IFERROR(('General Input Sheet'!$G$38/(VLOOKUP('Existing Trunk Assets - Water'!T177,'General Input Sheet'!$E$38:$G$44,3,FALSE))),1) -> 1 | V177: 10684.8 | W177: y | AB177: 160533 | BF177: 160533 | BH177: 10684.8
B178: 37472 | D178: Passive | F178: PL093 - PL094 | I178: 41 | J178: 100 | K178: 230 | L178: 6826.4 | M178: 1 | N178: 1 | O178: 6826.4 | R178: =IF(P178="",'Unit Rates - Land'!landcst,IF($E$8="Landuse",VLOOKUP(P178,LAndcost3,2,FALSE),IF($E$8="Location",VLOOKUP(P178,Landcost2,2,FALSE),"Error"))) -> 0 | S178: 0 | T178: 2016 | U178: =IFERROR(('General Input Sheet'!$G$38/(VLOOKUP('Existing Trunk Assets - Water'!T178,'General Input Sheet'!$E$38:$G$44,3,FALSE))),1) -> 1 | V178: 6826.4 | W178: y | AB178: 160533 | BF178: 160533 | BH178: 6826.4
B179: 37478 | D179: Passive | F179: PL091 - PL090 | I179: 19 | J179: 100 | K179: 230 | L179: 10981.6 | M179: 1 | N179: 1 | O179: 10981.6 | R179: =IF(P179="",'Unit Rates - Land'!landcst,IF($E$8="Landuse",VLOOKUP(P179,LAndcost3,2,FALSE),IF($E$8="Location",VLOOKUP(P179,Landcost2,2,FALSE),"Error"))) -> 0 | S179: 0 | T179: 2016 | U179: =IFERROR(('General Input Sheet'!$G$38/(VLOOKUP('Existing Trunk Assets - Water'!T179,'General Input Sheet'!$E$38:$G$44,3,FALSE))),1) -> 1 | V179: 10981.6 | W179: y | AB179: 160533 | BF179: 160533 | BH179: 10981.6
B180: 37452 | D180: Passive | F180: PL026 - PL0101 | I180: 20 | J180: 100 | K180: 230 | L180: 31757.6 | M180: 1 | N180: 1 | O180: 31757.6 | R180: =IF(P180="",'Unit Rates - Land'!landcst,IF($E$8="Landuse",VLOOKUP(P180,LAndcost3,2,FALSE),IF($E$8="Location",VLOOKUP(P180,Landcost2,2,FALSE),"Error"))) -> 0 | S180: 0 | T180: 2016 | U180: =IFERROR(('General Input Sheet'!$G$38/(VLOOKUP('Existing Trunk Assets - Water'!T180,'General Input Sheet'!$E$38:$G$44,3,FALSE))),1) -> 1 | V180: 31757.6 | W180: y | AB180: 160533 | BF180: 160533 | BH180: 31757.6
B181: 37456 | D181: Passive | F181: PL0101 - PL099 | I181: 20 | J181: 100 | K181: 230 | L181: 25524.8 | M181: 1 | N181: 1 | O181: 25524.8 | R181: =IF(P181="",'Unit Rates - Land'!landcst,IF($E$8="Landuse",VLOOKUP(P181,LAndcost3,2,FALSE),IF($E$8="Location",VLOOKUP(P181,Landcost2,2,FALSE),"Error"))) -> 0 | S181: =IF(R181="",0,R181*10000*Q181) -> 0 | T181: 2016 | U181: =IFERROR(('General Input Sheet'!$G$38/(VLOOKUP('Existing Trunk Assets - Water'!T181,'General Input Sheet'!$E$38:$G$44,3,FALSE))),1) -> 1 | V181: 25524.8 | W181: y | AB181: 160533 | BF181: 160533 | BH181: 25524.8
B182: 83390 | D182: Passive | F182: BL108 - BL109 | I182: 22 | J182: 100 | K182: 230 | L182: 13356 | M182: 1 | N182: 1 | O182: 13356 | R182: =IF(P182="",'Unit Rates - Land'!landcst,IF($E$8="Landuse",VLOOKUP(P182,LAndcost3,2,FALSE),IF($E$8="Location",VLOOKUP(P182,Landcost2,2,FALSE),"Error"))) -> 0 | S182: 0 | T182: 2016 | U182: =IFERROR(('General Input Sheet'!$G$38/(VLOOKUP('Existing Trunk Assets - Water'!T182,'General Input Sheet'!$E$38:$G$44,3,FALSE))),1) -> 1 | V182: 13356 | W182: y | AB182: 160533 | BF182: 160533 | BH182: 13356
B183: 99769 | D183: Passive | F183: BL009 - BL091 | I183: 23 | J183: 100 | K183: 230 | L183: 36506.4 | M183: 1 | N183: 1 | O183: 36506.4 | R183: =IF(P183="",'Unit Rates - Land'!landcst,IF($E$8="Landuse",VLOOKUP(P183,LAndcost3,2,FALSE),IF($E$8="Location",VLOOKUP(P183,Landcost2,2,FALSE),"Error"))) -> 0 | S183: 0 | T183: 2016 | U183: =IFERROR(('General Input Sheet'!$G$38/(VLOOKUP('Existing Trunk Assets - Water'!T183,'General Input Sheet'!$E$38:$G$44,3,FALSE))),1) -> 1 | V183: 36506.4 | W183: y | AB183: 160533 | BF183: 160533 | BH183: 36506.4
B184: 37377 | D184: Passive | F184: BL093 - BL095 | I184: 66 | J184: 100 | K184: 230 | L184: 67670.4 | M184: 1 | N184: 1 | O184: 67670.4 | R184: =IF(P184="",'Unit Rates - Land'!landcst,IF($E$8="Landuse",VLOOKUP(P184,LAndcost3,2,FALSE),IF($E$8="Location",VLOOKUP(P184,Landcost2,2,FALSE),"Error"))) -> 0 | S184: 0 | T184: 2016 | U184: =IFERROR(('General Input Sheet'!$G$38/(VLOOKUP('Existing Trunk Assets - Water'!T184,'General Input Sheet'!$E$38:$G$44,3,FALSE))),1) -> 1 | V184: 67670.4 | W184: y | AB184: 160533 | BF184: 160533 | BH184: 67670.4
B185: 20379 | D185: Passive | F185: NBWS28 - BU009 | I185: 64 | J185: 100 | K185: 230 | L185: 23150.4 | M185: 1 | N185: 1 | O185: 23150.4 | R185: =IF(P185="",'Unit Rates - Land'!landcst,IF($E$8="Landuse",VLOOKUP(P185,LAndcost3,2,FALSE),IF($E$8="Location",VLOOKUP(P185,Landcost2,2,FALSE),"Error"))) -> 0 | S185: 0 | T185: 2016 | U185: =IFERROR(('General Input Sheet'!$G$38/(VLOOKUP('Existing Trunk Assets - Water'!T185,'General Input Sheet'!$E$38:$G$44,3,FALSE))),1) -> 1 | V185: 23150.4 | W185: y | AB185: 160533 | BF185: 160533 | BH185: 23150.4
B186: 20380 | D186: Passive | F186: BU009 - BU011 | I186: 48 | J186: 100 | K186: 230 | L186: 21369.6 | M186: 1 | N186: 1 | O186: 21369.6 | R186: =IF(P186="",'Unit Rates - Land'!landcst,IF($E$8="Landuse",VLOOKUP(P186,LAndcost3,2,FALSE),IF($E$8="Location",VLOOKUP(P186,Landcost2,2,FALSE),"Error"))) -> 0 | S186: 0 | T186: 2016 | U186: =IFERROR(('General Input Sheet'!$G$38/(VLOOKUP('Existing Trunk Assets - Water'!T186,'General Input Sheet'!$E$38:$G$44,3,FALSE))),1) -> 1 | V186: 21369.6 | W186: y | AB186: 160533 | BF186: 160533 | BH186: 21369.6
B187: 21996 | D187: Passive | F187: BU023 - BU024 | I187: 103 | J187: 100 | K187: 230 | L187: 12465.6 | M187: 1 | N187: 1 | O187: 12465.6 | R187: =IF(P187="",'Unit Rates - Land'!landcst,IF($E$8="Landuse",VLOOKUP(P187,LAndcost3,2,FALSE),IF($E$8="Location",VLOOKUP(P187,Landcost2,2,FALSE),"Error"))) -> 0 | S187: 0 | T187: 2016 | U187: =IFERROR(('General Input Sheet'!$G$38/(VLOOKUP('Existing Trunk Assets - Water'!T187,'General Input Sheet'!$E$38:$G$44,3,FALSE))),1) -> 1 | V187: 12465.6 | W187: y | AB187: 160533 | BF187: 160533 | BH187: 12465.6
B188: 20383 | D188: Passive | F188: BU014 - BU016 | I188: 20 | J188: 100 | K188: 230 | L188: 25524.8 | M188: 1 | N188: 1 | O188: 25524.8 | R188: =IF(P188="",'Unit Rates - Land'!landcst,IF($E$8="Landuse",VLOOKUP(P188,LAndcost3,2,FALSE),IF($E$8="Location",VLOOKUP(P188,Landcost2,2,FALSE),"Error"))) -> 0 | S188: 0 | T188: 2016 | U188: =IFERROR(('General Input Sheet'!$G$38/(VLOOKUP('Existing Trunk Assets - Water'!T188,'General Input Sheet'!$E$38:$G$44,3,FALSE))),1) -> 1 | V188: 25524.8 | W188: y | AB188: =IF(W188="y",AB$14,IF(AND(W188>0,W188<=1),W188*AB$14,"")) -> 160533 | AC188: =IF(X188="y",AC$14,IF(AND(X188>0,X188<=1),X188*AC$14,"")) ->  | AD188: =IF(Y188="y",AD$14,IF(AND(Y188>0,Y188<=1),Y188*AD$14,"")) ->  | BE188: =IF(Z188="y",BE$14,IF(AND(Z188>0,Z188<=1),Z188*BE$14,"")) ->  | BF188: 160533 | BH188: =IF(AB188="","",(AB188/$BF188)*$V188) -> 25524.8 | BI188: =IF(AC188="","",(AC188/$BF188)*$V188) ->  | BJ188: =IF(AD188="","",(AD188/$BF188)*$V188) ->  | BK188: =IF(AE188="","",(AE188/$BF188)*$V188) ->  | BL188: =IF(AF188="","",(AF188/$BF188)*$V188) ->  | BM188: =IF(AG188="","",(AG188/$BF188)*$V188) ->  | BN188: =IF(AH188="","",(AH188/$BF188)*$V188) ->  | BO188: =IF(AI188="","",(AI188/$BF188)*$V188) ->  | BP188: =IF(AJ188="","",(AJ188/$BF188)*$V188) ->  | BQ188: =IF(AK188="","",(AK188/$BF188)*$V188) ->  | BR188: =IF(AL188="","",(AL188/$BF188)*$V188) ->  | BS188: =IF(AM188="","",(AM188/$BF188)*$V188) ->  | BT188: =IF(AN188="","",(AN188/$BF188)*$V188) ->  | BU188: =IF(AO188="","",(AO188/$BF188)*$V188) ->  | BV188: =IF(AP188="","",(AP188/$BF188)*$V188) ->  | BW188: =IF(AQ188="","",(AQ188/$BF188)*$V188) ->  | BX188: =IF(AR188="","",(AR188/$BF188)*$V188) ->  | BY188: =IF(AS188="","",(AS188/$BF188)*$V188) ->  | BZ188: =IF(AT188="","",(AT188/$BF188)*$V188) ->  | CA188: =IF(AU188="","",(AU188/$BF188)*$V188) ->  | CB188: =IF(AV188="","",(AV188/$BF188)*$V188) ->  | CC188: =IF(AW188="","",(AW188/$BF188)*$V188) ->  | CD188: =IF(AX188="","",(AX188/$BF188)*$V188) ->  | CE188: =IF(AY188="","",(AY188/$BF188)*$V188) ->  | CF188: =IF(AZ188="","",(AZ188/$BF188)*$V188) ->  | CG188: =IF(BA188="","",(BA188/$BF188)*$V188) ->  | CH188: =IF(BB188="","",(BB188/$BF188)*$V188) ->  | CI188: =IF(BC188="","",(BC188/$BF188)*$V188) ->  | CJ188: =IF(BD188="","",(BD188/$BF188)*$V188) ->  | CK188: =IF(BE188="","",(BE188/$BF188)*$V188) ->  | CL188: =IF(SUM(BH188:CK188)=V188,"","ERROR") -> 
B189: 20382 | D189: Passive | F189: BU013 - BU014 | I189: 130 | J189: 100 | K189: 230 | L189: 27899.2 | M189: 1 | N189: 1 | O189: 27899.2 | R189: =IF(P189="",'Unit Rates - Land'!landcst,IF($E$8="Landuse",VLOOKUP(P189,LAndcost3,2,FALSE),IF($E$8="Location",VLOOKUP(P189,Landcost2,2,FALSE),"Error"))) -> 0 | S189: 0 | T189: 2016 | U189: =IFERROR(('General Input Sheet'!$G$38/(VLOOKUP('Existing Trunk Assets - Water'!T189,'General Input Sheet'!$E$38:$G$44,3,FALSE))),1) -> 1 | V189: 27899.2 | W189: y | AB189: 160533 | BF189: 160533 | BH189: 27899.2
B190: 20381 | D190: Passive | F190: BU011 - BU013 | I190: 423 | J190: 100 | K190: 230 | L190: 11575.2 | M190: 1 | N190: 1 | O190: 11575.2 | R190: =IF(P190="",'Unit Rates - Land'!landcst,IF($E$8="Landuse",VLOOKUP(P190,LAndcost3,2,FALSE),IF($E$8="Location",VLOOKUP(P190,Landcost2,2,FALSE),"Error"))) -> 0 | S190: 0 | T190: 2016 | U190: =IFERROR(('General Input Sheet'!$G$38/(VLOOKUP('Existing Trunk Assets - Water'!T190,'General Input Sheet'!$E$38:$G$44,3,FALSE))),1) -> 1 | V190: 11575.2 | W190: y | AB190: 160533 | BF190: 160533 | BH190: 11575.2
B191: 361515 | D191: Passive | F191: SH102 - SHW06 | I191: 461 | J191: 100 | K191: 230 | L191: 111072.6144 | M191: 1 | N191: 1 | O191: 111072.6144 | R191: =IF(P191="",'Unit Rates - Land'!landcst,IF($E$8="Landuse",VLOOKUP(P191,LAndcost3,2,FALSE),IF($E$8="Location",VLOOKUP(P191,Landcost2,2,FALSE),"Error"))) -> 0 | S191: 0 | T191: 2016 | U191: =IFERROR(('General Input Sheet'!$G$38/(VLOOKUP('Existing Trunk Assets - Water'!T191,'General Input Sheet'!$E$38:$G$44,3,FALSE))),1) -> 1 | V191: 111072.6144 | W191: y | AB191: 160533 | BF191: 160533 | BH191: 111072.6144
B192: 361517 | D192: Passive | F192: SH100 - SH099 | I192: 144 | J192: 100 | K192: 230 | L192: 181843.2 | M192: 1 | N192: 1 | O192: 181843.2 | R192: =IF(P192="",'Unit Rates - Land'!landcst,IF($E$8="Landuse",VLOOKUP(P192,LAndcost3,2,FALSE),IF($E$8="Location",VLOOKUP(P192,Landcost2,2,FALSE),"Error"))) -> 0 | S192: 0 | T192: 2016 | U192: =IFERROR(('General Input Sheet'!$G$38/(VLOOKUP('Existing Trunk Assets - Water'!T192,'General Input Sheet'!$E$38:$G$44,3,FALSE))),1) -> 1 | V192: 181843.2 | W192: y | AB192: 160533 | BF192: 160533 | BH192: 181843.2
B193: 20044 | D193: Passive | F193: SP067 - SP068 | I193: 157 | J193: 100 | K193: 230 | L193: 16755.2 | M193: 1 | N193: 1 | O193: 16755.2 | R193: =IF(P193="",'Unit Rates - Land'!landcst,IF($E$8="Landuse",VLOOKUP(P193,LAndcost3,2,FALSE),IF($E$8="Location",VLOOKUP(P193,Landcost2,2,FALSE),"Error"))) -> 0 | S193: 0 | T193: 2016 | U193: =IFERROR(('General Input Sheet'!$G$38/(VLOOKUP('Existing Trunk Assets - Water'!T193,'General Input Sheet'!$E$38:$G$44,3,FALSE))),1) -> 1 | V193: 16755.2 | W193: y | AB193: 160533 | BF193: 160533 | BH193: 16755.2
B194: 40685 | D194: Passive | F194: PL112 - NBTM29 | I194: 131 | J194: 100 | K194: 230 | L194: 1484 | M194: 1 | N194: 1 | O194: 1484 | R194: =IF(P194="",'Unit Rates - Land'!landcst,IF($E$8="Landuse",VLOOKUP(P194,LAndcost3,2,FALSE),IF($E$8="Location",VLOOKUP(P194,Landcost2,2,FALSE),"Error"))) -> 0 | S194: 0 | T194: 2016 | U194: =IFERROR(('General Input Sheet'!$G$38/(VLOOKUP('Existing Trunk Assets - Water'!T194,'General Input Sheet'!$E$38:$G$44,3,FALSE))),1) -> 1 | V194: 1484 | W194: y | AB194: 160533 | BF194: 160533 | BH194: 1484
B195: 40695 | D195: Passive | F195: NBTM28 - NBTM29 | I195: 131 | J195: 100 | K195: 230 | L195: 37502.4 | M195: 1 | N195: 1 | O195: 37502.4 | R195: =IF(P195="",'Unit Rates - Land'!landcst,IF($E$8="Landuse",VLOOKUP(P195,LAndcost3,2,FALSE),IF($E$8="Location",VLOOKUP(P195,Landcost2,2,FALSE),"Error"))) -> 0 | S195: 0 | T195: 2016 | U195: =IFERROR(('General Input Sheet'!$G$38/(VLOOKUP('Existing Trunk Assets - Water'!T195,'General Input Sheet'!$E$38:$G$44,3,FALSE))),1) -> 1 | V195: 37502.4 | W195: y | AB195: 160533 | BF195: 160533 | BH195: 37502.4
B196: 79945 | D196: Passive | F196: NBTM31 - NBTM29 | I196: 226 | J196: 100 | K196: 230 | L196: 452192.4 | M196: 1 | N196: 1 | O196: 452192.4 | R196: =IF(P196="",'Unit Rates - Land'!landcst,IF($E$8="Landuse",VLOOKUP(P196,LAndcost3,2,FALSE),IF($E$8="Location",VLOOKUP(P196,Landcost2,2,FALSE),"Error"))) -> 0 | S196: 0 | T196: 2016 | U196: =IFERROR(('General Input Sheet'!$G$38/(VLOOKUP('Existing Trunk Assets - Water'!T196,'General Input Sheet'!$E$38:$G$44,3,FALSE))),1) -> 1 | V196: 452192.4 | W196: y | AB196: 160533 | BF196: 160533 | BH196: 452192.4
B197: 83389 | D197: Passive | F197: BL106 - BL108 | I197: 213 | J197: 100 | K197: 230 | L197: 25524.8 | M197: 1 | N197: 1 | O197: 25524.8 | R197: =IF(P197="",'Unit Rates - Land'!landcst,IF($E$8="Landuse",VLOOKUP(P197,LAndcost3,2,FALSE),IF($E$8="Location",VLOOKUP(P197,Landcost2,2,FALSE),"Error"))) -> 0 | S197: 0 | T197: 2016 | U197: =IFERROR(('General Input Sheet'!$G$38/(VLOOKUP('Existing Trunk Assets - Water'!T197,'General Input Sheet'!$E$38:$G$44,3,FALSE))),1) -> 1 | V197: 25524.8 | W197: y | AB197: 160533 | BF197: 160533 | BH197: 25524.8
B198: 39039 | D198: Passive | F198: BL091 - BL093 | I198: 213 | J198: 100 | K198: 230 | L198: 19588.8 | M198: 1 | N198: 1 | O198: 19588.8 | R198: =IF(P198="",'Unit Rates - Land'!landcst,IF($E$8="Landuse",VLOOKUP(P198,LAndcost3,2,FALSE),IF($E$8="Location",VLOOKUP(P198,Landcost2,2,FALSE),"Error"))) -> 0 | S198: 0 | T198: 2016 | U198: =IFERROR(('General Input Sheet'!$G$38/(VLOOKUP('Existing Trunk Assets - Water'!T198,'General Input Sheet'!$E$38:$G$44,3,FALSE))),1) -> 1 | V198: 19588.8 | W198: y | AB198: 160533 | BF198: 160533 | BH198: 19588.8
B199: 41606 | D199: Passive | F199: BL047 - BL047A | I199: 232 | J199: 100 | K199: 230 | L199: 23419.3008 | M199: 1 | N199: 1 | O199: 23419.3008 | R199: =IF(P199="",'Unit Rates - Land'!landcst,IF($E$8="Landuse",VLOOKUP(P199,LAndcost3,2,FALSE),IF($E$8="Location",VLOOKUP(P199,Landcost2,2,FALSE),"Error"))) -> 0 | S199: 0 | T199: 2016 | U199: =IFERROR(('General Input Sheet'!$G$38/(VLOOKUP('Existing Trunk Assets - Water'!T199,'General Input Sheet'!$E$38:$G$44,3,FALSE))),1) -> 1 | V199: 23419.3008 | W199: y | AB199: 160533 | BF199: 160533 | BH199: 23419.3008
B200: 86743 | D200: Passive | F200: NBTM/N08 - SH027A | I200: 213 | J200: 100 | K200: 230 | L200: 99035.184 | M200: 1 | N200: 1 | O200: 99035.184 | R200: =IF(P200="",'Unit Rates - Land'!landcst,IF($E$8="Landuse",VLOOKUP(P200,LAndcost3,2,FALSE),IF($E$8="Location",VLOOKUP(P200,Landcost2,2,FALSE),"Error"))) -> 0 | S200: 0 | T200: 2016 | U200: =IFERROR(('General Input Sheet'!$G$38/(VLOOKUP('Existing Trunk Assets - Water'!T200,'General Input Sheet'!$E$38:$G$44,3,FALSE))),1) -> 1 | V200: 99035.184 | W200: y | AB200: 160533 | BF200: 160533 | BH200: 99035.184
B201: 21522 | D201: Passive | F201: NBWS28 - NBWS29 | I201: 186 | J201: 100 | K201: 230 | L201: 187680 | M201: 1 | N201: 1 | O201: 187680 | R201: =IF(P201="",'Unit Rates - Land'!landcst,IF($E$8="Landuse",VLOOKUP(P201,LAndcost3,2,FALSE),IF($E$8="Location",VLOOKUP(P201,Landcost2,2,FALSE),"Error"))) -> 0 | S201: 0 | T201: 2016 | U201: =IFERROR(('General Input Sheet'!$G$38/(VLOOKUP('Existing Trunk Assets - Water'!T201,'General Input Sheet'!$E$38:$G$44,3,FALSE))),1) -> 1 | V201: 187680 | W201: y | AB201: 160533 | BF201: 160533 | BH201: 187680
B202: 21995 | D202: Passive | F202: BU021 - BU023 | I202: 253 | J202: 100 | K202: 230 | L202: 29383.2 | M202: 1 | N202: 1 | O202: 29383.2 | R202: =IF(P202="",'Unit Rates - Land'!landcst,IF($E$8="Landuse",VLOOKUP(P202,LAndcost3,2,FALSE),IF($E$8="Location",VLOOKUP(P202,Landcost2,2,FALSE),"Error"))) -> 0 | S202: 0 | T202: 2016 | U202: =IFERROR(('General Input Sheet'!$G$38/(VLOOKUP('Existing Trunk Assets - Water'!T202,'General Input Sheet'!$E$38:$G$44,3,FALSE))),1) -> 1 | V202: 29383.2 | W202: y | AB202: 160533 | BF202: 160533 | BH202: 29383.2
B203: 97059 | D203: Passive | F203: BL142 - EI106 | I203: 113 | J203: 100 | K203: 230 | L203: 42421.2 | M203: 1 | N203: 1 | O203: 42421.2 | R203: =IF(P203="",'Unit Rates - Land'!landcst,IF($E$8="Landuse",VLOOKUP(P203,LAndcost3,2,FALSE),IF($E$8="Location",VLOOKUP(P203,Landcost2,2,FALSE),"Error"))) -> 0 | S203: 0 | T203: 2016 | U203: =IFERROR(('General Input Sheet'!$G$38/(VLOOKUP('Existing Trunk Assets - Water'!T203,'General Input Sheet'!$E$38:$G$44,3,FALSE))),1) -> 1 | V203: 42421.2 | W203: y | AB203: 160533 | BF203: 160533 | BH203: 42421.2
B204: 97060 | D204: Passive | F204: EI106 - EI035 | I204: 128 | J204: 100 | K204: 230 | L204: 131376 | M204: 1 | N204: 1 | O204: 131376 | R204: =IF(P204="",'Unit Rates - Land'!landcst,IF($E$8="Landuse",VLOOKUP(P204,LAndcost3,2,FALSE),IF($E$8="Location",VLOOKUP(P204,Landcost2,2,FALSE),"Error"))) -> 0 | S204: 0 | T204: 2016 | U204: =IFERROR(('General Input Sheet'!$G$38/(VLOOKUP('Existing Trunk Assets - Water'!T204,'General Input Sheet'!$E$38:$G$44,3,FALSE))),1) -> 1 | V204: 131376 | W204: y | AB204: 160533 | BF204: 160533 | BH204: 131376
B205: 83087 | D205: Passive | F205: EI095 - EI042 | I205: 285 | J205: 100 | K205: 230 | L205: 52169.6 | M205: 1 | N205: 1 | O205: 52169.6 | R205: =IF(P205="",'Unit Rates - Land'!landcst,IF($E$8="Landuse",VLOOKUP(P205,LAndcost3,2,FALSE),IF($E$8="Location",VLOOKUP(P205,Landcost2,2,FALSE),"Error"))) -> 0 | S205: 0 | T205: 2016 | U205: =IFERROR(('General Input Sheet'!$G$38/(VLOOKUP('Existing Trunk Assets - Water'!T205,'General Input Sheet'!$E$38:$G$44,3,FALSE))),1) -> 1 | V205: 52169.6 | W205: y | AB205: 160533 | BF205: 160533 | BH205: 52169.6
... 912 more rows

Sheet Existing Trunk Assets - Sewer
B2: ='Navigation Pane'!C2 -> Mackay Regional Council
B3: Wastewater
A4: Return to "Existing Trunk Assets"
B5: EXISTING TRUNK ASSETS
B8: Land Valuation Type | E8: Location
I10: Asset Data | X10: Catchment Asset Allocation | AQ10: Asset Usage | BN10: Cost Allocation
B11: Basic Asset Data | H11: Asset Attributes | L11: Basic Asset Valuation | Q11: Land Attributes | U11: Refined Asset Value | X11: ='Catchment Demand- Sewer'!C8 -> Bucasia (Mackay North) | Y11: ='Catchment Demand- Sewer'!C9 -> Bakers Creek (Mackay South) – Nth Pioneer River | Z11: ='Catchment Demand- Sewer'!C10 -> Bakers Creek (Mackay South) – Sth Pioneer River | AA11: ='Catchment Demand- Sewer'!C11 -> Mirani and Marian | AB11: ='Catchment Demand- Sewer'!C12 -> Sarina | AE11: =X11 -> Bucasia (Mackay North) | AF11: =Y11 -> Bakers Creek (Mackay South) – Nth Pioneer River | AG11: =Z11 -> Bakers Creek (Mackay South) – Sth Pioneer River | AH11: =AA11 -> Mirani and Marian | AI11: =AB11 -> Sarina | AZ11: TOTALS | BB11: =AE11 -> Bucasia (Mackay North) | BC11: Bakers Creek (Mackay South) – Nth Pioneer River | BD11: Bakers Creek (Mackay South) – Sth Pioneer River | BE11: Mirani and Marian | BF11: Sarina | BW11: Checksum 2
B12: Asset ID | C12: LGIP ID | D12: Asset Type (*) | E12: Asset Class | F12: Asset Name | G12: Description | H12: Unit Rate Type (*) | I12: Length/unit (*) | J12: Diameter (*) | K12: Depth (*) | L12: Unit Rate | M12: Baseline Valuation | N12: Site/Condition | O12: Multiplier | P12: Gross Value | Q12: Land Location/Type | R12: Size of land (ha) (*) | S12: Unit Cost | T12: Land Value | U12: Valuation Year | V12: Escalation | W12: Current Replaceement Costs
B14: Councils ID (from GIS, FAR, AMA etc.) | C14: ID from the LGIP drawings | E14: Pump Station, Gravity Main, Rising Main etc | M14: May be calculated from unit rates OR unique values can be direct entered | W14: CRC | X14: =IFERROR(VLOOKUP(X11,Sewcatch,6,FALSE),"") -> 50350 | Y14: =IFERROR(VLOOKUP(Y11,Sewcatch,6,FALSE),"") -> 52373 | Z14: 222697 | AA14: 7209 | AB14: 9593 | AE14: =X14 -> 50350 | AF14: =Y14 -> 52373 | AG14: =Z14 -> 222697 | AH14: =AA14 -> 7209 | AI14: =AB14 -> 9593 | BB14: =SUM(BB15:BB2308) -> 41655419.42 | BC14: 68759733.35 | BD14: 198346575.7 | BE14: 19961644.67 | BF14: =SUM(BF15:BF2308) -> 21851617.03 | BW14: =SUM(BW15:BW2309) -> 0
B15: Pump Stations | P15: =IF(M15="","",M15*O15) ->  | AE15: =IF(X15="y",AE$14,IF(AND(X15>0,X15<=1),X15*AE$14,"")) ->  | AF15: =IF(Y15="y",AF$14,IF(AND(Y15>0,Y15<=1),Y15*AF$14,"")) ->  | AG15: =IF(Z15="y",AG$14,IF(AND(Z15>0,Z15<=1),Z15*AG$14,"")) ->  | AH15: =IF(AA15="y",AH$14,IF(AND(AA15>0,AA15<=1),AA15*AH$14,"")) ->  | AI15: =IF(AB15="y",AI$14,IF(AND(AB15>0,AB15<=1),AB15*AI$14,"")) ->  | AZ15: =SUM(AE15:AY15) -> 0 | BB15: =IF(AE15="","",(AE15/$AZ15)*$W15) ->  | BL15: =IF(AO15="","",(AO15/$AZ15)*$W15) ->  | BV15: =IF(AY15="","",(AY15/$AZ15)*$W15) ->  | BW15: =IF(SUM(BB15:BV15)=W15,"","ERROR") -> 
B16: PSAL01 | E16: Pump Station | F16: PSAL01 | G16: Alexandria Rd SPS | L16: =IF(H16=SewerTYPE1,VLOOKUP(J16,SewerUnitrates1,2,FALSE),IF(H16=SEWERTYPE2,VLOOKUP((J16&"_"&K16),Sewerrates2,2,FALSE),0)) -> 0 | M16: 206427.6177 | O16: =IF(N16="",1,VLOOKUP(N16,Sewersitecond,2,FALSE)) -> 1 | P16: 206427.6177 | S16: =IF(Q16="",'Unit Rates - Land'!landcst,IF($E$8="Landuse",VLOOKUP(Q16,LAndcost3,2,FALSE),IF($E$8="Location",VLOOKUP(Q16,Landcost2,2,FALSE),"Error"))) -> 0 | T16: =IF(S16="",0,S16*10000*R16) -> 0 | U16: 2016 | V16: =IFERROR(('General Input Sheet'!$G$38/(VLOOKUP(U16,'General Input Sheet'!$E$38:$G$44,3,FALSE))),1) -> 1 | W16: =IFERROR((P16+T16)*V16,0) -> 206427.6177 | Z16: y | AG16: 222697 | AZ16: =SUM(AE16:AY16) -> 222697 | BD16: 206427.6177
B17: PSAN01 | E17: Pump Station | F17: PSAN01 | G17: Coles Rd SPS | L17: 0 | M17: 1085830.444 | O17: 1 | P17: 1085830.444 | S17: =IF(Q17="",'Unit Rates - Land'!landcst,IF($E$8="Landuse",VLOOKUP(Q17,LAndcost3,2,FALSE),IF($E$8="Location",VLOOKUP(Q17,Landcost2,2,FALSE),"Error"))) -> 0 | T17: 0 | U17: 2016 | V17: =IFERROR(('General Input Sheet'!$G$38/(VLOOKUP(U17,'General Input Sheet'!$E$38:$G$44,3,FALSE))),1) -> 1 | W17: 1085830.444 | Y17: y | AF17: 52373 | AZ17: =SUM(AE17:AY17) -> 52373 | BA17: =IF(AD17="","",(AD17/#REF!)*$W17) ->  | BB17: =IF(AE17="","",(AE17/$AZ17)*$W17) ->  | BC17: =IF(AF17="","",(AF17/$AZ17)*$W17) -> 1085830.444 | BD17: =IF(AG17="","",(AG17/$AZ17)*$W17) ->  | BE17: =IF(AH17="","",(AH17/$AZ17)*$W17) ->  | BF17: =IF(AI17="","",(AI17/$AZ17)*$W17) ->  | BG17: =IF(AJ17="","",(AJ17/#REF!)*$W17) ->  | BH17: =IF(AK17="","",(AK17/#REF!)*$W17) ->  | BI17: =IF(AL17="","",(AL17/#REF!)*$W17) ->  | BJ17: =IF(AM17="","",(AM17/#REF!)*$W17) ->  | BK17: =IF(AN17="","",(AN17/#REF!)*$W17) ->  | BL17: =IF(AO17="","",(AO17/#REF!)*$W17) ->  | BM17: =IF(AP17="","",(AP17/#REF!)*$W17) ->  | BN17: =IF(AQ17="","",(AQ17/#REF!)*$W17) ->  | BO17: =IF(AR17="","",(AR17/#REF!)*$W17) ->  | BP17: =IF(AS17="","",(AS17/#REF!)*$W17) ->  | BQ17: =IF(AT17="","",(AT17/#REF!)*$W17) ->  | BR17: =IF(AU17="","",(AU17/#REF!)*$W17) ->  | BS17: =IF(AV17="","",(AV17/#REF!)*$W17) ->  | BT17: =IF(AW17="","",(AW17/#REF!)*$W17) ->  | BU17: =IF(AX17="","",(AX17/#REF!)*$W17) ->  | BV17: =IF(AY17="","",(AY17/#REF!)*$W17) -> 
B18: PSAN01A | E18: Pump Station | F18: PSAN01A | G18: Geoffrey Nolan Dr SPS | L18: 0 | M18: 279090.5517 | O18: 1 | P18: 279090.5517 | S18: =IF(Q18="",'Unit Rates - Land'!landcst,IF($E$8="Landuse",VLOOKUP(Q18,LAndcost3,2,FALSE),IF($E$8="Location",VLOOKUP(Q18,Landcost2,2,FALSE),"Error"))) -> 0 | T18: 0 | U18: 2016 | V18: =IFERROR(('General Input Sheet'!$G$38/(VLOOKUP(U18,'General Input Sheet'!$E$38:$G$44,3,FALSE))),1) -> 1 | W18: 279090.5517 | Y18: y | AF18: 52373 | AZ18: 52373 | BA18: =IF(AD18="","",(AD18/#REF!)*$W18) ->  | BC18: 279090.5517 | BG18: =IF(AJ18="","",(AJ18/#REF!)*$W18) ->  | BH18: =IF(AK18="","",(AK18/#REF!)*$W18) ->  | BI18: =IF(AL18="","",(AL18/#REF!)*$W18) ->  | BJ18: =IF(AM18="","",(AM18/#REF!)*$W18) ->  | BK18: =IF(AN18="","",(AN18/#REF!)*$W18) ->  | BL18: =IF(AO18="","",(AO18/#REF!)*$W18) ->  | BM18: =IF(AP18="","",(AP18/#REF!)*$W18) ->  | BN18: =IF(AQ18="","",(AQ18/#REF!)*$W18) ->  | BO18: =IF(AR18="","",(AR18/#REF!)*$W18) ->  | BP18: =IF(AS18="","",(AS18/#REF!)*$W18) ->  | BQ18: =IF(AT18="","",(AT18/#REF!)*$W18) ->  | BR18: =IF(AU18="","",(AU18/#REF!)*$W18) ->  | BS18: =IF(AV18="","",(AV18/#REF!)*$W18) ->  | BT18: =IF(AW18="","",(AW18/#REF!)*$W18) ->  | BU18: =IF(AX18="","",(AX18/#REF!)*$W18) ->  | BV18: =IF(AY18="","",(AY18/#REF!)*$W18) -> 
B19: PSAN02 | E19: Pump Station | F19: PSAN02 | G19: McMahon St SPS | L19: 0 | M19: 280772.4388 | O19: 1 | P19: 280772.4388 | S19: =IF(Q19="",'Unit Rates - Land'!landcst,IF($E$8="Landuse",VLOOKUP(Q19,LAndcost3,2,FALSE),IF($E$8="Location",VLOOKUP(Q19,Landcost2,2,FALSE),"Error"))) -> 0 | T19: 0 | U19: 2016 | V19: =IFERROR(('General Input Sheet'!$G$38/(VLOOKUP(U19,'General Input Sheet'!$E$38:$G$44,3,FALSE))),1) -> 1 | W19: 280772.4388 | Y19: y | AF19: 52373 | AZ19: 52373 | BA19: =IF(AD19="","",(AD19/#REF!)*$W19) ->  | BC19: 280772.4388 | BG19: =IF(AJ19="","",(AJ19/#REF!)*$W19) ->  | BH19: =IF(AK19="","",(AK19/#REF!)*$W19) ->  | BI19: =IF(AL19="","",(AL19/#REF!)*$W19) ->  | BJ19: =IF(AM19="","",(AM19/#REF!)*$W19) ->  | BK19: =IF(AN19="","",(AN19/#REF!)*$W19) ->  | BL19: =IF(AO19="","",(AO19/#REF!)*$W19) ->  | BM19: =IF(AP19="","",(AP19/#REF!)*$W19) ->  | BN19: =IF(AQ19="","",(AQ19/#REF!)*$W19) ->  | BO19: =IF(AR19="","",(AR19/#REF!)*$W19) ->  | BP19: =IF(AS19="","",(AS19/#REF!)*$W19) ->  | BQ19: =IF(AT19="","",(AT19/#REF!)*$W19) ->  | BR19: =IF(AU19="","",(AU19/#REF!)*$W19) ->  | BS19: =IF(AV19="","",(AV19/#REF!)*$W19) ->  | BT19: =IF(AW19="","",(AW19/#REF!)*$W19) ->  | BU19: =IF(AX19="","",(AX19/#REF!)*$W19) ->  | BV19: =IF(AY19="","",(AY19/#REF!)*$W19) -> 
B20: PSAN03 | E20: Pump Station | F20: PSAN03 | G20: Bedford Rd No 1 SPS | L20: 0 | M20: 227661.7259 | O20: 1 | P20: 227661.7259 | S20: =IF(Q20="",'Unit Rates - Land'!landcst,IF($E$8="Landuse",VLOOKUP(Q20,LAndcost3,2,FALSE),IF($E$8="Location",VLOOKUP(Q20,Landcost2,2,FALSE),"Error"))) -> 0 | T20: 0 | U20: 2016 | V20: =IFERROR(('General Input Sheet'!$G$38/(VLOOKUP(U20,'General Input Sheet'!$E$38:$G$44,3,FALSE))),1) -> 1 | W20: 227661.7259 | Y20: y | AF20: 52373 | AZ20: 52373 | BA20: =IF(AD20="","",(AD20/#REF!)*$W20) ->  | BC20: 227661.7259 | BG20: =IF(AJ20="","",(AJ20/#REF!)*$W20) ->  | BH20: =IF(AK20="","",(AK20/#REF!)*$W20) ->  | BI20: =IF(AL20="","",(AL20/#REF!)*$W20) ->  | BJ20: =IF(AM20="","",(AM20/#REF!)*$W20) ->  | BK20: =IF(AN20="","",(AN20/#REF!)*$W20) ->  | BL20: =IF(AO20="","",(AO20/#REF!)*$W20) ->  | BM20: =IF(AP20="","",(AP20/#REF!)*$W20) ->  | BN20: =IF(AQ20="","",(AQ20/#REF!)*$W20) ->  | BO20: =IF(AR20="","",(AR20/#REF!)*$W20) ->  | BP20: =IF(AS20="","",(AS20/#REF!)*$W20) ->  | BQ20: =IF(AT20="","",(AT20/#REF!)*$W20) ->  | BR20: =IF(AU20="","",(AU20/#REF!)*$W20) ->  | BS20: =IF(AV20="","",(AV20/#REF!)*$W20) ->  | BT20: =IF(AW20="","",(AW20/#REF!)*$W20) ->  | BU20: =IF(AX20="","",(AX20/#REF!)*$W20) ->  | BV20: =IF(AY20="","",(AY20/#REF!)*$W20) -> 
B21: PSAN04 | E21: Pump Station | F21: PSAN04 | G21: Maguire St SPS | L21: 0 | M21: 297553.4125 | O21: 1 | P21: 297553.4125 | S21: =IF(Q21="",'Unit Rates - Land'!landcst,IF($E$8="Landuse",VLOOKUP(Q21,LAndcost3,2,FALSE),IF($E$8="Location",VLOOKUP(Q21,Landcost2,2,FALSE),"Error"))) -> 0 | T21: 0 | U21: 2016 | V21: =IFERROR(('General Input Sheet'!$G$38/(VLOOKUP(U21,'General Input Sheet'!$E$38:$G$44,3,FALSE))),1) -> 1 | W21: 297553.4125 | Y21: y | AF21: 52373 | AZ21: 52373 | BA21: =IF(AD21="","",(AD21/#REF!)*$W21) ->  | BC21: 297553.4125 | BG21: =IF(AJ21="","",(AJ21/#REF!)*$W21) ->  | BH21: =IF(AK21="","",(AK21/#REF!)*$W21) ->  | BI21: =IF(AL21="","",(AL21/#REF!)*$W21) ->  | BJ21: =IF(AM21="","",(AM21/#REF!)*$W21) ->  | BK21: =IF(AN21="","",(AN21/#REF!)*$W21) ->  | BL21: =IF(AO21="","",(AO21/#REF!)*$W21) ->  | BM21: =IF(AP21="","",(AP21/#REF!)*$W21) ->  | BN21: =IF(AQ21="","",(AQ21/#REF!)*$W21) ->  | BO21: =IF(AR21="","",(AR21/#REF!)*$W21) ->  | BP21: =IF(AS21="","",(AS21/#REF!)*$W21) ->  | BQ21: =IF(AT21="","",(AT21/#REF!)*$W21) ->  | BR21: =IF(AU21="","",(AU21/#REF!)*$W21) ->  | BS21: =IF(AV21="","",(AV21/#REF!)*$W21) ->  | BT21: =IF(AW21="","",(AW21/#REF!)*$W21) ->  | BU21: =IF(AX21="","",(AX21/#REF!)*$W21) ->  | BV21: =IF(AY21="","",(AY21/#REF!)*$W21) -> 
B22: PSAN05 | E22: Pump Station | F22: PSAN05 | G22: Oak St SPS | L22: 0 | M22: 426623.1538 | O22: 1 | P22: 426623.1538 | S22: =IF(Q22="",'Unit Rates - Land'!landcst,IF($E$8="Landuse",VLOOKUP(Q22,LAndcost3,2,FALSE),IF($E$8="Location",VLOOKUP(Q22,Landcost2,2,FALSE),"Error"))) -> 0 | T22: 0 | U22: 2016 | V22: =IFERROR(('General Input Sheet'!$G$38/(VLOOKUP(U22,'General Input Sheet'!$E$38:$G$44,3,FALSE))),1) -> 1 | W22: 426623.1538 | Y22: y | AF22: 52373 | AZ22: 52373 | BA22: =IF(AD22="","",(AD22/#REF!)*$W22) ->  | BC22: 426623.1538 | BG22: =IF(AJ22="","",(AJ22/#REF!)*$W22) ->  | BH22: =IF(AK22="","",(AK22/#REF!)*$W22) ->  | BI22: =IF(AL22="","",(AL22/#REF!)*$W22) ->  | BJ22: =IF(AM22="","",(AM22/#REF!)*$W22) ->  | BK22: =IF(AN22="","",(AN22/#REF!)*$W22) ->  | BL22: =IF(AO22="","",(AO22/#REF!)*$W22) ->  | BM22: =IF(AP22="","",(AP22/#REF!)*$W22) ->  | BN22: =IF(AQ22="","",(AQ22/#REF!)*$W22) ->  | BO22: =IF(AR22="","",(AR22/#REF!)*$W22) ->  | BP22: =IF(AS22="","",(AS22/#REF!)*$W22) ->  | BQ22: =IF(AT22="","",(AT22/#REF!)*$W22) ->  | BR22: =IF(AU22="","",(AU22/#REF!)*$W22) ->  | BS22: =IF(AV22="","",(AV22/#REF!)*$W22) ->  | BT22: =IF(AW22="","",(AW22/#REF!)*$W22) ->  | BU22: =IF(AX22="","",(AX22/#REF!)*$W22) ->  | BV22: =IF(AY22="","",(AY22/#REF!)*$W22) -> 
B23: PSAN06 | E23: Pump Station | F23: PSAN06 | G23: Tramontana St SPS | L23: 0 | M23: 318689.6826 | O23: 1 | P23: 318689.6826 | S23: =IF(Q23="",'Unit Rates - Land'!landcst,IF($E$8="Landuse",VLOOKUP(Q23,LAndcost3,2,FALSE),IF($E$8="Location",VLOOKUP(Q23,Landcost2,2,FALSE),"Error"))) -> 0 | T23: 0 | U23: 2016 | V23: =IFERROR(('General Input Sheet'!$G$38/(VLOOKUP(U23,'General Input Sheet'!$E$38:$G$44,3,FALSE))),1) -> 1 | W23: 318689.6826 | Y23: y | AF23: 52373 | AZ23: 52373 | BA23: =IF(AD23="","",(AD23/#REF!)*$W23) ->  | BC23: 318689.6826 | BG23: =IF(AJ23="","",(AJ23/#REF!)*$W23) ->  | BH23: =IF(AK23="","",(AK23/#REF!)*$W23) ->  | BI23: =IF(AL23="","",(AL23/#REF!)*$W23) ->  | BJ23: =IF(AM23="","",(AM23/#REF!)*$W23) ->  | BK23: =IF(AN23="","",(AN23/#REF!)*$W23) ->  | BL23: =IF(AO23="","",(AO23/#REF!)*$W23) ->  | BM23: =IF(AP23="","",(AP23/#REF!)*$W23) ->  | BN23: =IF(AQ23="","",(AQ23/#REF!)*$W23) ->  | BO23: =IF(AR23="","",(AR23/#REF!)*$W23) ->  | BP23: =IF(AS23="","",(AS23/#REF!)*$W23) ->  | BQ23: =IF(AT23="","",(AT23/#REF!)*$W23) ->  | BR23: =IF(AU23="","",(AU23/#REF!)*$W23) ->  | BS23: =IF(AV23="","",(AV23/#REF!)*$W23) ->  | BT23: =IF(AW23="","",(AW23/#REF!)*$W23) ->  | BU23: =IF(AX23="","",(AX23/#REF!)*$W23) ->  | BV23: =IF(AY23="","",(AY23/#REF!)*$W23) -> 
B24: PSAN07 | E24: Pump Station | F24: PSAN07 | G24: Wattle St SPS | L24: 0 | M24: 543390.277 | O24: 1 | P24: 543390.277 | S24: =IF(Q24="",'Unit Rates - Land'!landcst,IF($E$8="Landuse",VLOOKUP(Q24,LAndcost3,2,FALSE),IF($E$8="Location",VLOOKUP(Q24,Landcost2,2,FALSE),"Error"))) -> 0 | T24: 0 | U24: 2016 | V24: =IFERROR(('General Input Sheet'!$G$38/(VLOOKUP(U24,'General Input Sheet'!$E$38:$G$44,3,FALSE))),1) -> 1 | W24: 543390.277 | Y24: y | AF24: 52373 | AZ24: 52373 | BA24: =IF(AD24="","",(AD24/#REF!)*$W24) ->  | BC24: 543390.277 | BG24: =IF(AJ24="","",(AJ24/#REF!)*$W24) ->  | BH24: =IF(AK24="","",(AK24/#REF!)*$W24) ->  | BI24: =IF(AL24="","",(AL24/#REF!)*$W24) ->  | BJ24: =IF(AM24="","",(AM24/#REF!)*$W24) ->  | BK24: =IF(AN24="","",(AN24/#REF!)*$W24) ->  | BL24: =IF(AO24="","",(AO24/#REF!)*$W24) ->  | BM24: =IF(AP24="","",(AP24/#REF!)*$W24) ->  | BN24: =IF(AQ24="","",(AQ24/#REF!)*$W24) ->  | BO24: =IF(AR24="","",(AR24/#REF!)*$W24) ->  | BP24: =IF(AS24="","",(AS24/#REF!)*$W24) ->  | BQ24: =IF(AT24="","",(AT24/#REF!)*$W24) ->  | BR24: =IF(AU24="","",(AU24/#REF!)*$W24) ->  | BS24: =IF(AV24="","",(AV24/#REF!)*$W24) ->  | BT24: =IF(AW24="","",(AW24/#REF!)*$W24) ->  | BU24: =IF(AX24="","",(AX24/#REF!)*$W24) ->  | BV24: =IF(AY24="","",(AY24/#REF!)*$W24) -> 
B25: PSAN08 | E25: Pump Station | F25: PSAN08 | G25: Tropical Ave SPS | L25: 0 | M25: 366106.9798 | O25: 1 | P25: 366106.9798 | S25: =IF(Q25="",'Unit Rates - Land'!landcst,IF($E$8="Landuse",VLOOKUP(Q25,LAndcost3,2,FALSE),IF($E$8="Location",VLOOKUP(Q25,Landcost2,2,FALSE),"Error"))) -> 0 | T25: 0 | U25: 2016 | V25: =IFERROR(('General Input Sheet'!$G$38/(VLOOKUP(U25,'General Input Sheet'!$E$38:$G$44,3,FALSE))),1) -> 1 | W25: 366106.9798 | Y25: y | AF25: 52373 | AZ25: 52373 | BA25: =IF(AD25="","",(AD25/#REF!)*$W25) ->  | BC25: 366106.9798 | BG25: =IF(AJ25="","",(AJ25/#REF!)*$W25) ->  | BH25: =IF(AK25="","",(AK25/#REF!)*$W25) ->  | BI25: =IF(AL25="","",(AL25/#REF!)*$W25) ->  | BJ25: =IF(AM25="","",(AM25/#REF!)*$W25) ->  | BK25: =IF(AN25="","",(AN25/#REF!)*$W25) ->  | BL25: =IF(AO25="","",(AO25/#REF!)*$W25) ->  | BM25: =IF(AP25="","",(AP25/#REF!)*$W25) ->  | BN25: =IF(AQ25="","",(AQ25/#REF!)*$W25) ->  | BO25: =IF(AR25="","",(AR25/#REF!)*$W25) ->  | BP25: =IF(AS25="","",(AS25/#REF!)*$W25) ->  | BQ25: =IF(AT25="","",(AT25/#REF!)*$W25) ->  | BR25: =IF(AU25="","",(AU25/#REF!)*$W25) ->  | BS25: =IF(AV25="","",(AV25/#REF!)*$W25) ->  | BT25: =IF(AW25="","",(AW25/#REF!)*$W25) ->  | BU25: =IF(AX25="","",(AX25/#REF!)*$W25) ->  | BV25: =IF(AY25="","",(AY25/#REF!)*$W25) -> 
B26: PSAN09 | E26: Pump Station | F26: PSAN09 | G26: Hargreaves St SPS | L26: 0 | M26: 254065.3857 | O26: 1 | P26: 254065.3857 | S26: =IF(Q26="",'Unit Rates - Land'!landcst,IF($E$8="Landuse",VLOOKUP(Q26,LAndcost3,2,FALSE),IF($E$8="Location",VLOOKUP(Q26,Landcost2,2,FALSE),"Error"))) -> 0 | T26: 0 | U26: 2016 | V26: =IFERROR(('General Input Sheet'!$G$38/(VLOOKUP(U26,'General Input Sheet'!$E$38:$G$44,3,FALSE))),1) -> 1 | W26: 254065.3857 | Y26: y | AF26: 52373 | AZ26: 52373 | BA26: =IF(AD26="","",(AD26/#REF!)*$W26) ->  | BC26: 254065.3857 | BG26: =IF(AJ26="","",(AJ26/#REF!)*$W26) ->  | BH26: =IF(AK26="","",(AK26/#REF!)*$W26) ->  | BI26: =IF(AL26="","",(AL26/#REF!)*$W26) ->  | BJ26: =IF(AM26="","",(AM26/#REF!)*$W26) ->  | BK26: =IF(AN26="","",(AN26/#REF!)*$W26) ->  | BL26: =IF(AO26="","",(AO26/#REF!)*$W26) ->  | BM26: =IF(AP26="","",(AP26/#REF!)*$W26) ->  | BN26: =IF(AQ26="","",(AQ26/#REF!)*$W26) ->  | BO26: =IF(AR26="","",(AR26/#REF!)*$W26) ->  | BP26: =IF(AS26="","",(AS26/#REF!)*$W26) ->  | BQ26: =IF(AT26="","",(AT26/#REF!)*$W26) ->  | BR26: =IF(AU26="","",(AU26/#REF!)*$W26) ->  | BS26: =IF(AV26="","",(AV26/#REF!)*$W26) ->  | BT26: =IF(AW26="","",(AW26/#REF!)*$W26) ->  | BU26: =IF(AX26="","",(AX26/#REF!)*$W26) ->  | BV26: =IF(AY26="","",(AY26/#REF!)*$W26) -> 
B27: PSAN10 | E27: Pump Station | F27: PSAN10 | G27: Monique Crt SPS | L27: 0 | M27: 518478.4888 | O27: 1 | P27: 518478.4888 | S27: =IF(Q27="",'Unit Rates - Land'!landcst,IF($E$8="Landuse",VLOOKUP(Q27,LAndcost3,2,FALSE),IF($E$8="Location",VLOOKUP(Q27,Landcost2,2,FALSE),"Error"))) -> 0 | T27: 0 | U27: 2016 | V27: =IFERROR(('General Input Sheet'!$G$38/(VLOOKUP(U27,'General Input Sheet'!$E$38:$G$44,3,FALSE))),1) -> 1 | W27: 518478.4888 | Y27: y | AF27: 52373 | AZ27: 52373 | BA27: =IF(AD27="","",(AD27/#REF!)*$W27) ->  | BC27: 518478.4888 | BG27: =IF(AJ27="","",(AJ27/#REF!)*$W27) ->  | BH27: =IF(AK27="","",(AK27/#REF!)*$W27) ->  | BI27: =IF(AL27="","",(AL27/#REF!)*$W27) ->  | BJ27: =IF(AM27="","",(AM27/#REF!)*$W27) ->  | BK27: =IF(AN27="","",(AN27/#REF!)*$W27) ->  | BL27: =IF(AO27="","",(AO27/#REF!)*$W27) ->  | BM27: =IF(AP27="","",(AP27/#REF!)*$W27) ->  | BN27: =IF(AQ27="","",(AQ27/#REF!)*$W27) ->  | BO27: =IF(AR27="","",(AR27/#REF!)*$W27) ->  | BP27: =IF(AS27="","",(AS27/#REF!)*$W27) ->  | BQ27: =IF(AT27="","",(AT27/#REF!)*$W27) ->  | BR27: =IF(AU27="","",(AU27/#REF!)*$W27) ->  | BS27: =IF(AV27="","",(AV27/#REF!)*$W27) ->  | BT27: =IF(AW27="","",(AW27/#REF!)*$W27) ->  | BU27: =IF(AX27="","",(AX27/#REF!)*$W27) ->  | BV27: =IF(AY27="","",(AY27/#REF!)*$W27) -> 
B28: PSAN11 | E28: Pump Station | F28: PSAN11 | G28: Carbeen St SPS | L28: 0 | M28: 254776.9159 | O28: 1 | P28: 254776.9159 | S28: =IF(Q28="",'Unit Rates - Land'!landcst,IF($E$8="Landuse",VLOOKUP(Q28,LAndcost3,2,FALSE),IF($E$8="Location",VLOOKUP(Q28,Landcost2,2,FALSE),"Error"))) -> 0 | T28: 0 | U28: 2016 | V28: =IFERROR(('General Input Sheet'!$G$38/(VLOOKUP(U28,'General Input Sheet'!$E$38:$G$44,3,FALSE))),1) -> 1 | W28: 254776.9159 | Y28: y | AF28: 52373 | AZ28: 52373 | BA28: =IF(AD28="","",(AD28/#REF!)*$W28) ->  | BC28: 254776.9159 | BG28: =IF(AJ28="","",(AJ28/#REF!)*$W28) ->  | BH28: =IF(AK28="","",(AK28/#REF!)*$W28) ->  | BI28: =IF(AL28="","",(AL28/#REF!)*$W28) ->  | BJ28: =IF(AM28="","",(AM28/#REF!)*$W28) ->  | BK28: =IF(AN28="","",(AN28/#REF!)*$W28) ->  | BL28: =IF(AO28="","",(AO28/#REF!)*$W28) ->  | BM28: =IF(AP28="","",(AP28/#REF!)*$W28) ->  | BN28: =IF(AQ28="","",(AQ28/#REF!)*$W28) ->  | BO28: =IF(AR28="","",(AR28/#REF!)*$W28) ->  | BP28: =IF(AS28="","",(AS28/#REF!)*$W28) ->  | BQ28: =IF(AT28="","",(AT28/#REF!)*$W28) ->  | BR28: =IF(AU28="","",(AU28/#REF!)*$W28) ->  | BS28: =IF(AV28="","",(AV28/#REF!)*$W28) ->  | BT28: =IF(AW28="","",(AW28/#REF!)*$W28) ->  | BU28: =IF(AX28="","",(AX28/#REF!)*$W28) ->  | BV28: =IF(AY28="","",(AY28/#REF!)*$W28) -> 
B29: PSAN12 | E29: Pump Station | F29: PSAN12 | G29: Renae St SPS | L29: 0 | M29: 230624.382 | O29: 1 | P29: 230624.382 | S29: =IF(Q29="",'Unit Rates - Land'!landcst,IF($E$8="Landuse",VLOOKUP(Q29,LAndcost3,2,FALSE),IF($E$8="Location",VLOOKUP(Q29,Landcost2,2,FALSE),"Error"))) -> 0 | T29: 0 | U29: 2016 | V29: =IFERROR(('General Input Sheet'!$G$38/(VLOOKUP(U29,'General Input Sheet'!$E$38:$G$44,3,FALSE))),1) -> 1 | W29: 230624.382 | Y29: y | AF29: 52373 | AZ29: 52373 | BA29: =IF(AD29="","",(AD29/#REF!)*$W29) ->  | BC29: 230624.382 | BG29: =IF(AJ29="","",(AJ29/#REF!)*$W29) ->  | BH29: =IF(AK29="","",(AK29/#REF!)*$W29) ->  | BI29: =IF(AL29="","",(AL29/#REF!)*$W29) ->  | BJ29: =IF(AM29="","",(AM29/#REF!)*$W29) ->  | BK29: =IF(AN29="","",(AN29/#REF!)*$W29) ->  | BL29: =IF(AO29="","",(AO29/#REF!)*$W29) ->  | BM29: =IF(AP29="","",(AP29/#REF!)*$W29) ->  | BN29: =IF(AQ29="","",(AQ29/#REF!)*$W29) ->  | BO29: =IF(AR29="","",(AR29/#REF!)*$W29) ->  | BP29: =IF(AS29="","",(AS29/#REF!)*$W29) ->  | BQ29: =IF(AT29="","",(AT29/#REF!)*$W29) ->  | BR29: =IF(AU29="","",(AU29/#REF!)*$W29) ->  | BS29: =IF(AV29="","",(AV29/#REF!)*$W29) ->  | BT29: =IF(AW29="","",(AW29/#REF!)*$W29) ->  | BU29: =IF(AX29="","",(AX29/#REF!)*$W29) ->  | BV29: =IF(AY29="","",(AY29/#REF!)*$W29) -> 
B30: PSAN13 | E30: Pump Station | F30: PSAN13 | G30: Apsley Way SPS | L30: 0 | M30: 307533.0163 | O30: 1 | P30: 307533.0163 | S30: =IF(Q30="",'Unit Rates - Land'!landcst,IF($E$8="Landuse",VLOOKUP(Q30,LAndcost3,2,FALSE),IF($E$8="Location",VLOOKUP(Q30,Landcost2,2,FALSE),"Error"))) -> 0 | T30: 0 | U30: 2016 | V30: =IFERROR(('General Input Sheet'!$G$38/(VLOOKUP(U30,'General Input Sheet'!$E$38:$G$44,3,FALSE))),1) -> 1 | W30: 307533.0163 | Y30: y | AF30: 52373 | AZ30: 52373 | BA30: =IF(AD30="","",(AD30/#REF!)*$W30) ->  | BC30: 307533.0163 | BG30: =IF(AJ30="","",(AJ30/#REF!)*$W30) ->  | BH30: =IF(AK30="","",(AK30/#REF!)*$W30) ->  | BI30: =IF(AL30="","",(AL30/#REF!)*$W30) ->  | BJ30: =IF(AM30="","",(AM30/#REF!)*$W30) ->  | BK30: =IF(AN30="","",(AN30/#REF!)*$W30) ->  | BL30: =IF(AO30="","",(AO30/#REF!)*$W30) ->  | BM30: =IF(AP30="","",(AP30/#REF!)*$W30) ->  | BN30: =IF(AQ30="","",(AQ30/#REF!)*$W30) ->  | BO30: =IF(AR30="","",(AR30/#REF!)*$W30) ->  | BP30: =IF(AS30="","",(AS30/#REF!)*$W30) ->  | BQ30: =IF(AT30="","",(AT30/#REF!)*$W30) ->  | BR30: =IF(AU30="","",(AU30/#REF!)*$W30) ->  | BS30: =IF(AV30="","",(AV30/#REF!)*$W30) ->  | BT30: =IF(AW30="","",(AW30/#REF!)*$W30) ->  | BU30: =IF(AX30="","",(AX30/#REF!)*$W30) ->  | BV30: =IF(AY30="","",(AY30/#REF!)*$W30) -> 
B31: PSAN14 | E31: Pump Station | F31: PSAN14 | G31: Broomdykes Dr SPS | L31: 0 | M31: 329096.5469 | O31: 1 | P31: 329096.5469 | S31: =IF(Q31="",'Unit Rates - Land'!landcst,IF($E$8="Landuse",VLOOKUP(Q31,LAndcost3,2,FALSE),IF($E$8="Location",VLOOKUP(Q31,Landcost2,2,FALSE),"Error"))) -> 0 | T31: 0 | U31: 2016 | V31: =IFERROR(('General Input Sheet'!$G$38/(VLOOKUP(U31,'General Input Sheet'!$E$38:$G$44,3,FALSE))),1) -> 1 | W31: 329096.5469 | Y31: y | AF31: 52373 | AZ31: 52373 | BA31: =IF(AD31="","",(AD31/#REF!)*$W31) ->  | BC31: 329096.5469 | BG31: =IF(AJ31="","",(AJ31/#REF!)*$W31) ->  | BH31: =IF(AK31="","",(AK31/#REF!)*$W31) ->  | BI31: =IF(AL31="","",(AL31/#REF!)*$W31) ->  | BJ31: =IF(AM31="","",(AM31/#REF!)*$W31) ->  | BK31: =IF(AN31="","",(AN31/#REF!)*$W31) ->  | BL31: =IF(AO31="","",(AO31/#REF!)*$W31) ->  | BM31: =IF(AP31="","",(AP31/#REF!)*$W31) ->  | BN31: =IF(AQ31="","",(AQ31/#REF!)*$W31) ->  | BO31: =IF(AR31="","",(AR31/#REF!)*$W31) ->  | BP31: =IF(AS31="","",(AS31/#REF!)*$W31) ->  | BQ31: =IF(AT31="","",(AT31/#REF!)*$W31) ->  | BR31: =IF(AU31="","",(AU31/#REF!)*$W31) ->  | BS31: =IF(AV31="","",(AV31/#REF!)*$W31) ->  | BT31: =IF(AW31="","",(AW31/#REF!)*$W31) ->  | BU31: =IF(AX31="","",(AX31/#REF!)*$W31) ->  | BV31: =IF(AY31="","",(AY31/#REF!)*$W31) -> 
B32: PSAN15 | E32: Pump Station | F32: PSAN15 | G32: Bedford Rd No 2 SPS | L32: 0 | M32: 333493.272 | O32: 1 | P32: 333493.272 | S32: =IF(Q32="",'Unit Rates - Land'!landcst,IF($E$8="Landuse",VLOOKUP(Q32,LAndcost3,2,FALSE),IF($E$8="Location",VLOOKUP(Q32,Landcost2,2,FALSE),"Error"))) -> 0 | T32: 0 | U32: 2016 | V32: =IFERROR(('General Input Sheet'!$G$38/(VLOOKUP(U32,'General Input Sheet'!$E$38:$G$44,3,FALSE))),1) -> 1 | W32: 333493.272 | Y32: y | AF32: 52373 | AZ32: 52373 | BA32: =IF(AD32="","",(AD32/#REF!)*$W32) ->  | BC32: 333493.272 | BG32: =IF(AJ32="","",(AJ32/#REF!)*$W32) ->  | BH32: =IF(AK32="","",(AK32/#REF!)*$W32) ->  | BI32: =IF(AL32="","",(AL32/#REF!)*$W32) ->  | BJ32: =IF(AM32="","",(AM32/#REF!)*$W32) ->  | BK32: =IF(AN32="","",(AN32/#REF!)*$W32) ->  | BL32: =IF(AO32="","",(AO32/#REF!)*$W32) ->  | BM32: =IF(AP32="","",(AP32/#REF!)*$W32) ->  | BN32: =IF(AQ32="","",(AQ32/#REF!)*$W32) ->  | BO32: =IF(AR32="","",(AR32/#REF!)*$W32) ->  | BP32: =IF(AS32="","",(AS32/#REF!)*$W32) ->  | BQ32: =IF(AT32="","",(AT32/#REF!)*$W32) ->  | BR32: =IF(AU32="","",(AU32/#REF!)*$W32) ->  | BS32: =IF(AV32="","",(AV32/#REF!)*$W32) ->  | BT32: =IF(AW32="","",(AW32/#REF!)*$W32) ->  | BU32: =IF(AX32="","",(AX32/#REF!)*$W32) ->  | BV32: =IF(AY32="","",(AY32/#REF!)*$W32) -> 
B33: PSAN16 | E33: Pump Station | F33: PSAN16 | G33: Galasheils St SPS | L33: 0 | M33: 304329.0197 | O33: 1 | P33: 304329.0197 | S33: =IF(Q33="",'Unit Rates - Land'!landcst,IF($E$8="Landuse",VLOOKUP(Q33,LAndcost3,2,FALSE),IF($E$8="Location",VLOOKUP(Q33,Landcost2,2,FALSE),"Error"))) -> 0 | T33: 0 | U33: 2016 | V33: =IFERROR(('General Input Sheet'!$G$38/(VLOOKUP(U33,'General Input Sheet'!$E$38:$G$44,3,FALSE))),1) -> 1 | W33: 304329.0197 | Y33: y | AF33: 52373 | AZ33: 52373 | BA33: =IF(AD33="","",(AD33/#REF!)*$W33) ->  | BC33: 304329.0197 | BG33: =IF(AJ33="","",(AJ33/#REF!)*$W33) ->  | BH33: =IF(AK33="","",(AK33/#REF!)*$W33) ->  | BI33: =IF(AL33="","",(AL33/#REF!)*$W33) ->  | BJ33: =IF(AM33="","",(AM33/#REF!)*$W33) ->  | BK33: =IF(AN33="","",(AN33/#REF!)*$W33) ->  | BL33: =IF(AO33="","",(AO33/#REF!)*$W33) ->  | BM33: =IF(AP33="","",(AP33/#REF!)*$W33) ->  | BN33: =IF(AQ33="","",(AQ33/#REF!)*$W33) ->  | BO33: =IF(AR33="","",(AR33/#REF!)*$W33) ->  | BP33: =IF(AS33="","",(AS33/#REF!)*$W33) ->  | BQ33: =IF(AT33="","",(AT33/#REF!)*$W33) ->  | BR33: =IF(AU33="","",(AU33/#REF!)*$W33) ->  | BS33: =IF(AV33="","",(AV33/#REF!)*$W33) ->  | BT33: =IF(AW33="","",(AW33/#REF!)*$W33) ->  | BU33: =IF(AX33="","",(AX33/#REF!)*$W33) ->  | BV33: =IF(AY33="","",(AY33/#REF!)*$W33) -> 
B34: PSAN17 | E34: Pump Station | F34: PSAN17 | G34: Ben Nevis St SPS | L34: 0 | M34: 283206.3181 | O34: 1 | P34: 283206.3181 | S34: =IF(Q34="",'Unit Rates - Land'!landcst,IF($E$8="Landuse",VLOOKUP(Q34,LAndcost3,2,FALSE),IF($E$8="Location",VLOOKUP(Q34,Landcost2,2,FALSE),"Error"))) -> 0 | T34: 0 | U34: 2016 | V34: =IFERROR(('General Input Sheet'!$G$38/(VLOOKUP(U34,'General Input Sheet'!$E$38:$G$44,3,FALSE))),1) -> 1 | W34: 283206.3181 | Y34: y | AF34: 52373 | AZ34: 52373 | BA34: =IF(AD34="","",(AD34/#REF!)*$W34) ->  | BC34: 283206.3181 | BG34: =IF(AJ34="","",(AJ34/#REF!)*$W34) ->  | BH34: =IF(AK34="","",(AK34/#REF!)*$W34) ->  | BI34: =IF(AL34="","",(AL34/#REF!)*$W34) ->  | BJ34: =IF(AM34="","",(AM34/#REF!)*$W34) ->  | BK34: =IF(AN34="","",(AN34/#REF!)*$W34) ->  | BL34: =IF(AO34="","",(AO34/#REF!)*$W34) ->  | BM34: =IF(AP34="","",(AP34/#REF!)*$W34) ->  | BN34: =IF(AQ34="","",(AQ34/#REF!)*$W34) ->  | BO34: =IF(AR34="","",(AR34/#REF!)*$W34) ->  | BP34: =IF(AS34="","",(AS34/#REF!)*$W34) ->  | BQ34: =IF(AT34="","",(AT34/#REF!)*$W34) ->  | BR34: =IF(AU34="","",(AU34/#REF!)*$W34) ->  | BS34: =IF(AV34="","",(AV34/#REF!)*$W34) ->  | BT34: =IF(AW34="","",(AW34/#REF!)*$W34) ->  | BU34: =IF(AX34="","",(AX34/#REF!)*$W34) ->  | BV34: =IF(AY34="","",(AY34/#REF!)*$W34) -> 
B35: PSAN18 | E35: Pump Station | F35: PSAN18 | G35: Blaxland Cls SPS | L35: 0 | M35: 299569.8367 | O35: 1 | P35: 299569.8367 | S35: =IF(Q35="",'Unit Rates - Land'!landcst,IF($E$8="Landuse",VLOOKUP(Q35,LAndcost3,2,FALSE),IF($E$8="Location",VLOOKUP(Q35,Landcost2,2,FALSE),"Error"))) -> 0 | T35: 0 | U35: 2016 | V35: =IFERROR(('General Input Sheet'!$G$38/(VLOOKUP(U35,'General Input Sheet'!$E$38:$G$44,3,FALSE))),1) -> 1 | W35: 299569.8367 | Y35: y | AF35: 52373 | AZ35: 52373 | BA35: =IF(AD35="","",(AD35/#REF!)*$W35) ->  | BC35: 299569.8367 | BG35: =IF(AJ35="","",(AJ35/#REF!)*$W35) ->  | BH35: =IF(AK35="","",(AK35/#REF!)*$W35) ->  | BI35: =IF(AL35="","",(AL35/#REF!)*$W35) ->  | BJ35: =IF(AM35="","",(AM35/#REF!)*$W35) ->  | BK35: =IF(AN35="","",(AN35/#REF!)*$W35) ->  | BL35: =IF(AO35="","",(AO35/#REF!)*$W35) ->  | BM35: =IF(AP35="","",(AP35/#REF!)*$W35) ->  | BN35: =IF(AQ35="","",(AQ35/#REF!)*$W35) ->  | BO35: =IF(AR35="","",(AR35/#REF!)*$W35) ->  | BP35: =IF(AS35="","",(AS35/#REF!)*$W35) ->  | BQ35: =IF(AT35="","",(AT35/#REF!)*$W35) ->  | BR35: =IF(AU35="","",(AU35/#REF!)*$W35) ->  | BS35: =IF(AV35="","",(AV35/#REF!)*$W35) ->  | BT35: =IF(AW35="","",(AW35/#REF!)*$W35) ->  | BU35: =IF(AX35="","",(AX35/#REF!)*$W35) ->  | BV35: =IF(AY35="","",(AY35/#REF!)*$W35) -> 
B36: PSBC01 | E36: Pump Station | F36: PSBC01 | G36: Temples Ln No 1 SPS | L36: 0 | M36: 642978.0492 | O36: 1 | P36: 642978.0492 | S36: =IF(Q36="",'Unit Rates - Land'!landcst,IF($E$8="Landuse",VLOOKUP(Q36,LAndcost3,2,FALSE),IF($E$8="Location",VLOOKUP(Q36,Landcost2,2,FALSE),"Error"))) -> 0 | T36: 0 | U36: 2016 | V36: =IFERROR(('General Input Sheet'!$G$38/(VLOOKUP(U36,'General Input Sheet'!$E$38:$G$44,3,FALSE))),1) -> 1 | W36: 642978.0492 | Z36: y | AG36: 222697 | AZ36: 222697 | BA36: =IF(AD36="","",(AD36/#REF!)*$W36) ->  | BD36: 642978.0492 | BG36: =IF(AJ36="","",(AJ36/#REF!)*$W36) ->  | BH36: =IF(AK36="","",(AK36/#REF!)*$W36) ->  | BI36: =IF(AL36="","",(AL36/#REF!)*$W36) ->  | BJ36: =IF(AM36="","",(AM36/#REF!)*$W36) ->  | BK36: =IF(AN36="","",(AN36/#REF!)*$W36) ->  | BL36: =IF(AO36="","",(AO36/#REF!)*$W36) ->  | BM36: =IF(AP36="","",(AP36/#REF!)*$W36) ->  | BN36: =IF(AQ36="","",(AQ36/#REF!)*$W36) ->  | BO36: =IF(AR36="","",(AR36/#REF!)*$W36) ->  | BP36: =IF(AS36="","",(AS36/#REF!)*$W36) ->  | BQ36: =IF(AT36="","",(AT36/#REF!)*$W36) ->  | BR36: =IF(AU36="","",(AU36/#REF!)*$W36) ->  | BS36: =IF(AV36="","",(AV36/#REF!)*$W36) ->  | BT36: =IF(AW36="","",(AW36/#REF!)*$W36) ->  | BU36: =IF(AX36="","",(AX36/#REF!)*$W36) ->  | BV36: =IF(AY36="","",(AY36/#REF!)*$W36) -> 
B37: PSBC02 | E37: Pump Station | F37: PSBC02 | G37: Main St SPS | L37: 0 | M37: 254912.133 | O37: 1 | P37: 254912.133 | S37: =IF(Q37="",'Unit Rates - Land'!landcst,IF($E$8="Landuse",VLOOKUP(Q37,LAndcost3,2,FALSE),IF($E$8="Location",VLOOKUP(Q37,Landcost2,2,FALSE),"Error"))) -> 0 | T37: 0 | U37: 2016 | V37: =IFERROR(('General Input Sheet'!$G$38/(VLOOKUP(U37,'General Input Sheet'!$E$38:$G$44,3,FALSE))),1) -> 1 | W37: 254912.133 | Z37: y | AG37: 222697 | AZ37: 222697 | BA37: =IF(AD37="","",(AD37/#REF!)*$W37) ->  | BD37: 254912.133 | BG37: =IF(AJ37="","",(AJ37/#REF!)*$W37) ->  | BH37: =IF(AK37="","",(AK37/#REF!)*$W37) ->  | BI37: =IF(AL37="","",(AL37/#REF!)*$W37) ->  | BJ37: =IF(AM37="","",(AM37/#REF!)*$W37) ->  | BK37: =IF(AN37="","",(AN37/#REF!)*$W37) ->  | BL37: =IF(AO37="","",(AO37/#REF!)*$W37) ->  | BM37: =IF(AP37="","",(AP37/#REF!)*$W37) ->  | BN37: =IF(AQ37="","",(AQ37/#REF!)*$W37) ->  | BO37: =IF(AR37="","",(AR37/#REF!)*$W37) ->  | BP37: =IF(AS37="","",(AS37/#REF!)*$W37) ->  | BQ37: =IF(AT37="","",(AT37/#REF!)*$W37) ->  | BR37: =IF(AU37="","",(AU37/#REF!)*$W37) ->  | BS37: =IF(AV37="","",(AV37/#REF!)*$W37) ->  | BT37: =IF(AW37="","",(AW37/#REF!)*$W37) ->  | BU37: =IF(AX37="","",(AX37/#REF!)*$W37) ->  | BV37: =IF(AY37="","",(AY37/#REF!)*$W37) -> 
B38: PSBC04 | E38: Pump Station | F38: PSBC04 | G38: Dewars Rd SPS | L38: 0 | M38: 294847.5271 | O38: 1 | P38: 294847.5271 | S38: =IF(Q38="",'Unit Rates - Land'!landcst,IF($E$8="Landuse",VLOOKUP(Q38,LAndcost3,2,FALSE),IF($E$8="Location",VLOOKUP(Q38,Landcost2,2,FALSE),"Error"))) -> 0 | T38: 0 | U38: 2016 | V38: =IFERROR(('General Input Sheet'!$G$38/(VLOOKUP(U38,'General Input Sheet'!$E$38:$G$44,3,FALSE))),1) -> 1 | W38: 294847.5271 | Z38: y | AG38: 222697 | AZ38: 222697 | BA38: =IF(AD38="","",(AD38/#REF!)*$W38) ->  | BD38: 294847.5271 | BG38: =IF(AJ38="","",(AJ38/#REF!)*$W38) ->  | BH38: =IF(AK38="","",(AK38/#REF!)*$W38) ->  | BI38: =IF(AL38="","",(AL38/#REF!)*$W38) ->  | BJ38: =IF(AM38="","",(AM38/#REF!)*$W38) ->  | BK38: =IF(AN38="","",(AN38/#REF!)*$W38) ->  | BL38: =IF(AO38="","",(AO38/#REF!)*$W38) ->  | BM38: =IF(AP38="","",(AP38/#REF!)*$W38) ->  | BN38: =IF(AQ38="","",(AQ38/#REF!)*$W38) ->  | BO38: =IF(AR38="","",(AR38/#REF!)*$W38) ->  | BP38: =IF(AS38="","",(AS38/#REF!)*$W38) ->  | BQ38: =IF(AT38="","",(AT38/#REF!)*$W38) ->  | BR38: =IF(AU38="","",(AU38/#REF!)*$W38) ->  | BS38: =IF(AV38="","",(AV38/#REF!)*$W38) ->  | BT38: =IF(AW38="","",(AW38/#REF!)*$W38) ->  | BU38: =IF(AX38="","",(AX38/#REF!)*$W38) ->  | BV38: =IF(AY38="","",(AY38/#REF!)*$W38) -> 
B39: PSBC05 | E39: Pump Station | F39: PSBC05 | G39: Pattinsons Ln SPS | L39: 0 | M39: 246042.9134 | O39: 1 | P39: 246042.9134 | S39: =IF(Q39="",'Unit Rates - Land'!landcst,IF($E$8="Landuse",VLOOKUP(Q39,LAndcost3,2,FALSE),IF($E$8="Location",VLOOKUP(Q39,Landcost2,2,FALSE),"Error"))) -> 0 | T39: 0 | U39: 2016 | V39: =IFERROR(('General Input Sheet'!$G$38/(VLOOKUP(U39,'General Input Sheet'!$E$38:$G$44,3,FALSE))),1) -> 1 | W39: 246042.9134 | Z39: y | AG39: 222697 | AZ39: 222697 | BA39: =IF(AD39="","",(AD39/#REF!)*$W39) ->  | BD39: 246042.9134 | BG39: =IF(AJ39="","",(AJ39/#REF!)*$W39) ->  | BH39: =IF(AK39="","",(AK39/#REF!)*$W39) ->  | BI39: =IF(AL39="","",(AL39/#REF!)*$W39) ->  | BJ39: =IF(AM39="","",(AM39/#REF!)*$W39) ->  | BK39: =IF(AN39="","",(AN39/#REF!)*$W39) ->  | BL39: =IF(AO39="","",(AO39/#REF!)*$W39) ->  | BM39: =IF(AP39="","",(AP39/#REF!)*$W39) ->  | BN39: =IF(AQ39="","",(AQ39/#REF!)*$W39) ->  | BO39: =IF(AR39="","",(AR39/#REF!)*$W39) ->  | BP39: =IF(AS39="","",(AS39/#REF!)*$W39) ->  | BQ39: =IF(AT39="","",(AT39/#REF!)*$W39) ->  | BR39: =IF(AU39="","",(AU39/#REF!)*$W39) ->  | BS39: =IF(AV39="","",(AV39/#REF!)*$W39) ->  | BT39: =IF(AW39="","",(AW39/#REF!)*$W39) ->  | BU39: =IF(AX39="","",(AX39/#REF!)*$W39) ->  | BV39: =IF(AY39="","",(AY39/#REF!)*$W39) -> 
B40: PSBC06 | E40: Pump Station | F40: PSBC06 | G40: Tass St SPS | L40: 0 | M40: 257025.4751 | O40: 1 | P40: 257025.4751 | S40: =IF(Q40="",'Unit Rates - Land'!landcst,IF($E$8="Landuse",VLOOKUP(Q40,LAndcost3,2,FALSE),IF($E$8="Location",VLOOKUP(Q40,Landcost2,2,FALSE),"Error"))) -> 0 | T40: 0 | U40: 2016 | V40: =IFERROR(('General Input Sheet'!$G$38/(VLOOKUP(U40,'General Input Sheet'!$E$38:$G$44,3,FALSE))),1) -> 1 | W40: 257025.4751 | Z40: y | AG40: 222697 | AZ40: 222697 | BA40: =IF(AD40="","",(AD40/#REF!)*$W40) ->  | BD40: 257025.4751 | BG40: =IF(AJ40="","",(AJ40/#REF!)*$W40) ->  | BH40: =IF(AK40="","",(AK40/#REF!)*$W40) ->  | BI40: =IF(AL40="","",(AL40/#REF!)*$W40) ->  | BJ40: =IF(AM40="","",(AM40/#REF!)*$W40) ->  | BK40: =IF(AN40="","",(AN40/#REF!)*$W40) ->  | BL40: =IF(AO40="","",(AO40/#REF!)*$W40) ->  | BM40: =IF(AP40="","",(AP40/#REF!)*$W40) ->  | BN40: =IF(AQ40="","",(AQ40/#REF!)*$W40) ->  | BO40: =IF(AR40="","",(AR40/#REF!)*$W40) ->  | BP40: =IF(AS40="","",(AS40/#REF!)*$W40) ->  | BQ40: =IF(AT40="","",(AT40/#REF!)*$W40) ->  | BR40: =IF(AU40="","",(AU40/#REF!)*$W40) ->  | BS40: =IF(AV40="","",(AV40/#REF!)*$W40) ->  | BT40: =IF(AW40="","",(AW40/#REF!)*$W40) ->  | BU40: =IF(AX40="","",(AX40/#REF!)*$W40) ->  | BV40: =IF(AY40="","",(AY40/#REF!)*$W40) -> 
B41: PSBC08 | E41: Pump Station | F41: PSBC08 | G41: Temples Ln No 2 SPS | L41: 0 | M41: 522647.108 | O41: 1 | P41: 522647.108 | S41: =IF(Q41="",'Unit Rates - Land'!landcst,IF($E$8="Landuse",VLOOKUP(Q41,LAndcost3,2,FALSE),IF($E$8="Location",VLOOKUP(Q41,Landcost2,2,FALSE),"Error"))) -> 0 | T41: 0 | U41: 2016 | V41: =IFERROR(('General Input Sheet'!$G$38/(VLOOKUP(U41,'General Input Sheet'!$E$38:$G$44,3,FALSE))),1) -> 1 | W41: 522647.108 | Z41: y | AG41: 222697 | AZ41: 222697 | BA41: =IF(AD41="","",(AD41/#REF!)*$W41) ->  | BD41: 522647.108 | BG41: =IF(AJ41="","",(AJ41/#REF!)*$W41) ->  | BH41: =IF(AK41="","",(AK41/#REF!)*$W41) ->  | BI41: =IF(AL41="","",(AL41/#REF!)*$W41) ->  | BJ41: =IF(AM41="","",(AM41/#REF!)*$W41) ->  | BK41: =IF(AN41="","",(AN41/#REF!)*$W41) ->  | BL41: =IF(AO41="","",(AO41/#REF!)*$W41) ->  | BM41: =IF(AP41="","",(AP41/#REF!)*$W41) ->  | BN41: =IF(AQ41="","",(AQ41/#REF!)*$W41) ->  | BO41: =IF(AR41="","",(AR41/#REF!)*$W41) ->  | BP41: =IF(AS41="","",(AS41/#REF!)*$W41) ->  | BQ41: =IF(AT41="","",(AT41/#REF!)*$W41) ->  | BR41: =IF(AU41="","",(AU41/#REF!)*$W41) ->  | BS41: =IF(AV41="","",(AV41/#REF!)*$W41) ->  | BT41: =IF(AW41="","",(AW41/#REF!)*$W41) ->  | BU41: =IF(AX41="","",(AX41/#REF!)*$W41) ->  | BV41: =IF(AY41="","",(AY41/#REF!)*$W41) -> 
B42: PSBE01 | E42: Pump Station | F42: PSBE01 | G42: Beaconsfield Rd No 1 SPS | L42: 0 | M42: 1260443.976 | O42: 1 | P42: 1260443.976 | S42: =IF(Q42="",'Unit Rates - Land'!landcst,IF($E$8="Landuse",VLOOKUP(Q42,LAndcost3,2,FALSE),IF($E$8="Location",VLOOKUP(Q42,Landcost2,2,FALSE),"Error"))) -> 0 | T42: 0 | U42: 2016 | V42: =IFERROR(('General Input Sheet'!$G$38/(VLOOKUP(U42,'General Input Sheet'!$E$38:$G$44,3,FALSE))),1) -> 1 | W42: 1260443.976 | Y42: y | AF42: 52373 | AZ42: 52373 | BA42: =IF(AD42="","",(AD42/#REF!)*$W42) ->  | BC42: 1260443.976 | BG42: =IF(AJ42="","",(AJ42/#REF!)*$W42) ->  | BH42: =IF(AK42="","",(AK42/#REF!)*$W42) ->  | BI42: =IF(AL42="","",(AL42/#REF!)*$W42) ->  | BJ42: =IF(AM42="","",(AM42/#REF!)*$W42) ->  | BK42: =IF(AN42="","",(AN42/#REF!)*$W42) ->  | BL42: =IF(AO42="","",(AO42/#REF!)*$W42) ->  | BM42: =IF(AP42="","",(AP42/#REF!)*$W42) ->  | BN42: =IF(AQ42="","",(AQ42/#REF!)*$W42) ->  | BO42: =IF(AR42="","",(AR42/#REF!)*$W42) ->  | BP42: =IF(AS42="","",(AS42/#REF!)*$W42) ->  | BQ42: =IF(AT42="","",(AT42/#REF!)*$W42) ->  | BR42: =IF(AU42="","",(AU42/#REF!)*$W42) ->  | BS42: =IF(AV42="","",(AV42/#REF!)*$W42) ->  | BT42: =IF(AW42="","",(AW42/#REF!)*$W42) ->  | BU42: =IF(AX42="","",(AX42/#REF!)*$W42) ->  | BV42: =IF(AY42="","",(AY42/#REF!)*$W42) -> 
B43: PSBE03 | E43: Pump Station | F43: PSBE03 | G43: Holts Rd No 1 SPS | L43: 0 | M43: 311063.1493 | O43: 1 | P43: 311063.1493 | S43: =IF(Q43="",'Unit Rates - Land'!landcst,IF($E$8="Landuse",VLOOKUP(Q43,LAndcost3,2,FALSE),IF($E$8="Location",VLOOKUP(Q43,Landcost2,2,FALSE),"Error"))) -> 0 | T43: 0 | U43: 2016 | V43: =IFERROR(('General Input Sheet'!$G$38/(VLOOKUP(U43,'General Input Sheet'!$E$38:$G$44,3,FALSE))),1) -> 1 | W43: 311063.1493 | Y43: y | AF43: 52373 | AZ43: 52373 | BA43: =IF(AD43="","",(AD43/#REF!)*$W43) ->  | BC43: 311063.1493 | BG43: =IF(AJ43="","",(AJ43/#REF!)*$W43) ->  | BH43: =IF(AK43="","",(AK43/#REF!)*$W43) ->  | BI43: =IF(AL43="","",(AL43/#REF!)*$W43) ->  | BJ43: =IF(AM43="","",(AM43/#REF!)*$W43) ->  | BK43: =IF(AN43="","",(AN43/#REF!)*$W43) ->  | BL43: =IF(AO43="","",(AO43/#REF!)*$W43) ->  | BM43: =IF(AP43="","",(AP43/#REF!)*$W43) ->  | BN43: =IF(AQ43="","",(AQ43/#REF!)*$W43) ->  | BO43: =IF(AR43="","",(AR43/#REF!)*$W43) ->  | BP43: =IF(AS43="","",(AS43/#REF!)*$W43) ->  | BQ43: =IF(AT43="","",(AT43/#REF!)*$W43) ->  | BR43: =IF(AU43="","",(AU43/#REF!)*$W43) ->  | BS43: =IF(AV43="","",(AV43/#REF!)*$W43) ->  | BT43: =IF(AW43="","",(AW43/#REF!)*$W43) ->  | BU43: =IF(AX43="","",(AX43/#REF!)*$W43) ->  | BV43: =IF(AY43="","",(AY43/#REF!)*$W43) -> 
B44: PSBE04 | E44: Pump Station | F44: PSBE04 | G44: Avocado Crt SPS | L44: 0 | M44: 345267.8788 | O44: 1 | P44: 345267.8788 | S44: =IF(Q44="",'Unit Rates - Land'!landcst,IF($E$8="Landuse",VLOOKUP(Q44,LAndcost3,2,FALSE),IF($E$8="Location",VLOOKUP(Q44,Landcost2,2,FALSE),"Error"))) -> 0 | T44: 0 | U44: 2016 | V44: =IFERROR(('General Input Sheet'!$G$38/(VLOOKUP(U44,'General Input Sheet'!$E$38:$G$44,3,FALSE))),1) -> 1 | W44: 345267.8788 | Y44: y | AF44: 52373 | AZ44: 52373 | BA44: =IF(AD44="","",(AD44/#REF!)*$W44) ->  | BC44: 345267.8788 | BG44: =IF(AJ44="","",(AJ44/#REF!)*$W44) ->  | BH44: =IF(AK44="","",(AK44/#REF!)*$W44) ->  | BI44: =IF(AL44="","",(AL44/#REF!)*$W44) ->  | BJ44: =IF(AM44="","",(AM44/#REF!)*$W44) ->  | BK44: =IF(AN44="","",(AN44/#REF!)*$W44) ->  | BL44: =IF(AO44="","",(AO44/#REF!)*$W44) ->  | BM44: =IF(AP44="","",(AP44/#REF!)*$W44) ->  | BN44: =IF(AQ44="","",(AQ44/#REF!)*$W44) ->  | BO44: =IF(AR44="","",(AR44/#REF!)*$W44) ->  | BP44: =IF(AS44="","",(AS44/#REF!)*$W44) ->  | BQ44: =IF(AT44="","",(AT44/#REF!)*$W44) ->  | BR44: =IF(AU44="","",(AU44/#REF!)*$W44) ->  | BS44: =IF(AV44="","",(AV44/#REF!)*$W44) ->  | BT44: =IF(AW44="","",(AW44/#REF!)*$W44) ->  | BU44: =IF(AX44="","",(AX44/#REF!)*$W44) ->  | BV44: =IF(AY44="","",(AY44/#REF!)*$W44) -> 
B45: PSBE05 | E45: Pump Station | F45: PSBE05 | G45: Parkview Crt SPS | L45: 0 | M45: 288881.7662 | O45: 1 | P45: 288881.7662 | S45: =IF(Q45="",'Unit Rates - Land'!landcst,IF($E$8="Landuse",VLOOKUP(Q45,LAndcost3,2,FALSE),IF($E$8="Location",VLOOKUP(Q45,Landcost2,2,FALSE),"Error"))) -> 0 | T45: 0 | U45: 2016 | V45: =IFERROR(('General Input Sheet'!$G$38/(VLOOKUP(U45,'General Input Sheet'!$E$38:$G$44,3,FALSE))),1) -> 1 | W45: 288881.7662 | Y45: y | AF45: 52373 | AZ45: 52373 | BA45: =IF(AD45="","",(AD45/#REF!)*$W45) ->  | BC45: 288881.7662 | BG45: =IF(AJ45="","",(AJ45/#REF!)*$W45) ->  | BH45: =IF(AK45="","",(AK45/#REF!)*$W45) ->  | BI45: =IF(AL45="","",(AL45/#REF!)*$W45) ->  | BJ45: =IF(AM45="","",(AM45/#REF!)*$W45) ->  | BK45: =IF(AN45="","",(AN45/#REF!)*$W45) ->  | BL45: =IF(AO45="","",(AO45/#REF!)*$W45) ->  | BM45: =IF(AP45="","",(AP45/#REF!)*$W45) ->  | BN45: =IF(AQ45="","",(AQ45/#REF!)*$W45) ->  | BO45: =IF(AR45="","",(AR45/#REF!)*$W45) ->  | BP45: =IF(AS45="","",(AS45/#REF!)*$W45) ->  | BQ45: =IF(AT45="","",(AT45/#REF!)*$W45) ->  | BR45: =IF(AU45="","",(AU45/#REF!)*$W45) ->  | BS45: =IF(AV45="","",(AV45/#REF!)*$W45) ->  | BT45: =IF(AW45="","",(AW45/#REF!)*$W45) ->  | BU45: =IF(AX45="","",(AX45/#REF!)*$W45) ->  | BV45: =IF(AY45="","",(AY45/#REF!)*$W45) -> 
B46: PSBE06 | E46: Pump Station | F46: PSBE06 | G46: Beaconsfield Rd No 2 SPS | L46: 0 | M46: 302643.3458 | O46: 1 | P46: 302643.3458 | S46: =IF(Q46="",'Unit Rates - Land'!landcst,IF($E$8="Landuse",VLOOKUP(Q46,LAndcost3,2,FALSE),IF($E$8="Location",VLOOKUP(Q46,Landcost2,2,FALSE),"Error"))) -> 0 | T46: 0 | U46: 2016 | V46: =IFERROR(('General Input Sheet'!$G$38/(VLOOKUP(U46,'General Input Sheet'!$E$38:$G$44,3,FALSE))),1) -> 1 | W46: 302643.3458 | Y46: y | AF46: 52373 | AZ46: 52373 | BA46: =IF(AD46="","",(AD46/#REF!)*$W46) ->  | BC46: 302643.3458 | BG46: =IF(AJ46="","",(AJ46/#REF!)*$W46) ->  | BH46: =IF(AK46="","",(AK46/#REF!)*$W46) ->  | BI46: =IF(AL46="","",(AL46/#REF!)*$W46) ->  | BJ46: =IF(AM46="","",(AM46/#REF!)*$W46) ->  | BK46: =IF(AN46="","",(AN46/#REF!)*$W46) ->  | BL46: =IF(AO46="","",(AO46/#REF!)*$W46) ->  | BM46: =IF(AP46="","",(AP46/#REF!)*$W46) ->  | BN46: =IF(AQ46="","",(AQ46/#REF!)*$W46) ->  | BO46: =IF(AR46="","",(AR46/#REF!)*$W46) ->  | BP46: =IF(AS46="","",(AS46/#REF!)*$W46) ->  | BQ46: =IF(AT46="","",(AT46/#REF!)*$W46) ->  | BR46: =IF(AU46="","",(AU46/#REF!)*$W46) ->  | BS46: =IF(AV46="","",(AV46/#REF!)*$W46) ->  | BT46: =IF(AW46="","",(AW46/#REF!)*$W46) ->  | BU46: =IF(AX46="","",(AX46/#REF!)*$W46) ->  | BV46: =IF(AY46="","",(AY46/#REF!)*$W46) -> 
B47: PSBE07 | E47: Pump Station | F47: PSBE07 | G47: Primavera Bvd SPS | L47: 0 | M47: 261809.2183 | O47: 1 | P47: 261809.2183 | S47: =IF(Q47="",'Unit Rates - Land'!landcst,IF($E$8="Landuse",VLOOKUP(Q47,LAndcost3,2,FALSE),IF($E$8="Location",VLOOKUP(Q47,Landcost2,2,FALSE),"Error"))) -> 0 | T47: 0 | U47: 2016 | V47: =IFERROR(('General Input Sheet'!$G$38/(VLOOKUP(U47,'General Input Sheet'!$E$38:$G$44,3,FALSE))),1) -> 1 | W47: 261809.2183 | Y47: y | AF47: 52373 | AZ47: 52373 | BA47: =IF(AD47="","",(AD47/#REF!)*$W47) ->  | BC47: 261809.2183 | BG47: =IF(AJ47="","",(AJ47/#REF!)*$W47) ->  | BH47: =IF(AK47="","",(AK47/#REF!)*$W47) ->  | BI47: =IF(AL47="","",(AL47/#REF!)*$W47) ->  | BJ47: =IF(AM47="","",(AM47/#REF!)*$W47) ->  | BK47: =IF(AN47="","",(AN47/#REF!)*$W47) ->  | BL47: =IF(AO47="","",(AO47/#REF!)*$W47) ->  | BM47: =IF(AP47="","",(AP47/#REF!)*$W47) ->  | BN47: =IF(AQ47="","",(AQ47/#REF!)*$W47) ->  | BO47: =IF(AR47="","",(AR47/#REF!)*$W47) ->  | BP47: =IF(AS47="","",(AS47/#REF!)*$W47) ->  | BQ47: =IF(AT47="","",(AT47/#REF!)*$W47) ->  | BR47: =IF(AU47="","",(AU47/#REF!)*$W47) ->  | BS47: =IF(AV47="","",(AV47/#REF!)*$W47) ->  | BT47: =IF(AW47="","",(AW47/#REF!)*$W47) ->  | BU47: =IF(AX47="","",(AX47/#REF!)*$W47) ->  | BV47: =IF(AY47="","",(AY47/#REF!)*$W47) -> 
B48: PSBE11 | E48: Pump Station | F48: PSBE11 | G48: Darcy Bvd SPS | L48: 0 | M48: 258431.6574 | O48: 1 | P48: 258431.6574 | S48: =IF(Q48="",'Unit Rates - Land'!landcst,IF($E$8="Landuse",VLOOKUP(Q48,LAndcost3,2,FALSE),IF($E$8="Location",VLOOKUP(Q48,Landcost2,2,FALSE),"Error"))) -> 0 | T48: 0 | U48: 2016 | V48: =IFERROR(('General Input Sheet'!$G$38/(VLOOKUP(U48,'General Input Sheet'!$E$38:$G$44,3,FALSE))),1) -> 1 | W48: 258431.6574 | Y48: y | AF48: 52373 | AZ48: 52373 | BA48: =IF(AD48="","",(AD48/#REF!)*$W48) ->  | BC48: 258431.6574 | BG48: =IF(AJ48="","",(AJ48/#REF!)*$W48) ->  | BH48: =IF(AK48="","",(AK48/#REF!)*$W48) ->  | BI48: =IF(AL48="","",(AL48/#REF!)*$W48) ->  | BJ48: =IF(AM48="","",(AM48/#REF!)*$W48) ->  | BK48: =IF(AN48="","",(AN48/#REF!)*$W48) ->  | BL48: =IF(AO48="","",(AO48/#REF!)*$W48) ->  | BM48: =IF(AP48="","",(AP48/#REF!)*$W48) ->  | BN48: =IF(AQ48="","",(AQ48/#REF!)*$W48) ->  | BO48: =IF(AR48="","",(AR48/#REF!)*$W48) ->  | BP48: =IF(AS48="","",(AS48/#REF!)*$W48) ->  | BQ48: =IF(AT48="","",(AT48/#REF!)*$W48) ->  | BR48: =IF(AU48="","",(AU48/#REF!)*$W48) ->  | BS48: =IF(AV48="","",(AV48/#REF!)*$W48) ->  | BT48: =IF(AW48="","",(AW48/#REF!)*$W48) ->  | BU48: =IF(AX48="","",(AX48/#REF!)*$W48) ->  | BV48: =IF(AY48="","",(AY48/#REF!)*$W48) -> 
B49: PSBE12 | E49: Pump Station | F49: PSBE12 | G49: Ontario Pde SPS | L49: 0 | M49: 361260.0698 | O49: 1 | P49: 361260.0698 | S49: =IF(Q49="",'Unit Rates - Land'!landcst,IF($E$8="Landuse",VLOOKUP(Q49,LAndcost3,2,FALSE),IF($E$8="Location",VLOOKUP(Q49,Landcost2,2,FALSE),"Error"))) -> 0 | T49: 0 | U49: 2016 | V49: =IFERROR(('General Input Sheet'!$G$38/(VLOOKUP(U49,'General Input Sheet'!$E$38:$G$44,3,FALSE))),1) -> 1 | W49: 361260.0698 | Y49: y | AF49: 52373 | AZ49: 52373 | BA49: =IF(AD49="","",(AD49/#REF!)*$W49) ->  | BC49: 361260.0698 | BG49: =IF(AJ49="","",(AJ49/#REF!)*$W49) ->  | BH49: =IF(AK49="","",(AK49/#REF!)*$W49) ->  | BI49: =IF(AL49="","",(AL49/#REF!)*$W49) ->  | BJ49: =IF(AM49="","",(AM49/#REF!)*$W49) ->  | BK49: =IF(AN49="","",(AN49/#REF!)*$W49) ->  | BL49: =IF(AO49="","",(AO49/#REF!)*$W49) ->  | BM49: =IF(AP49="","",(AP49/#REF!)*$W49) ->  | BN49: =IF(AQ49="","",(AQ49/#REF!)*$W49) ->  | BO49: =IF(AR49="","",(AR49/#REF!)*$W49) ->  | BP49: =IF(AS49="","",(AS49/#REF!)*$W49) ->  | BQ49: =IF(AT49="","",(AT49/#REF!)*$W49) ->  | BR49: =IF(AU49="","",(AU49/#REF!)*$W49) ->  | BS49: =IF(AV49="","",(AV49/#REF!)*$W49) ->  | BT49: =IF(AW49="","",(AW49/#REF!)*$W49) ->  | BU49: =IF(AX49="","",(AX49/#REF!)*$W49) ->  | BV49: =IF(AY49="","",(AY49/#REF!)*$W49) -> 
B50: PSBU01A | E50: Pump Station | F50: PSBU01A | G50: Dump Rd SPS | L50: 0 | M50: 1129530.739 | O50: 1 | P50: 1129530.739 | S50: =IF(Q50="",'Unit Rates - Land'!landcst,IF($E$8="Landuse",VLOOKUP(Q50,LAndcost3,2,FALSE),IF($E$8="Location",VLOOKUP(Q50,Landcost2,2,FALSE),"Error"))) -> 0 | T50: 0 | U50: 2016 | V50: =IFERROR(('General Input Sheet'!$G$38/(VLOOKUP(U50,'General Input Sheet'!$E$38:$G$44,3,FALSE))),1) -> 1 | W50: 1129530.739 | X50: y | AE50: 50350 | AZ50: 50350 | BA50: =IF(AD50="","",(AD50/#REF!)*$W50) ->  | BB50: 1129530.739 | BG50: =IF(AJ50="","",(AJ50/#REF!)*$W50) ->  | BH50: =IF(AK50="","",(AK50/#REF!)*$W50) ->  | BI50: =IF(AL50="","",(AL50/#REF!)*$W50) ->  | BJ50: =IF(AM50="","",(AM50/#REF!)*$W50) ->  | BK50: =IF(AN50="","",(AN50/#REF!)*$W50) ->  | BL50: =IF(AO50="","",(AO50/#REF!)*$W50) ->  | BM50: =IF(AP50="","",(AP50/#REF!)*$W50) ->  | BN50: =IF(AQ50="","",(AQ50/#REF!)*$W50) ->  | BO50: =IF(AR50="","",(AR50/#REF!)*$W50) ->  | BP50: =IF(AS50="","",(AS50/#REF!)*$W50) ->  | BQ50: =IF(AT50="","",(AT50/#REF!)*$W50) ->  | BR50: =IF(AU50="","",(AU50/#REF!)*$W50) ->  | BS50: =IF(AV50="","",(AV50/#REF!)*$W50) ->  | BT50: =IF(AW50="","",(AW50/#REF!)*$W50) ->  | BU50: =IF(AX50="","",(AX50/#REF!)*$W50) ->  | BV50: =IF(AY50="","",(AY50/#REF!)*$W50) -> 
B51: PSBU02 | E51: Pump Station | F51: PSBU02 | G51: Downie Ave SPS | L51: 0 | M51: 281401.4433 | O51: 1 | P51: 281401.4433 | S51: =IF(Q51="",'Unit Rates - Land'!landcst,IF($E$8="Landuse",VLOOKUP(Q51,LAndcost3,2,FALSE),IF($E$8="Location",VLOOKUP(Q51,Landcost2,2,FALSE),"Error"))) -> 0 | T51: 0 | U51: 2016 | V51: =IFERROR(('General Input Sheet'!$G$38/(VLOOKUP(U51,'General Input Sheet'!$E$38:$G$44,3,FALSE))),1) -> 1 | W51: 281401.4433 | X51: y | AE51: 50350 | AZ51: 50350 | BA51: =IF(AD51="","",(AD51/#REF!)*$W51) ->  | BB51: 281401.4433 | BG51: =IF(AJ51="","",(AJ51/#REF!)*$W51) ->  | BH51: =IF(AK51="","",(AK51/#REF!)*$W51) ->  | BI51: =IF(AL51="","",(AL51/#REF!)*$W51) ->  | BJ51: =IF(AM51="","",(AM51/#REF!)*$W51) ->  | BK51: =IF(AN51="","",(AN51/#REF!)*$W51) ->  | BL51: =IF(AO51="","",(AO51/#REF!)*$W51) ->  | BM51: =IF(AP51="","",(AP51/#REF!)*$W51) ->  | BN51: =IF(AQ51="","",(AQ51/#REF!)*$W51) ->  | BO51: =IF(AR51="","",(AR51/#REF!)*$W51) ->  | BP51: =IF(AS51="","",(AS51/#REF!)*$W51) ->  | BQ51: =IF(AT51="","",(AT51/#REF!)*$W51) ->  | BR51: =IF(AU51="","",(AU51/#REF!)*$W51) ->  | BS51: =IF(AV51="","",(AV51/#REF!)*$W51) ->  | BT51: =IF(AW51="","",(AW51/#REF!)*$W51) ->  | BU51: =IF(AX51="","",(AX51/#REF!)*$W51) ->  | BV51: =IF(AY51="","",(AY51/#REF!)*$W51) -> 
B52: PSBU03 | E52: Pump Station | F52: PSBU03 | G52: Ellis Ave SPS | L52: 0 | M52: 228204.2239 | O52: 1 | P52: 228204.2239 | S52: =IF(Q52="",'Unit Rates - Land'!landcst,IF($E$8="Landuse",VLOOKUP(Q52,LAndcost3,2,FALSE),IF($E$8="Location",VLOOKUP(Q52,Landcost2,2,FALSE),"Error"))) -> 0 | T52: 0 | U52: 2016 | V52: =IFERROR(('General Input Sheet'!$G$38/(VLOOKUP(U52,'General Input Sheet'!$E$38:$G$44,3,FALSE))),1) -> 1 | W52: 228204.2239 | X52: y | AE52: 50350 | AZ52: 50350 | BA52: =IF(AD52="","",(AD52/#REF!)*$W52) ->  | BB52: 228204.2239 | BG52: =IF(AJ52="","",(AJ52/#REF!)*$W52) ->  | BH52: =IF(AK52="","",(AK52/#REF!)*$W52) ->  | BI52: =IF(AL52="","",(AL52/#REF!)*$W52) ->  | BJ52: =IF(AM52="","",(AM52/#REF!)*$W52) ->  | BK52: =IF(AN52="","",(AN52/#REF!)*$W52) ->  | BL52: =IF(AO52="","",(AO52/#REF!)*$W52) ->  | BM52: =IF(AP52="","",(AP52/#REF!)*$W52) ->  | BN52: =IF(AQ52="","",(AQ52/#REF!)*$W52) ->  | BO52: =IF(AR52="","",(AR52/#REF!)*$W52) ->  | BP52: =IF(AS52="","",(AS52/#REF!)*$W52) ->  | BQ52: =IF(AT52="","",(AT52/#REF!)*$W52) ->  | BR52: =IF(AU52="","",(AU52/#REF!)*$W52) ->  | BS52: =IF(AV52="","",(AV52/#REF!)*$W52) ->  | BT52: =IF(AW52="","",(AW52/#REF!)*$W52) ->  | BU52: =IF(AX52="","",(AX52/#REF!)*$W52) ->  | BV52: =IF(AY52="","",(AY52/#REF!)*$W52) -> 
B53: PSBU04 | E53: Pump Station | F53: PSBU04 | G53: Williams Ave SPS | L53: 0 | M53: 199648.3429 | O53: 1 | P53: 199648.3429 | S53: =IF(Q53="",'Unit Rates - Land'!landcst,IF($E$8="Landuse",VLOOKUP(Q53,LAndcost3,2,FALSE),IF($E$8="Location",VLOOKUP(Q53,Landcost2,2,FALSE),"Error"))) -> 0 | T53: 0 | U53: 2016 | V53: =IFERROR(('General Input Sheet'!$G$38/(VLOOKUP(U53,'General Input Sheet'!$E$38:$G$44,3,FALSE))),1) -> 1 | W53: 199648.3429 | X53: y | AE53: 50350 | AZ53: 50350 | BA53: =IF(AD53="","",(AD53/#REF!)*$W53) ->  | BB53: 199648.3429 | BG53: =IF(AJ53="","",(AJ53/#REF!)*$W53) ->  | BH53: =IF(AK53="","",(AK53/#REF!)*$W53) ->  | BI53: =IF(AL53="","",(AL53/#REF!)*$W53) ->  | BJ53: =IF(AM53="","",(AM53/#REF!)*$W53) ->  | BK53: =IF(AN53="","",(AN53/#REF!)*$W53) ->  | BL53: =IF(AO53="","",(AO53/#REF!)*$W53) ->  | BM53: =IF(AP53="","",(AP53/#REF!)*$W53) ->  | BN53: =IF(AQ53="","",(AQ53/#REF!)*$W53) ->  | BO53: =IF(AR53="","",(AR53/#REF!)*$W53) ->  | BP53: =IF(AS53="","",(AS53/#REF!)*$W53) ->  | BQ53: =IF(AT53="","",(AT53/#REF!)*$W53) ->  | BR53: =IF(AU53="","",(AU53/#REF!)*$W53) ->  | BS53: =IF(AV53="","",(AV53/#REF!)*$W53) ->  | BT53: =IF(AW53="","",(AW53/#REF!)*$W53) ->  | BU53: =IF(AX53="","",(AX53/#REF!)*$W53) ->  | BV53: =IF(AY53="","",(AY53/#REF!)*$W53) -> 
B54: PSBU05 | E54: Pump Station | F54: PSBU05 | G54: Waverley St SPS | L54: 0 | M54: 208271.224 | O54: 1 | P54: 208271.224 | S54: =IF(Q54="",'Unit Rates - Land'!landcst,IF($E$8="Landuse",VLOOKUP(Q54,LAndcost3,2,FALSE),IF($E$8="Location",VLOOKUP(Q54,Landcost2,2,FALSE),"Error"))) -> 0 | T54: 0 | U54: 2016 | V54: =IFERROR(('General Input Sheet'!$G$38/(VLOOKUP(U54,'General Input Sheet'!$E$38:$G$44,3,FALSE))),1) -> 1 | W54: 208271.224 | X54: y | AE54: 50350 | AZ54: 50350 | BA54: =IF(AD54="","",(AD54/#REF!)*$W54) ->  | BB54: 208271.224 | BG54: =IF(AJ54="","",(AJ54/#REF!)*$W54) ->  | BH54: =IF(AK54="","",(AK54/#REF!)*$W54) ->  | BI54: =IF(AL54="","",(AL54/#REF!)*$W54) ->  | BJ54: =IF(AM54="","",(AM54/#REF!)*$W54) ->  | BK54: =IF(AN54="","",(AN54/#REF!)*$W54) ->  | BL54: =IF(AO54="","",(AO54/#REF!)*$W54) ->  | BM54: =IF(AP54="","",(AP54/#REF!)*$W54) ->  | BN54: =IF(AQ54="","",(AQ54/#REF!)*$W54) ->  | BO54: =IF(AR54="","",(AR54/#REF!)*$W54) ->  | BP54: =IF(AS54="","",(AS54/#REF!)*$W54) ->  | BQ54: =IF(AT54="","",(AT54/#REF!)*$W54) ->  | BR54: =IF(AU54="","",(AU54/#REF!)*$W54) ->  | BS54: =IF(AV54="","",(AV54/#REF!)*$W54) ->  | BT54: =IF(AW54="","",(AW54/#REF!)*$W54) ->  | BU54: =IF(AX54="","",(AX54/#REF!)*$W54) ->  | BV54: =IF(AY54="","",(AY54/#REF!)*$W54) -> 
B55: PSBU06 | E55: Pump Station | F55: PSBU06 | G55: Shoal Point Rd No 1 SPS | L55: 0 | M55: 268558.1263 | O55: 1 | P55: 268558.1263 | S55: =IF(Q55="",'Unit Rates - Land'!landcst,IF($E$8="Landuse",VLOOKUP(Q55,LAndcost3,2,FALSE),IF($E$8="Location",VLOOKUP(Q55,Landcost2,2,FALSE),"Error"))) -> 0 | T55: 0 | U55: 2016 | V55: =IFERROR(('General Input Sheet'!$G$38/(VLOOKUP(U55,'General Input Sheet'!$E$38:$G$44,3,FALSE))),1) -> 1 | W55: 268558.1263 | X55: y | AE55: 50350 | AZ55: 50350 | BA55: =IF(AD55="","",(AD55/#REF!)*$W55) ->  | BB55: 268558.1263 | BG55: =IF(AJ55="","",(AJ55/#REF!)*$W55) ->  | BH55: =IF(AK55="","",(AK55/#REF!)*$W55) ->  | BI55: =IF(AL55="","",(AL55/#REF!)*$W55) ->  | BJ55: =IF(AM55="","",(AM55/#REF!)*$W55) ->  | BK55: =IF(AN55="","",(AN55/#REF!)*$W55) ->  | BL55: =IF(AO55="","",(AO55/#REF!)*$W55) ->  | BM55: =IF(AP55="","",(AP55/#REF!)*$W55) ->  | BN55: =IF(AQ55="","",(AQ55/#REF!)*$W55) ->  | BO55: =IF(AR55="","",(AR55/#REF!)*$W55) ->  | BP55: =IF(AS55="","",(AS55/#REF!)*$W55) ->  | BQ55: =IF(AT55="","",(AT55/#REF!)*$W55) ->  | BR55: =IF(AU55="","",(AU55/#REF!)*$W55) ->  | BS55: =IF(AV55="","",(AV55/#REF!)*$W55) ->  | BT55: =IF(AW55="","",(AW55/#REF!)*$W55) ->  | BU55: =IF(AX55="","",(AX55/#REF!)*$W55) ->  | BV55: =IF(AY55="","",(AY55/#REF!)*$W55) -> 
B56: PSBU07 | E56: Pump Station | F56: PSBU07 | G56: Dolphin Dr SPS | L56: 0 | M56: 230030.9395 | O56: 1 | P56: 230030.9395 | S56: =IF(Q56="",'Unit Rates - Land'!landcst,IF($E$8="Landuse",VLOOKUP(Q56,LAndcost3,2,FALSE),IF($E$8="Location",VLOOKUP(Q56,Landcost2,2,FALSE),"Error"))) -> 0 | T56: 0 | U56: 2016 | V56: =IFERROR(('General Input Sheet'!$G$38/(VLOOKUP(U56,'General Input Sheet'!$E$38:$G$44,3,FALSE))),1) -> 1 | W56: 230030.9395 | X56: y | AE56: 50350 | AZ56: 50350 | BA56: =IF(AD56="","",(AD56/#REF!)*$W56) ->  | BB56: 230030.9395 | BG56: =IF(AJ56="","",(AJ56/#REF!)*$W56) ->  | BH56: =IF(AK56="","",(AK56/#REF!)*$W56) ->  | BI56: =IF(AL56="","",(AL56/#REF!)*$W56) ->  | BJ56: =IF(AM56="","",(AM56/#REF!)*$W56) ->  | BK56: =IF(AN56="","",(AN56/#REF!)*$W56) ->  | BL56: =IF(AO56="","",(AO56/#REF!)*$W56) ->  | BM56: =IF(AP56="","",(AP56/#REF!)*$W56) ->  | BN56: =IF(AQ56="","",(AQ56/#REF!)*$W56) ->  | BO56: =IF(AR56="","",(AR56/#REF!)*$W56) ->  | BP56: =IF(AS56="","",(AS56/#REF!)*$W56) ->  | BQ56: =IF(AT56="","",(AT56/#REF!)*$W56) ->  | BR56: =IF(AU56="","",(AU56/#REF!)*$W56) ->  | BS56: =IF(AV56="","",(AV56/#REF!)*$W56) ->  | BT56: =IF(AW56="","",(AW56/#REF!)*$W56) ->  | BU56: =IF(AX56="","",(AX56/#REF!)*$W56) ->  | BV56: =IF(AY56="","",(AY56/#REF!)*$W56) -> 
B57: PSBU08 | E57: Pump Station | F57: PSBU08 | G57: Griffin Ave SPS | L57: 0 | M57: 221000.6887 | O57: 1 | P57: 221000.6887 | S57: =IF(Q57="",'Unit Rates - Land'!landcst,IF($E$8="Landuse",VLOOKUP(Q57,LAndcost3,2,FALSE),IF($E$8="Location",VLOOKUP(Q57,Landcost2,2,FALSE),"Error"))) -> 0 | T57: 0 | U57: 2016 | V57: =IFERROR(('General Input Sheet'!$G$38/(VLOOKUP(U57,'General Input Sheet'!$E$38:$G$44,3,FALSE))),1) -> 1 | W57: 221000.6887 | X57: y | AE57: 50350 | AZ57: 50350 | BA57: =IF(AD57="","",(AD57/#REF!)*$W57) ->  | BB57: 221000.6887 | BG57: =IF(AJ57="","",(AJ57/#REF!)*$W57) ->  | BH57: =IF(AK57="","",(AK57/#REF!)*$W57) ->  | BI57: =IF(AL57="","",(AL57/#REF!)*$W57) ->  | BJ57: =IF(AM57="","",(AM57/#REF!)*$W57) ->  | BK57: =IF(AN57="","",(AN57/#REF!)*$W57) ->  | BL57: =IF(AO57="","",(AO57/#REF!)*$W57) ->  | BM57: =IF(AP57="","",(AP57/#REF!)*$W57) ->  | BN57: =IF(AQ57="","",(AQ57/#REF!)*$W57) ->  | BO57: =IF(AR57="","",(AR57/#REF!)*$W57) ->  | BP57: =IF(AS57="","",(AS57/#REF!)*$W57) ->  | BQ57: =IF(AT57="","",(AT57/#REF!)*$W57) ->  | BR57: =IF(AU57="","",(AU57/#REF!)*$W57) ->  | BS57: =IF(AV57="","",(AV57/#REF!)*$W57) ->  | BT57: =IF(AW57="","",(AW57/#REF!)*$W57) ->  | BU57: =IF(AX57="","",(AX57/#REF!)*$W57) ->  | BV57: =IF(AY57="","",(AY57/#REF!)*$W57) -> 
B58: PSBU09 | E58: Pump Station | F58: PSBU09 | G58: Bucas Dr SPS | L58: 0 | M58: 293094.9864 | O58: 1 | P58: 293094.9864 | S58: =IF(Q58="",'Unit Rates - Land'!landcst,IF($E$8="Landuse",VLOOKUP(Q58,LAndcost3,2,FALSE),IF($E$8="Location",VLOOKUP(Q58,Landcost2,2,FALSE),"Error"))) -> 0 | T58: 0 | U58: 2016 | V58: =IFERROR(('General Input Sheet'!$G$38/(VLOOKUP(U58,'General Input Sheet'!$E$38:$G$44,3,FALSE))),1) -> 1 | W58: 293094.9864 | X58: y | AE58: 50350 | AZ58: 50350 | BA58: =IF(AD58="","",(AD58/#REF!)*$W58) ->  | BB58: 293094.9864 | BG58: =IF(AJ58="","",(AJ58/#REF!)*$W58) ->  | BH58: =IF(AK58="","",(AK58/#REF!)*$W58) ->  | BI58: =IF(AL58="","",(AL58/#REF!)*$W58) ->  | BJ58: =IF(AM58="","",(AM58/#REF!)*$W58) ->  | BK58: =IF(AN58="","",(AN58/#REF!)*$W58) ->  | BL58: =IF(AO58="","",(AO58/#REF!)*$W58) ->  | BM58: =IF(AP58="","",(AP58/#REF!)*$W58) ->  | BN58: =IF(AQ58="","",(AQ58/#REF!)*$W58) ->  | BO58: =IF(AR58="","",(AR58/#REF!)*$W58) ->  | BP58: =IF(AS58="","",(AS58/#REF!)*$W58) ->  | BQ58: =IF(AT58="","",(AT58/#REF!)*$W58) ->  | BR58: =IF(AU58="","",(AU58/#REF!)*$W58) ->  | BS58: =IF(AV58="","",(AV58/#REF!)*$W58) ->  | BT58: =IF(AW58="","",(AW58/#REF!)*$W58) ->  | BU58: =IF(AX58="","",(AX58/#REF!)*$W58) ->  | BV58: =IF(AY58="","",(AY58/#REF!)*$W58) -> 
B59: PSBU10 | E59: Pump Station | F59: PSBU10 | G59: Geoffrey Thomas Dr SPS | L59: 0 | M59: 230804.3609 | O59: 1 | P59: 230804.3609 | S59: =IF(Q59="",'Unit Rates - Land'!landcst,IF($E$8="Landuse",VLOOKUP(Q59,LAndcost3,2,FALSE),IF($E$8="Location",VLOOKUP(Q59,Landcost2,2,FALSE),"Error"))) -> 0 | T59: 0 | U59: 2016 | V59: =IFERROR(('General Input Sheet'!$G$38/(VLOOKUP(U59,'General Input Sheet'!$E$38:$G$44,3,FALSE))),1) -> 1 | W59: 230804.3609 | X59: y | AE59: 50350 | AZ59: 50350 | BA59: =IF(AD59="","",(AD59/#REF!)*$W59) ->  | BB59: 230804.3609 | BG59: =IF(AJ59="","",(AJ59/#REF!)*$W59) ->  | BH59: =IF(AK59="","",(AK59/#REF!)*$W59) ->  | BI59: =IF(AL59="","",(AL59/#REF!)*$W59) ->  | BJ59: =IF(AM59="","",(AM59/#REF!)*$W59) ->  | BK59: =IF(AN59="","",(AN59/#REF!)*$W59) ->  | BL59: =IF(AO59="","",(AO59/#REF!)*$W59) ->  | BM59: =IF(AP59="","",(AP59/#REF!)*$W59) ->  | BN59: =IF(AQ59="","",(AQ59/#REF!)*$W59) ->  | BO59: =IF(AR59="","",(AR59/#REF!)*$W59) ->  | BP59: =IF(AS59="","",(AS59/#REF!)*$W59) ->  | BQ59: =IF(AT59="","",(AT59/#REF!)*$W59) ->  | BR59: =IF(AU59="","",(AU59/#REF!)*$W59) ->  | BS59: =IF(AV59="","",(AV59/#REF!)*$W59) ->  | BT59: =IF(AW59="","",(AW59/#REF!)*$W59) ->  | BU59: =IF(AX59="","",(AX59/#REF!)*$W59) ->  | BV59: =IF(AY59="","",(AY59/#REF!)*$W59) -> 
B60: PSEI01 | E60: Pump Station | F60: PSEI01 | G60: Prawn Farm SPS | L60: 0 | M60: 688734.1608 | O60: 1 | P60: 688734.1608 | S60: =IF(Q60="",'Unit Rates - Land'!landcst,IF($E$8="Landuse",VLOOKUP(Q60,LAndcost3,2,FALSE),IF($E$8="Location",VLOOKUP(Q60,Landcost2,2,FALSE),"Error"))) -> 0 | T60: 0 | U60: 2016 | V60: =IFERROR(('General Input Sheet'!$G$38/(VLOOKUP(U60,'General Input Sheet'!$E$38:$G$44,3,FALSE))),1) -> 1 | W60: 688734.1608 | X60: y | AE60: 50350 | AZ60: 50350 | BA60: =IF(AD60="","",(AD60/#REF!)*$W60) ->  | BB60: 688734.1608 | BG60: =IF(AJ60="","",(AJ60/#REF!)*$W60) ->  | BH60: =IF(AK60="","",(AK60/#REF!)*$W60) ->  | BI60: =IF(AL60="","",(AL60/#REF!)*$W60) ->  | BJ60: =IF(AM60="","",(AM60/#REF!)*$W60) ->  | BK60: =IF(AN60="","",(AN60/#REF!)*$W60) ->  | BL60: =IF(AO60="","",(AO60/#REF!)*$W60) ->  | BM60: =IF(AP60="","",(AP60/#REF!)*$W60) ->  | BN60: =IF(AQ60="","",(AQ60/#REF!)*$W60) ->  | BO60: =IF(AR60="","",(AR60/#REF!)*$W60) ->  | BP60: =IF(AS60="","",(AS60/#REF!)*$W60) ->  | BQ60: =IF(AT60="","",(AT60/#REF!)*$W60) ->  | BR60: =IF(AU60="","",(AU60/#REF!)*$W60) ->  | BS60: =IF(AV60="","",(AV60/#REF!)*$W60) ->  | BT60: =IF(AW60="","",(AW60/#REF!)*$W60) ->  | BU60: =IF(AX60="","",(AX60/#REF!)*$W60) ->  | BV60: =IF(AY60="","",(AY60/#REF!)*$W60) -> 
B61: PSEI02 | E61: Pump Station | F61: PSEI02 | G61: Eimeo Rd No 1 SPS | L61: 0 | M61: 296960.9177 | O61: 1 | P61: 296960.9177 | S61: =IF(Q61="",'Unit Rates - Land'!landcst,IF($E$8="Landuse",VLOOKUP(Q61,LAndcost3,2,FALSE),IF($E$8="Location",VLOOKUP(Q61,Landcost2,2,FALSE),"Error"))) -> 0 | T61: 0 | U61: 2016 | V61: =IFERROR(('General Input Sheet'!$G$38/(VLOOKUP(U61,'General Input Sheet'!$E$38:$G$44,3,FALSE))),1) -> 1 | W61: 296960.9177 | X61: y | AE61: 50350 | AZ61: 50350 | BA61: =IF(AD61="","",(AD61/#REF!)*$W61) ->  | BB61: 296960.9177 | BG61: =IF(AJ61="","",(AJ61/#REF!)*$W61) ->  | BH61: =IF(AK61="","",(AK61/#REF!)*$W61) ->  | BI61: =IF(AL61="","",(AL61/#REF!)*$W61) ->  | BJ61: =IF(AM61="","",(AM61/#REF!)*$W61) ->  | BK61: =IF(AN61="","",(AN61/#REF!)*$W61) ->  | BL61: =IF(AO61="","",(AO61/#REF!)*$W61) ->  | BM61: =IF(AP61="","",(AP61/#REF!)*$W61) ->  | BN61: =IF(AQ61="","",(AQ61/#REF!)*$W61) ->  | BO61: =IF(AR61="","",(AR61/#REF!)*$W61) ->  | BP61: =IF(AS61="","",(AS61/#REF!)*$W61) ->  | BQ61: =IF(AT61="","",(AT61/#REF!)*$W61) ->  | BR61: =IF(AU61="","",(AU61/#REF!)*$W61) ->  | BS61: =IF(AV61="","",(AV61/#REF!)*$W61) ->  | BT61: =IF(AW61="","",(AW61/#REF!)*$W61) ->  | BU61: =IF(AX61="","",(AX61/#REF!)*$W61) ->  | BV61: =IF(AY61="","",(AY61/#REF!)*$W61) -> 
B62: PSEI03 | E62: Pump Station | F62: PSEI03 | G62: Eimeo Rd No 2 SPS | L62: 0 | M62: 244136.3304 | O62: 1 | P62: 244136.3304 | S62: =IF(Q62="",'Unit Rates - Land'!landcst,IF($E$8="Landuse",VLOOKUP(Q62,LAndcost3,2,FALSE),IF($E$8="Location",VLOOKUP(Q62,Landcost2,2,FALSE),"Error"))) -> 0 | T62: 0 | U62: 2016 | V62: =IFERROR(('General Input Sheet'!$G$38/(VLOOKUP(U62,'General Input Sheet'!$E$38:$G$44,3,FALSE))),1) -> 1 | W62: 244136.3304 | X62: y | AE62: 50350 | AZ62: 50350 | BA62: =IF(AD62="","",(AD62/#REF!)*$W62) ->  | BB62: 244136.3304 | BG62: =IF(AJ62="","",(AJ62/#REF!)*$W62) ->  | BH62: =IF(AK62="","",(AK62/#REF!)*$W62) ->  | BI62: =IF(AL62="","",(AL62/#REF!)*$W62) ->  | BJ62: =IF(AM62="","",(AM62/#REF!)*$W62) ->  | BK62: =IF(AN62="","",(AN62/#REF!)*$W62) ->  | BL62: =IF(AO62="","",(AO62/#REF!)*$W62) ->  | BM62: =IF(AP62="","",(AP62/#REF!)*$W62) ->  | BN62: =IF(AQ62="","",(AQ62/#REF!)*$W62) ->  | BO62: =IF(AR62="","",(AR62/#REF!)*$W62) ->  | BP62: =IF(AS62="","",(AS62/#REF!)*$W62) ->  | BQ62: =IF(AT62="","",(AT62/#REF!)*$W62) ->  | BR62: =IF(AU62="","",(AU62/#REF!)*$W62) ->  | BS62: =IF(AV62="","",(AV62/#REF!)*$W62) ->  | BT62: =IF(AW62="","",(AW62/#REF!)*$W62) ->  | BU62: =IF(AX62="","",(AX62/#REF!)*$W62) ->  | BV62: =IF(AY62="","",(AY62/#REF!)*$W62) -> 
B63: PSEI04 | E63: Pump Station | F63: PSEI04 | G63: Shann St SPS | L63: 0 | M63: 263370.8897 | O63: 1 | P63: 263370.8897 | S63: =IF(Q63="",'Unit Rates - Land'!landcst,IF($E$8="Landuse",VLOOKUP(Q63,LAndcost3,2,FALSE),IF($E$8="Location",VLOOKUP(Q63,Landcost2,2,FALSE),"Error"))) -> 0 | T63: 0 | U63: 2016 | V63: =IFERROR(('General Input Sheet'!$G$38/(VLOOKUP(U63,'General Input Sheet'!$E$38:$G$44,3,FALSE))),1) -> 1 | W63: 263370.8897 | X63: y | AE63: 50350 | AZ63: 50350 | BA63: =IF(AD63="","",(AD63/#REF!)*$W63) ->  | BB63: 263370.8897 | BG63: =IF(AJ63="","",(AJ63/#REF!)*$W63) ->  | BH63: =IF(AK63="","",(AK63/#REF!)*$W63) ->  | BI63: =IF(AL63="","",(AL63/#REF!)*$W63) ->  | BJ63: =IF(AM63="","",(AM63/#REF!)*$W63) ->  | BK63: =IF(AN63="","",(AN63/#REF!)*$W63) ->  | BL63: =IF(AO63="","",(AO63/#REF!)*$W63) ->  | BM63: =IF(AP63="","",(AP63/#REF!)*$W63) ->  | BN63: =IF(AQ63="","",(AQ63/#REF!)*$W63) ->  | BO63: =IF(AR63="","",(AR63/#REF!)*$W63) ->  | BP63: =IF(AS63="","",(AS63/#REF!)*$W63) ->  | BQ63: =IF(AT63="","",(AT63/#REF!)*$W63) ->  | BR63: =IF(AU63="","",(AU63/#REF!)*$W63) ->  | BS63: =IF(AV63="","",(AV63/#REF!)*$W63) ->  | BT63: =IF(AW63="","",(AW63/#REF!)*$W63) ->  | BU63: =IF(AX63="","",(AX63/#REF!)*$W63) ->  | BV63: =IF(AY63="","",(AY63/#REF!)*$W63) -> 
B64: PSEI05 | E64: Pump Station | F64: PSEI05 | G64: Sunset Bvd SPS | L64: 0 | M64: 235064.6778 | O64: 1 | P64: 235064.6778 | S64: =IF(Q64="",'Unit Rates - Land'!landcst,IF($E$8="Landuse",VLOOKUP(Q64,LAndcost3,2,FALSE),IF($E$8="Location",VLOOKUP(Q64,Landcost2,2,FALSE),"Error"))) -> 0 | T64: 0 | U64: 2016 | V64: =IFERROR(('General Input Sheet'!$G$38/(VLOOKUP(U64,'General Input Sheet'!$E$38:$G$44,3,FALSE))),1) -> 1 | W64: 235064.6778 | X64: y | AE64: 50350 | AZ64: 50350 | BA64: =IF(AD64="","",(AD64/#REF!)*$W64) ->  | BB64: 235064.6778 | BG64: =IF(AJ64="","",(AJ64/#REF!)*$W64) ->  | BH64: =IF(AK64="","",(AK64/#REF!)*$W64) ->  | BI64: =IF(AL64="","",(AL64/#REF!)*$W64) ->  | BJ64: =IF(AM64="","",(AM64/#REF!)*$W64) ->  | BK64: =IF(AN64="","",(AN64/#REF!)*$W64) ->  | BL64: =IF(AO64="","",(AO64/#REF!)*$W64) ->  | BM64: =IF(AP64="","",(AP64/#REF!)*$W64) ->  | BN64: =IF(AQ64="","",(AQ64/#REF!)*$W64) ->  | BO64: =IF(AR64="","",(AR64/#REF!)*$W64) ->  | BP64: =IF(AS64="","",(AS64/#REF!)*$W64) ->  | BQ64: =IF(AT64="","",(AT64/#REF!)*$W64) ->  | BR64: =IF(AU64="","",(AU64/#REF!)*$W64) ->  | BS64: =IF(AV64="","",(AV64/#REF!)*$W64) ->  | BT64: =IF(AW64="","",(AW64/#REF!)*$W64) ->  | BU64: =IF(AX64="","",(AX64/#REF!)*$W64) ->  | BV64: =IF(AY64="","",(AY64/#REF!)*$W64) -> 
B65: PSEI06 | E65: Pump Station | F65: PSEI06 | G65: Shepherd Rd SPS | L65: 0 | M65: 200953.6832 | O65: 1 | P65: 200953.6832 | S65: =IF(Q65="",'Unit Rates - Land'!landcst,IF($E$8="Landuse",VLOOKUP(Q65,LAndcost3,2,FALSE),IF($E$8="Location",VLOOKUP(Q65,Landcost2,2,FALSE),"Error"))) -> 0 | T65: 0 | U65: 2016 | V65: =IFERROR(('General Input Sheet'!$G$38/(VLOOKUP(U65,'General Input Sheet'!$E$38:$G$44,3,FALSE))),1) -> 1 | W65: 200953.6832 | X65: y | AE65: 50350 | AZ65: 50350 | BA65: =IF(AD65="","",(AD65/#REF!)*$W65) ->  | BB65: 200953.6832 | BG65: =IF(AJ65="","",(AJ65/#REF!)*$W65) ->  | BH65: =IF(AK65="","",(AK65/#REF!)*$W65) ->  | BI65: =IF(AL65="","",(AL65/#REF!)*$W65) ->  | BJ65: =IF(AM65="","",(AM65/#REF!)*$W65) ->  | BK65: =IF(AN65="","",(AN65/#REF!)*$W65) ->  | BL65: =IF(AO65="","",(AO65/#REF!)*$W65) ->  | BM65: =IF(AP65="","",(AP65/#REF!)*$W65) ->  | BN65: =IF(AQ65="","",(AQ65/#REF!)*$W65) ->  | BO65: =IF(AR65="","",(AR65/#REF!)*$W65) ->  | BP65: =IF(AS65="","",(AS65/#REF!)*$W65) ->  | BQ65: =IF(AT65="","",(AT65/#REF!)*$W65) ->  | BR65: =IF(AU65="","",(AU65/#REF!)*$W65) ->  | BS65: =IF(AV65="","",(AV65/#REF!)*$W65) ->  | BT65: =IF(AW65="","",(AW65/#REF!)*$W65) ->  | BU65: =IF(AX65="","",(AX65/#REF!)*$W65) ->  | BV65: =IF(AY65="","",(AY65/#REF!)*$W65) -> 
B66: PSEI07 | E66: Pump Station | F66: PSEI07 | G66: Blacks Beach Rd SPS | L66: 0 | M66: 471471.5828 | O66: 1 | P66: 471471.5828 | S66: =IF(Q66="",'Unit Rates - Land'!landcst,IF($E$8="Landuse",VLOOKUP(Q66,LAndcost3,2,FALSE),IF($E$8="Location",VLOOKUP(Q66,Landcost2,2,FALSE),"Error"))) -> 0 | T66: 0 | U66: 2016 | V66: =IFERROR(('General Input Sheet'!$G$38/(VLOOKUP(U66,'General Input Sheet'!$E$38:$G$44,3,FALSE))),1) -> 1 | W66: 471471.5828 | X66: y | AE66: 50350 | AZ66: 50350 | BA66: =IF(AD66="","",(AD66/#REF!)*$W66) ->  | BB66: 471471.5828 | BG66: =IF(AJ66="","",(AJ66/#REF!)*$W66) ->  | BH66: =IF(AK66="","",(AK66/#REF!)*$W66) ->  | BI66: =IF(AL66="","",(AL66/#REF!)*$W66) ->  | BJ66: =IF(AM66="","",(AM66/#REF!)*$W66) ->  | BK66: =IF(AN66="","",(AN66/#REF!)*$W66) ->  | BL66: =IF(AO66="","",(AO66/#REF!)*$W66) ->  | BM66: =IF(AP66="","",(AP66/#REF!)*$W66) ->  | BN66: =IF(AQ66="","",(AQ66/#REF!)*$W66) ->  | BO66: =IF(AR66="","",(AR66/#REF!)*$W66) ->  | BP66: =IF(AS66="","",(AS66/#REF!)*$W66) ->  | BQ66: =IF(AT66="","",(AT66/#REF!)*$W66) ->  | BR66: =IF(AU66="","",(AU66/#REF!)*$W66) ->  | BS66: =IF(AV66="","",(AV66/#REF!)*$W66) ->  | BT66: =IF(AW66="","",(AW66/#REF!)*$W66) ->  | BU66: =IF(AX66="","",(AX66/#REF!)*$W66) ->  | BV66: =IF(AY66="","",(AY66/#REF!)*$W66) -> 
B67: PSEI08 | E67: Pump Station | F67: PSEI08 | G67: Camilleri St SPS | L67: 0 | M67: 539744.8534 | O67: 1 | P67: 539744.8534 | S67: =IF(Q67="",'Unit Rates - Land'!landcst,IF($E$8="Landuse",VLOOKUP(Q67,LAndcost3,2,FALSE),IF($E$8="Location",VLOOKUP(Q67,Landcost2,2,FALSE),"Error"))) -> 0 | T67: 0 | U67: 2016 | V67: =IFERROR(('General Input Sheet'!$G$38/(VLOOKUP(U67,'General Input Sheet'!$E$38:$G$44,3,FALSE))),1) -> 1 | W67: 539744.8534 | X67: y | AE67: 50350 | AZ67: 50350 | BA67: =IF(AD67="","",(AD67/#REF!)*$W67) ->  | BB67: 539744.8534 | BG67: =IF(AJ67="","",(AJ67/#REF!)*$W67) ->  | BH67: =IF(AK67="","",(AK67/#REF!)*$W67) ->  | BI67: =IF(AL67="","",(AL67/#REF!)*$W67) ->  | BJ67: =IF(AM67="","",(AM67/#REF!)*$W67) ->  | BK67: =IF(AN67="","",(AN67/#REF!)*$W67) ->  | BL67: =IF(AO67="","",(AO67/#REF!)*$W67) ->  | BM67: =IF(AP67="","",(AP67/#REF!)*$W67) ->  | BN67: =IF(AQ67="","",(AQ67/#REF!)*$W67) ->  | BO67: =IF(AR67="","",(AR67/#REF!)*$W67) ->  | BP67: =IF(AS67="","",(AS67/#REF!)*$W67) ->  | BQ67: =IF(AT67="","",(AT67/#REF!)*$W67) ->  | BR67: =IF(AU67="","",(AU67/#REF!)*$W67) ->  | BS67: =IF(AV67="","",(AV67/#REF!)*$W67) ->  | BT67: =IF(AW67="","",(AW67/#REF!)*$W67) ->  | BU67: =IF(AX67="","",(AX67/#REF!)*$W67) ->  | BV67: =IF(AY67="","",(AY67/#REF!)*$W67) -> 
B68: PSEI09 | E68: Pump Station | F68: PSEI09 | G68: Admiral Dr SPS | L68: 0 | M68: 220047.4021 | O68: 1 | P68: 220047.4021 | S68: =IF(Q68="",'Unit Rates - Land'!landcst,IF($E$8="Landuse",VLOOKUP(Q68,LAndcost3,2,FALSE),IF($E$8="Location",VLOOKUP(Q68,Landcost2,2,FALSE),"Error"))) -> 0 | T68: 0 | U68: 2016 | V68: =IFERROR(('General Input Sheet'!$G$38/(VLOOKUP(U68,'General Input Sheet'!$E$38:$G$44,3,FALSE))),1) -> 1 | W68: 220047.4021 | X68: y | AE68: 50350 | AZ68: 50350 | BA68: =IF(AD68="","",(AD68/#REF!)*$W68) ->  | BB68: 220047.4021 | BG68: =IF(AJ68="","",(AJ68/#REF!)*$W68) ->  | BH68: =IF(AK68="","",(AK68/#REF!)*$W68) ->  | BI68: =IF(AL68="","",(AL68/#REF!)*$W68) ->  | BJ68: =IF(AM68="","",(AM68/#REF!)*$W68) ->  | BK68: =IF(AN68="","",(AN68/#REF!)*$W68) ->  | BL68: =IF(AO68="","",(AO68/#REF!)*$W68) ->  | BM68: =IF(AP68="","",(AP68/#REF!)*$W68) ->  | BN68: =IF(AQ68="","",(AQ68/#REF!)*$W68) ->  | BO68: =IF(AR68="","",(AR68/#REF!)*$W68) ->  | BP68: =IF(AS68="","",(AS68/#REF!)*$W68) ->  | BQ68: =IF(AT68="","",(AT68/#REF!)*$W68) ->  | BR68: =IF(AU68="","",(AU68/#REF!)*$W68) ->  | BS68: =IF(AV68="","",(AV68/#REF!)*$W68) ->  | BT68: =IF(AW68="","",(AW68/#REF!)*$W68) ->  | BU68: =IF(AX68="","",(AX68/#REF!)*$W68) ->  | BV68: =IF(AY68="","",(AY68/#REF!)*$W68) -> 
B69: PSEI10 | E69: Pump Station | F69: PSEI10 | G69: Pacific Dr No 1 SPS | L69: 0 | M69: 486139.173 | O69: 1 | P69: 486139.173 | S69: =IF(Q69="",'Unit Rates - Land'!landcst,IF($E$8="Landuse",VLOOKUP(Q69,LAndcost3,2,FALSE),IF($E$8="Location",VLOOKUP(Q69,Landcost2,2,FALSE),"Error"))) -> 0 | T69: 0 | U69: 2016 | V69: =IFERROR(('General Input Sheet'!$G$38/(VLOOKUP(U69,'General Input Sheet'!$E$38:$G$44,3,FALSE))),1) -> 1 | W69: 486139.173 | X69: y | AE69: 50350 | AZ69: 50350 | BA69: =IF(AD69="","",(AD69/#REF!)*$W69) ->  | BB69: 486139.173 | BG69: =IF(AJ69="","",(AJ69/#REF!)*$W69) ->  | BH69: =IF(AK69="","",(AK69/#REF!)*$W69) ->  | BI69: =IF(AL69="","",(AL69/#REF!)*$W69) ->  | BJ69: =IF(AM69="","",(AM69/#REF!)*$W69) ->  | BK69: =IF(AN69="","",(AN69/#REF!)*$W69) ->  | BL69: =IF(AO69="","",(AO69/#REF!)*$W69) ->  | BM69: =IF(AP69="","",(AP69/#REF!)*$W69) ->  | BN69: =IF(AQ69="","",(AQ69/#REF!)*$W69) ->  | BO69: =IF(AR69="","",(AR69/#REF!)*$W69) ->  | BP69: =IF(AS69="","",(AS69/#REF!)*$W69) ->  | BQ69: =IF(AT69="","",(AT69/#REF!)*$W69) ->  | BR69: =IF(AU69="","",(AU69/#REF!)*$W69) ->  | BS69: =IF(AV69="","",(AV69/#REF!)*$W69) ->  | BT69: =IF(AW69="","",(AW69/#REF!)*$W69) ->  | BU69: =IF(AX69="","",(AX69/#REF!)*$W69) ->  | BV69: =IF(AY69="","",(AY69/#REF!)*$W69) -> 
B70: PSEI11 | E70: Pump Station | F70: PSEI11 | G70: Bourke St SPS | L70: 0 | M70: 234655.0778 | O70: 1 | P70: 234655.0778 | S70: =IF(Q70="",'Unit Rates - Land'!landcst,IF($E$8="Landuse",VLOOKUP(Q70,LAndcost3,2,FALSE),IF($E$8="Location",VLOOKUP(Q70,Landcost2,2,FALSE),"Error"))) -> 0 | T70: 0 | U70: 2016 | V70: =IFERROR(('General Input Sheet'!$G$38/(VLOOKUP(U70,'General Input Sheet'!$E$38:$G$44,3,FALSE))),1) -> 1 | W70: 234655.0778 | X70: y | AE70: 50350 | AZ70: 50350 | BA70: =IF(AD70="","",(AD70/#REF!)*$W70) ->  | BB70: 234655.0778 | BG70: =IF(AJ70="","",(AJ70/#REF!)*$W70) ->  | BH70: =IF(AK70="","",(AK70/#REF!)*$W70) ->  | BI70: =IF(AL70="","",(AL70/#REF!)*$W70) ->  | BJ70: =IF(AM70="","",(AM70/#REF!)*$W70) ->  | BK70: =IF(AN70="","",(AN70/#REF!)*$W70) ->  | BL70: =IF(AO70="","",(AO70/#REF!)*$W70) ->  | BM70: =IF(AP70="","",(AP70/#REF!)*$W70) ->  | BN70: =IF(AQ70="","",(AQ70/#REF!)*$W70) ->  | BO70: =IF(AR70="","",(AR70/#REF!)*$W70) ->  | BP70: =IF(AS70="","",(AS70/#REF!)*$W70) ->  | BQ70: =IF(AT70="","",(AT70/#REF!)*$W70) ->  | BR70: =IF(AU70="","",(AU70/#REF!)*$W70) ->  | BS70: =IF(AV70="","",(AV70/#REF!)*$W70) ->  | BT70: =IF(AW70="","",(AW70/#REF!)*$W70) ->  | BU70: =IF(AX70="","",(AX70/#REF!)*$W70) ->  | BV70: =IF(AY70="","",(AY70/#REF!)*$W70) -> 
B71: PSEI13 | E71: Pump Station | F71: PSEI13 | G71: Avalon Dr SPS | L71: 0 | M71: 236802.974 | O71: 1 | P71: 236802.974 | S71: =IF(Q71="",'Unit Rates - Land'!landcst,IF($E$8="Landuse",VLOOKUP(Q71,LAndcost3,2,FALSE),IF($E$8="Location",VLOOKUP(Q71,Landcost2,2,FALSE),"Error"))) -> 0 | T71: 0 | U71: 2016 | V71: =IFERROR(('General Input Sheet'!$G$38/(VLOOKUP(U71,'General Input Sheet'!$E$38:$G$44,3,FALSE))),1) -> 1 | W71: 236802.974 | X71: y | AE71: 50350 | AZ71: 50350 | BA71: =IF(AD71="","",(AD71/#REF!)*$W71) ->  | BB71: 236802.974 | BG71: =IF(AJ71="","",(AJ71/#REF!)*$W71) ->  | BH71: =IF(AK71="","",(AK71/#REF!)*$W71) ->  | BI71: =IF(AL71="","",(AL71/#REF!)*$W71) ->  | BJ71: =IF(AM71="","",(AM71/#REF!)*$W71) ->  | BK71: =IF(AN71="","",(AN71/#REF!)*$W71) ->  | BL71: =IF(AO71="","",(AO71/#REF!)*$W71) ->  | BM71: =IF(AP71="","",(AP71/#REF!)*$W71) ->  | BN71: =IF(AQ71="","",(AQ71/#REF!)*$W71) ->  | BO71: =IF(AR71="","",(AR71/#REF!)*$W71) ->  | BP71: =IF(AS71="","",(AS71/#REF!)*$W71) ->  | BQ71: =IF(AT71="","",(AT71/#REF!)*$W71) ->  | BR71: =IF(AU71="","",(AU71/#REF!)*$W71) ->  | BS71: =IF(AV71="","",(AV71/#REF!)*$W71) ->  | BT71: =IF(AW71="","",(AW71/#REF!)*$W71) ->  | BU71: =IF(AX71="","",(AX71/#REF!)*$W71) ->  | BV71: =IF(AY71="","",(AY71/#REF!)*$W71) -> 
B72: PSEI14 | E72: Pump Station | F72: PSEI14 | G72: Pacific Dr No 2 SPS | L72: 0 | M72: 309237.2735 | O72: 1 | P72: 309237.2735 | S72: =IF(Q72="",'Unit Rates - Land'!landcst,IF($E$8="Landuse",VLOOKUP(Q72,LAndcost3,2,FALSE),IF($E$8="Location",VLOOKUP(Q72,Landcost2,2,FALSE),"Error"))) -> 0 | T72: 0 | U72: 2016 | V72: =IFERROR(('General Input Sheet'!$G$38/(VLOOKUP(U72,'General Input Sheet'!$E$38:$G$44,3,FALSE))),1) -> 1 | W72: 309237.2735 | X72: y | AE72: 50350 | AZ72: 50350 | BA72: =IF(AD72="","",(AD72/#REF!)*$W72) ->  | BB72: 309237.2735 | BG72: =IF(AJ72="","",(AJ72/#REF!)*$W72) ->  | BH72: =IF(AK72="","",(AK72/#REF!)*$W72) ->  | BI72: =IF(AL72="","",(AL72/#REF!)*$W72) ->  | BJ72: =IF(AM72="","",(AM72/#REF!)*$W72) ->  | BK72: =IF(AN72="","",(AN72/#REF!)*$W72) ->  | BL72: =IF(AO72="","",(AO72/#REF!)*$W72) ->  | BM72: =IF(AP72="","",(AP72/#REF!)*$W72) ->  | BN72: =IF(AQ72="","",(AQ72/#REF!)*$W72) ->  | BO72: =IF(AR72="","",(AR72/#REF!)*$W72) ->  | BP72: =IF(AS72="","",(AS72/#REF!)*$W72) ->  | BQ72: =IF(AT72="","",(AT72/#REF!)*$W72) ->  | BR72: =IF(AU72="","",(AU72/#REF!)*$W72) ->  | BS72: =IF(AV72="","",(AV72/#REF!)*$W72) ->  | BT72: =IF(AW72="","",(AW72/#REF!)*$W72) ->  | BU72: =IF(AX72="","",(AX72/#REF!)*$W72) ->  | BV72: =IF(AY72="","",(AY72/#REF!)*$W72) -> 
B73: PSEI15 | E73: Pump Station | F73: PSEI15 | G73: Whitehaven Dr SPS | L73: 0 | M73: 225000 | O73: 1 | P73: 225000 | S73: =IF(Q73="",'Unit Rates - Land'!landcst,IF($E$8="Landuse",VLOOKUP(Q73,LAndcost3,2,FALSE),IF($E$8="Location",VLOOKUP(Q73,Landcost2,2,FALSE),"Error"))) -> 0 | T73: 0 | U73: 2016 | V73: =IFERROR(('General Input Sheet'!$G$38/(VLOOKUP(U73,'General Input Sheet'!$E$38:$G$44,3,FALSE))),1) -> 1 | W73: 225000 | X73: y | AE73: 50350 | AZ73: 50350 | BA73: =IF(AD73="","",(AD73/#REF!)*$W73) ->  | BB73: 225000 | BG73: =IF(AJ73="","",(AJ73/#REF!)*$W73) ->  | BH73: =IF(AK73="","",(AK73/#REF!)*$W73) ->  | BI73: =IF(AL73="","",(AL73/#REF!)*$W73) ->  | BJ73: =IF(AM73="","",(AM73/#REF!)*$W73) ->  | BK73: =IF(AN73="","",(AN73/#REF!)*$W73) ->  | BL73: =IF(AO73="","",(AO73/#REF!)*$W73) ->  | BM73: =IF(AP73="","",(AP73/#REF!)*$W73) ->  | BN73: =IF(AQ73="","",(AQ73/#REF!)*$W73) ->  | BO73: =IF(AR73="","",(AR73/#REF!)*$W73) ->  | BP73: =IF(AS73="","",(AS73/#REF!)*$W73) ->  | BQ73: =IF(AT73="","",(AT73/#REF!)*$W73) ->  | BR73: =IF(AU73="","",(AU73/#REF!)*$W73) ->  | BS73: =IF(AV73="","",(AV73/#REF!)*$W73) ->  | BT73: =IF(AW73="","",(AW73/#REF!)*$W73) ->  | BU73: =IF(AX73="","",(AX73/#REF!)*$W73) ->  | BV73: =IF(AY73="","",(AY73/#REF!)*$W73) -> 
B74: PSEI16 | E74: Pump Station | F74: PSEI16 | G74: Duranbah Cct SPS | L74: 0 | M74: 126302.8486 | O74: 1 | P74: 126302.8486 | S74: =IF(Q74="",'Unit Rates - Land'!landcst,IF($E$8="Landuse",VLOOKUP(Q74,LAndcost3,2,FALSE),IF($E$8="Location",VLOOKUP(Q74,Landcost2,2,FALSE),"Error"))) -> 0 | T74: 0 | U74: 2016 | V74: =IFERROR(('General Input Sheet'!$G$38/(VLOOKUP(U74,'General Input Sheet'!$E$38:$G$44,3,FALSE))),1) -> 1 | W74: 126302.8486 | X74: y | AE74: 50350 | AZ74: 50350 | BA74: =IF(AD74="","",(AD74/#REF!)*$W74) ->  | BB74: 126302.8486 | BG74: =IF(AJ74="","",(AJ74/#REF!)*$W74) ->  | BH74: =IF(AK74="","",(AK74/#REF!)*$W74) ->  | BI74: =IF(AL74="","",(AL74/#REF!)*$W74) ->  | BJ74: =IF(AM74="","",(AM74/#REF!)*$W74) ->  | BK74: =IF(AN74="","",(AN74/#REF!)*$W74) ->  | BL74: =IF(AO74="","",(AO74/#REF!)*$W74) ->  | BM74: =IF(AP74="","",(AP74/#REF!)*$W74) ->  | BN74: =IF(AQ74="","",(AQ74/#REF!)*$W74) ->  | BO74: =IF(AR74="","",(AR74/#REF!)*$W74) ->  | BP74: =IF(AS74="","",(AS74/#REF!)*$W74) ->  | BQ74: =IF(AT74="","",(AT74/#REF!)*$W74) ->  | BR74: =IF(AU74="","",(AU74/#REF!)*$W74) ->  | BS74: =IF(AV74="","",(AV74/#REF!)*$W74) ->  | BT74: =IF(AW74="","",(AW74/#REF!)*$W74) ->  | BU74: =IF(AX74="","",(AX74/#REF!)*$W74) ->  | BV74: =IF(AY74="","",(AY74/#REF!)*$W74) -> 
B75: PSGL01 | E75: Pump Station | F75: PSGL01 | G75: Frank Cowley Dr SPS | L75: 0 | M75: 297638.4466 | O75: 1 | P75: 297638.4466 | S75: =IF(Q75="",'Unit Rates - Land'!landcst,IF($E$8="Landuse",VLOOKUP(Q75,LAndcost3,2,FALSE),IF($E$8="Location",VLOOKUP(Q75,Landcost2,2,FALSE),"Error"))) -> 0 | T75: 0 | U75: 2016 | V75: =IFERROR(('General Input Sheet'!$G$38/(VLOOKUP(U75,'General Input Sheet'!$E$38:$G$44,3,FALSE))),1) -> 1 | W75: 297638.4466 | Y75: y | AF75: 52373 | AZ75: 52373 | BA75: =IF(AD75="","",(AD75/#REF!)*$W75) ->  | BC75: 297638.4466 | BG75: =IF(AJ75="","",(AJ75/#REF!)*$W75) ->  | BH75: =IF(AK75="","",(AK75/#REF!)*$W75) ->  | BI75: =IF(AL75="","",(AL75/#REF!)*$W75) ->  | BJ75: =IF(AM75="","",(AM75/#REF!)*$W75) ->  | BK75: =IF(AN75="","",(AN75/#REF!)*$W75) ->  | BL75: =IF(AO75="","",(AO75/#REF!)*$W75) ->  | BM75: =IF(AP75="","",(AP75/#REF!)*$W75) ->  | BN75: =IF(AQ75="","",(AQ75/#REF!)*$W75) ->  | BO75: =IF(AR75="","",(AR75/#REF!)*$W75) ->  | BP75: =IF(AS75="","",(AS75/#REF!)*$W75) ->  | BQ75: =IF(AT75="","",(AT75/#REF!)*$W75) ->  | BR75: =IF(AU75="","",(AU75/#REF!)*$W75) ->  | BS75: =IF(AV75="","",(AV75/#REF!)*$W75) ->  | BT75: =IF(AW75="","",(AW75/#REF!)*$W75) ->  | BU75: =IF(AX75="","",(AX75/#REF!)*$W75) ->  | BV75: =IF(AY75="","",(AY75/#REF!)*$W75) -> 
B76: PSGL02 | E76: Pump Station | F76: PSGL02 | G76: Cinnamon Dr SPS | L76: 0 | M76: 275172.4388 | O76: 1 | P76: 275172.4388 | S76: =IF(Q76="",'Unit Rates - Land'!landcst,IF($E$8="Landuse",VLOOKUP(Q76,LAndcost3,2,FALSE),IF($E$8="Location",VLOOKUP(Q76,Landcost2,2,FALSE),"Error"))) -> 0 | T76: 0 | U76: 2016 | V76: =IFERROR(('General Input Sheet'!$G$38/(VLOOKUP(U76,'General Input Sheet'!$E$38:$G$44,3,FALSE))),1) -> 1 | W76: 275172.4388 | Y76: y | AF76: 52373 | AZ76: 52373 | BA76: =IF(AD76="","",(AD76/#REF!)*$W76) ->  | BC76: 275172.4388 | BG76: =IF(AJ76="","",(AJ76/#REF!)*$W76) ->  | BH76: =IF(AK76="","",(AK76/#REF!)*$W76) ->  | BI76: =IF(AL76="","",(AL76/#REF!)*$W76) ->  | BJ76: =IF(AM76="","",(AM76/#REF!)*$W76) ->  | BK76: =IF(AN76="","",(AN76/#REF!)*$W76) ->  | BL76: =IF(AO76="","",(AO76/#REF!)*$W76) ->  | BM76: =IF(AP76="","",(AP76/#REF!)*$W76) ->  | BN76: =IF(AQ76="","",(AQ76/#REF!)*$W76) ->  | BO76: =IF(AR76="","",(AR76/#REF!)*$W76) ->  | BP76: =IF(AS76="","",(AS76/#REF!)*$W76) ->  | BQ76: =IF(AT76="","",(AT76/#REF!)*$W76) ->  | BR76: =IF(AU76="","",(AU76/#REF!)*$W76) ->  | BS76: =IF(AV76="","",(AV76/#REF!)*$W76) ->  | BT76: =IF(AW76="","",(AW76/#REF!)*$W76) ->  | BU76: =IF(AX76="","",(AX76/#REF!)*$W76) ->  | BV76: =IF(AY76="","",(AY76/#REF!)*$W76) -> 
B77: PSGL04 | E77: Pump Station | F77: PSGL04 | G77: Wheeler Dr SPS | L77: 0 | M77: 376433.0263 | O77: 1 | P77: 376433.0263 | S77: =IF(Q77="",'Unit Rates - Land'!landcst,IF($E$8="Landuse",VLOOKUP(Q77,LAndcost3,2,FALSE),IF($E$8="Location",VLOOKUP(Q77,Landcost2,2,FALSE),"Error"))) -> 0 | T77: 0 | U77: 2016 | V77: =IFERROR(('General Input Sheet'!$G$38/(VLOOKUP(U77,'General Input Sheet'!$E$38:$G$44,3,FALSE))),1) -> 1 | W77: 376433.0263 | Y77: y | AF77: 52373 | AZ77: 52373 | BA77: =IF(AD77="","",(AD77/#REF!)*$W77) ->  | BC77: 376433.0263 | BG77: =IF(AJ77="","",(AJ77/#REF!)*$W77) ->  | BH77: =IF(AK77="","",(AK77/#REF!)*$W77) ->  | BI77: =IF(AL77="","",(AL77/#REF!)*$W77) ->  | BJ77: =IF(AM77="","",(AM77/#REF!)*$W77) ->  | BK77: =IF(AN77="","",(AN77/#REF!)*$W77) ->  | BL77: =IF(AO77="","",(AO77/#REF!)*$W77) ->  | BM77: =IF(AP77="","",(AP77/#REF!)*$W77) ->  | BN77: =IF(AQ77="","",(AQ77/#REF!)*$W77) ->  | BO77: =IF(AR77="","",(AR77/#REF!)*$W77) ->  | BP77: =IF(AS77="","",(AS77/#REF!)*$W77) ->  | BQ77: =IF(AT77="","",(AT77/#REF!)*$W77) ->  | BR77: =IF(AU77="","",(AU77/#REF!)*$W77) ->  | BS77: =IF(AV77="","",(AV77/#REF!)*$W77) ->  | BT77: =IF(AW77="","",(AW77/#REF!)*$W77) ->  | BU77: =IF(AX77="","",(AX77/#REF!)*$W77) ->  | BV77: =IF(AY77="","",(AY77/#REF!)*$W77) -> 
B78: PSGL05 | E78: Pump Station | F78: PSGL05 | G78: Lindwall Cct SPS | L78: =IF(H78=SewerTYPE1,VLOOKUP(J78,SewerUnitrates1,2,FALSE),IF(H78=SEWERTYPE2,VLOOKUP((J78&"_"&K78),Sewerrates2,2,FALSE),0)) -> 0 | M78: 315250.9812 | O78: =IF(N78="",1,VLOOKUP(N78,Sewersitecond,2,FALSE)) -> 1 | P78: 315250.9812 | S78: =IF(Q78="",'Unit Rates - Land'!landcst,IF($E$8="Landuse",VLOOKUP(Q78,LAndcost3,2,FALSE),IF($E$8="Location",VLOOKUP(Q78,Landcost2,2,FALSE),"Error"))) -> 0 | T78: 0 | U78: 2016 | V78: =IFERROR(('General Input Sheet'!$G$38/(VLOOKUP(U78,'General Input Sheet'!$E$38:$G$44,3,FALSE))),1) -> 1 | W78: 315250.9812 | Y78: y | AF78: 52373 | AZ78: 52373 | BA78: =IF(AD78="","",(AD78/#REF!)*$W78) ->  | BC78: 315250.9812 | BG78: =IF(AJ78="","",(AJ78/#REF!)*$W78) ->  | BH78: =IF(AK78="","",(AK78/#REF!)*$W78) ->  | BI78: =IF(AL78="","",(AL78/#REF!)*$W78) ->  | BJ78: =IF(AM78="","",(AM78/#REF!)*$W78) ->  | BK78: =IF(AN78="","",(AN78/#REF!)*$W78) ->  | BL78: =IF(AO78="","",(AO78/#REF!)*$W78) ->  | BM78: =IF(AP78="","",(AP78/#REF!)*$W78) ->  | BN78: =IF(AQ78="","",(AQ78/#REF!)*$W78) ->  | BO78: =IF(AR78="","",(AR78/#REF!)*$W78) ->  | BP78: =IF(AS78="","",(AS78/#REF!)*$W78) ->  | BQ78: =IF(AT78="","",(AT78/#REF!)*$W78) ->  | BR78: =IF(AU78="","",(AU78/#REF!)*$W78) ->  | BS78: =IF(AV78="","",(AV78/#REF!)*$W78) ->  | BT78: =IF(AW78="","",(AW78/#REF!)*$W78) ->  | BU78: =IF(AX78="","",(AX78/#REF!)*$W78) ->  | BV78: =IF(AY78="","",(AY78/#REF!)*$W78) -> 
B79: PSGL06 | E79: Pump Station | F79: PSGL06 | G79: Pioneer St SPS | L79: 0 | M79: 367716.1264 | O79: 1 | P79: =IF(M79="","",M79*O79) -> 367716.1264 | S79: =IF(Q79="",'Unit Rates - Land'!landcst,IF($E$8="Landuse",VLOOKUP(Q79,LAndcost3,2,FALSE),IF($E$8="Location",VLOOKUP(Q79,Landcost2,2,FALSE),"Error"))) -> 0 | T79: =IF(S79="",0,S79*10000*R79) -> 0 | U79: 2016 | V79: =IFERROR(('General Input Sheet'!$G$38/(VLOOKUP(U79,'General Input Sheet'!$E$38:$G$44,3,FALSE))),1) -> 1 | W79: =IFERROR((P79+T79)*V79,0) -> 367716.1264 | Y79: y | AE79: =IF(X79="y",AE$14,IF(AND(X79>0,X79<=1),X79*AE$14,"")) ->  | AF79: =IF(Y79="y",AF$14,IF(AND(Y79>0,Y79<=1),Y79*AF$14,"")) -> 52373 | AG79: =IF(Z79="y",AG$14,IF(AND(Z79>0,Z79<=1),Z79*AG$14,"")) ->  | AH79: =IF(AA79="y",AH$14,IF(AND(AA79>0,AA79<=1),AA79*AH$14,"")) ->  | AI79: =IF(AB79="y",AI$14,IF(AND(AB79>0,AB79<=1),AB79*AI$14,"")) ->  | AZ79: 52373 | BA79: =IF(AD79="","",(AD79/#REF!)*$W79) ->  | BC79: 367716.1264 | BG79: =IF(AJ79="","",(AJ79/#REF!)*$W79) ->  | BH79: =IF(AK79="","",(AK79/#REF!)*$W79) ->  | BI79: =IF(AL79="","",(AL79/#REF!)*$W79) ->  | BJ79: =IF(AM79="","",(AM79/#REF!)*$W79) ->  | BK79: =IF(AN79="","",(AN79/#REF!)*$W79) ->  | BL79: =IF(AO79="","",(AO79/#REF!)*$W79) ->  | BM79: =IF(AP79="","",(AP79/#REF!)*$W79) ->  | BN79: =IF(AQ79="","",(AQ79/#REF!)*$W79) ->  | BO79: =IF(AR79="","",(AR79/#REF!)*$W79) ->  | BP79: =IF(AS79="","",(AS79/#REF!)*$W79) ->  | BQ79: =IF(AT79="","",(AT79/#REF!)*$W79) ->  | BR79: =IF(AU79="","",(AU79/#REF!)*$W79) ->  | BS79: =IF(AV79="","",(AV79/#REF!)*$W79) ->  | BT79: =IF(AW79="","",(AW79/#REF!)*$W79) ->  | BU79: =IF(AX79="","",(AX79/#REF!)*$W79) ->  | BV79: =IF(AY79="","",(AY79/#REF!)*$W79) ->  | BW79: =IF(SUM(BB79:BV79)=W79,"","ERROR") -> 
B80: PSGL07 | E80: Pump Station | F80: PSGL07 | G80: Dianella Dr SPS | L80: 0 | M80: 285613.18 | O80: 1 | P80: 285613.18 | S80: =IF(Q80="",'Unit Rates - Land'!landcst,IF($E$8="Landuse",VLOOKUP(Q80,LAndcost3,2,FALSE),IF($E$8="Location",VLOOKUP(Q80,Landcost2,2,FALSE),"Error"))) -> 0 | T80: 0 | U80: 2016 | V80: =IFERROR(('General Input Sheet'!$G$38/(VLOOKUP(U80,'General Input Sheet'!$E$38:$G$44,3,FALSE))),1) -> 1 | W80: 285613.18 | Y80: y | AF80: 52373 | AZ80: 52373 | BA80: =IF(AD80="","",(AD80/#REF!)*$W80) ->  | BC80: 285613.18 | BG80: =IF(AJ80="","",(AJ80/#REF!)*$W80) ->  | BH80: =IF(AK80="","",(AK80/#REF!)*$W80) ->  | BI80: =IF(AL80="","",(AL80/#REF!)*$W80) ->  | BJ80: =IF(AM80="","",(AM80/#REF!)*$W80) ->  | BK80: =IF(AN80="","",(AN80/#REF!)*$W80) ->  | BL80: =IF(AO80="","",(AO80/#REF!)*$W80) ->  | BM80: =IF(AP80="","",(AP80/#REF!)*$W80) ->  | BN80: =IF(AQ80="","",(AQ80/#REF!)*$W80) ->  | BO80: =IF(AR80="","",(AR80/#REF!)*$W80) ->  | BP80: =IF(AS80="","",(AS80/#REF!)*$W80) ->  | BQ80: =IF(AT80="","",(AT80/#REF!)*$W80) ->  | BR80: =IF(AU80="","",(AU80/#REF!)*$W80) ->  | BS80: =IF(AV80="","",(AV80/#REF!)*$W80) ->  | BT80: =IF(AW80="","",(AW80/#REF!)*$W80) ->  | BU80: =IF(AX80="","",(AX80/#REF!)*$W80) ->  | BV80: =IF(AY80="","",(AY80/#REF!)*$W80) -> 
B81: PSGL08 | E81: Pump Station | F81: PSGL08 | G81: Gingham St SPS | L81: 0 | M81: 219839.6122 | O81: 1 | P81: 219839.6122 | S81: =IF(Q81="",'Unit Rates - Land'!landcst,IF($E$8="Landuse",VLOOKUP(Q81,LAndcost3,2,FALSE),IF($E$8="Location",VLOOKUP(Q81,Landcost2,2,FALSE),"Error"))) -> 0 | T81: 0 | U81: 2016 | V81: =IFERROR(('General Input Sheet'!$G$38/(VLOOKUP(U81,'General Input Sheet'!$E$38:$G$44,3,FALSE))),1) -> 1 | W81: 219839.6122 | Y81: y | AF81: 52373 | AZ81: =SUM(AE81:AY81) -> 52373 | BA81: =IF(AD81="","",(AD81/#REF!)*$W81) ->  | BB81: =IF(AE81="","",(AE81/$AZ81)*$W81) ->  | BC81: =IF(AF81="","",(AF81/$AZ81)*$W81) -> 219839.6122 | BD81: =IF(AG81="","",(AG81/$AZ81)*$W81) ->  | BE81: =IF(AH81="","",(AH81/$AZ81)*$W81) ->  | BF81: =IF(AI81="","",(AI81/$AZ81)*$W81) ->  | BG81: =IF(AJ81="","",(AJ81/#REF!)*$W81) ->  | BH81: =IF(AK81="","",(AK81/#REF!)*$W81) ->  | BI81: =IF(AL81="","",(AL81/#REF!)*$W81) ->  | BJ81: =IF(AM81="","",(AM81/#REF!)*$W81) ->  | BK81: =IF(AN81="","",(AN81/#REF!)*$W81) ->  | BL81: =IF(AO81="","",(AO81/#REF!)*$W81) ->  | BM81: =IF(AP81="","",(AP81/#REF!)*$W81) ->  | BN81: =IF(AQ81="","",(AQ81/#REF!)*$W81) ->  | BO81: =IF(AR81="","",(AR81/#REF!)*$W81) ->  | BP81: =IF(AS81="","",(AS81/#REF!)*$W81) ->  | BQ81: =IF(AT81="","",(AT81/#REF!)*$W81) ->  | BR81: =IF(AU81="","",(AU81/#REF!)*$W81) ->  | BS81: =IF(AV81="","",(AV81/#REF!)*$W81) ->  | BT81: =IF(AW81="","",(AW81/#REF!)*$W81) ->  | BU81: =IF(AX81="","",(AX81/#REF!)*$W81) ->  | BV81: =IF(AY81="","",(AY81/#REF!)*$W81) -> 
B82: PSHA01 | E82: Pump Station | F82: PSHA01 | G82: Mulherin Dr SPS | L82: 0 | M82: 296662.0672 | O82: 1 | P82: 296662.0672 | S82: =IF(Q82="",'Unit Rates - Land'!landcst,IF($E$8="Landuse",VLOOKUP(Q82,LAndcost3,2,FALSE),IF($E$8="Location",VLOOKUP(Q82,Landcost2,2,FALSE),"Error"))) -> 0 | T82: 0 | U82: 2016 | V82: =IFERROR(('General Input Sheet'!$G$38/(VLOOKUP(U82,'General Input Sheet'!$E$38:$G$44,3,FALSE))),1) -> 1 | W82: 296662.0672 | Y82: y | AF82: 52373 | AZ82: 52373 | BA82: =IF(AD82="","",(AD82/#REF!)*$W82) ->  | BC82: 296662.0672 | BG82: =IF(AJ82="","",(AJ82/#REF!)*$W82) ->  | BH82: =IF(AK82="","",(AK82/#REF!)*$W82) ->  | BI82: =IF(AL82="","",(AL82/#REF!)*$W82) ->  | BJ82: =IF(AM82="","",(AM82/#REF!)*$W82) ->  | BK82: =IF(AN82="","",(AN82/#REF!)*$W82) ->  | BL82: =IF(AO82="","",(AO82/#REF!)*$W82) ->  | BM82: =IF(AP82="","",(AP82/#REF!)*$W82) ->  | BN82: =IF(AQ82="","",(AQ82/#REF!)*$W82) ->  | BO82: =IF(AR82="","",(AR82/#REF!)*$W82) ->  | BP82: =IF(AS82="","",(AS82/#REF!)*$W82) ->  | BQ82: =IF(AT82="","",(AT82/#REF!)*$W82) ->  | BR82: =IF(AU82="","",(AU82/#REF!)*$W82) ->  | BS82: =IF(AV82="","",(AV82/#REF!)*$W82) ->  | BT82: =IF(AW82="","",(AW82/#REF!)*$W82) ->  | BU82: =IF(AX82="","",(AX82/#REF!)*$W82) ->  | BV82: =IF(AY82="","",(AY82/#REF!)*$W82) -> 
B83: PSHA02 | E83: Pump Station | F83: PSHA02 | G83: Spiller Ave SPS | L83: 0 | M83: 319671.0898 | O83: 1 | P83: 319671.0898 | S83: =IF(Q83="",'Unit Rates - Land'!landcst,IF($E$8="Landuse",VLOOKUP(Q83,LAndcost3,2,FALSE),IF($E$8="Location",VLOOKUP(Q83,Landcost2,2,FALSE),"Error"))) -> 0 | T83: 0 | U83: 2016 | V83: =IFERROR(('General Input Sheet'!$G$38/(VLOOKUP(U83,'General Input Sheet'!$E$38:$G$44,3,FALSE))),1) -> 1 | W83: 319671.0898 | Y83: y | AF83: 52373 | AZ83: 52373 | BA83: =IF(AD83="","",(AD83/#REF!)*$W83) ->  | BC83: 319671.0898 | BG83: =IF(AJ83="","",(AJ83/#REF!)*$W83) ->  | BH83: =IF(AK83="","",(AK83/#REF!)*$W83) ->  | BI83: =IF(AL83="","",(AL83/#REF!)*$W83) ->  | BJ83: =IF(AM83="","",(AM83/#REF!)*$W83) ->  | BK83: =IF(AN83="","",(AN83/#REF!)*$W83) ->  | BL83: =IF(AO83="","",(AO83/#REF!)*$W83) ->  | BM83: =IF(AP83="","",(AP83/#REF!)*$W83) ->  | BN83: =IF(AQ83="","",(AQ83/#REF!)*$W83) ->  | BO83: =IF(AR83="","",(AR83/#REF!)*$W83) ->  | BP83: =IF(AS83="","",(AS83/#REF!)*$W83) ->  | BQ83: =IF(AT83="","",(AT83/#REF!)*$W83) ->  | BR83: =IF(AU83="","",(AU83/#REF!)*$W83) ->  | BS83: =IF(AV83="","",(AV83/#REF!)*$W83) ->  | BT83: =IF(AW83="","",(AW83/#REF!)*$W83) ->  | BU83: =IF(AX83="","",(AX83/#REF!)*$W83) ->  | BV83: =IF(AY83="","",(AY83/#REF!)*$W83) -> 
B84: PSHA03 | E84: Pump Station | F84: PSHA03 | G84: Mt Bassett SPS | L84: 0 | M84: 4332651.679 | O84: 1 | P84: 4332651.679 | S84: =IF(Q84="",'Unit Rates - Land'!landcst,IF($E$8="Landuse",VLOOKUP(Q84,LAndcost3,2,FALSE),IF($E$8="Location",VLOOKUP(Q84,Landcost2,2,FALSE),"Error"))) -> 0 | T84: 0 | U84: 2016 | V84: =IFERROR(('General Input Sheet'!$G$38/(VLOOKUP(U84,'General Input Sheet'!$E$38:$G$44,3,FALSE))),1) -> 1 | W84: 4332651.679 | Y84: y | AF84: 52373 | AZ84: 52373 | BA84: =IF(AD84="","",(AD84/#REF!)*$W84) ->  | BC84: 4332651.679 | BG84: =IF(AJ84="","",(AJ84/#REF!)*$W84) ->  | BH84: =IF(AK84="","",(AK84/#REF!)*$W84) ->  | BI84: =IF(AL84="","",(AL84/#REF!)*$W84) ->  | BJ84: =IF(AM84="","",(AM84/#REF!)*$W84) ->  | BK84: =IF(AN84="","",(AN84/#REF!)*$W84) ->  | BL84: =IF(AO84="","",(AO84/#REF!)*$W84) ->  | BM84: =IF(AP84="","",(AP84/#REF!)*$W84) ->  | BN84: =IF(AQ84="","",(AQ84/#REF!)*$W84) ->  | BO84: =IF(AR84="","",(AR84/#REF!)*$W84) ->  | BP84: =IF(AS84="","",(AS84/#REF!)*$W84) ->  | BQ84: =IF(AT84="","",(AT84/#REF!)*$W84) ->  | BR84: =IF(AU84="","",(AU84/#REF!)*$W84) ->  | BS84: =IF(AV84="","",(AV84/#REF!)*$W84) ->  | BT84: =IF(AW84="","",(AW84/#REF!)*$W84) ->  | BU84: =IF(AX84="","",(AX84/#REF!)*$W84) ->  | BV84: =IF(AY84="","",(AY84/#REF!)*$W84) -> 
B85: PSMA01 | E85: Pump Station | F85: PSMA01 | G85: Paul St SPS | L85: 0 | M85: 2138068.488 | O85: 1 | P85: 2138068.488 | S85: =IF(Q85="",'Unit Rates - Land'!landcst,IF($E$8="Landuse",VLOOKUP(Q85,LAndcost3,2,FALSE),IF($E$8="Location",VLOOKUP(Q85,Landcost2,2,FALSE),"Error"))) -> 0 | T85: 0 | U85: 2016 | V85: =IFERROR(('General Input Sheet'!$G$38/(VLOOKUP(U85,'General Input Sheet'!$E$38:$G$44,3,FALSE))),1) -> 1 | W85: 2138068.488 | AA85: y | AH85: 7209 | AZ85: 7209 | BA85: =IF(AD85="","",(AD85/#REF!)*$W85) ->  | BE85: 2138068.488 | BG85: =IF(AJ85="","",(AJ85/#REF!)*$W85) ->  | BH85: =IF(AK85="","",(AK85/#REF!)*$W85) ->  | BI85: =IF(AL85="","",(AL85/#REF!)*$W85) ->  | BJ85: =IF(AM85="","",(AM85/#REF!)*$W85) ->  | BK85: =IF(AN85="","",(AN85/#REF!)*$W85) ->  | BL85: =IF(AO85="","",(AO85/#REF!)*$W85) ->  | BM85: =IF(AP85="","",(AP85/#REF!)*$W85) ->  | BN85: =IF(AQ85="","",(AQ85/#REF!)*$W85) ->  | BO85: =IF(AR85="","",(AR85/#REF!)*$W85) ->  | BP85: =IF(AS85="","",(AS85/#REF!)*$W85) ->  | BQ85: =IF(AT85="","",(AT85/#REF!)*$W85) ->  | BR85: =IF(AU85="","",(AU85/#REF!)*$W85) ->  | BS85: =IF(AV85="","",(AV85/#REF!)*$W85) ->  | BT85: =IF(AW85="","",(AW85/#REF!)*$W85) ->  | BU85: =IF(AX85="","",(AX85/#REF!)*$W85) ->  | BV85: =IF(AY85="","",(AY85/#REF!)*$W85) -> 
B86: PSMA02 | E86: Pump Station | F86: PSMA02 | G86: Anzac Ave No 1 SPS | L86: 0 | M86: 287683.7747 | O86: 1 | P86: 287683.7747 | S86: =IF(Q86="",'Unit Rates - Land'!landcst,IF($E$8="Landuse",VLOOKUP(Q86,LAndcost3,2,FALSE),IF($E$8="Location",VLOOKUP(Q86,Landcost2,2,FALSE),"Error"))) -> 0 | T86: 0 | U86: 2016 | V86: =IFERROR(('General Input Sheet'!$G$38/(VLOOKUP(U86,'General Input Sheet'!$E$38:$G$44,3,FALSE))),1) -> 1 | W86: 287683.7747 | AA86: y | AH86: 7209 | AZ86: 7209 | BA86: =IF(AD86="","",(AD86/#REF!)*$W86) ->  | BE86: 287683.7747 | BG86: =IF(AJ86="","",(AJ86/#REF!)*$W86) ->  | BH86: =IF(AK86="","",(AK86/#REF!)*$W86) ->  | BI86: =IF(AL86="","",(AL86/#REF!)*$W86) ->  | BJ86: =IF(AM86="","",(AM86/#REF!)*$W86) ->  | BK86: =IF(AN86="","",(AN86/#REF!)*$W86) ->  | BL86: =IF(AO86="","",(AO86/#REF!)*$W86) ->  | BM86: =IF(AP86="","",(AP86/#REF!)*$W86) ->  | BN86: =IF(AQ86="","",(AQ86/#REF!)*$W86) ->  | BO86: =IF(AR86="","",(AR86/#REF!)*$W86) ->  | BP86: =IF(AS86="","",(AS86/#REF!)*$W86) ->  | BQ86: =IF(AT86="","",(AT86/#REF!)*$W86) ->  | BR86: =IF(AU86="","",(AU86/#REF!)*$W86) ->  | BS86: =IF(AV86="","",(AV86/#REF!)*$W86) ->  | BT86: =IF(AW86="","",(AW86/#REF!)*$W86) ->  | BU86: =IF(AX86="","",(AX86/#REF!)*$W86) ->  | BV86: =IF(AY86="","",(AY86/#REF!)*$W86) -> 
B87: PSMA03 | E87: Pump Station | F87: PSMA03 | G87: Alan St SPS | L87: 0 | M87: 279694.7268 | O87: 1 | P87: 279694.7268 | S87: =IF(Q87="",'Unit Rates - Land'!landcst,IF($E$8="Landuse",VLOOKUP(Q87,LAndcost3,2,FALSE),IF($E$8="Location",VLOOKUP(Q87,Landcost2,2,FALSE),"Error"))) -> 0 | T87: 0 | U87: 2016 | V87: =IFERROR(('General Input Sheet'!$G$38/(VLOOKUP(U87,'General Input Sheet'!$E$38:$G$44,3,FALSE))),1) -> 1 | W87: 279694.7268 | AA87: y | AH87: 7209 | AZ87: 7209 | BA87: =IF(AD87="","",(AD87/#REF!)*$W87) ->  | BE87: 279694.7268 | BG87: =IF(AJ87="","",(AJ87/#REF!)*$W87) ->  | BH87: =IF(AK87="","",(AK87/#REF!)*$W87) ->  | BI87: =IF(AL87="","",(AL87/#REF!)*$W87) ->  | BJ87: =IF(AM87="","",(AM87/#REF!)*$W87) ->  | BK87: =IF(AN87="","",(AN87/#REF!)*$W87) ->  | BL87: =IF(AO87="","",(AO87/#REF!)*$W87) ->  | BM87: =IF(AP87="","",(AP87/#REF!)*$W87) ->  | BN87: =IF(AQ87="","",(AQ87/#REF!)*$W87) ->  | BO87: =IF(AR87="","",(AR87/#REF!)*$W87) ->  | BP87: =IF(AS87="","",(AS87/#REF!)*$W87) ->  | BQ87: =IF(AT87="","",(AT87/#REF!)*$W87) ->  | BR87: =IF(AU87="","",(AU87/#REF!)*$W87) ->  | BS87: =IF(AV87="","",(AV87/#REF!)*$W87) ->  | BT87: =IF(AW87="","",(AW87/#REF!)*$W87) ->  | BU87: =IF(AX87="","",(AX87/#REF!)*$W87) ->  | BV87: =IF(AY87="","",(AY87/#REF!)*$W87) -> 
B88: PSMA04 | E88: Pump Station | F88: PSMA04 | G88: Anzac Ave No 2 SPS | L88: 0 | M88: 293158.999 | O88: 1 | P88: 293158.999 | S88: =IF(Q88="",'Unit Rates - Land'!landcst,IF($E$8="Landuse",VLOOKUP(Q88,LAndcost3,2,FALSE),IF($E$8="Location",VLOOKUP(Q88,Landcost2,2,FALSE),"Error"))) -> 0 | T88: 0 | U88: 2016 | V88: =IFERROR(('General Input Sheet'!$G$38/(VLOOKUP(U88,'General Input Sheet'!$E$38:$G$44,3,FALSE))),1) -> 1 | W88: 293158.999 | AA88: y | AH88: 7209 | AZ88: 7209 | BA88: =IF(AD88="","",(AD88/#REF!)*$W88) ->  | BE88: 293158.999 | BG88: =IF(AJ88="","",(AJ88/#REF!)*$W88) ->  | BH88: =IF(AK88="","",(AK88/#REF!)*$W88) ->  | BI88: =IF(AL88="","",(AL88/#REF!)*$W88) ->  | BJ88: =IF(AM88="","",(AM88/#REF!)*$W88) ->  | BK88: =IF(AN88="","",(AN88/#REF!)*$W88) ->  | BL88: =IF(AO88="","",(AO88/#REF!)*$W88) ->  | BM88: =IF(AP88="","",(AP88/#REF!)*$W88) ->  | BN88: =IF(AQ88="","",(AQ88/#REF!)*$W88) ->  | BO88: =IF(AR88="","",(AR88/#REF!)*$W88) ->  | BP88: =IF(AS88="","",(AS88/#REF!)*$W88) ->  | BQ88: =IF(AT88="","",(AT88/#REF!)*$W88) ->  | BR88: =IF(AU88="","",(AU88/#REF!)*$W88) ->  | BS88: =IF(AV88="","",(AV88/#REF!)*$W88) ->  | BT88: =IF(AW88="","",(AW88/#REF!)*$W88) ->  | BU88: =IF(AX88="","",(AX88/#REF!)*$W88) ->  | BV88: =IF(AY88="","",(AY88/#REF!)*$W88) -> 
B89: PSMA05 | E89: Pump Station | F89: PSMA05 | G89: Anzac Ave No 5 SPS | L89: 0 | M89: 253833.4879 | O89: 1 | P89: 253833.4879 | S89: =IF(Q89="",'Unit Rates - Land'!landcst,IF($E$8="Landuse",VLOOKUP(Q89,LAndcost3,2,FALSE),IF($E$8="Location",VLOOKUP(Q89,Landcost2,2,FALSE),"Error"))) -> 0 | T89: 0 | U89: 2016 | V89: =IFERROR(('General Input Sheet'!$G$38/(VLOOKUP(U89,'General Input Sheet'!$E$38:$G$44,3,FALSE))),1) -> 1 | W89: 253833.4879 | AA89: y | AH89: 7209 | AZ89: 7209 | BA89: =IF(AD89="","",(AD89/#REF!)*$W89) ->  | BE89: 253833.4879 | BG89: =IF(AJ89="","",(AJ89/#REF!)*$W89) ->  | BH89: =IF(AK89="","",(AK89/#REF!)*$W89) ->  | BI89: =IF(AL89="","",(AL89/#REF!)*$W89) ->  | BJ89: =IF(AM89="","",(AM89/#REF!)*$W89) ->  | BK89: =IF(AN89="","",(AN89/#REF!)*$W89) ->  | BL89: =IF(AO89="","",(AO89/#REF!)*$W89) ->  | BM89: =IF(AP89="","",(AP89/#REF!)*$W89) ->  | BN89: =IF(AQ89="","",(AQ89/#REF!)*$W89) ->  | BO89: =IF(AR89="","",(AR89/#REF!)*$W89) ->  | BP89: =IF(AS89="","",(AS89/#REF!)*$W89) ->  | BQ89: =IF(AT89="","",(AT89/#REF!)*$W89) ->  | BR89: =IF(AU89="","",(AU89/#REF!)*$W89) ->  | BS89: =IF(AV89="","",(AV89/#REF!)*$W89) ->  | BT89: =IF(AW89="","",(AW89/#REF!)*$W89) ->  | BU89: =IF(AX89="","",(AX89/#REF!)*$W89) ->  | BV89: =IF(AY89="","",(AY89/#REF!)*$W89) -> 
B90: PSMA06 | E90: Pump Station | F90: PSMA06 | G90: Anzac Ave No 3 SPS | L90: 0 | M90: 305213.5952 | O90: 1 | P90: 305213.5952 | S90: =IF(Q90="",'Unit Rates - Land'!landcst,IF($E$8="Landuse",VLOOKUP(Q90,LAndcost3,2,FALSE),IF($E$8="Location",VLOOKUP(Q90,Landcost2,2,FALSE),"Error"))) -> 0 | T90: 0 | U90: 2016 | V90: =IFERROR(('General Input Sheet'!$G$38/(VLOOKUP(U90,'General Input Sheet'!$E$38:$G$44,3,FALSE))),1) -> 1 | W90: 305213.5952 | AA90: y | AH90: 7209 | AZ90: 7209 | BA90: =IF(AD90="","",(AD90/#REF!)*$W90) ->  | BE90: 305213.5952 | BG90: =IF(AJ90="","",(AJ90/#REF!)*$W90) ->  | BH90: =IF(AK90="","",(AK90/#REF!)*$W90) ->  | BI90: =IF(AL90="","",(AL90/#REF!)*$W90) ->  | BJ90: =IF(AM90="","",(AM90/#REF!)*$W90) ->  | BK90: =IF(AN90="","",(AN90/#REF!)*$W90) ->  | BL90: =IF(AO90="","",(AO90/#REF!)*$W90) ->  | BM90: =IF(AP90="","",(AP90/#REF!)*$W90) ->  | BN90: =IF(AQ90="","",(AQ90/#REF!)*$W90) ->  | BO90: =IF(AR90="","",(AR90/#REF!)*$W90) ->  | BP90: =IF(AS90="","",(AS90/#REF!)*$W90) ->  | BQ90: =IF(AT90="","",(AT90/#REF!)*$W90) ->  | BR90: =IF(AU90="","",(AU90/#REF!)*$W90) ->  | BS90: =IF(AV90="","",(AV90/#REF!)*$W90) ->  | BT90: =IF(AW90="","",(AW90/#REF!)*$W90) ->  | BU90: =IF(AX90="","",(AX90/#REF!)*$W90) ->  | BV90: =IF(AY90="","",(AY90/#REF!)*$W90) -> 
B91: PSMA07 | E91: Pump Station | F91: PSMA07 | G91: Kennys Rd No 1 SPS | L91: 0 | M91: 919526.6282 | O91: 1 | P91: 919526.6282 | S91: =IF(Q91="",'Unit Rates - Land'!landcst,IF($E$8="Landuse",VLOOKUP(Q91,LAndcost3,2,FALSE),IF($E$8="Location",VLOOKUP(Q91,Landcost2,2,FALSE),"Error"))) -> 0 | T91: 0 | U91: 2016 | V91: =IFERROR(('General Input Sheet'!$G$38/(VLOOKUP(U91,'General Input Sheet'!$E$38:$G$44,3,FALSE))),1) -> 1 | W91: 919526.6282 | AA91: y | AH91: 7209 | AZ91: 7209 | BA91: =IF(AD91="","",(AD91/#REF!)*$W91) ->  | BE91: 919526.6282 | BG91: =IF(AJ91="","",(AJ91/#REF!)*$W91) ->  | BH91: =IF(AK91="","",(AK91/#REF!)*$W91) ->  | BI91: =IF(AL91="","",(AL91/#REF!)*$W91) ->  | BJ91: =IF(AM91="","",(AM91/#REF!)*$W91) ->  | BK91: =IF(AN91="","",(AN91/#REF!)*$W91) ->  | BL91: =IF(AO91="","",(AO91/#REF!)*$W91) ->  | BM91: =IF(AP91="","",(AP91/#REF!)*$W91) ->  | BN91: =IF(AQ91="","",(AQ91/#REF!)*$W91) ->  | BO91: =IF(AR91="","",(AR91/#REF!)*$W91) ->  | BP91: =IF(AS91="","",(AS91/#REF!)*$W91) ->  | BQ91: =IF(AT91="","",(AT91/#REF!)*$W91) ->  | BR91: =IF(AU91="","",(AU91/#REF!)*$W91) ->  | BS91: =IF(AV91="","",(AV91/#REF!)*$W91) ->  | BT91: =IF(AW91="","",(AW91/#REF!)*$W91) ->  | BU91: =IF(AX91="","",(AX91/#REF!)*$W91) ->  | BV91: =IF(AY91="","",(AY91/#REF!)*$W91) -> 
B92: PSMA08 | E92: Pump Station | F92: PSMA08 | G92: Tolchers Ln SPS | L92: 0 | M92: 259971.4411 | O92: 1 | P92: 259971.4411 | S92: =IF(Q92="",'Unit Rates - Land'!landcst,IF($E$8="Landuse",VLOOKUP(Q92,LAndcost3,2,FALSE),IF($E$8="Location",VLOOKUP(Q92,Landcost2,2,FALSE),"Error"))) -> 0 | T92: 0 | U92: 2016 | V92: =IFERROR(('General Input Sheet'!$G$38/(VLOOKUP(U92,'General Input Sheet'!$E$38:$G$44,3,FALSE))),1) -> 1 | W92: 259971.4411 | AA92: y | AH92: 7209 | AZ92: 7209 | BA92: =IF(AD92="","",(AD92/#REF!)*$W92) ->  | BE92: 259971.4411 | BG92: =IF(AJ92="","",(AJ92/#REF!)*$W92) ->  | BH92: =IF(AK92="","",(AK92/#REF!)*$W92) ->  | BI92: =IF(AL92="","",(AL92/#REF!)*$W92) ->  | BJ92: =IF(AM92="","",(AM92/#REF!)*$W92) ->  | BK92: =IF(AN92="","",(AN92/#REF!)*$W92) ->  | BL92: =IF(AO92="","",(AO92/#REF!)*$W92) ->  | BM92: =IF(AP92="","",(AP92/#REF!)*$W92) ->  | BN92: =IF(AQ92="","",(AQ92/#REF!)*$W92) ->  | BO92: =IF(AR92="","",(AR92/#REF!)*$W92) ->  | BP92: =IF(AS92="","",(AS92/#REF!)*$W92) ->  | BQ92: =IF(AT92="","",(AT92/#REF!)*$W92) ->  | BR92: =IF(AU92="","",(AU92/#REF!)*$W92) ->  | BS92: =IF(AV92="","",(AV92/#REF!)*$W92) ->  | BT92: =IF(AW92="","",(AW92/#REF!)*$W92) ->  | BU92: =IF(AX92="","",(AX92/#REF!)*$W92) ->  | BV92: =IF(AY92="","",(AY92/#REF!)*$W92) -> 
B93: PSMA09 | E93: Pump Station | F93: PSMA09 | G93: Anzac Ave No 4 SPS | L93: 0 | M93: 284361.0891 | O93: 1 | P93: 284361.0891 | S93: =IF(Q93="",'Unit Rates - Land'!landcst,IF($E$8="Landuse",VLOOKUP(Q93,LAndcost3,2,FALSE),IF($E$8="Location",VLOOKUP(Q93,Landcost2,2,FALSE),"Error"))) -> 0 | T93: 0 | U93: 2016 | V93: =IFERROR(('General Input Sheet'!$G$38/(VLOOKUP(U93,'General Input Sheet'!$E$38:$G$44,3,FALSE))),1) -> 1 | W93: 284361.0891 | AA93: y | AH93: 7209 | AZ93: 7209 | BA93: =IF(AD93="","",(AD93/#REF!)*$W93) ->  | BE93: 284361.0891 | BG93: =IF(AJ93="","",(AJ93/#REF!)*$W93) ->  | BH93: =IF(AK93="","",(AK93/#REF!)*$W93) ->  | BI93: =IF(AL93="","",(AL93/#REF!)*$W93) ->  | BJ93: =IF(AM93="","",(AM93/#REF!)*$W93) ->  | BK93: =IF(AN93="","",(AN93/#REF!)*$W93) ->  | BL93: =IF(AO93="","",(AO93/#REF!)*$W93) ->  | BM93: =IF(AP93="","",(AP93/#REF!)*$W93) ->  | BN93: =IF(AQ93="","",(AQ93/#REF!)*$W93) ->  | BO93: =IF(AR93="","",(AR93/#REF!)*$W93) ->  | BP93: =IF(AS93="","",(AS93/#REF!)*$W93) ->  | BQ93: =IF(AT93="","",(AT93/#REF!)*$W93) ->  | BR93: =IF(AU93="","",(AU93/#REF!)*$W93) ->  | BS93: =IF(AV93="","",(AV93/#REF!)*$W93) ->  | BT93: =IF(AW93="","",(AW93/#REF!)*$W93) ->  | BU93: =IF(AX93="","",(AX93/#REF!)*$W93) ->  | BV93: =IF(AY93="","",(AY93/#REF!)*$W93) -> 
B94: PSMA10 | E94: Pump Station | F94: PSMA10 | G94: Kennys Rd No 2 SPS | L94: 0 | M94: 296481.6846 | O94: 1 | P94: 296481.6846 | S94: =IF(Q94="",'Unit Rates - Land'!landcst,IF($E$8="Landuse",VLOOKUP(Q94,LAndcost3,2,FALSE),IF($E$8="Location",VLOOKUP(Q94,Landcost2,2,FALSE),"Error"))) -> 0 | T94: 0 | U94: 2016 | V94: =IFERROR(('General Input Sheet'!$G$38/(VLOOKUP(U94,'General Input Sheet'!$E$38:$G$44,3,FALSE))),1) -> 1 | W94: 296481.6846 | AA94: y | AH94: 7209 | AZ94: 7209 | BA94: =IF(AD94="","",(AD94/#REF!)*$W94) ->  | BE94: 296481.6846 | BG94: =IF(AJ94="","",(AJ94/#REF!)*$W94) ->  | BH94: =IF(AK94="","",(AK94/#REF!)*$W94) ->  | BI94: =IF(AL94="","",(AL94/#REF!)*$W94) ->  | BJ94: =IF(AM94="","",(AM94/#REF!)*$W94) ->  | BK94: =IF(AN94="","",(AN94/#REF!)*$W94) ->  | BL94: =IF(AO94="","",(AO94/#REF!)*$W94) ->  | BM94: =IF(AP94="","",(AP94/#REF!)*$W94) ->  | BN94: =IF(AQ94="","",(AQ94/#REF!)*$W94) ->  | BO94: =IF(AR94="","",(AR94/#REF!)*$W94) ->  | BP94: =IF(AS94="","",(AS94/#REF!)*$W94) ->  | BQ94: =IF(AT94="","",(AT94/#REF!)*$W94) ->  | BR94: =IF(AU94="","",(AU94/#REF!)*$W94) ->  | BS94: =IF(AV94="","",(AV94/#REF!)*$W94) ->  | BT94: =IF(AW94="","",(AW94/#REF!)*$W94) ->  | BU94: =IF(AX94="","",(AX94/#REF!)*$W94) ->  | BV94: =IF(AY94="","",(AY94/#REF!)*$W94) -> 
B95: PSMA11 | E95: Pump Station | F95: PSMA11 | G95: Hocking Crs SPS | L95: 0 | M95: 209306.59 | O95: 1 | P95: 209306.59 | S95: =IF(Q95="",'Unit Rates - Land'!landcst,IF($E$8="Landuse",VLOOKUP(Q95,LAndcost3,2,FALSE),IF($E$8="Location",VLOOKUP(Q95,Landcost2,2,FALSE),"Error"))) -> 0 | T95: 0 | U95: 2016 | V95: =IFERROR(('General Input Sheet'!$G$38/(VLOOKUP(U95,'General Input Sheet'!$E$38:$G$44,3,FALSE))),1) -> 1 | W95: 209306.59 | AA95: y | AH95: 7209 | AZ95: 7209 | BA95: =IF(AD95="","",(AD95/#REF!)*$W95) ->  | BE95: 209306.59 | BG95: =IF(AJ95="","",(AJ95/#REF!)*$W95) ->  | BH95: =IF(AK95="","",(AK95/#REF!)*$W95) ->  | BI95: =IF(AL95="","",(AL95/#REF!)*$W95) ->  | BJ95: =IF(AM95="","",(AM95/#REF!)*$W95) ->  | BK95: =IF(AN95="","",(AN95/#REF!)*$W95) ->  | BL95: =IF(AO95="","",(AO95/#REF!)*$W95) ->  | BM95: =IF(AP95="","",(AP95/#REF!)*$W95) ->  | BN95: =IF(AQ95="","",(AQ95/#REF!)*$W95) ->  | BO95: =IF(AR95="","",(AR95/#REF!)*$W95) ->  | BP95: =IF(AS95="","",(AS95/#REF!)*$W95) ->  | BQ95: =IF(AT95="","",(AT95/#REF!)*$W95) ->  | BR95: =IF(AU95="","",(AU95/#REF!)*$W95) ->  | BS95: =IF(AV95="","",(AV95/#REF!)*$W95) ->  | BT95: =IF(AW95="","",(AW95/#REF!)*$W95) ->  | BU95: =IF(AX95="","",(AX95/#REF!)*$W95) ->  | BV95: =IF(AY95="","",(AY95/#REF!)*$W95) -> 
B96: PSMA12 | E96: Pump Station | F96: PSMA12 | G96: Bowden Crs SPS | L96: 0 | M96: 327426.0539 | O96: 1 | P96: 327426.0539 | S96: =IF(Q96="",'Unit Rates - Land'!landcst,IF($E$8="Landuse",VLOOKUP(Q96,LAndcost3,2,FALSE),IF($E$8="Location",VLOOKUP(Q96,Landcost2,2,FALSE),"Error"))) -> 0 | T96: 0 | U96: 2016 | V96: =IFERROR(('General Input Sheet'!$G$38/(VLOOKUP(U96,'General Input Sheet'!$E$38:$G$44,3,FALSE))),1) -> 1 | W96: 327426.0539 | AA96: y | AH96: 7209 | AZ96: 7209 | BA96: =IF(AD96="","",(AD96/#REF!)*$W96) ->  | BE96: 327426.0539 | BG96: =IF(AJ96="","",(AJ96/#REF!)*$W96) ->  | BH96: =IF(AK96="","",(AK96/#REF!)*$W96) ->  | BI96: =IF(AL96="","",(AL96/#REF!)*$W96) ->  | BJ96: =IF(AM96="","",(AM96/#REF!)*$W96) ->  | BK96: =IF(AN96="","",(AN96/#REF!)*$W96) ->  | BL96: =IF(AO96="","",(AO96/#REF!)*$W96) ->  | BM96: =IF(AP96="","",(AP96/#REF!)*$W96) ->  | BN96: =IF(AQ96="","",(AQ96/#REF!)*$W96) ->  | BO96: =IF(AR96="","",(AR96/#REF!)*$W96) ->  | BP96: =IF(AS96="","",(AS96/#REF!)*$W96) ->  | BQ96: =IF(AT96="","",(AT96/#REF!)*$W96) ->  | BR96: =IF(AU96="","",(AU96/#REF!)*$W96) ->  | BS96: =IF(AV96="","",(AV96/#REF!)*$W96) ->  | BT96: =IF(AW96="","",(AW96/#REF!)*$W96) ->  | BU96: =IF(AX96="","",(AX96/#REF!)*$W96) ->  | BV96: =IF(AY96="","",(AY96/#REF!)*$W96) -> 
B97: PSMA13 | E97: Pump Station | F97: PSMA13 | G97: Kennys Rd No 3 SPS | L97: 0 | M97: 616035.39 | O97: 1 | P97: 616035.39 | S97: =IF(Q97="",'Unit Rates - Land'!landcst,IF($E$8="Landuse",VLOOKUP(Q97,LAndcost3,2,FALSE),IF($E$8="Location",VLOOKUP(Q97,Landcost2,2,FALSE),"Error"))) -> 0 | T97: 0 | U97: 2016 | V97: =IFERROR(('General Input Sheet'!$G$38/(VLOOKUP(U97,'General Input Sheet'!$E$38:$G$44,3,FALSE))),1) -> 1 | W97: 616035.39 | AA97: y | AH97: 7209 | AZ97: 7209 | BA97: =IF(AD97="","",(AD97/#REF!)*$W97) ->  | BE97: 616035.39 | BG97: =IF(AJ97="","",(AJ97/#REF!)*$W97) ->  | BH97: =IF(AK97="","",(AK97/#REF!)*$W97) ->  | BI97: =IF(AL97="","",(AL97/#REF!)*$W97) ->  | BJ97: =IF(AM97="","",(AM97/#REF!)*$W97) ->  | BK97: =IF(AN97="","",(AN97/#REF!)*$W97) ->  | BL97: =IF(AO97="","",(AO97/#REF!)*$W97) ->  | BM97: =IF(AP97="","",(AP97/#REF!)*$W97) ->  | BN97: =IF(AQ97="","",(AQ97/#REF!)*$W97) ->  | BO97: =IF(AR97="","",(AR97/#REF!)*$W97) ->  | BP97: =IF(AS97="","",(AS97/#REF!)*$W97) ->  | BQ97: =IF(AT97="","",(AT97/#REF!)*$W97) ->  | BR97: =IF(AU97="","",(AU97/#REF!)*$W97) ->  | BS97: =IF(AV97="","",(AV97/#REF!)*$W97) ->  | BT97: =IF(AW97="","",(AW97/#REF!)*$W97) ->  | BU97: =IF(AX97="","",(AX97/#REF!)*$W97) ->  | BV97: =IF(AY97="","",(AY97/#REF!)*$W97) -> 
B98: PSMC01 | E98: Pump Station | F98: PSMC01 | G98: Sydney St SPS | L98: 0 | M98: 7930231.739 | O98: 1 | P98: 7930231.739 | S98: =IF(Q98="",'Unit Rates - Land'!landcst,IF($E$8="Landuse",VLOOKUP(Q98,LAndcost3,2,FALSE),IF($E$8="Location",VLOOKUP(Q98,Landcost2,2,FALSE),"Error"))) -> 0 | T98: 0 | U98: 2016 | V98: =IFERROR(('General Input Sheet'!$G$38/(VLOOKUP(U98,'General Input Sheet'!$E$38:$G$44,3,FALSE))),1) -> 1 | W98: 7930231.739 | Z98: y | AG98: 222697 | AZ98: 222697 | BA98: =IF(AD98="","",(AD98/#REF!)*$W98) ->  | BD98: 7930231.739 | BG98: =IF(AJ98="","",(AJ98/#REF!)*$W98) ->  | BH98: =IF(AK98="","",(AK98/#REF!)*$W98) ->  | BI98: =IF(AL98="","",(AL98/#REF!)*$W98) ->  | BJ98: =IF(AM98="","",(AM98/#REF!)*$W98) ->  | BK98: =IF(AN98="","",(AN98/#REF!)*$W98) ->  | BL98: =IF(AO98="","",(AO98/#REF!)*$W98) ->  | BM98: =IF(AP98="","",(AP98/#REF!)*$W98) ->  | BN98: =IF(AQ98="","",(AQ98/#REF!)*$W98) ->  | BO98: =IF(AR98="","",(AR98/#REF!)*$W98) ->  | BP98: =IF(AS98="","",(AS98/#REF!)*$W98) ->  | BQ98: =IF(AT98="","",(AT98/#REF!)*$W98) ->  | BR98: =IF(AU98="","",(AU98/#REF!)*$W98) ->  | BS98: =IF(AV98="","",(AV98/#REF!)*$W98) ->  | BT98: =IF(AW98="","",(AW98/#REF!)*$W98) ->  | BU98: =IF(AX98="","",(AX98/#REF!)*$W98) ->  | BV98: =IF(AY98="","",(AY98/#REF!)*$W98) -> 
B99: PSMC02 | E99: Pump Station | F99: PSMC02 | G99: Gordon St SPS | L99: 0 | M99: 1367502.447 | O99: 1 | P99: 1367502.447 | S99: =IF(Q99="",'Unit Rates - Land'!landcst,IF($E$8="Landuse",VLOOKUP(Q99,LAndcost3,2,FALSE),IF($E$8="Location",VLOOKUP(Q99,Landcost2,2,FALSE),"Error"))) -> 0 | T99: 0 | U99: 2016 | V99: =IFERROR(('General Input Sheet'!$G$38/(VLOOKUP(U99,'General Input Sheet'!$E$38:$G$44,3,FALSE))),1) -> 1 | W99: 1367502.447 | Z99: y | AG99: 222697 | AZ99: 222697 | BA99: =IF(AD99="","",(AD99/#REF!)*$W99) ->  | BD99: 1367502.447 | BG99: =IF(AJ99="","",(AJ99/#REF!)*$W99) ->  | BH99: =IF(AK99="","",(AK99/#REF!)*$W99) ->  | BI99: =IF(AL99="","",(AL99/#REF!)*$W99) ->  | BJ99: =IF(AM99="","",(AM99/#REF!)*$W99) ->  | BK99: =IF(AN99="","",(AN99/#REF!)*$W99) ->  | BL99: =IF(AO99="","",(AO99/#REF!)*$W99) ->  | BM99: =IF(AP99="","",(AP99/#REF!)*$W99) ->  | BN99: =IF(AQ99="","",(AQ99/#REF!)*$W99) ->  | BO99: =IF(AR99="","",(AR99/#REF!)*$W99) ->  | BP99: =IF(AS99="","",(AS99/#REF!)*$W99) ->  | BQ99: =IF(AT99="","",(AT99/#REF!)*$W99) ->  | BR99: =IF(AU99="","",(AU99/#REF!)*$W99) ->  | BS99: =IF(AV99="","",(AV99/#REF!)*$W99) ->  | BT99: =IF(AW99="","",(AW99/#REF!)*$W99) ->  | BU99: =IF(AX99="","",(AX99/#REF!)*$W99) ->  | BV99: =IF(AY99="","",(AY99/#REF!)*$W99) -> 
B100: PSMC03 | E100: Pump Station | F100: PSMC03 | G100: Shakespeare St SPS | L100: 0 | M100: 485231.384 | O100: 1 | P100: 485231.384 | S100: =IF(Q100="",'Unit Rates - Land'!landcst,IF($E$8="Landuse",VLOOKUP(Q100,LAndcost3,2,FALSE),IF($E$8="Location",VLOOKUP(Q100,Landcost2,2,FALSE),"Error"))) -> 0 | T100: 0 | U100: 2016 | V100: =IFERROR(('General Input Sheet'!$G$38/(VLOOKUP(U100,'General Input Sheet'!$E$38:$G$44,3,FALSE))),1) -> 1 | W100: 485231.384 | Z100: y | AG100: 222697 | AZ100: 222697 | BA100: =IF(AD100="","",(AD100/#REF!)*$W100) ->  | BD100: 485231.384 | BG100: =IF(AJ100="","",(AJ100/#REF!)*$W100) ->  | BH100: =IF(AK100="","",(AK100/#REF!)*$W100) ->  | BI100: =IF(AL100="","",(AL100/#REF!)*$W100) ->  | BJ100: =IF(AM100="","",(AM100/#REF!)*$W100) ->  | BK100: =IF(AN100="","",(AN100/#REF!)*$W100) ->  | BL100: =IF(AO100="","",(AO100/#REF!)*$W100) ->  | BM100: =IF(AP100="","",(AP100/#REF!)*$W100) ->  | BN100: =IF(AQ100="","",(AQ100/#REF!)*$W100) ->  | BO100: =IF(AR100="","",(AR100/#REF!)*$W100) ->  | BP100: =IF(AS100="","",(AS100/#REF!)*$W100) ->  | BQ100: =IF(AT100="","",(AT100/#REF!)*$W100) ->  | BR100: =IF(AU100="","",(AU100/#REF!)*$W100) ->  | BS100: =IF(AV100="","",(AV100/#REF!)*$W100) ->  | BT100: =IF(AW100="","",(AW100/#REF!)*$W100) ->  | BU100: =IF(AX100="","",(AX100/#REF!)*$W100) ->  | BV100: =IF(AY100="","",(AY100/#REF!)*$W100) -> 
B101: PSMC04 | E101: Pump Station | F101: PSMC04 | G101: Evan St SPS | L101: 0 | M101: 312136.1699 | O101: 1 | P101: 312136.1699 | S101: =IF(Q101="",'Unit Rates - Land'!landcst,IF($E$8="Landuse",VLOOKUP(Q101,LAndcost3,2,FALSE),IF($E$8="Location",VLOOKUP(Q101,Landcost2,2,FALSE),"Error"))) -> 0 | T101: 0 | U101: 2016 | V101: =IFERROR(('General Input Sheet'!$G$38/(VLOOKUP(U101,'General Input Sheet'!$E$38:$G$44,3,FALSE))),1) -> 1 | W101: 312136.1699 | Z101: y | AG101: 222697 | AZ101: 222697 | BA101: =IF(AD101="","",(AD101/#REF!)*$W101) ->  | BD101: 312136.1699 | BG101: =IF(AJ101="","",(AJ101/#REF!)*$W101) ->  | BH101: =IF(AK101="","",(AK101/#REF!)*$W101) ->  | BI101: =IF(AL101="","",(AL101/#REF!)*$W101) ->  | BJ101: =IF(AM101="","",(AM101/#REF!)*$W101) ->  | BK101: =IF(AN101="","",(AN101/#REF!)*$W101) ->  | BL101: =IF(AO101="","",(AO101/#REF!)*$W101) ->  | BM101: =IF(AP101="","",(AP101/#REF!)*$W101) ->  | BN101: =IF(AQ101="","",(AQ101/#REF!)*$W101) ->  | BO101: =IF(AR101="","",(AR101/#REF!)*$W101) ->  | BP101: =IF(AS101="","",(AS101/#REF!)*$W101) ->  | BQ101: =IF(AT101="","",(AT101/#REF!)*$W101) ->  | BR101: =IF(AU101="","",(AU101/#REF!)*$W101) ->  | BS101: =IF(AV101="","",(AV101/#REF!)*$W101) ->  | BT101: =IF(AW101="","",(AW101/#REF!)*$W101) ->  | BU101: =IF(AX101="","",(AX101/#REF!)*$W101) ->  | BV101: =IF(AY101="","",(AY101/#REF!)*$W101) -> 
B102: PSMC05 | E102: Pump Station | F102: PSMC05 | G102: Goldsmith St SPS | L102: 0 | M102: 667161.7227 | O102: 1 | P102: 667161.7227 | S102: =IF(Q102="",'Unit Rates - Land'!landcst,IF($E$8="Landuse",VLOOKUP(Q102,LAndcost3,2,FALSE),IF($E$8="Location",VLOOKUP(Q102,Landcost2,2,FALSE),"Error"))) -> 0 | T102: 0 | U102: 2016 | V102: =IFERROR(('General Input Sheet'!$G$38/(VLOOKUP(U102,'General Input Sheet'!$E$38:$G$44,3,FALSE))),1) -> 1 | W102: 667161.7227 | Z102: y | AG102: 222697 | AZ102: 222697 | BA102: =IF(AD102="","",(AD102/#REF!)*$W102) ->  | BD102: 667161.7227 | BG102: =IF(AJ102="","",(AJ102/#REF!)*$W102) ->  | BH102: =IF(AK102="","",(AK102/#REF!)*$W102) ->  | BI102: =IF(AL102="","",(AL102/#REF!)*$W102) ->  | BJ102: =IF(AM102="","",(AM102/#REF!)*$W102) ->  | BK102: =IF(AN102="","",(AN102/#REF!)*$W102) ->  | BL102: =IF(AO102="","",(AO102/#REF!)*$W102) ->  | BM102: =IF(AP102="","",(AP102/#REF!)*$W102) ->  | BN102: =IF(AQ102="","",(AQ102/#REF!)*$W102) ->  | BO102: =IF(AR102="","",(AR102/#REF!)*$W102) ->  | BP102: =IF(AS102="","",(AS102/#REF!)*$W102) ->  | BQ102: =IF(AT102="","",(AT102/#REF!)*$W102) ->  | BR102: =IF(AU102="","",(AU102/#REF!)*$W102) ->  | BS102: =IF(AV102="","",(AV102/#REF!)*$W102) ->  | BT102: =IF(AW102="","",(AW102/#REF!)*$W102) ->  | BU102: =IF(AX102="","",(AX102/#REF!)*$W102) ->  | BV102: =IF(AY102="","",(AY102/#REF!)*$W102) -> 
B103: PSMC06 | E103: Pump Station | F103: PSMC06 | G103: Hart St SPS | L103: 0 | M103: 318969.6899 | O103: 1 | P103: 318969.6899 | S103: =IF(Q103="",'Unit Rates - Land'!landcst,IF($E$8="Landuse",VLOOKUP(Q103,LAndcost3,2,FALSE),IF($E$8="Location",VLOOKUP(Q103,Landcost2,2,FALSE),"Error"))) -> 0 | T103: 0 | U103: 2016 | V103: =IFERROR(('General Input Sheet'!$G$38/(VLOOKUP(U103,'General Input Sheet'!$E$38:$G$44,3,FALSE))),1) -> 1 | W103: 318969.6899 | Z103: y | AG103: 222697 | AZ103: 222697 | BA103: =IF(AD103="","",(AD103/#REF!)*$W103) ->  | BD103: 318969.6899 | BG103: =IF(AJ103="","",(AJ103/#REF!)*$W103) ->  | BH103: =IF(AK103="","",(AK103/#REF!)*$W103) ->  | BI103: =IF(AL103="","",(AL103/#REF!)*$W103) ->  | BJ103: =IF(AM103="","",(AM103/#REF!)*$W103) ->  | BK103: =IF(AN103="","",(AN103/#REF!)*$W103) ->  | BL103: =IF(AO103="","",(AO103/#REF!)*$W103) ->  | BM103: =IF(AP103="","",(AP103/#REF!)*$W103) ->  | BN103: =IF(AQ103="","",(AQ103/#REF!)*$W103) ->  | BO103: =IF(AR103="","",(AR103/#REF!)*$W103) ->  | BP103: =IF(AS103="","",(AS103/#REF!)*$W103) ->  | BQ103: =IF(AT103="","",(AT103/#REF!)*$W103) ->  | BR103: =IF(AU103="","",(AU103/#REF!)*$W103) ->  | BS103: =IF(AV103="","",(AV103/#REF!)*$W103) ->  | BT103: =IF(AW103="","",(AW103/#REF!)*$W103) ->  | BU103: =IF(AX103="","",(AX103/#REF!)*$W103) ->  | BV103: =IF(AY103="","",(AY103/#REF!)*$W103) -> 
B104: PSMC07 | E104: Pump Station | F104: PSMC07 | G104: Kilgour St SPS | L104: 0 | M104: 326604.3345 | O104: 1 | P104: 326604.3345 | S104: =IF(Q104="",'Unit Rates - Land'!landcst,IF($E$8="Landuse",VLOOKUP(Q104,LAndcost3,2,FALSE),IF($E$8="Location",VLOOKUP(Q104,Landcost2,2,FALSE),"Error"))) -> 0 | T104: 0 | U104: 2016 | V104: =IFERROR(('General Input Sheet'!$G$38/(VLOOKUP(U104,'General Input Sheet'!$E$38:$G$44,3,FALSE))),1) -> 1 | W104: 326604.3345 | Z104: y | AG104: 222697 | AZ104: 222697 | BA104: =IF(AD104="","",(AD104/#REF!)*$W104) ->  | BD104: 326604.3345 | BG104: =IF(AJ104="","",(AJ104/#REF!)*$W104) ->  | BH104: =IF(AK104="","",(AK104/#REF!)*$W104) ->  | BI104: =IF(AL104="","",(AL104/#REF!)*$W104) ->  | BJ104: =IF(AM104="","",(AM104/#REF!)*$W104) ->  | BK104: =IF(AN104="","",(AN104/#REF!)*$W104) ->  | BL104: =IF(AO104="","",(AO104/#REF!)*$W104) ->  | BM104: =IF(AP104="","",(AP104/#REF!)*$W104) ->  | BN104: =IF(AQ104="","",(AQ104/#REF!)*$W104) ->  | BO104: =IF(AR104="","",(AR104/#REF!)*$W104) ->  | BP104: =IF(AS104="","",(AS104/#REF!)*$W104) ->  | BQ104: =IF(AT104="","",(AT104/#REF!)*$W104) ->  | BR104: =IF(AU104="","",(AU104/#REF!)*$W104) ->  | BS104: =IF(AV104="","",(AV104/#REF!)*$W104) ->  | BT104: =IF(AW104="","",(AW104/#REF!)*$W104) ->  | BU104: =IF(AX104="","",(AX104/#REF!)*$W104) ->  | BV104: =IF(AY104="","",(AY104/#REF!)*$W104) -> 
B105: PSMC08 | E105: Pump Station | F105: PSMC08 | G105: Keelan St SPS | L105: 0 | M105: 286221.2414 | O105: 1 | P105: 286221.2414 | S105: =IF(Q105="",'Unit Rates - Land'!landcst,IF($E$8="Landuse",VLOOKUP(Q105,LAndcost3,2,FALSE),IF($E$8="Location",VLOOKUP(Q105,Landcost2,2,FALSE),"Error"))) -> 0 | T105: 0 | U105: 2016 | V105: =IFERROR(('General Input Sheet'!$G$38/(VLOOKUP(U105,'General Input Sheet'!$E$38:$G$44,3,FALSE))),1) -> 1 | W105: 286221.2414 | Z105: y | AG105: 222697 | AZ105: 222697 | BA105: =IF(AD105="","",(AD105/#REF!)*$W105) ->  | BD105: 286221.2414 | BG105: =IF(AJ105="","",(AJ105/#REF!)*$W105) ->  | BH105: =IF(AK105="","",(AK105/#REF!)*$W105) ->  | BI105: =IF(AL105="","",(AL105/#REF!)*$W105) ->  | BJ105: =IF(AM105="","",(AM105/#REF!)*$W105) ->  | BK105: =IF(AN105="","",(AN105/#REF!)*$W105) ->  | BL105: =IF(AO105="","",(AO105/#REF!)*$W105) ->  | BM105: =IF(AP105="","",(AP105/#REF!)*$W105) ->  | BN105: =IF(AQ105="","",(AQ105/#REF!)*$W105) ->  | BO105: =IF(AR105="","",(AR105/#REF!)*$W105) ->  | BP105: =IF(AS105="","",(AS105/#REF!)*$W105) ->  | BQ105: =IF(AT105="","",(AT105/#REF!)*$W105) ->  | BR105: =IF(AU105="","",(AU105/#REF!)*$W105) ->  | BS105: =IF(AV105="","",(AV105/#REF!)*$W105) ->  | BT105: =IF(AW105="","",(AW105/#REF!)*$W105) ->  | BU105: =IF(AX105="","",(AX105/#REF!)*$W105) ->  | BV105: =IF(AY105="","",(AY105/#REF!)*$W105) -> 
B106: PSMC09 | E106: Pump Station | F106: PSMC09 | G106: Scott St SPS | L106: 0 | M106: 284096.7153 | O106: 1 | P106: 284096.7153 | S106: =IF(Q106="",'Unit Rates - Land'!landcst,IF($E$8="Landuse",VLOOKUP(Q106,LAndcost3,2,FALSE),IF($E$8="Location",VLOOKUP(Q106,Landcost2,2,FALSE),"Error"))) -> 0 | T106: 0 | U106: 2016 | V106: =IFERROR(('General Input Sheet'!$G$38/(VLOOKUP(U106,'General Input Sheet'!$E$38:$G$44,3,FALSE))),1) -> 1 | W106: 284096.7153 | Z106: y | AG106: 222697 | AZ106: 222697 | BA106: =IF(AD106="","",(AD106/#REF!)*$W106) ->  | BD106: 284096.7153 | BG106: =IF(AJ106="","",(AJ106/#REF!)*$W106) ->  | BH106: =IF(AK106="","",(AK106/#REF!)*$W106) ->  | BI106: =IF(AL106="","",(AL106/#REF!)*$W106) ->  | BJ106: =IF(AM106="","",(AM106/#REF!)*$W106) ->  | BK106: =IF(AN106="","",(AN106/#REF!)*$W106) ->  | BL106: =IF(AO106="","",(AO106/#REF!)*$W106) ->  | BM106: =IF(AP106="","",(AP106/#REF!)*$W106) ->  | BN106: =IF(AQ106="","",(AQ106/#REF!)*$W106) ->  | BO106: =IF(AR106="","",(AR106/#REF!)*$W106) ->  | BP106: =IF(AS106="","",(AS106/#REF!)*$W106) ->  | BQ106: =IF(AT106="","",(AT106/#REF!)*$W106) ->  | BR106: =IF(AU106="","",(AU106/#REF!)*$W106) ->  | BS106: =IF(AV106="","",(AV106/#REF!)*$W106) ->  | BT106: =IF(AW106="","",(AW106/#REF!)*$W106) ->  | BU106: =IF(AX106="","",(AX106/#REF!)*$W106) ->  | BV106: =IF(AY106="","",(AY106/#REF!)*$W106) -> 
B107: PSMC10 | E107: Pump Station | F107: PSMC10 | G107: Black St SPS | L107: 0 | M107: 330997.8982 | O107: 1 | P107: 330997.8982 | S107: =IF(Q107="",'Unit Rates - Land'!landcst,IF($E$8="Landuse",VLOOKUP(Q107,LAndcost3,2,FALSE),IF($E$8="Location",VLOOKUP(Q107,Landcost2,2,FALSE),"Error"))) -> 0 | T107: 0 | U107: 2016 | V107: =IFERROR(('General Input Sheet'!$G$38/(VLOOKUP(U107,'General Input Sheet'!$E$38:$G$44,3,FALSE))),1) -> 1 | W107: 330997.8982 | Z107: y | AG107: 222697 | AZ107: 222697 | BA107: =IF(AD107="","",(AD107/#REF!)*$W107) ->  | BD107: 330997.8982 | BG107: =IF(AJ107="","",(AJ107/#REF!)*$W107) ->  | BH107: =IF(AK107="","",(AK107/#REF!)*$W107) ->  | BI107: =IF(AL107="","",(AL107/#REF!)*$W107) ->  | BJ107: =IF(AM107="","",(AM107/#REF!)*$W107) ->  | BK107: =IF(AN107="","",(AN107/#REF!)*$W107) ->  | BL107: =IF(AO107="","",(AO107/#REF!)*$W107) ->  | BM107: =IF(AP107="","",(AP107/#REF!)*$W107) ->  | BN107: =IF(AQ107="","",(AQ107/#REF!)*$W107) ->  | BO107: =IF(AR107="","",(AR107/#REF!)*$W107) ->  | BP107: =IF(AS107="","",(AS107/#REF!)*$W107) ->  | BQ107: =IF(AT107="","",(AT107/#REF!)*$W107) ->  | BR107: =IF(AU107="","",(AU107/#REF!)*$W107) ->  | BS107: =IF(AV107="","",(AV107/#REF!)*$W107) ->  | BT107: =IF(AW107="","",(AW107/#REF!)*$W107) ->  | BU107: =IF(AX107="","",(AX107/#REF!)*$W107) ->  | BV107: =IF(AY107="","",(AY107/#REF!)*$W107) -> 
B108: PSMC11 | E108: Pump Station | F108: PSMC11 | G108: Meero St SPS | L108: 0 | M108: 360273.5607 | O108: 1 | P108: 360273.5607 | S108: =IF(Q108="",'Unit Rates - Land'!landcst,IF($E$8="Landuse",VLOOKUP(Q108,LAndcost3,2,FALSE),IF($E$8="Location",VLOOKUP(Q108,Landcost2,2,FALSE),"Error"))) -> 0 | T108: 0 | U108: 2016 | V108: =IFERROR(('General Input Sheet'!$G$38/(VLOOKUP(U108,'General Input Sheet'!$E$38:$G$44,3,FALSE))),1) -> 1 | W108: 360273.5607 | Z108: y | AG108: 222697 | AZ108: 222697 | BA108: =IF(AD108="","",(AD108/#REF!)*$W108) ->  | BD108: 360273.5607 | BG108: =IF(AJ108="","",(AJ108/#REF!)*$W108) ->  | BH108: =IF(AK108="","",(AK108/#REF!)*$W108) ->  | BI108: =IF(AL108="","",(AL108/#REF!)*$W108) ->  | BJ108: =IF(AM108="","",(AM108/#REF!)*$W108) ->  | BK108: =IF(AN108="","",(AN108/#REF!)*$W108) ->  | BL108: =IF(AO108="","",(AO108/#REF!)*$W108) ->  | BM108: =IF(AP108="","",(AP108/#REF!)*$W108) ->  | BN108: =IF(AQ108="","",(AQ108/#REF!)*$W108) ->  | BO108: =IF(AR108="","",(AR108/#REF!)*$W108) ->  | BP108: =IF(AS108="","",(AS108/#REF!)*$W108) ->  | BQ108: =IF(AT108="","",(AT108/#REF!)*$W108) ->  | BR108: =IF(AU108="","",(AU108/#REF!)*$W108) ->  | BS108: =IF(AV108="","",(AV108/#REF!)*$W108) ->  | BT108: =IF(AW108="","",(AW108/#REF!)*$W108) ->  | BU108: =IF(AX108="","",(AX108/#REF!)*$W108) ->  | BV108: =IF(AY108="","",(AY108/#REF!)*$W108) -> 
B109: PSMC12 | E109: Pump Station | F109: PSMC12 | G109: Graffunder St SPS | L109: 0 | M109: 411885.4918 | O109: 1 | P109: 411885.4918 | S109: =IF(Q109="",'Unit Rates - Land'!landcst,IF($E$8="Landuse",VLOOKUP(Q109,LAndcost3,2,FALSE),IF($E$8="Location",VLOOKUP(Q109,Landcost2,2,FALSE),"Error"))) -> 0 | T109: 0 | U109: 2016 | V109: =IFERROR(('General Input Sheet'!$G$38/(VLOOKUP(U109,'General Input Sheet'!$E$38:$G$44,3,FALSE))),1) -> 1 | W109: 411885.4918 | Z109: y | AG109: 222697 | AZ109: 222697 | BA109: =IF(AD109="","",(AD109/#REF!)*$W109) ->  | BD109: 411885.4918 | BG109: =IF(AJ109="","",(AJ109/#REF!)*$W109) ->  | BH109: =IF(AK109="","",(AK109/#REF!)*$W109) ->  | BI109: =IF(AL109="","",(AL109/#REF!)*$W109) ->  | BJ109: =IF(AM109="","",(AM109/#REF!)*$W109) ->  | BK109: =IF(AN109="","",(AN109/#REF!)*$W109) ->  | BL109: =IF(AO109="","",(AO109/#REF!)*$W109) ->  | BM109: =IF(AP109="","",(AP109/#REF!)*$W109) ->  | BN109: =IF(AQ109="","",(AQ109/#REF!)*$W109) ->  | BO109: =IF(AR109="","",(AR109/#REF!)*$W109) ->  | BP109: =IF(AS109="","",(AS109/#REF!)*$W109) ->  | BQ109: =IF(AT109="","",(AT109/#REF!)*$W109) ->  | BR109: =IF(AU109="","",(AU109/#REF!)*$W109) ->  | BS109: =IF(AV109="","",(AV109/#REF!)*$W109) ->  | BT109: =IF(AW109="","",(AW109/#REF!)*$W109) ->  | BU109: =IF(AX109="","",(AX109/#REF!)*$W109) ->  | BV109: =IF(AY109="","",(AY109/#REF!)*$W109) -> 
B110: PSMC14 | E110: Pump Station | F110: PSMC14 | G110: Paget St SPS | L110: 0 | M110: 279866.6602 | O110: 1 | P110: 279866.6602 | S110: =IF(Q110="",'Unit Rates - Land'!landcst,IF($E$8="Landuse",VLOOKUP(Q110,LAndcost3,2,FALSE),IF($E$8="Location",VLOOKUP(Q110,Landcost2,2,FALSE),"Error"))) -> 0 | T110: 0 | U110: 2016 | V110: =IFERROR(('General Input Sheet'!$G$38/(VLOOKUP(U110,'General Input Sheet'!$E$38:$G$44,3,FALSE))),1) -> 1 | W110: 279866.6602 | Z110: y | AG110: 222697 | AZ110: 222697 | BA110: =IF(AD110="","",(AD110/#REF!)*$W110) ->  | BD110: 279866.6602 | BG110: =IF(AJ110="","",(AJ110/#REF!)*$W110) ->  | BH110: =IF(AK110="","",(AK110/#REF!)*$W110) ->  | BI110: =IF(AL110="","",(AL110/#REF!)*$W110) ->  | BJ110: =IF(AM110="","",(AM110/#REF!)*$W110) ->  | BK110: =IF(AN110="","",(AN110/#REF!)*$W110) ->  | BL110: =IF(AO110="","",(AO110/#REF!)*$W110) ->  | BM110: =IF(AP110="","",(AP110/#REF!)*$W110) ->  | BN110: =IF(AQ110="","",(AQ110/#REF!)*$W110) ->  | BO110: =IF(AR110="","",(AR110/#REF!)*$W110) ->  | BP110: =IF(AS110="","",(AS110/#REF!)*$W110) ->  | BQ110: =IF(AT110="","",(AT110/#REF!)*$W110) ->  | BR110: =IF(AU110="","",(AU110/#REF!)*$W110) ->  | BS110: =IF(AV110="","",(AV110/#REF!)*$W110) ->  | BT110: =IF(AW110="","",(AW110/#REF!)*$W110) ->  | BU110: =IF(AX110="","",(AX110/#REF!)*$W110) ->  | BV110: =IF(AY110="","",(AY110/#REF!)*$W110) -> 
B111: PSMC19 | E111: Pump Station | F111: PSMC19 | G111: Nebo Rd SPS | L111: 0 | M111: 268098.8801 | O111: 1 | P111: 268098.8801 | S111: =IF(Q111="",'Unit Rates - Land'!landcst,IF($E$8="Landuse",VLOOKUP(Q111,LAndcost3,2,FALSE),IF($E$8="Location",VLOOKUP(Q111,Landcost2,2,FALSE),"Error"))) -> 0 | T111: 0 | U111: 2016 | V111: =IFERROR(('General Input Sheet'!$G$38/(VLOOKUP(U111,'General Input Sheet'!$E$38:$G$44,3,FALSE))),1) -> 1 | W111: 268098.8801 | Z111: y | AG111: 222697 | AZ111: 222697 | BA111: =IF(AD111="","",(AD111/#REF!)*$W111) ->  | BD111: 268098.8801 | BG111: =IF(AJ111="","",(AJ111/#REF!)*$W111) ->  | BH111: =IF(AK111="","",(AK111/#REF!)*$W111) ->  | BI111: =IF(AL111="","",(AL111/#REF!)*$W111) ->  | BJ111: =IF(AM111="","",(AM111/#REF!)*$W111) ->  | BK111: =IF(AN111="","",(AN111/#REF!)*$W111) ->  | BL111: =IF(AO111="","",(AO111/#REF!)*$W111) ->  | BM111: =IF(AP111="","",(AP111/#REF!)*$W111) ->  | BN111: =IF(AQ111="","",(AQ111/#REF!)*$W111) ->  | BO111: =IF(AR111="","",(AR111/#REF!)*$W111) ->  | BP111: =IF(AS111="","",(AS111/#REF!)*$W111) ->  | BQ111: =IF(AT111="","",(AT111/#REF!)*$W111) ->  | BR111: =IF(AU111="","",(AU111/#REF!)*$W111) ->  | BS111: =IF(AV111="","",(AV111/#REF!)*$W111) ->  | BT111: =IF(AW111="","",(AW111/#REF!)*$W111) ->  | BU111: =IF(AX111="","",(AX111/#REF!)*$W111) ->  | BV111: =IF(AY111="","",(AY111/#REF!)*$W111) -> 
B112: PSMC20 | E112: Pump Station | F112: PSMC20 | G112: Bridge Rd SPS | L112: 0 | M112: 1218043.658 | O112: 1 | P112: 1218043.658 | S112: =IF(Q112="",'Unit Rates - Land'!landcst,IF($E$8="Landuse",VLOOKUP(Q112,LAndcost3,2,FALSE),IF($E$8="Location",VLOOKUP(Q112,Landcost2,2,FALSE),"Error"))) -> 0 | T112: 0 | U112: 2016 | V112: =IFERROR(('General Input Sheet'!$G$38/(VLOOKUP(U112,'General Input Sheet'!$E$38:$G$44,3,FALSE))),1) -> 1 | W112: 1218043.658 | Z112: y | AG112: 222697 | AZ112: 222697 | BA112: =IF(AD112="","",(AD112/#REF!)*$W112) ->  | BD112: 1218043.658 | BG112: =IF(AJ112="","",(AJ112/#REF!)*$W112) ->  | BH112: =IF(AK112="","",(AK112/#REF!)*$W112) ->  | BI112: =IF(AL112="","",(AL112/#REF!)*$W112) ->  | BJ112: =IF(AM112="","",(AM112/#REF!)*$W112) ->  | BK112: =IF(AN112="","",(AN112/#REF!)*$W112) ->  | BL112: =IF(AO112="","",(AO112/#REF!)*$W112) ->  | BM112: =IF(AP112="","",(AP112/#REF!)*$W112) ->  | BN112: =IF(AQ112="","",(AQ112/#REF!)*$W112) ->  | BO112: =IF(AR112="","",(AR112/#REF!)*$W112) ->  | BP112: =IF(AS112="","",(AS112/#REF!)*$W112) ->  | BQ112: =IF(AT112="","",(AT112/#REF!)*$W112) ->  | BR112: =IF(AU112="","",(AU112/#REF!)*$W112) ->  | BS112: =IF(AV112="","",(AV112/#REF!)*$W112) ->  | BT112: =IF(AW112="","",(AW112/#REF!)*$W112) ->  | BU112: =IF(AX112="","",(AX112/#REF!)*$W112) ->  | BV112: =IF(AY112="","",(AY112/#REF!)*$W112) -> 
B113: PSMC21 | E113: Pump Station | F113: PSMC21 | G113: Cullen St SPS | L113: 0 | M113: 405265.8975 | O113: 1 | P113: 405265.8975 | S113: =IF(Q113="",'Unit Rates - Land'!landcst,IF($E$8="Landuse",VLOOKUP(Q113,LAndcost3,2,FALSE),IF($E$8="Location",VLOOKUP(Q113,Landcost2,2,FALSE),"Error"))) -> 0 | T113: 0 | U113: 2016 | V113: =IFERROR(('General Input Sheet'!$G$38/(VLOOKUP(U113,'General Input Sheet'!$E$38:$G$44,3,FALSE))),1) -> 1 | W113: 405265.8975 | Z113: y | AG113: 222697 | AZ113: 222697 | BA113: =IF(AD113="","",(AD113/#REF!)*$W113) ->  | BD113: 405265.8975 | BG113: =IF(AJ113="","",(AJ113/#REF!)*$W113) ->  | BH113: =IF(AK113="","",(AK113/#REF!)*$W113) ->  | BI113: =IF(AL113="","",(AL113/#REF!)*$W113) ->  | BJ113: =IF(AM113="","",(AM113/#REF!)*$W113) ->  | BK113: =IF(AN113="","",(AN113/#REF!)*$W113) ->  | BL113: =IF(AO113="","",(AO113/#REF!)*$W113) ->  | BM113: =IF(AP113="","",(AP113/#REF!)*$W113) ->  | BN113: =IF(AQ113="","",(AQ113/#REF!)*$W113) ->  | BO113: =IF(AR113="","",(AR113/#REF!)*$W113) ->  | BP113: =IF(AS113="","",(AS113/#REF!)*$W113) ->  | BQ113: =IF(AT113="","",(AT113/#REF!)*$W113) ->  | BR113: =IF(AU113="","",(AU113/#REF!)*$W113) ->  | BS113: =IF(AV113="","",(AV113/#REF!)*$W113) ->  | BT113: =IF(AW113="","",(AW113/#REF!)*$W113) ->  | BU113: =IF(AX113="","",(AX113/#REF!)*$W113) ->  | BV113: =IF(AY113="","",(AY113/#REF!)*$W113) -> 
B114: PSMC22 | E114: Pump Station | F114: PSMC22 | G114: Marryatt St SPS | L114: 0 | M114: 1234338.311 | O114: 1 | P114: 1234338.311 | S114: =IF(Q114="",'Unit Rates - Land'!landcst,IF($E$8="Landuse",VLOOKUP(Q114,LAndcost3,2,FALSE),IF($E$8="Location",VLOOKUP(Q114,Landcost2,2,FALSE),"Error"))) -> 0 | T114: 0 | U114: 2016 | V114: =IFERROR(('General Input Sheet'!$G$38/(VLOOKUP(U114,'General Input Sheet'!$E$38:$G$44,3,FALSE))),1) -> 1 | W114: 1234338.311 | Z114: y | AG114: 222697 | AZ114: 222697 | BA114: =IF(AD114="","",(AD114/#REF!)*$W114) ->  | BD114: 1234338.311 | BG114: =IF(AJ114="","",(AJ114/#REF!)*$W114) ->  | BH114: =IF(AK114="","",(AK114/#REF!)*$W114) ->  | BI114: =IF(AL114="","",(AL114/#REF!)*$W114) ->  | BJ114: =IF(AM114="","",(AM114/#REF!)*$W114) ->  | BK114: =IF(AN114="","",(AN114/#REF!)*$W114) ->  | BL114: =IF(AO114="","",(AO114/#REF!)*$W114) ->  | BM114: =IF(AP114="","",(AP114/#REF!)*$W114) ->  | BN114: =IF(AQ114="","",(AQ114/#REF!)*$W114) ->  | BO114: =IF(AR114="","",(AR114/#REF!)*$W114) ->  | BP114: =IF(AS114="","",(AS114/#REF!)*$W114) ->  | BQ114: =IF(AT114="","",(AT114/#REF!)*$W114) ->  | BR114: =IF(AU114="","",(AU114/#REF!)*$W114) ->  | BS114: =IF(AV114="","",(AV114/#REF!)*$W114) ->  | BT114: =IF(AW114="","",(AW114/#REF!)*$W114) ->  | BU114: =IF(AX114="","",(AX114/#REF!)*$W114) ->  | BV114: =IF(AY114="","",(AY114/#REF!)*$W114) -> 
B115: PSMC23 | E115: Pump Station | F115: PSMC23 | G115: Penelope St SPS | L115: 0 | M115: 273688.2628 | O115: 1 | P115: 273688.2628 | S115: =IF(Q115="",'Unit Rates - Land'!landcst,IF($E$8="Landuse",VLOOKUP(Q115,LAndcost3,2,FALSE),IF($E$8="Location",VLOOKUP(Q115,Landcost2,2,FALSE),"Error"))) -> 0 | T115: 0 | U115: 2016 | V115: =IFERROR(('General Input Sheet'!$G$38/(VLOOKUP(U115,'General Input Sheet'!$E$38:$G$44,3,FALSE))),1) -> 1 | W115: 273688.2628 | Z115: y | AG115: 222697 | AZ115: 222697 | BA115: =IF(AD115="","",(AD115/#REF!)*$W115) ->  | BD115: 273688.2628 | BG115: =IF(AJ115="","",(AJ115/#REF!)*$W115) ->  | BH115: =IF(AK115="","",(AK115/#REF!)*$W115) ->  | BI115: =IF(AL115="","",(AL115/#REF!)*$W115) ->  | BJ115: =IF(AM115="","",(AM115/#REF!)*$W115) ->  | BK115: =IF(AN115="","",(AN115/#REF!)*$W115) ->  | BL115: =IF(AO115="","",(AO115/#REF!)*$W115) ->  | BM115: =IF(AP115="","",(AP115/#REF!)*$W115) ->  | BN115: =IF(AQ115="","",(AQ115/#REF!)*$W115) ->  | BO115: =IF(AR115="","",(AR115/#REF!)*$W115) ->  | BP115: =IF(AS115="","",(AS115/#REF!)*$W115) ->  | BQ115: =IF(AT115="","",(AT115/#REF!)*$W115) ->  | BR115: =IF(AU115="","",(AU115/#REF!)*$W115) ->  | BS115: =IF(AV115="","",(AV115/#REF!)*$W115) ->  | BT115: =IF(AW115="","",(AW115/#REF!)*$W115) ->  | BU115: =IF(AX115="","",(AX115/#REF!)*$W115) ->  | BV115: =IF(AY115="","",(AY115/#REF!)*$W115) -> 
B116: PSMC24 | E116: Pump Station | F116: PSMC24 | G116: Willoughby Crs SPS | L116: 0 | M116: 216189.3454 | O116: 1 | P116: 216189.3454 | S116: =IF(Q116="",'Unit Rates - Land'!landcst,IF($E$8="Landuse",VLOOKUP(Q116,LAndcost3,2,FALSE),IF($E$8="Location",VLOOKUP(Q116,Landcost2,2,FALSE),"Error"))) -> 0 | T116: 0 | U116: 2016 | V116: =IFERROR(('General Input Sheet'!$G$38/(VLOOKUP(U116,'General Input Sheet'!$E$38:$G$44,3,FALSE))),1) -> 1 | W116: 216189.3454 | Z116: y | AG116: 222697 | AZ116: 222697 | BA116: =IF(AD116="","",(AD116/#REF!)*$W116) ->  | BD116: 216189.3454 | BG116: =IF(AJ116="","",(AJ116/#REF!)*$W116) ->  | BH116: =IF(AK116="","",(AK116/#REF!)*$W116) ->  | BI116: =IF(AL116="","",(AL116/#REF!)*$W116) ->  | BJ116: =IF(AM116="","",(AM116/#REF!)*$W116) ->  | BK116: =IF(AN116="","",(AN116/#REF!)*$W116) ->  | BL116: =IF(AO116="","",(AO116/#REF!)*$W116) ->  | BM116: =IF(AP116="","",(AP116/#REF!)*$W116) ->  | BN116: =IF(AQ116="","",(AQ116/#REF!)*$W116) ->  | BO116: =IF(AR116="","",(AR116/#REF!)*$W116) ->  | BP116: =IF(AS116="","",(AS116/#REF!)*$W116) ->  | BQ116: =IF(AT116="","",(AT116/#REF!)*$W116) ->  | BR116: =IF(AU116="","",(AU116/#REF!)*$W116) ->  | BS116: =IF(AV116="","",(AV116/#REF!)*$W116) ->  | BT116: =IF(AW116="","",(AW116/#REF!)*$W116) ->  | BU116: =IF(AX116="","",(AX116/#REF!)*$W116) ->  | BV116: =IF(AY116="","",(AY116/#REF!)*$W116) -> 
B117: PSMI01 | E117: Pump Station | F117: PSMI01 | G117: Mackay-Eungella Rd SPS | L117: 0 | M117: 322366.4209 | O117: 1 | P117: 322366.4209 | S117: =IF(Q117="",'Unit Rates - Land'!landcst,IF($E$8="Landuse",VLOOKUP(Q117,LAndcost3,2,FALSE),IF($E$8="Location",VLOOKUP(Q117,Landcost2,2,FALSE),"Error"))) -> 0 | T117: 0 | U117: 2016 | V117: =IFERROR(('General Input Sheet'!$G$38/(VLOOKUP(U117,'General Input Sheet'!$E$38:$G$44,3,FALSE))),1) -> 1 | W117: 322366.4209 | AA117: y | AH117: 7209 | AZ117: 7209 | BA117: =IF(AD117="","",(AD117/#REF!)*$W117) ->  | BE117: 322366.4209 | BG117: =IF(AJ117="","",(AJ117/#REF!)*$W117) ->  | BH117: =IF(AK117="","",(AK117/#REF!)*$W117) ->  | BI117: =IF(AL117="","",(AL117/#REF!)*$W117) ->  | BJ117: =IF(AM117="","",(AM117/#REF!)*$W117) ->  | BK117: =IF(AN117="","",(AN117/#REF!)*$W117) ->  | BL117: =IF(AO117="","",(AO117/#REF!)*$W117) ->  | BM117: =IF(AP117="","",(AP117/#REF!)*$W117) ->  | BN117: =IF(AQ117="","",(AQ117/#REF!)*$W117) ->  | BO117: =IF(AR117="","",(AR117/#REF!)*$W117) ->  | BP117: =IF(AS117="","",(AS117/#REF!)*$W117) ->  | BQ117: =IF(AT117="","",(AT117/#REF!)*$W117) ->  | BR117: =IF(AU117="","",(AU117/#REF!)*$W117) ->  | BS117: =IF(AV117="","",(AV117/#REF!)*$W117) ->  | BT117: =IF(AW117="","",(AW117/#REF!)*$W117) ->  | BU117: =IF(AX117="","",(AX117/#REF!)*$W117) ->  | BV117: =IF(AY117="","",(AY117/#REF!)*$W117) -> 
B118: PSMI02 | E118: Pump Station | F118: PSMI02 | G118: Elizabeth St No 1 SPS | L118: 0 | M118: 240358.9454 | O118: 1 | P118: 240358.9454 | S118: =IF(Q118="",'Unit Rates - Land'!landcst,IF($E$8="Landuse",VLOOKUP(Q118,LAndcost3,2,FALSE),IF($E$8="Location",VLOOKUP(Q118,Landcost2,2,FALSE),"Error"))) -> 0 | T118: 0 | U118: 2016 | V118: =IFERROR(('General Input Sheet'!$G$38/(VLOOKUP(U118,'General Input Sheet'!$E$38:$G$44,3,FALSE))),1) -> 1 | W118: 240358.9454 | AA118: y | AH118: 7209 | AZ118: 7209 | BA118: =IF(AD118="","",(AD118/#REF!)*$W118) ->  | BE118: 240358.9454 | BG118: =IF(AJ118="","",(AJ118/#REF!)*$W118) ->  | BH118: =IF(AK118="","",(AK118/#REF!)*$W118) ->  | BI118: =IF(AL118="","",(AL118/#REF!)*$W118) ->  | BJ118: =IF(AM118="","",(AM118/#REF!)*$W118) ->  | BK118: =IF(AN118="","",(AN118/#REF!)*$W118) ->  | BL118: =IF(AO118="","",(AO118/#REF!)*$W118) ->  | BM118: =IF(AP118="","",(AP118/#REF!)*$W118) ->  | BN118: =IF(AQ118="","",(AQ118/#REF!)*$W118) ->  | BO118: =IF(AR118="","",(AR118/#REF!)*$W118) ->  | BP118: =IF(AS118="","",(AS118/#REF!)*$W118) ->  | BQ118: =IF(AT118="","",(AT118/#REF!)*$W118) ->  | BR118: =IF(AU118="","",(AU118/#REF!)*$W118) ->  | BS118: =IF(AV118="","",(AV118/#REF!)*$W118) ->  | BT118: =IF(AW118="","",(AW118/#REF!)*$W118) ->  | BU118: =IF(AX118="","",(AX118/#REF!)*$W118) ->  | BV118: =IF(AY118="","",(AY118/#REF!)*$W118) -> 
B119: PSMI03 | E119: Pump Station | F119: PSMI03 | G119: Caroline St SPS | L119: 0 | M119: 248067.2677 | O119: 1 | P119: 248067.2677 | S119: =IF(Q119="",'Unit Rates - Land'!landcst,IF($E$8="Landuse",VLOOKUP(Q119,LAndcost3,2,FALSE),IF($E$8="Location",VLOOKUP(Q119,Landcost2,2,FALSE),"Error"))) -> 0 | T119: 0 | U119: 2016 | V119: =IFERROR(('General Input Sheet'!$G$38/(VLOOKUP(U119,'General Input Sheet'!$E$38:$G$44,3,FALSE))),1) -> 1 | W119: 248067.2677 | AA119: y | AH119: 7209 | AZ119: 7209 | BA119: =IF(AD119="","",(AD119/#REF!)*$W119) ->  | BE119: 248067.2677 | BG119: =IF(AJ119="","",(AJ119/#REF!)*$W119) ->  | BH119: =IF(AK119="","",(AK119/#REF!)*$W119) ->  | BI119: =IF(AL119="","",(AL119/#REF!)*$W119) ->  | BJ119: =IF(AM119="","",(AM119/#REF!)*$W119) ->  | BK119: =IF(AN119="","",(AN119/#REF!)*$W119) ->  | BL119: =IF(AO119="","",(AO119/#REF!)*$W119) ->  | BM119: =IF(AP119="","",(AP119/#REF!)*$W119) ->  | BN119: =IF(AQ119="","",(AQ119/#REF!)*$W119) ->  | BO119: =IF(AR119="","",(AR119/#REF!)*$W119) ->  | BP119: =IF(AS119="","",(AS119/#REF!)*$W119) ->  | BQ119: =IF(AT119="","",(AT119/#REF!)*$W119) ->  | BR119: =IF(AU119="","",(AU119/#REF!)*$W119) ->  | BS119: =IF(AV119="","",(AV119/#REF!)*$W119) ->  | BT119: =IF(AW119="","",(AW119/#REF!)*$W119) ->  | BU119: =IF(AX119="","",(AX119/#REF!)*$W119) ->  | BV119: =IF(AY119="","",(AY119/#REF!)*$W119) -> 
B120: PSMI04 | E120: Pump Station | F120: PSMI04 | G120: Mary St SPS | L120: 0 | M120: 249653.3864 | O120: 1 | P120: 249653.3864 | S120: =IF(Q120="",'Unit Rates - Land'!landcst,IF($E$8="Landuse",VLOOKUP(Q120,LAndcost3,2,FALSE),IF($E$8="Location",VLOOKUP(Q120,Landcost2,2,FALSE),"Error"))) -> 0 | T120: 0 | U120: 2016 | V120: =IFERROR(('General Input Sheet'!$G$38/(VLOOKUP(U120,'General Input Sheet'!$E$38:$G$44,3,FALSE))),1) -> 1 | W120: 249653.3864 | AA120: y | AH120: 7209 | AZ120: 7209 | BA120: =IF(AD120="","",(AD120/#REF!)*$W120) ->  | BE120: 249653.3864 | BG120: =IF(AJ120="","",(AJ120/#REF!)*$W120) ->  | BH120: =IF(AK120="","",(AK120/#REF!)*$W120) ->  | BI120: =IF(AL120="","",(AL120/#REF!)*$W120) ->  | BJ120: =IF(AM120="","",(AM120/#REF!)*$W120) ->  | BK120: =IF(AN120="","",(AN120/#REF!)*$W120) ->  | BL120: =IF(AO120="","",(AO120/#REF!)*$W120) ->  | BM120: =IF(AP120="","",(AP120/#REF!)*$W120) ->  | BN120: =IF(AQ120="","",(AQ120/#REF!)*$W120) ->  | BO120: =IF(AR120="","",(AR120/#REF!)*$W120) ->  | BP120: =IF(AS120="","",(AS120/#REF!)*$W120) ->  | BQ120: =IF(AT120="","",(AT120/#REF!)*$W120) ->  | BR120: =IF(AU120="","",(AU120/#REF!)*$W120) ->  | BS120: =IF(AV120="","",(AV120/#REF!)*$W120) ->  | BT120: =IF(AW120="","",(AW120/#REF!)*$W120) ->  | BU120: =IF(AX120="","",(AX120/#REF!)*$W120) ->  | BV120: =IF(AY120="","",(AY120/#REF!)*$W120) -> 
B121: PSMI05 | E121: Pump Station | F121: PSMI05 | G121: Alexandra St SPS | L121: 0 | M121: 231064.5047 | O121: 1 | P121: 231064.5047 | S121: =IF(Q121="",'Unit Rates - Land'!landcst,IF($E$8="Landuse",VLOOKUP(Q121,LAndcost3,2,FALSE),IF($E$8="Location",VLOOKUP(Q121,Landcost2,2,FALSE),"Error"))) -> 0 | T121: 0 | U121: 2016 | V121: =IFERROR(('General Input Sheet'!$G$38/(VLOOKUP(U121,'General Input Sheet'!$E$38:$G$44,3,FALSE))),1) -> 1 | W121: 231064.5047 | AA121: y | AH121: 7209 | AZ121: 7209 | BA121: =IF(AD121="","",(AD121/#REF!)*$W121) ->  | BE121: 231064.5047 | BG121: =IF(AJ121="","",(AJ121/#REF!)*$W121) ->  | BH121: =IF(AK121="","",(AK121/#REF!)*$W121) ->  | BI121: =IF(AL121="","",(AL121/#REF!)*$W121) ->  | BJ121: =IF(AM121="","",(AM121/#REF!)*$W121) ->  | BK121: =IF(AN121="","",(AN121/#REF!)*$W121) ->  | BL121: =IF(AO121="","",(AO121/#REF!)*$W121) ->  | BM121: =IF(AP121="","",(AP121/#REF!)*$W121) ->  | BN121: =IF(AQ121="","",(AQ121/#REF!)*$W121) ->  | BO121: =IF(AR121="","",(AR121/#REF!)*$W121) ->  | BP121: =IF(AS121="","",(AS121/#REF!)*$W121) ->  | BQ121: =IF(AT121="","",(AT121/#REF!)*$W121) ->  | BR121: =IF(AU121="","",(AU121/#REF!)*$W121) ->  | BS121: =IF(AV121="","",(AV121/#REF!)*$W121) ->  | BT121: =IF(AW121="","",(AW121/#REF!)*$W121) ->  | BU121: =IF(AX121="","",(AX121/#REF!)*$W121) ->  | BV121: =IF(AY121="","",(AY121/#REF!)*$W121) -> 
B122: PSMI06 | E122: Pump Station | F122: PSMI06 | G122: Heather St SPS | L122: 0 | M122: 189960.1603 | O122: 1 | P122: 189960.1603 | S122: =IF(Q122="",'Unit Rates - Land'!landcst,IF($E$8="Landuse",VLOOKUP(Q122,LAndcost3,2,FALSE),IF($E$8="Location",VLOOKUP(Q122,Landcost2,2,FALSE),"Error"))) -> 0 | T122: 0 | U122: 2016 | V122: =IFERROR(('General Input Sheet'!$G$38/(VLOOKUP(U122,'General Input Sheet'!$E$38:$G$44,3,FALSE))),1) -> 1 | W122: 189960.1603 | AA122: y | AH122: 7209 | AZ122: 7209 | BA122: =IF(AD122="","",(AD122/#REF!)*$W122) ->  | BE122: 189960.1603 | BG122: =IF(AJ122="","",(AJ122/#REF!)*$W122) ->  | BH122: =IF(AK122="","",(AK122/#REF!)*$W122) ->  | BI122: =IF(AL122="","",(AL122/#REF!)*$W122) ->  | BJ122: =IF(AM122="","",(AM122/#REF!)*$W122) ->  | BK122: =IF(AN122="","",(AN122/#REF!)*$W122) ->  | BL122: =IF(AO122="","",(AO122/#REF!)*$W122) ->  | BM122: =IF(AP122="","",(AP122/#REF!)*$W122) ->  | BN122: =IF(AQ122="","",(AQ122/#REF!)*$W122) ->  | BO122: =IF(AR122="","",(AR122/#REF!)*$W122) ->  | BP122: =IF(AS122="","",(AS122/#REF!)*$W122) ->  | BQ122: =IF(AT122="","",(AT122/#REF!)*$W122) ->  | BR122: =IF(AU122="","",(AU122/#REF!)*$W122) ->  | BS122: =IF(AV122="","",(AV122/#REF!)*$W122) ->  | BT122: =IF(AW122="","",(AW122/#REF!)*$W122) ->  | BU122: =IF(AX122="","",(AX122/#REF!)*$W122) ->  | BV122: =IF(AY122="","",(AY122/#REF!)*$W122) -> 
B123: PSMI07 | E123: Pump Station | F123: PSMI07 | G123: Alice St SPS | L123: 0 | M123: 189960.1568 | O123: 1 | P123: 189960.1568 | S123: =IF(Q123="",'Unit Rates - Land'!landcst,IF($E$8="Landuse",VLOOKUP(Q123,LAndcost3,2,FALSE),IF($E$8="Location",VLOOKUP(Q123,Landcost2,2,FALSE),"Error"))) -> 0 | T123: 0 | U123: 2016 | V123: =IFERROR(('General Input Sheet'!$G$38/(VLOOKUP(U123,'General Input Sheet'!$E$38:$G$44,3,FALSE))),1) -> 1 | W123: 189960.1568 | AA123: y | AH123: 7209 | AZ123: 7209 | BA123: =IF(AD123="","",(AD123/#REF!)*$W123) ->  | BE123: 189960.1568 | BG123: =IF(AJ123="","",(AJ123/#REF!)*$W123) ->  | BH123: =IF(AK123="","",(AK123/#REF!)*$W123) ->  | BI123: =IF(AL123="","",(AL123/#REF!)*$W123) ->  | BJ123: =IF(AM123="","",(AM123/#REF!)*$W123) ->  | BK123: =IF(AN123="","",(AN123/#REF!)*$W123) ->  | BL123: =IF(AO123="","",(AO123/#REF!)*$W123) ->  | BM123: =IF(AP123="","",(AP123/#REF!)*$W123) ->  | BN123: =IF(AQ123="","",(AQ123/#REF!)*$W123) ->  | BO123: =IF(AR123="","",(AR123/#REF!)*$W123) ->  | BP123: =IF(AS123="","",(AS123/#REF!)*$W123) ->  | BQ123: =IF(AT123="","",(AT123/#REF!)*$W123) ->  | BR123: =IF(AU123="","",(AU123/#REF!)*$W123) ->  | BS123: =IF(AV123="","",(AV123/#REF!)*$W123) ->  | BT123: =IF(AW123="","",(AW123/#REF!)*$W123) ->  | BU123: =IF(AX123="","",(AX123/#REF!)*$W123) ->  | BV123: =IF(AY123="","",(AY123/#REF!)*$W123) -> 
B124: PSMI08 | E124: Pump Station | F124: PSMI08 | G124: Elizabeth St No 2 SPS | L124: 0 | M124: 300344.4283 | O124: 1 | P124: 300344.4283 | S124: =IF(Q124="",'Unit Rates - Land'!landcst,IF($E$8="Landuse",VLOOKUP(Q124,LAndcost3,2,FALSE),IF($E$8="Location",VLOOKUP(Q124,Landcost2,2,FALSE),"Error"))) -> 0 | T124: 0 | U124: 2016 | V124: =IFERROR(('General Input Sheet'!$G$38/(VLOOKUP(U124,'General Input Sheet'!$E$38:$G$44,3,FALSE))),1) -> 1 | W124: 300344.4283 | AA124: y | AH124: 7209 | AZ124: 7209 | BA124: =IF(AD124="","",(AD124/#REF!)*$W124) ->  | BE124: 300344.4283 | BG124: =IF(AJ124="","",(AJ124/#REF!)*$W124) ->  | BH124: =IF(AK124="","",(AK124/#REF!)*$W124) ->  | BI124: =IF(AL124="","",(AL124/#REF!)*$W124) ->  | BJ124: =IF(AM124="","",(AM124/#REF!)*$W124) ->  | BK124: =IF(AN124="","",(AN124/#REF!)*$W124) ->  | BL124: =IF(AO124="","",(AO124/#REF!)*$W124) ->  | BM124: =IF(AP124="","",(AP124/#REF!)*$W124) ->  | BN124: =IF(AQ124="","",(AQ124/#REF!)*$W124) ->  | BO124: =IF(AR124="","",(AR124/#REF!)*$W124) ->  | BP124: =IF(AS124="","",(AS124/#REF!)*$W124) ->  | BQ124: =IF(AT124="","",(AT124/#REF!)*$W124) ->  | BR124: =IF(AU124="","",(AU124/#REF!)*$W124) ->  | BS124: =IF(AV124="","",(AV124/#REF!)*$W124) ->  | BT124: =IF(AW124="","",(AW124/#REF!)*$W124) ->  | BU124: =IF(AX124="","",(AX124/#REF!)*$W124) ->  | BV124: =IF(AY124="","",(AY124/#REF!)*$W124) -> 
B125: PSMI09 | E125: Pump Station | F125: PSMI09 | G125: Patricia Cct SPS | L125: 0 | M125: 301531.2218 | O125: 1 | P125: 301531.2218 | S125: =IF(Q125="",'Unit Rates - Land'!landcst,IF($E$8="Landuse",VLOOKUP(Q125,LAndcost3,2,FALSE),IF($E$8="Location",VLOOKUP(Q125,Landcost2,2,FALSE),"Error"))) -> 0 | T125: 0 | U125: 2016 | V125: =IFERROR(('General Input Sheet'!$G$38/(VLOOKUP(U125,'General Input Sheet'!$E$38:$G$44,3,FALSE))),1) -> 1 | W125: 301531.2218 | AA125: y | AH125: 7209 | AZ125: 7209 | BA125: =IF(AD125="","",(AD125/#REF!)*$W125) ->  | BE125: 301531.2218 | BG125: =IF(AJ125="","",(AJ125/#REF!)*$W125) ->  | BH125: =IF(AK125="","",(AK125/#REF!)*$W125) ->  | BI125: =IF(AL125="","",(AL125/#REF!)*$W125) ->  | BJ125: =IF(AM125="","",(AM125/#REF!)*$W125) ->  | BK125: =IF(AN125="","",(AN125/#REF!)*$W125) ->  | BL125: =IF(AO125="","",(AO125/#REF!)*$W125) ->  | BM125: =IF(AP125="","",(AP125/#REF!)*$W125) ->  | BN125: =IF(AQ125="","",(AQ125/#REF!)*$W125) ->  | BO125: =IF(AR125="","",(AR125/#REF!)*$W125) ->  | BP125: =IF(AS125="","",(AS125/#REF!)*$W125) ->  | BQ125: =IF(AT125="","",(AT125/#REF!)*$W125) ->  | BR125: =IF(AU125="","",(AU125/#REF!)*$W125) ->  | BS125: =IF(AV125="","",(AV125/#REF!)*$W125) ->  | BT125: =IF(AW125="","",(AW125/#REF!)*$W125) ->  | BU125: =IF(AX125="","",(AX125/#REF!)*$W125) ->  | BV125: =IF(AY125="","",(AY125/#REF!)*$W125) -> 
B126: PSMP01 | E126: Pump Station | F126: PSMP01 | G126: Malcomson St No 2 SPS | L126: 0 | M126: 275444.81 | O126: 1 | P126: 275444.81 | S126: =IF(Q126="",'Unit Rates - Land'!landcst,IF($E$8="Landuse",VLOOKUP(Q126,LAndcost3,2,FALSE),IF($E$8="Location",VLOOKUP(Q126,Landcost2,2,FALSE),"Error"))) -> 0 | T126: 0 | U126: 2016 | V126: =IFERROR(('General Input Sheet'!$G$38/(VLOOKUP(U126,'General Input Sheet'!$E$38:$G$44,3,FALSE))),1) -> 1 | W126: 275444.81 | Y126: y | AF126: 52373 | AZ126: 52373 | BA126: =IF(AD126="","",(AD126/#REF!)*$W126) ->  | BC126: 275444.81 | BG126: =IF(AJ126="","",(AJ126/#REF!)*$W126) ->  | BH126: =IF(AK126="","",(AK126/#REF!)*$W126) ->  | BI126: =IF(AL126="","",(AL126/#REF!)*$W126) ->  | BJ126: =IF(AM126="","",(AM126/#REF!)*$W126) ->  | BK126: =IF(AN126="","",(AN126/#REF!)*$W126) ->  | BL126: =IF(AO126="","",(AO126/#REF!)*$W126) ->  | BM126: =IF(AP126="","",(AP126/#REF!)*$W126) ->  | BN126: =IF(AQ126="","",(AQ126/#REF!)*$W126) ->  | BO126: =IF(AR126="","",(AR126/#REF!)*$W126) ->  | BP126: =IF(AS126="","",(AS126/#REF!)*$W126) ->  | BQ126: =IF(AT126="","",(AT126/#REF!)*$W126) ->  | BR126: =IF(AU126="","",(AU126/#REF!)*$W126) ->  | BS126: =IF(AV126="","",(AV126/#REF!)*$W126) ->  | BT126: =IF(AW126="","",(AW126/#REF!)*$W126) ->  | BU126: =IF(AX126="","",(AX126/#REF!)*$W126) ->  | BV126: =IF(AY126="","",(AY126/#REF!)*$W126) -> 
B127: PSMP02 | E127: Pump Station | F127: PSMP02 | G127: Suncrest Crt SPS | L127: 0 | M127: 331456.9544 | O127: 1 | P127: 331456.9544 | S127: =IF(Q127="",'Unit Rates - Land'!landcst,IF($E$8="Landuse",VLOOKUP(Q127,LAndcost3,2,FALSE),IF($E$8="Location",VLOOKUP(Q127,Landcost2,2,FALSE),"Error"))) -> 0 | T127: 0 | U127: 2016 | V127: =IFERROR(('General Input Sheet'!$G$38/(VLOOKUP(U127,'General Input Sheet'!$E$38:$G$44,3,FALSE))),1) -> 1 | W127: 331456.9544 | Y127: y | AF127: 52373 | AZ127: 52373 | BA127: =IF(AD127="","",(AD127/#REF!)*$W127) ->  | BC127: 331456.9544 | BG127: =IF(AJ127="","",(AJ127/#REF!)*$W127) ->  | BH127: =IF(AK127="","",(AK127/#REF!)*$W127) ->  | BI127: =IF(AL127="","",(AL127/#REF!)*$W127) ->  | BJ127: =IF(AM127="","",(AM127/#REF!)*$W127) ->  | BK127: =IF(AN127="","",(AN127/#REF!)*$W127) ->  | BL127: =IF(AO127="","",(AO127/#REF!)*$W127) ->  | BM127: =IF(AP127="","",(AP127/#REF!)*$W127) ->  | BN127: =IF(AQ127="","",(AQ127/#REF!)*$W127) ->  | BO127: =IF(AR127="","",(AR127/#REF!)*$W127) ->  | BP127: =IF(AS127="","",(AS127/#REF!)*$W127) ->  | BQ127: =IF(AT127="","",(AT127/#REF!)*$W127) ->  | BR127: =IF(AU127="","",(AU127/#REF!)*$W127) ->  | BS127: =IF(AV127="","",(AV127/#REF!)*$W127) ->  | BT127: =IF(AW127="","",(AW127/#REF!)*$W127) ->  | BU127: =IF(AX127="","",(AX127/#REF!)*$W127) ->  | BV127: =IF(AY127="","",(AY127/#REF!)*$W127) -> 
B128: PSMP03 | E128: Pump Station | F128: PSMP03 | G128: Phillip St SPS | L128: 0 | M128: 177958.7345 | O128: 1 | P128: 177958.7345 | S128: =IF(Q128="",'Unit Rates - Land'!landcst,IF($E$8="Landuse",VLOOKUP(Q128,LAndcost3,2,FALSE),IF($E$8="Location",VLOOKUP(Q128,Landcost2,2,FALSE),"Error"))) -> 0 | T128: 0 | U128: 2016 | V128: =IFERROR(('General Input Sheet'!$G$38/(VLOOKUP(U128,'General Input Sheet'!$E$38:$G$44,3,FALSE))),1) -> 1 | W128: 177958.7345 | Y128: y | AF128: 52373 | AZ128: 52373 | BA128: =IF(AD128="","",(AD128/#REF!)*$W128) ->  | BC128: 177958.7345 | BG128: =IF(AJ128="","",(AJ128/#REF!)*$W128) ->  | BH128: =IF(AK128="","",(AK128/#REF!)*$W128) ->  | BI128: =IF(AL128="","",(AL128/#REF!)*$W128) ->  | BJ128: =IF(AM128="","",(AM128/#REF!)*$W128) ->  | BK128: =IF(AN128="","",(AN128/#REF!)*$W128) ->  | BL128: =IF(AO128="","",(AO128/#REF!)*$W128) ->  | BM128: =IF(AP128="","",(AP128/#REF!)*$W128) ->  | BN128: =IF(AQ128="","",(AQ128/#REF!)*$W128) ->  | BO128: =IF(AR128="","",(AR128/#REF!)*$W128) ->  | BP128: =IF(AS128="","",(AS128/#REF!)*$W128) ->  | BQ128: =IF(AT128="","",(AT128/#REF!)*$W128) ->  | BR128: =IF(AU128="","",(AU128/#REF!)*$W128) ->  | BS128: =IF(AV128="","",(AV128/#REF!)*$W128) ->  | BT128: =IF(AW128="","",(AW128/#REF!)*$W128) ->  | BU128: =IF(AX128="","",(AX128/#REF!)*$W128) ->  | BV128: =IF(AY128="","",(AY128/#REF!)*$W128) -> 
B129: PSNM01 | E129: Pump Station | F129: PSNM01 | G129: Bassett St | L129: 0 | M129: 1361642.01 | O129: 1 | P129: 1361642.01 | S129: =IF(Q129="",'Unit Rates - Land'!landcst,IF($E$8="Landuse",VLOOKUP(Q129,LAndcost3,2,FALSE),IF($E$8="Location",VLOOKUP(Q129,Landcost2,2,FALSE),"Error"))) -> 0 | T129: 0 | U129: 2016 | V129: =IFERROR(('General Input Sheet'!$G$38/(VLOOKUP(U129,'General Input Sheet'!$E$38:$G$44,3,FALSE))),1) -> 1 | W129: 1361642.01 | Y129: y | AF129: 52373 | AZ129: 52373 | BA129: =IF(AD129="","",(AD129/#REF!)*$W129) ->  | BC129: 1361642.01 | BG129: =IF(AJ129="","",(AJ129/#REF!)*$W129) ->  | BH129: =IF(AK129="","",(AK129/#REF!)*$W129) ->  | BI129: =IF(AL129="","",(AL129/#REF!)*$W129) ->  | BJ129: =IF(AM129="","",(AM129/#REF!)*$W129) ->  | BK129: =IF(AN129="","",(AN129/#REF!)*$W129) ->  | BL129: =IF(AO129="","",(AO129/#REF!)*$W129) ->  | BM129: =IF(AP129="","",(AP129/#REF!)*$W129) ->  | BN129: =IF(AQ129="","",(AQ129/#REF!)*$W129) ->  | BO129: =IF(AR129="","",(AR129/#REF!)*$W129) ->  | BP129: =IF(AS129="","",(AS129/#REF!)*$W129) ->  | BQ129: =IF(AT129="","",(AT129/#REF!)*$W129) ->  | BR129: =IF(AU129="","",(AU129/#REF!)*$W129) ->  | BS129: =IF(AV129="","",(AV129/#REF!)*$W129) ->  | BT129: =IF(AW129="","",(AW129/#REF!)*$W129) ->  | BU129: =IF(AX129="","",(AX129/#REF!)*$W129) ->  | BV129: =IF(AY129="","",(AY129/#REF!)*$W129) -> 
B130: PSNM02 | E130: Pump Station | F130: PSNM02 | G130: Forgan St SPS | L130: 0 | M130: 389014.119 | O130: 1 | P130: 389014.119 | S130: =IF(Q130="",'Unit Rates - Land'!landcst,IF($E$8="Landuse",VLOOKUP(Q130,LAndcost3,2,FALSE),IF($E$8="Location",VLOOKUP(Q130,Landcost2,2,FALSE),"Error"))) -> 0 | T130: 0 | U130: 2016 | V130: =IFERROR(('General Input Sheet'!$G$38/(VLOOKUP(U130,'General Input Sheet'!$E$38:$G$44,3,FALSE))),1) -> 1 | W130: 389014.119 | Y130: y | AF130: 52373 | AZ130: 52373 | BA130: =IF(AD130="","",(AD130/#REF!)*$W130) ->  | BC130: 389014.119 | BG130: =IF(AJ130="","",(AJ130/#REF!)*$W130) ->  | BH130: =IF(AK130="","",(AK130/#REF!)*$W130) ->  | BI130: =IF(AL130="","",(AL130/#REF!)*$W130) ->  | BJ130: =IF(AM130="","",(AM130/#REF!)*$W130) ->  | BK130: =IF(AN130="","",(AN130/#REF!)*$W130) ->  | BL130: =IF(AO130="","",(AO130/#REF!)*$W130) ->  | BM130: =IF(AP130="","",(AP130/#REF!)*$W130) ->  | BN130: =IF(AQ130="","",(AQ130/#REF!)*$W130) ->  | BO130: =IF(AR130="","",(AR130/#REF!)*$W130) ->  | BP130: =IF(AS130="","",(AS130/#REF!)*$W130) ->  | BQ130: =IF(AT130="","",(AT130/#REF!)*$W130) ->  | BR130: =IF(AU130="","",(AU130/#REF!)*$W130) ->  | BS130: =IF(AV130="","",(AV130/#REF!)*$W130) ->  | BT130: =IF(AW130="","",(AW130/#REF!)*$W130) ->  | BU130: =IF(AX130="","",(AX130/#REF!)*$W130) ->  | BV130: =IF(AY130="","",(AY130/#REF!)*$W130) -> 
B131: PSNM03 | E131: Pump Station | F131: PSNM03 | G131: Gooseponds SPS | L131: 0 | M131: 625431.9504 | O131: 1 | P131: 625431.9504 | S131: =IF(Q131="",'Unit Rates - Land'!landcst,IF($E$8="Landuse",VLOOKUP(Q131,LAndcost3,2,FALSE),IF($E$8="Location",VLOOKUP(Q131,Landcost2,2,FALSE),"Error"))) -> 0 | T131: 0 | U131: 2016 | V131: =IFERROR(('General Input Sheet'!$G$38/(VLOOKUP(U131,'General Input Sheet'!$E$38:$G$44,3,FALSE))),1) -> 1 | W131: 625431.9504 | Y131: y | AF131: 52373 | AZ131: 52373 | BA131: =IF(AD131="","",(AD131/#REF!)*$W131) ->  | BC131: 625431.9504 | BG131: =IF(AJ131="","",(AJ131/#REF!)*$W131) ->  | BH131: =IF(AK131="","",(AK131/#REF!)*$W131) ->  | BI131: =IF(AL131="","",(AL131/#REF!)*$W131) ->  | BJ131: =IF(AM131="","",(AM131/#REF!)*$W131) ->  | BK131: =IF(AN131="","",(AN131/#REF!)*$W131) ->  | BL131: =IF(AO131="","",(AO131/#REF!)*$W131) ->  | BM131: =IF(AP131="","",(AP131/#REF!)*$W131) ->  | BN131: =IF(AQ131="","",(AQ131/#REF!)*$W131) ->  | BO131: =IF(AR131="","",(AR131/#REF!)*$W131) ->  | BP131: =IF(AS131="","",(AS131/#REF!)*$W131) ->  | BQ131: =IF(AT131="","",(AT131/#REF!)*$W131) ->  | BR131: =IF(AU131="","",(AU131/#REF!)*$W131) ->  | BS131: =IF(AV131="","",(AV131/#REF!)*$W131) ->  | BT131: =IF(AW131="","",(AW131/#REF!)*$W131) ->  | BU131: =IF(AX131="","",(AX131/#REF!)*$W131) ->  | BV131: =IF(AY131="","",(AY131/#REF!)*$W131) -> 
B132: PSNM04 | E132: Pump Station | F132: PSNM04 | G132: Zammit St SPS | L132: 0 | M132: 348422.0123 | O132: 1 | P132: 348422.0123 | S132: =IF(Q132="",'Unit Rates - Land'!landcst,IF($E$8="Landuse",VLOOKUP(Q132,LAndcost3,2,FALSE),IF($E$8="Location",VLOOKUP(Q132,Landcost2,2,FALSE),"Error"))) -> 0 | T132: 0 | U132: 2016 | V132: =IFERROR(('General Input Sheet'!$G$38/(VLOOKUP(U132,'General Input Sheet'!$E$38:$G$44,3,FALSE))),1) -> 1 | W132: 348422.0123 | Y132: y | AF132: 52373 | AZ132: 52373 | BA132: =IF(AD132="","",(AD132/#REF!)*$W132) ->  | BC132: 348422.0123 | BG132: =IF(AJ132="","",(AJ132/#REF!)*$W132) ->  | BH132: =IF(AK132="","",(AK132/#REF!)*$W132) ->  | BI132: =IF(AL132="","",(AL132/#REF!)*$W132) ->  | BJ132: =IF(AM132="","",(AM132/#REF!)*$W132) ->  | BK132: =IF(AN132="","",(AN132/#REF!)*$W132) ->  | BL132: =IF(AO132="","",(AO132/#REF!)*$W132) ->  | BM132: =IF(AP132="","",(AP132/#REF!)*$W132) ->  | BN132: =IF(AQ132="","",(AQ132/#REF!)*$W132) ->  | BO132: =IF(AR132="","",(AR132/#REF!)*$W132) ->  | BP132: =IF(AS132="","",(AS132/#REF!)*$W132) ->  | BQ132: =IF(AT132="","",(AT132/#REF!)*$W132) ->  | BR132: =IF(AU132="","",(AU132/#REF!)*$W132) ->  | BS132: =IF(AV132="","",(AV132/#REF!)*$W132) ->  | BT132: =IF(AW132="","",(AW132/#REF!)*$W132) ->  | BU132: =IF(AX132="","",(AX132/#REF!)*$W132) ->  | BV132: =IF(AY132="","",(AY132/#REF!)*$W132) -> 
B133: PSNM05 | E133: Pump Station | F133: PSNM05 | G133: Burgess St SPS | L133: 0 | M133: 684571.8289 | O133: 1 | P133: 684571.8289 | S133: =IF(Q133="",'Unit Rates - Land'!landcst,IF($E$8="Landuse",VLOOKUP(Q133,LAndcost3,2,FALSE),IF($E$8="Location",VLOOKUP(Q133,Landcost2,2,FALSE),"Error"))) -> 0 | T133: 0 | U133: 2016 | V133: =IFERROR(('General Input Sheet'!$G$38/(VLOOKUP(U133,'General Input Sheet'!$E$38:$G$44,3,FALSE))),1) -> 1 | W133: 684571.8289 | Y133: y | AF133: 52373 | AZ133: 52373 | BA133: =IF(AD133="","",(AD133/#REF!)*$W133) ->  | BC133: 684571.8289 | BG133: =IF(AJ133="","",(AJ133/#REF!)*$W133) ->  | BH133: =IF(AK133="","",(AK133/#REF!)*$W133) ->  | BI133: =IF(AL133="","",(AL133/#REF!)*$W133) ->  | BJ133: =IF(AM133="","",(AM133/#REF!)*$W133) ->  | BK133: =IF(AN133="","",(AN133/#REF!)*$W133) ->  | BL133: =IF(AO133="","",(AO133/#REF!)*$W133) ->  | BM133: =IF(AP133="","",(AP133/#REF!)*$W133) ->  | BN133: =IF(AQ133="","",(AQ133/#REF!)*$W133) ->  | BO133: =IF(AR133="","",(AR133/#REF!)*$W133) ->  | BP133: =IF(AS133="","",(AS133/#REF!)*$W133) ->  | BQ133: =IF(AT133="","",(AT133/#REF!)*$W133) ->  | BR133: =IF(AU133="","",(AU133/#REF!)*$W133) ->  | BS133: =IF(AV133="","",(AV133/#REF!)*$W133) ->  | BT133: =IF(AW133="","",(AW133/#REF!)*$W133) ->  | BU133: =IF(AX133="","",(AX133/#REF!)*$W133) ->  | BV133: =IF(AY133="","",(AY133/#REF!)*$W133) -> 
B134: PSNM06 | E134: Pump Station | F134: PSNM06 | G134: Hamilton St SPS | L134: 0 | M134: 258474.6869 | O134: 1 | P134: 258474.6869 | S134: =IF(Q134="",'Unit Rates - Land'!landcst,IF($E$8="Landuse",VLOOKUP(Q134,LAndcost3,2,FALSE),IF($E$8="Location",VLOOKUP(Q134,Landcost2,2,FALSE),"Error"))) -> 0 | T134: 0 | U134: 2016 | V134: =IFERROR(('General Input Sheet'!$G$38/(VLOOKUP(U134,'General Input Sheet'!$E$38:$G$44,3,FALSE))),1) -> 1 | W134: 258474.6869 | Y134: y | AF134: 52373 | AZ134: 52373 | BA134: =IF(AD134="","",(AD134/#REF!)*$W134) ->  | BC134: 258474.6869 | BG134: =IF(AJ134="","",(AJ134/#REF!)*$W134) ->  | BH134: =IF(AK134="","",(AK134/#REF!)*$W134) ->  | BI134: =IF(AL134="","",(AL134/#REF!)*$W134) ->  | BJ134: =IF(AM134="","",(AM134/#REF!)*$W134) ->  | BK134: =IF(AN134="","",(AN134/#REF!)*$W134) ->  | BL134: =IF(AO134="","",(AO134/#REF!)*$W134) ->  | BM134: =IF(AP134="","",(AP134/#REF!)*$W134) ->  | BN134: =IF(AQ134="","",(AQ134/#REF!)*$W134) ->  | BO134: =IF(AR134="","",(AR134/#REF!)*$W134) ->  | BP134: =IF(AS134="","",(AS134/#REF!)*$W134) ->  | BQ134: =IF(AT134="","",(AT134/#REF!)*$W134) ->  | BR134: =IF(AU134="","",(AU134/#REF!)*$W134) ->  | BS134: =IF(AV134="","",(AV134/#REF!)*$W134) ->  | BT134: =IF(AW134="","",(AW134/#REF!)*$W134) ->  | BU134: =IF(AX134="","",(AX134/#REF!)*$W134) ->  | BV134: =IF(AY134="","",(AY134/#REF!)*$W134) -> 
B135: PSNM07 | E135: Pump Station | F135: PSNM07 | G135: Laird St SPS | L135: 0 | M135: 218847.7938 | O135: 1 | P135: 218847.7938 | S135: =IF(Q135="",'Unit Rates - Land'!landcst,IF($E$8="Landuse",VLOOKUP(Q135,LAndcost3,2,FALSE),IF($E$8="Location",VLOOKUP(Q135,Landcost2,2,FALSE),"Error"))) -> 0 | T135: 0 | U135: 2016 | V135: =IFERROR(('General Input Sheet'!$G$38/(VLOOKUP(U135,'General Input Sheet'!$E$38:$G$44,3,FALSE))),1) -> 1 | W135: 218847.7938 | Y135: y | AF135: 52373 | AZ135: 52373 | BA135: =IF(AD135="","",(AD135/#REF!)*$W135) ->  | BC135: 218847.7938 | BG135: =IF(AJ135="","",(AJ135/#REF!)*$W135) ->  | BH135: =IF(AK135="","",(AK135/#REF!)*$W135) ->  | BI135: =IF(AL135="","",(AL135/#REF!)*$W135) ->  | BJ135: =IF(AM135="","",(AM135/#REF!)*$W135) ->  | BK135: =IF(AN135="","",(AN135/#REF!)*$W135) ->  | BL135: =IF(AO135="","",(AO135/#REF!)*$W135) ->  | BM135: =IF(AP135="","",(AP135/#REF!)*$W135) ->  | BN135: =IF(AQ135="","",(AQ135/#REF!)*$W135) ->  | BO135: =IF(AR135="","",(AR135/#REF!)*$W135) ->  | BP135: =IF(AS135="","",(AS135/#REF!)*$W135) ->  | BQ135: =IF(AT135="","",(AT135/#REF!)*$W135) ->  | BR135: =IF(AU135="","",(AU135/#REF!)*$W135) ->  | BS135: =IF(AV135="","",(AV135/#REF!)*$W135) ->  | BT135: =IF(AW135="","",(AW135/#REF!)*$W135) ->  | BU135: =IF(AX135="","",(AX135/#REF!)*$W135) ->  | BV135: =IF(AY135="","",(AY135/#REF!)*$W135) -> 
B136: PSNM08 | E136: Pump Station | F136: PSNM08 | G136: Hodder St SPS | L136: 0 | M136: 256349.1732 | O136: 1 | P136: 256349.1732 | S136: =IF(Q136="",'Unit Rates - Land'!landcst,IF($E$8="Landuse",VLOOKUP(Q136,LAndcost3,2,FALSE),IF($E$8="Location",VLOOKUP(Q136,Landcost2,2,FALSE),"Error"))) -> 0 | T136: 0 | U136: 2016 | V136: =IFERROR(('General Input Sheet'!$G$38/(VLOOKUP(U136,'General Input Sheet'!$E$38:$G$44,3,FALSE))),1) -> 1 | W136: 256349.1732 | Y136: y | AF136: 52373 | AZ136: 52373 | BA136: =IF(AD136="","",(AD136/#REF!)*$W136) ->  | BC136: 256349.1732 | BG136: =IF(AJ136="","",(AJ136/#REF!)*$W136) ->  | BH136: =IF(AK136="","",(AK136/#REF!)*$W136) ->  | BI136: =IF(AL136="","",(AL136/#REF!)*$W136) ->  | BJ136: =IF(AM136="","",(AM136/#REF!)*$W136) ->  | BK136: =IF(AN136="","",(AN136/#REF!)*$W136) ->  | BL136: =IF(AO136="","",(AO136/#REF!)*$W136) ->  | BM136: =IF(AP136="","",(AP136/#REF!)*$W136) ->  | BN136: =IF(AQ136="","",(AQ136/#REF!)*$W136) ->  | BO136: =IF(AR136="","",(AR136/#REF!)*$W136) ->  | BP136: =IF(AS136="","",(AS136/#REF!)*$W136) ->  | BQ136: =IF(AT136="","",(AT136/#REF!)*$W136) ->  | BR136: =IF(AU136="","",(AU136/#REF!)*$W136) ->  | BS136: =IF(AV136="","",(AV136/#REF!)*$W136) ->  | BT136: =IF(AW136="","",(AW136/#REF!)*$W136) ->  | BU136: =IF(AX136="","",(AX136/#REF!)*$W136) ->  | BV136: =IF(AY136="","",(AY136/#REF!)*$W136) -> 
B137: PSNM09 | E137: Pump Station | F137: PSNM09 | G137: Malcomson St No 1 SPS | L137: 0 | M137: 208720.5697 | O137: 1 | P137: 208720.5697 | S137: =IF(Q137="",'Unit Rates - Land'!landcst,IF($E$8="Landuse",VLOOKUP(Q137,LAndcost3,2,FALSE),IF($E$8="Location",VLOOKUP(Q137,Landcost2,2,FALSE),"Error"))) -> 0 | T137: 0 | U137: 2016 | V137: =IFERROR(('General Input Sheet'!$G$38/(VLOOKUP(U137,'General Input Sheet'!$E$38:$G$44,3,FALSE))),1) -> 1 | W137: 208720.5697 | Y137: y | AF137: 52373 | AZ137: =SUM(AE137:AY137) -> 52373 | BA137: =IF(AD137="","",(AD137/#REF!)*$W137) ->  | BC137: 208720.5697 | BG137: =IF(AJ137="","",(AJ137/#REF!)*$W137) ->  | BH137: =IF(AK137="","",(AK137/#REF!)*$W137) ->  | BI137: =IF(AL137="","",(AL137/#REF!)*$W137) ->  | BJ137: =IF(AM137="","",(AM137/#REF!)*$W137) ->  | BK137: =IF(AN137="","",(AN137/#REF!)*$W137) ->  | BL137: =IF(AO137="","",(AO137/#REF!)*$W137) ->  | BM137: =IF(AP137="","",(AP137/#REF!)*$W137) ->  | BN137: =IF(AQ137="","",(AQ137/#REF!)*$W137) ->  | BO137: =IF(AR137="","",(AR137/#REF!)*$W137) ->  | BP137: =IF(AS137="","",(AS137/#REF!)*$W137) ->  | BQ137: =IF(AT137="","",(AT137/#REF!)*$W137) ->  | BR137: =IF(AU137="","",(AU137/#REF!)*$W137) ->  | BS137: =IF(AV137="","",(AV137/#REF!)*$W137) ->  | BT137: =IF(AW137="","",(AW137/#REF!)*$W137) ->  | BU137: =IF(AX137="","",(AX137/#REF!)*$W137) ->  | BV137: =IF(AY137="","",(AY137/#REF!)*$W137) -> 
B138: PSNM10 | E138: Pump Station | F138: PSNM10 | G138: Flors Ave SPS | L138: 0 | M138: 328526.6081 | O138: 1 | P138: 328526.6081 | S138: =IF(Q138="",'Unit Rates - Land'!landcst,IF($E$8="Landuse",VLOOKUP(Q138,LAndcost3,2,FALSE),IF($E$8="Location",VLOOKUP(Q138,Landcost2,2,FALSE),"Error"))) -> 0 | T138: 0 | U138: 2016 | V138: =IFERROR(('General Input Sheet'!$G$38/(VLOOKUP(U138,'General Input Sheet'!$E$38:$G$44,3,FALSE))),1) -> 1 | W138: 328526.6081 | Y138: y | AF138: 52373 | AZ138: 52373 | BA138: =IF(AD138="","",(AD138/#REF!)*$W138) ->  | BC138: 328526.6081 | BG138: =IF(AJ138="","",(AJ138/#REF!)*$W138) ->  | BH138: =IF(AK138="","",(AK138/#REF!)*$W138) ->  | BI138: =IF(AL138="","",(AL138/#REF!)*$W138) ->  | BJ138: =IF(AM138="","",(AM138/#REF!)*$W138) ->  | BK138: =IF(AN138="","",(AN138/#REF!)*$W138) ->  | BL138: =IF(AO138="","",(AO138/#REF!)*$W138) ->  | BM138: =IF(AP138="","",(AP138/#REF!)*$W138) ->  | BN138: =IF(AQ138="","",(AQ138/#REF!)*$W138) ->  | BO138: =IF(AR138="","",(AR138/#REF!)*$W138) ->  | BP138: =IF(AS138="","",(AS138/#REF!)*$W138) ->  | BQ138: =IF(AT138="","",(AT138/#REF!)*$W138) ->  | BR138: =IF(AU138="","",(AU138/#REF!)*$W138) ->  | BS138: =IF(AV138="","",(AV138/#REF!)*$W138) ->  | BT138: =IF(AW138="","",(AW138/#REF!)*$W138) ->  | BU138: =IF(AX138="","",(AX138/#REF!)*$W138) ->  | BV138: =IF(AY138="","",(AY138/#REF!)*$W138) -> 
B139: PSNM11 | E139: Pump Station | F139: PSNM11 | G139: Willetts Rd SPS | L139: 0 | M139: 399442.6036 | O139: 1 | P139: 399442.6036 | S139: =IF(Q139="",'Unit Rates - Land'!landcst,IF($E$8="Landuse",VLOOKUP(Q139,LAndcost3,2,FALSE),IF($E$8="Location",VLOOKUP(Q139,Landcost2,2,FALSE),"Error"))) -> 0 | T139: 0 | U139: 2016 | V139: =IFERROR(('General Input Sheet'!$G$38/(VLOOKUP(U139,'General Input Sheet'!$E$38:$G$44,3,FALSE))),1) -> 1 | W139: 399442.6036 | Y139: y | AF139: 52373 | AZ139: 52373 | BA139: =IF(AD139="","",(AD139/#REF!)*$W139) ->  | BC139: 399442.6036 | BG139: =IF(AJ139="","",(AJ139/#REF!)*$W139) ->  | BH139: =IF(AK139="","",(AK139/#REF!)*$W139) ->  | BI139: =IF(AL139="","",(AL139/#REF!)*$W139) ->  | BJ139: =IF(AM139="","",(AM139/#REF!)*$W139) ->  | BK139: =IF(AN139="","",(AN139/#REF!)*$W139) ->  | BL139: =IF(AO139="","",(AO139/#REF!)*$W139) ->  | BM139: =IF(AP139="","",(AP139/#REF!)*$W139) ->  | BN139: =IF(AQ139="","",(AQ139/#REF!)*$W139) ->  | BO139: =IF(AR139="","",(AR139/#REF!)*$W139) ->  | BP139: =IF(AS139="","",(AS139/#REF!)*$W139) ->  | BQ139: =IF(AT139="","",(AT139/#REF!)*$W139) ->  | BR139: =IF(AU139="","",(AU139/#REF!)*$W139) ->  | BS139: =IF(AV139="","",(AV139/#REF!)*$W139) ->  | BT139: =IF(AW139="","",(AW139/#REF!)*$W139) ->  | BU139: =IF(AX139="","",(AX139/#REF!)*$W139) ->  | BV139: =IF(AY139="","",(AY139/#REF!)*$W139) -> 
B140: PSNM12 | E140: Pump Station | F140: PSNM12 | G140: Heaths Rd No 1 SPS | L140: 0 | M140: 552644.9878 | O140: 1 | P140: 552644.9878 | S140: =IF(Q140="",'Unit Rates - Land'!landcst,IF($E$8="Landuse",VLOOKUP(Q140,LAndcost3,2,FALSE),IF($E$8="Location",VLOOKUP(Q140,Landcost2,2,FALSE),"Error"))) -> 0 | T140: 0 | U140: 2016 | V140: =IFERROR(('General Input Sheet'!$G$38/(VLOOKUP(U140,'General Input Sheet'!$E$38:$G$44,3,FALSE))),1) -> 1 | W140: 552644.9878 | Y140: y | AF140: 52373 | AZ140: 52373 | BA140: =IF(AD140="","",(AD140/#REF!)*$W140) ->  | BC140: 552644.9878 | BG140: =IF(AJ140="","",(AJ140/#REF!)*$W140) ->  | BH140: =IF(AK140="","",(AK140/#REF!)*$W140) ->  | BI140: =IF(AL140="","",(AL140/#REF!)*$W140) ->  | BJ140: =IF(AM140="","",(AM140/#REF!)*$W140) ->  | BK140: =IF(AN140="","",(AN140/#REF!)*$W140) ->  | BL140: =IF(AO140="","",(AO140/#REF!)*$W140) ->  | BM140: =IF(AP140="","",(AP140/#REF!)*$W140) ->  | BN140: =IF(AQ140="","",(AQ140/#REF!)*$W140) ->  | BO140: =IF(AR140="","",(AR140/#REF!)*$W140) ->  | BP140: =IF(AS140="","",(AS140/#REF!)*$W140) ->  | BQ140: =IF(AT140="","",(AT140/#REF!)*$W140) ->  | BR140: =IF(AU140="","",(AU140/#REF!)*$W140) ->  | BS140: =IF(AV140="","",(AV140/#REF!)*$W140) ->  | BT140: =IF(AW140="","",(AW140/#REF!)*$W140) ->  | BU140: =IF(AX140="","",(AX140/#REF!)*$W140) ->  | BV140: =IF(AY140="","",(AY140/#REF!)*$W140) -> 
B141: PSNM13 | E141: Pump Station | F141: PSNM13 | G141: Hicks Rd SPS | L141: 0 | M141: 550676.7161 | O141: 1 | P141: 550676.7161 | S141: =IF(Q141="",'Unit Rates - Land'!landcst,IF($E$8="Landuse",VLOOKUP(Q141,LAndcost3,2,FALSE),IF($E$8="Location",VLOOKUP(Q141,Landcost2,2,FALSE),"Error"))) -> 0 | T141: 0 | U141: 2016 | V141: =IFERROR(('General Input Sheet'!$G$38/(VLOOKUP(U141,'General Input Sheet'!$E$38:$G$44,3,FALSE))),1) -> 1 | W141: 550676.7161 | Y141: y | AF141: 52373 | AZ141: 52373 | BA141: =IF(AD141="","",(AD141/#REF!)*$W141) ->  | BC141: 550676.7161 | BG141: =IF(AJ141="","",(AJ141/#REF!)*$W141) ->  | BH141: =IF(AK141="","",(AK141/#REF!)*$W141) ->  | BI141: =IF(AL141="","",(AL141/#REF!)*$W141) ->  | BJ141: =IF(AM141="","",(AM141/#REF!)*$W141) ->  | BK141: =IF(AN141="","",(AN141/#REF!)*$W141) ->  | BL141: =IF(AO141="","",(AO141/#REF!)*$W141) ->  | BM141: =IF(AP141="","",(AP141/#REF!)*$W141) ->  | BN141: =IF(AQ141="","",(AQ141/#REF!)*$W141) ->  | BO141: =IF(AR141="","",(AR141/#REF!)*$W141) ->  | BP141: =IF(AS141="","",(AS141/#REF!)*$W141) ->  | BQ141: =IF(AT141="","",(AT141/#REF!)*$W141) ->  | BR141: =IF(AU141="","",(AU141/#REF!)*$W141) ->  | BS141: =IF(AV141="","",(AV141/#REF!)*$W141) ->  | BT141: =IF(AW141="","",(AW141/#REF!)*$W141) ->  | BU141: =IF(AX141="","",(AX141/#REF!)*$W141) ->  | BV141: =IF(AY141="","",(AY141/#REF!)*$W141) -> 
B142: PSNM14 | E142: Pump Station | F142: PSNM14 | G142: Heaths Rd No 2 SPS | L142: =IF(H142=SewerTYPE1,VLOOKUP(J142,SewerUnitrates1,2,FALSE),IF(H142=SEWERTYPE2,VLOOKUP((J142&"_"&K142),Sewerrates2,2,FALSE),0)) -> 0 | M142: 314678.8348 | O142: =IF(N142="",1,VLOOKUP(N142,Sewersitecond,2,FALSE)) -> 1 | P142: 314678.8348 | S142: =IF(Q142="",'Unit Rates - Land'!landcst,IF($E$8="Landuse",VLOOKUP(Q142,LAndcost3,2,FALSE),IF($E$8="Location",VLOOKUP(Q142,Landcost2,2,FALSE),"Error"))) -> 0 | T142: 0 | U142: 2016 | V142: =IFERROR(('General Input Sheet'!$G$38/(VLOOKUP(U142,'General Input Sheet'!$E$38:$G$44,3,FALSE))),1) -> 1 | W142: 314678.8348 | Y142: y | AF142: 52373 | AZ142: 52373 | BA142: =IF(AD142="","",(AD142/#REF!)*$W142) ->  | BC142: 314678.8348 | BG142: =IF(AJ142="","",(AJ142/#REF!)*$W142) ->  | BH142: =IF(AK142="","",(AK142/#REF!)*$W142) ->  | BI142: =IF(AL142="","",(AL142/#REF!)*$W142) ->  | BJ142: =IF(AM142="","",(AM142/#REF!)*$W142) ->  | BK142: =IF(AN142="","",(AN142/#REF!)*$W142) ->  | BL142: =IF(AO142="","",(AO142/#REF!)*$W142) ->  | BM142: =IF(AP142="","",(AP142/#REF!)*$W142) ->  | BN142: =IF(AQ142="","",(AQ142/#REF!)*$W142) ->  | BO142: =IF(AR142="","",(AR142/#REF!)*$W142) ->  | BP142: =IF(AS142="","",(AS142/#REF!)*$W142) ->  | BQ142: =IF(AT142="","",(AT142/#REF!)*$W142) ->  | BR142: =IF(AU142="","",(AU142/#REF!)*$W142) ->  | BS142: =IF(AV142="","",(AV142/#REF!)*$W142) ->  | BT142: =IF(AW142="","",(AW142/#REF!)*$W142) ->  | BU142: =IF(AX142="","",(AX142/#REF!)*$W142) ->  | BV142: =IF(AY142="","",(AY142/#REF!)*$W142) -> 
B143: PSNM15 | E143: Pump Station | F143: PSNM15 | G143: Oasis Dr SPS | L143: 0 | M143: 605253.4744 | O143: 1 | P143: =IF(M143="","",M143*O143) -> 605253.4744 | S143: =IF(Q143="",'Unit Rates - Land'!landcst,IF($E$8="Landuse",VLOOKUP(Q143,LAndcost3,2,FALSE),IF($E$8="Location",VLOOKUP(Q143,Landcost2,2,FALSE),"Error"))) -> 0 | T143: =IF(S143="",0,S143*10000*R143) -> 0 | U143: 2016 | V143: =IFERROR(('General Input Sheet'!$G$38/(VLOOKUP(U143,'General Input Sheet'!$E$38:$G$44,3,FALSE))),1) -> 1 | W143: =IFERROR((P143+T143)*V143,0) -> 605253.4744 | Y143: y | AE143: =IF(X143="y",AE$14,IF(AND(X143>0,X143<=1),X143*AE$14,"")) ->  | AF143: =IF(Y143="y",AF$14,IF(AND(Y143>0,Y143<=1),Y143*AF$14,"")) -> 52373 | AG143: =IF(Z143="y",AG$14,IF(AND(Z143>0,Z143<=1),Z143*AG$14,"")) ->  | AH143: =IF(AA143="y",AH$14,IF(AND(AA143>0,AA143<=1),AA143*AH$14,"")) ->  | AI143: =IF(AB143="y",AI$14,IF(AND(AB143>0,AB143<=1),AB143*AI$14,"")) ->  | AZ143: 52373 | BA143: =IF(AD143="","",(AD143/#REF!)*$W143) ->  | BC143: 605253.4744 | BG143: =IF(AJ143="","",(AJ143/#REF!)*$W143) ->  | BH143: =IF(AK143="","",(AK143/#REF!)*$W143) ->  | BI143: =IF(AL143="","",(AL143/#REF!)*$W143) ->  | BJ143: =IF(AM143="","",(AM143/#REF!)*$W143) ->  | BK143: =IF(AN143="","",(AN143/#REF!)*$W143) ->  | BL143: =IF(AO143="","",(AO143/#REF!)*$W143) ->  | BM143: =IF(AP143="","",(AP143/#REF!)*$W143) ->  | BN143: =IF(AQ143="","",(AQ143/#REF!)*$W143) ->  | BO143: =IF(AR143="","",(AR143/#REF!)*$W143) ->  | BP143: =IF(AS143="","",(AS143/#REF!)*$W143) ->  | BQ143: =IF(AT143="","",(AT143/#REF!)*$W143) ->  | BR143: =IF(AU143="","",(AU143/#REF!)*$W143) ->  | BS143: =IF(AV143="","",(AV143/#REF!)*$W143) ->  | BT143: =IF(AW143="","",(AW143/#REF!)*$W143) ->  | BU143: =IF(AX143="","",(AX143/#REF!)*$W143) ->  | BV143: =IF(AY143="","",(AY143/#REF!)*$W143) ->  | BW143: =IF(SUM(BB143:BV143)=W143,"","ERROR") -> 
B144: PSRV01 | E144: Pump Station | F144: PSRV01 | G144: Moreton Dr SPS | L144: 0 | M144: 236020.5656 | O144: 1 | P144: 236020.5656 | S144: =IF(Q144="",'Unit Rates - Land'!landcst,IF($E$8="Landuse",VLOOKUP(Q144,LAndcost3,2,FALSE),IF($E$8="Location",VLOOKUP(Q144,Landcost2,2,FALSE),"Error"))) -> 0 | T144: 0 | U144: 2016 | V144: =IFERROR(('General Input Sheet'!$G$38/(VLOOKUP(U144,'General Input Sheet'!$E$38:$G$44,3,FALSE))),1) -> 1 | W144: 236020.5656 | X144: y | AE144: 50350 | AZ144: 50350 | BA144: =IF(AD144="","",(AD144/#REF!)*$W144) ->  | BB144: 236020.5656 | BG144: =IF(AJ144="","",(AJ144/#REF!)*$W144) ->  | BH144: =IF(AK144="","",(AK144/#REF!)*$W144) ->  | BI144: =IF(AL144="","",(AL144/#REF!)*$W144) ->  | BJ144: =IF(AM144="","",(AM144/#REF!)*$W144) ->  | BK144: =IF(AN144="","",(AN144/#REF!)*$W144) ->  | BL144: =IF(AO144="","",(AO144/#REF!)*$W144) ->  | BM144: =IF(AP144="","",(AP144/#REF!)*$W144) ->  | BN144: =IF(AQ144="","",(AQ144/#REF!)*$W144) ->  | BO144: =IF(AR144="","",(AR144/#REF!)*$W144) ->  | BP144: =IF(AS144="","",(AS144/#REF!)*$W144) ->  | BQ144: =IF(AT144="","",(AT144/#REF!)*$W144) ->  | BR144: =IF(AU144="","",(AU144/#REF!)*$W144) ->  | BS144: =IF(AV144="","",(AV144/#REF!)*$W144) ->  | BT144: =IF(AW144="","",(AW144/#REF!)*$W144) ->  | BU144: =IF(AX144="","",(AX144/#REF!)*$W144) ->  | BV144: =IF(AY144="","",(AY144/#REF!)*$W144) -> 
B145: PSRV02 | E145: Pump Station | F145: PSRV02 | G145: Symons Farm SPS | L145: 0 | M145: 433155.7553 | O145: 1 | P145: 433155.7553 | S145: =IF(Q145="",'Unit Rates - Land'!landcst,IF($E$8="Landuse",VLOOKUP(Q145,LAndcost3,2,FALSE),IF($E$8="Location",VLOOKUP(Q145,Landcost2,2,FALSE),"Error"))) -> 0 | T145: 0 | U145: 2016 | V145: =IFERROR(('General Input Sheet'!$G$38/(VLOOKUP(U145,'General Input Sheet'!$E$38:$G$44,3,FALSE))),1) -> 1 | W145: 433155.7553 | X145: y | AE145: 50350 | AZ145: =SUM(AE145:AY145) -> 50350 | BA145: =IF(AD145="","",(AD145/#REF!)*$W145) ->  | BB145: =IF(AE145="","",(AE145/$AZ145)*$W145) -> 433155.7553 | BC145: =IF(AF145="","",(AF145/$AZ145)*$W145) ->  | BD145: =IF(AG145="","",(AG145/$AZ145)*$W145) ->  | BE145: =IF(AH145="","",(AH145/$AZ145)*$W145) ->  | BF145: =IF(AI145="","",(AI145/$AZ145)*$W145) ->  | BG145: =IF(AJ145="","",(AJ145/#REF!)*$W145) ->  | BH145: =IF(AK145="","",(AK145/#REF!)*$W145) ->  | BI145: =IF(AL145="","",(AL145/#REF!)*$W145) ->  | BJ145: =IF(AM145="","",(AM145/#REF!)*$W145) ->  | BK145: =IF(AN145="","",(AN145/#REF!)*$W145) ->  | BL145: =IF(AO145="","",(AO145/#REF!)*$W145) ->  | BM145: =IF(AP145="","",(AP145/#REF!)*$W145) ->  | BN145: =IF(AQ145="","",(AQ145/#REF!)*$W145) ->  | BO145: =IF(AR145="","",(AR145/#REF!)*$W145) ->  | BP145: =IF(AS145="","",(AS145/#REF!)*$W145) ->  | BQ145: =IF(AT145="","",(AT145/#REF!)*$W145) ->  | BR145: =IF(AU145="","",(AU145/#REF!)*$W145) ->  | BS145: =IF(AV145="","",(AV145/#REF!)*$W145) ->  | BT145: =IF(AW145="","",(AW145/#REF!)*$W145) ->  | BU145: =IF(AX145="","",(AX145/#REF!)*$W145) ->  | BV145: =IF(AY145="","",(AY145/#REF!)*$W145) -> 
B146: PSRV06 | E146: Pump Station | F146: PSRV06 | G146: Morehead Dr SPS | L146: 0 | M146: 269937.545 | O146: 1 | P146: 269937.545 | S146: =IF(Q146="",'Unit Rates - Land'!landcst,IF($E$8="Landuse",VLOOKUP(Q146,LAndcost3,2,FALSE),IF($E$8="Location",VLOOKUP(Q146,Landcost2,2,FALSE),"Error"))) -> 0 | T146: 0 | U146: 2016 | V146: =IFERROR(('General Input Sheet'!$G$38/(VLOOKUP(U146,'General Input Sheet'!$E$38:$G$44,3,FALSE))),1) -> 1 | W146: 269937.545 | X146: y | AE146: 50350 | AZ146: 50350 | BA146: =IF(AD146="","",(AD146/#REF!)*$W146) ->  | BB146: 269937.545 | BG146: =IF(AJ146="","",(AJ146/#REF!)*$W146) ->  | BH146: =IF(AK146="","",(AK146/#REF!)*$W146) ->  | BI146: =IF(AL146="","",(AL146/#REF!)*$W146) ->  | BJ146: =IF(AM146="","",(AM146/#REF!)*$W146) ->  | BK146: =IF(AN146="","",(AN146/#REF!)*$W146) ->  | BL146: =IF(AO146="","",(AO146/#REF!)*$W146) ->  | BM146: =IF(AP146="","",(AP146/#REF!)*$W146) ->  | BN146: =IF(AQ146="","",(AQ146/#REF!)*$W146) ->  | BO146: =IF(AR146="","",(AR146/#REF!)*$W146) ->  | BP146: =IF(AS146="","",(AS146/#REF!)*$W146) ->  | BQ146: =IF(AT146="","",(AT146/#REF!)*$W146) ->  | BR146: =IF(AU146="","",(AU146/#REF!)*$W146) ->  | BS146: =IF(AV146="","",(AV146/#REF!)*$W146) ->  | BT146: =IF(AW146="","",(AW146/#REF!)*$W146) ->  | BU146: =IF(AX146="","",(AX146/#REF!)*$W146) ->  | BV146: =IF(AY146="","",(AY146/#REF!)*$W146) -> 
B147: PSRV09 | E147: Pump Station | F147: PSRV09 | G147: Dawson Bvd SPS | L147: 0 | M147: 228786.1994 | O147: 1 | P147: 228786.1994 | S147: =IF(Q147="",'Unit Rates - Land'!landcst,IF($E$8="Landuse",VLOOKUP(Q147,LAndcost3,2,FALSE),IF($E$8="Location",VLOOKUP(Q147,Landcost2,2,FALSE),"Error"))) -> 0 | T147: 0 | U147: 2016 | V147: =IFERROR(('General Input Sheet'!$G$38/(VLOOKUP(U147,'General Input Sheet'!$E$38:$G$44,3,FALSE))),1) -> 1 | W147: 228786.1994 | X147: y | AE147: 50350 | AZ147: 50350 | BA147: =IF(AD147="","",(AD147/#REF!)*$W147) ->  | BB147: 228786.1994 | BG147: =IF(AJ147="","",(AJ147/#REF!)*$W147) ->  | BH147: =IF(AK147="","",(AK147/#REF!)*$W147) ->  | BI147: =IF(AL147="","",(AL147/#REF!)*$W147) ->  | BJ147: =IF(AM147="","",(AM147/#REF!)*$W147) ->  | BK147: =IF(AN147="","",(AN147/#REF!)*$W147) ->  | BL147: =IF(AO147="","",(AO147/#REF!)*$W147) ->  | BM147: =IF(AP147="","",(AP147/#REF!)*$W147) ->  | BN147: =IF(AQ147="","",(AQ147/#REF!)*$W147) ->  | BO147: =IF(AR147="","",(AR147/#REF!)*$W147) ->  | BP147: =IF(AS147="","",(AS147/#REF!)*$W147) ->  | BQ147: =IF(AT147="","",(AT147/#REF!)*$W147) ->  | BR147: =IF(AU147="","",(AU147/#REF!)*$W147) ->  | BS147: =IF(AV147="","",(AV147/#REF!)*$W147) ->  | BT147: =IF(AW147="","",(AW147/#REF!)*$W147) ->  | BU147: =IF(AX147="","",(AX147/#REF!)*$W147) ->  | BV147: =IF(AY147="","",(AY147/#REF!)*$W147) -> 
